Workbook

Sheet メイン
D9: 産業廃棄物処理業の事業活動に伴う温室効果ガス排出量の算定等に関する支援ツール
D11: １．算定ツール
E12: １．） 年度の指定
G15: 入力又は閲覧する年度を指定して下さい
E20: ２．） 活動量（燃料使用量、焼却量、最終処分量等）の入力
E30: ３．） 排出量の算定、閲覧
D45: ２．地球温暖化対策の実施による削減効果の試算
E46: ※複数の試算を行う場合は、ファイルを複数に分けて保存して行ってください
D56: ３．分野別GHG排出量まとめ
E69: ６．登録開始年度の再設定
G72: 登録開始年度： | O72: =$B$94 -> 0
E78: 温室効果ガス削減支援ツールver2.2
E80: 公益社団法人 全国産業資源循環連合会
A90: データ部 開始 ---------------------------------
A91: データ数 | B91: 選択行
A92: 20 | B92: 19
H93: 活動量 | K93: 排出量
H94: 収集運搬業（車両の燃料使用量） | K94: 収集運搬業における温室効果ガス排出量
H95: 中間処理業（廃棄物の焼却量等） | K95: 中間処理業における温室効果ガス排出量
H96: 最終処分業（廃棄物の最終処分量等） | K96: 最終処分業における温室効果ガス排出量
H97: 関連施設及び構内車両（産廃関連施設の燃料消費量等） | K97: 関連施設及び構内車両における温室効果ガス排出量
A98: データ部 終了 ---------------------------------
C99: 更新履歴（2025.3現在）
C100: ・「日本の温室効果ガス排出・吸収目録（インベントリ）の算定方法（2024.3）」に対応

Sheet 活動量
O1: パラメータ
O2: バイオ燃料 | Q2: 単位 | V2: 焼却汚泥 | Y2: 最終処分場 | Z2: 関連施設 | AC2: 発生ガス
A3: 活動量（燃料使用量、焼却量、最終処分量等）の入力 | O3: バイオエタノール | P3: バイオディーゼル | Q3: 液体 | R3: 気体 | S3: 固体 | T3: 電力 | U3: 熱利用 | V3: 炉の種類 | W3: 凝集剤の種類 | X3: 燃焼温度 | Y3: 最終処分場の構造 | Z3: 炉の種類 | AA3: RPF炉の種類 | AC3: 気体 | AD3: 気体
A4: 2024年度 | O4: 3 | P4: 5 | Q4: （kl） | R4: （千㎥） | S4: （t） | T4: （千kWh） | U4: （千MJ） | V4: 流動床炉 | W4: 高分子凝集剤 | X4: 高温燃焼（約850℃） | Y4: 準好気性 | Z4: ボイラー | AA4: ボイラー | AC4: （千㎥） | AD4: （千㎥N）
O5: 7 | P5: 100 | Q5: （ﾘｯﾄﾙ） | R5: （㎥） | S5: （kg） | T5: （kWh） | U5: （MJ） | V5: 多段炉 | W5: 石灰系凝集剤 | X5: 通常燃焼（約800℃） | Y5: 嫌気性 | Z5: 助燃剤 | AA5: セメント焼成炉 | AC5: （㎥） | AD5: （㎥N）
V6: その他 | W6: その他凝集剤 | Z6: それ以外 | AA6: それ以外
B7: ○収集運搬業（車両の燃料使用量）
B8: 産業廃棄物収集運搬車両の燃料使用量を入力してください。※構内の車両（重機等）は「関連施設」で入力します。
B10: 収集運搬業 | G10: 燃料使用量 | I10: バイオ燃料 の割合(％)
C12: 収集運搬車両の燃料使用 | D12: 燃料法 | E12: ガソリン | H12: （kl）
E13: 軽油 | H13: （kl）
E14: ＬＰＧ | H14: （t）
E15: 天然ガス（CNG車燃料） | H15: （千㎥）
E16: バイオエタノール混合ガソリン | H16: （kl） | I16: 3
E17: バイオディーゼル | H17: （kl） | I17: 5
G18: 燃料使用量 | I18: 台数 | J18: １台当りの年間平均輸送距離（km/年） | K18: 燃費 （km/l,km/kg, km/m3）
D20: 燃費法 | E20: ガソリン | G20: =IF(ISERROR(I20*J20/K20/1000),"",I20*J20/K20/1000) ->  | H20: （kl）
E21: 軽油 | G21: =IF(ISERROR(I21*J21/K21/1000),"",I21*J21/K21/1000) ->  | H21: （kl）
E22: ＬＰＧ | G22: =IF(ISERROR(I22*J22/K22/1000),"",I22*J22/K22/1000) ->  | H22: （t）
E23: 天然ガス（CNG車燃料） | G23: =IF(ISERROR(I23*J23/K23/1000),"",I23*J23/K23/1000) ->  | H23: （千㎥）
G24: 燃料使用量 | I24: 台数 | J24: 最大積載量 （t） | K24: 平均積載率 （％） | L24: １台当りの年間平均輸送距離（km/年） | M24: 改良トンキロ法燃料使用原単位（ﾘｯﾄﾙ/t・km）
O25: flg
D26: 改良 トンキロ法 | E26: ガソリン | G26: =IF(S26=4,IF(ISERROR(I26*J26*K26/100*L26*M26/1000),"",I26*J26*K26/100*L26*M26/1000),"") ->  | H26: （kl） | M26: =IF(ISERROR(EXP(2.67-0.927*LN(K26/100)-0.648*LN(J26*1000))),"",EXP(2.67-0.927*LN(K26/100)-0.648*LN(J26*1000))) ->  | O26: =IF(I26<>"",1,0) -> 0 | P26: 0 | Q26: 0 | R26: 0 | S26: =SUM(O26:R26) -> 0
E27: 軽油 | G27: =IF(S27=4,IF(ISERROR(I27*J27*K27/100*L27*M27/1000),"",I27*J27*K27/100*L27*M27/1000),"") ->  | H27: （kl） | M27: =IF(ISERROR(EXP(2.71-0.812*LN(K27/100)-0.654*LN(J27*1000))),"",EXP(2.71-0.812*LN(K27/100)-0.654*LN(J27*1000))) ->  | O27: 0 | P27: 0 | Q27: 0 | R27: 0 | S27: =SUM(O27:R27) -> 0
B29: ○中間処理業（廃棄物の焼却量等）
B30: 中間処理における焼却・溶融量を入力してください。
B32: 中間処理業 | G32: 焼却量・溶融量 | I32: 炉の種類 | J32: 凝集剤 の種類 | K32: 燃焼温度 （℃） | L32: 廃プラスチックの割合（％） | M32: 水分割合 （％）
C34: 産業廃棄物の焼却・溶融 | D34: 汚泥 | E34: 下水汚泥 | F34: 炉No1 | H34: （t）
F35: 炉No2 | H35: （t）
F36: 炉No3 | H36: （t）
E37: 下水汚泥以外 | H37: （t）
D38: 廃油 | E38: 燃料系廃油、潤滑油系廃油、廃溶剤 | H38: （t）
E39: 動植物性廃油 | H39: （t）
D40: 廃プラスチック類 | E40: 廃プラスチック類、合成ゴムくず、合成繊維 | H40: （t）
E41: 廃タイヤ | H41: （t） | M41: 5
D42: 紙くず | H42: （t）
D43: 木くず | H43: （t）
D44: 繊維くず | H44: （t）
D45: 動植物性残渣 | H45: （t）
D46: 動物系固形不要物 | H46: （t）
D47: 動物のふん尿 | H47: （t）
D48: 動物の死体 | H48: （t）
D49: 特別管理産業廃棄物の廃油 | H49: （t）
D50: 感染性廃棄物 | H50: （t） | L50: 42.6
D51: その他（混合廃棄物） | H51: （t）
G52: 原料として投入した量 （乾重量）
C54: 有機性廃棄物の コンポスト化 | D54: 有機性汚泥 | H54: （t）
D55: 動植物性残渣 | H55: （t）
D56: 紙くず、木くず、繊維くず | H56: （t）
D57: その他の有機性廃棄物 | H57: （t）
C58: -- 温室効果ガス削減効果 --
C60: 廃棄物発電、熱利用の実績を入力してください。
G61: 発電量・熱利用量
C63: 発電・ 熱利用 | D63: 廃棄物発電 | H63: （千kWh）
D64: 廃棄物熱利用 | H64: （千MJ）
B66: ○最終処分業（廃棄物の最終処分量等）
B67: 最終処分場への最終処分量を入力してください。
B69: 最終処分業 | G69: 最終処分量 （湿重量） | I69: 最終処分場 の構造 | J69: 水分割合 （％） | K69: 有機成分の 割合（％）
C71: 生分解性廃棄物の最終処分 | D71: 有機性 汚泥 | E71: 下水汚泥 | H71: （t） | I71: 嫌気性 | J71: 70
E72: 製造業有機性汚泥 | H72: （t） | I72: 嫌気性 | J72: 67
E73: 浄水汚泥 | H73: （t） | I73: 嫌気性 | J73: 70
E74: し尿処理汚泥 | H74: （t） | I74: 嫌気性 | J74: 70
E75: その他（有機無機混合汚泥） | H75: （t） | I75: 嫌気性 | J75: 67 | K75: 50
D76: 紙くず | H76: （t） | I76: 嫌気性 | J76: 15
D77: 木くず | H77: （t） | I77: 嫌気性 | J77: 45
D78: 繊維くず | H78: （t） | I78: 嫌気性 | J78: 15
D79: 動植物性残渣 | H79: （t） | I79: 嫌気性 | J79: 75
D80: 動物系固形不要物 | H80: （t） | I80: 嫌気性 | J80: 75
D81: 動物のふん尿 | H81: （t） | I81: 嫌気性 | J81: 75
D82: 動物の死体 | H82: （t） | I82: 嫌気性 | J82: 75
D83: その他（混合廃棄物） | H83: （t） | I83: 嫌気性 | J83: 75 | K83: 10
C84: -- 温室効果ガス削減効果 --
C86: 発生ガスの回収・焼却の実績を入力してください。
G87: 発生ガスの焼却量 | I87: 発生ガス中のメタン濃度（％）
C89: メタン 破壊 | D89: 発生ガスの回収・焼却 | H89: （㎥N） | I89: 15
B91: ○関連施設及び構内車両（産廃関連施設の燃料使用量等）
B92: 産業廃棄物関連施設（処理施設、処分場、本社ビル、事業所、事務所等）における、照明、冷暖房、動力、給湯、熱源、助燃剤、構内車両燃料等の用途に
B93: 使用したエネルギー（電気・ガス・燃料）使用量を入力してください。※兼業等により産廃分の切り出しが困難な場合は、下記の「産業廃棄物業の占める割合
B94: （全売上げに占める産廃業の売上げ割合等）」を設定してください。
B96: 関連施設及び構内車両 | C96: 産業廃棄物業の占める割合（％） | G96: 100
G97: エネルギー使用量 | I97: 利用用途 | J97: バイオ燃料 の割合(％) | K97: 水分割合 （％）
C99: 施設等のエネルギー（電気・ガス・燃料）使用 | D99: 電気 | H99: （千kWh）
D100: 都市ガス | F100: 用途1 | H100: （千㎥） | I100: ボイラー燃料
F101: 用途2 | H101: （千㎥） | I101: 助燃剤
F102: 用途3 | H102: （千㎥） | I102: それ以外
D103: 液化天然ガス（LNG） | F103: 用途1 | H103: （t） | I103: ボイラー燃料
F104: 用途2 | H104: （t） | I104: 助燃剤
F105: 用途3 | H105: （t） | I105: それ以外
D106: 軽油 | F106: 用途1 | H106: （kl） | I106: ボイラー燃料
F107: 用途2 | H107: （kl） | I107: 助燃剤
F108: 用途3 | H108: （kl） | I108: それ以外
D109: 灯油 | F109: 用途1 | H109: （kl） | I109: ボイラー燃料
F110: 用途2 | H110: （kl） | I110: 助燃剤
F111: 用途3 | H111: （kl） | I111: それ以外
D112: A重油 | F112: 用途1 | H112: （kl） | I112: ボイラー燃料
F113: 用途2 | H113: （kl） | I113: 助燃剤
F114: 用途3 | H114: （kl） | I114: それ以外
D115: C重油 | F115: 用途1 | H115: （kl） | I115: ボイラー燃料
F116: 用途2 | H116: （kl） | I116: 助燃剤
F117: 用途3 | H117: （kl） | I117: それ以外
D118: LPG | F118: 用途1 | H118: （t） | I118: ボイラー燃料
F119: 用途2 | H119: （t） | I119: 助燃剤
F120: 用途3 | H120: （t） | I120: それ以外
D121: 石炭 | F121: 用途1 | H121: （t） | I121: ボイラー燃料
F122: 用途2 | H122: （t） | I122: 助燃剤
F123: 用途3 | H123: （t） | I123: それ以外
D124: コークス | F124: 用途1 | H124: （t） | I124: ボイラー燃料
F125: 用途2 | H125: （t） | I125: 助燃剤
F126: 用途3 | H126: （t） | I126: それ以外
D127: 廃油・ 再生油 | E127: 燃料系廃油、潤滑油系廃油 | H127: （t）
E128: 動植物性廃油 | H128: （t）
D129: 木くず | H129: （t）
D130: バイオディーゼル | H130: （kl） | J130: 100
D131: RPF | F131: 用途1 | H131: （t） | I131: ボイラー燃料 | K131: 2.6
F132: 用途2 | H132: （t） | I132: それ以外 | K132: 2.6
C133: 構内車両（重機等） | D133: 電気 | H133: （千kWh）
D134: ガソリン | H134: （kl）
D135: 軽油 | H135: （kl）
D136: 灯油 | H136: （kl）
D137: バイオディーゼル | H137: （kl） | J137: 100
B138: ※構内車両への入力の際は、施設での使用量との二重計上に注意してください。車両を区分け出来ない場合は、施設に含めて入力してください。

Sheet 排出量（収運）
A3: 収集運搬業における温室効果ガス排出量の算定
A4: 2024年度
B7: ○温室効果ガス排出量の算定表 | AJ7: ※全産連方式では採用しない
B8: 収集運搬業における温室効果ガス排出量の算定結果です。※排出係数の変更、再算定が可能です。 | T8: 更新用 | X8: 算定式 | AB8: 有効桁数 | AF8: 四捨五入桁数 | AJ8: 四捨五入処理 | AO8: 単位考慮
B10: 収集運搬業 | G10: 燃料使用量 | I10: 固有単位当りの 単位発熱量(GJ) | J10: CO2排出係数 （tCO2/GJ） | O10: 温室効果ガス排出量（tCO2） | T10: 燃料使用量 | V10: バイオ燃料の割合 | X10: CO2 | Y10: CH4 | Z10: N2O | AB10: CO2 | AC10: CH4 | AD10: N2O | AF10: CO2 | AG10: CH4 | AH10: N2O | AJ10: CO2 | AK10: CH4 | AL10: N2O | AM10: 合計 | AO10: 換算係数
O11: CO2 | P11: CH4 | Q11: N2O | R11: 合計
C12: 収集運搬車両の燃料使用 | D12: 燃料法 | E12: ガソリン | G12: =IF(T12<>"",IF(U12="（ﾘｯﾄﾙ）",T12/1000,T12),"") ->  | H12: =IF(U12<>"",IF(U12="（kl）",U12,IF(U12="（ﾘｯﾄﾙ）","（kl）","単位誤り")),"単位未入力") -> （kl） | I12: 34.6 | J12: 0.0671 | O12: =X12 -> 0 | R12: =SUM(O12:Q12) -> 0 | U12: （kl） | X12: =IF(ISERROR(G12*J12*I12*AO12),0,G12*J12*I12*AO12) -> 0 | AB12: 3 | AF12: 0 | AJ12: =IF(ISERROR(ROUND(X12,AF12)),"",ROUND(X12,AF12)) -> 0 | AK12: =IF(ISERROR(ROUND(Y12,AG12)),"",ROUND(Y12,AG12)) -> 0 | AL12: =IF(ISERROR(ROUND(Z12,AH12)),"",ROUND(Z12,AH12)) -> 0 | AM12: =SUM(AJ12:AL12) -> 0 | AO12: =IF(U12="（kl）",1,IF(U12="（ﾘｯﾄﾙ）",1,0)) -> 1
E13: 軽油 | G13: =IF(T13<>"",IF(U13="（ﾘｯﾄﾙ）",T13/1000,T13),"") ->  | H13: =IF(U13<>"",IF(U13="（kl）",U13,IF(U13="（ﾘｯﾄﾙ）","（kl）","単位誤り")),"単位未入力") -> （kl） | I13: 37.7 | J13: 0.0686 | O13: =X13 -> 0 | R13: =SUM(O13:Q13) -> 0 | U13: （kl） | X13: 0 | AB13: 3 | AF13: 0 | AJ13: =IF(ISERROR(ROUND(X13,AF13)),"",ROUND(X13,AF13)) -> 0 | AK13: =IF(ISERROR(ROUND(Y13,AG13)),"",ROUND(Y13,AG13)) -> 0 | AL13: =IF(ISERROR(ROUND(Z13,AH13)),"",ROUND(Z13,AH13)) -> 0 | AM13: =SUM(AJ13:AL13) -> 0 | AO13: =IF(U13="（kl）",1,IF(U13="（ﾘｯﾄﾙ）",1,0)) -> 1
E14: ＬＰＧ | G14: =IF(T14<>"",IF(U14="（kg）",T14/1000,T14),"") ->  | H14: =IF(U14<>"",IF(U14="（t）",U14,IF(U14="（kg）","（t）","単位誤り")),"単位未入力") -> （t） | I14: 50.8 | J14: 0.0598 | O14: 0 | R14: 0 | U14: （t） | X14: 0 | AB14: 3 | AF14: 0 | AJ14: 0 | AK14: =IF(ISERROR(ROUND(Y14,AG14)),"",ROUND(Y14,AG14)) -> 0 | AL14: =IF(ISERROR(ROUND(Z14,AH14)),"",ROUND(Z14,AH14)) -> 0 | AM14: 0 | AO14: =IF(U14="（t）",1,IF(U14="（kg）",1,0)) -> 1
E15: 天然ガス（CNG車燃料） | G15: =IF(T15<>"",IF(U15="（㎥）",T15/1000,T15),"") ->  | H15: =IF(U15<>"",IF(U15="（千㎥）",U15,IF(U15="（㎥）","（千㎥）","単位誤り")),"単位未入力") -> （千㎥） | I15: 44.8 | J15: 0.0506 | O15: 0 | R15: 0 | U15: （千㎥） | X15: 0 | AB15: 3 | AF15: 0 | AJ15: 0 | AK15: 0 | AL15: 0 | AM15: 0 | AO15: =IF(U15="（千㎥）",1,IF(U15="（㎥）",1,0)) -> 1
E16: バイオエタノール混合ガソリン | G16: =IF(T16<>"",IF(U16="（ﾘｯﾄﾙ）",T16*(100-V16)/100/1000,T16*(100-V16)/100),"") ->  | H16: =IF(U16<>"",IF(U16="（kl）",U16,IF(U16="（ﾘｯﾄﾙ）","（kl）","単位誤り")),"単位未入力") -> （kl） | I16: 34.6 | J16: 0.0671 | O16: 0 | R16: 0 | U16: （kl） | V16: 3 | X16: 0 | AB16: 3 | AF16: 0 | AJ16: 0 | AK16: 0 | AL16: 0 | AM16: 0 | AO16: 1
E17: バイオディーゼル | G17: =IF(T17<>"",IF(U17="（ﾘｯﾄﾙ）",T17*(100-V17)/100/1000,T17*(100-V17)/100),"") ->  | H17: =IF(U17<>"",IF(U17="（kl）",U17,IF(U17="（ﾘｯﾄﾙ）","（kl）","単位誤り")),"単位未入力") -> （kl） | I17: 37.7 | J17: 0.0686 | O17: 0 | R17: 0 | U17: （kl） | V17: 5 | X17: 0 | AB17: 3 | AF17: 0 | AJ17: 0 | AK17: 0 | AL17: 0 | AM17: 0 | AO17: 1
D18: 燃費法 | E18: ガソリン | G18: =IF(T18<>"",IF(U18="（ﾘｯﾄﾙ）",T18/1000,T18),"") ->  | H18: =IF(U18<>"",IF(U18="（kl）",U18,IF(U18="（ﾘｯﾄﾙ）","（kl）","単位誤り")),"単位未入力") -> （kl） | I18: 34.6 | J18: 0.0671 | O18: 0 | R18: 0 | U18: （kl） | X18: 0 | AB18: 3 | AF18: 0 | AJ18: 0 | AK18: 0 | AL18: 0 | AM18: 0 | AO18: 1
E19: 軽油 | G19: =IF(T19<>"",IF(U19="（ﾘｯﾄﾙ）",T19/1000,T19),"") ->  | H19: =IF(U19<>"",IF(U19="（kl）",U19,IF(U19="（ﾘｯﾄﾙ）","（kl）","単位誤り")),"単位未入力") -> （kl） | I19: 37.7 | J19: 0.0686 | O19: 0 | R19: 0 | U19: （kl） | X19: 0 | AB19: 3 | AF19: 0 | AJ19: 0 | AK19: 0 | AL19: 0 | AM19: 0 | AO19: 1
E20: ＬＰＧ | G20: =IF(T20<>"",IF(U20="（kg）",T20/1000,T20),"") ->  | H20: =IF(U20<>"",IF(U20="（t）",U20,IF(U20="（kg）","（t）","単位誤り")),"単位未入力") -> （t） | I20: 50.8 | J20: 0.0598 | O20: 0 | R20: 0 | U20: （t） | X20: =IF(ISERROR(G20*J20*I20*AO20),0,G20*J20*I20*AO20) -> 0 | AB20: 3 | AF20: 0 | AJ20: 0 | AK20: 0 | AL20: 0 | AM20: 0 | AO20: =IF(U20="（t）",1,IF(U20="（kg）",1,0)) -> 1
E21: 天然ガス（CNG車燃料） | G21: =IF(T21<>"",IF(U21="（㎥）",T21/1000,T21),"") ->  | H21: =IF(U21<>"",IF(U21="（千㎥）",U21,IF(U21="（㎥）","（千㎥）","単位誤り")),"単位未入力") -> （千㎥） | I21: 44.8 | J21: 0.0506 | O21: 0 | R21: 0 | U21: （千㎥） | X21: 0 | AB21: 3 | AF21: 0 | AJ21: 0 | AK21: 0 | AL21: 0 | AM21: 0 | AO21: =IF(U21="（千㎥）",1,IF(U21="（㎥）",1,0)) -> 1
D22: 改良 ﾄﾝｷﾛ法 | E22: ガソリン | G22: =IF(T22<>"",IF(U22="（ﾘｯﾄﾙ）",T22/1000,T22),"") ->  | H22: =IF(U22<>"",IF(U22="（kl）",U22,IF(U22="（ﾘｯﾄﾙ）","（kl）","単位誤り")),"単位未入力") -> （kl） | I22: 34.6 | J22: 0.0671 | O22: 0 | R22: 0 | U22: （kl） | X22: 0 | AB22: 3 | AF22: 0 | AJ22: 0 | AK22: 0 | AL22: 0 | AM22: 0 | AO22: 1
E23: 軽油 | G23: =IF(T23<>"",IF(U23="（ﾘｯﾄﾙ）",T23/1000,T23),"") ->  | H23: =IF(U23<>"",IF(U23="（kl）",U23,IF(U23="（ﾘｯﾄﾙ）","（kl）","単位誤り")),"単位未入力") -> （kl） | I23: 37.7 | J23: 0.0686 | O23: =X23 -> 0 | R23: 0 | U23: （kl） | X23: 0 | AB23: 3 | AF23: 0 | AJ23: 0 | AK23: 0 | AL23: 0 | AM23: 0 | AO23: 1
D24: 温室効果ガス排出量合計 | O24: =SUM(O12:O23) -> 0 | P24: =SUM(P12:P23) -> 0 | Q24: =SUM(Q12:Q23) -> 0 | R24: =SUM(O24:Q24) -> 0
B26: ○温室効果ガス排出量グラフ
C29: 温室効果ガス排出量グラフ
C30: 項目 | D30: CO2 | E30: CH4 | F30: N2O | G30: 合計
C31: 燃料法：ガソリン | D31: =X12 -> 0 | E31: =Y12 -> 0 | F31: =Z12 -> 0 | G31: =R12 -> 0
C32: 燃料法：軽油 | D32: 0 | E32: 0 | F32: 0 | G32: 0
C33: 燃料法：ＬＰＧ | D33: 0 | E33: 0 | F33: 0 | G33: 0
C34: 燃料法：天然ガス（LNG除く） | D34: 0 | E34: 0 | F34: 0 | G34: 0
C35: 燃料法：バイオエタノール | D35: 0 | E35: 0 | F35: 0 | G35: 0
C36: 燃料法：バイオディーゼル | D36: 0 | E36: 0 | F36: 0 | G36: 0
C37: 燃費法：ガソリン | D37: 0 | E37: 0 | F37: 0 | G37: 0
C38: 燃費法：軽油 | D38: 0 | E38: 0 | F38: 0 | G38: 0
C39: 燃費法：ＬＰＧ | D39: 0 | E39: 0 | F39: 0 | G39: 0
C40: 燃費法：天然ガス（LNG除く） | D40: 0 | E40: 0 | F40: 0 | G40: 0
C41: 改良ﾄﾝｷﾛ法：ガソリン | D41: 0 | E41: 0 | F41: 0 | G41: 0
C42: 改良ﾄﾝｷﾛ法軽油 | D42: 0 | E42: 0 | F42: 0 | G42: 0

Sheet 排出量（中間）
A3: 中間処理業における温室効果ガス排出量の算定
A4: 2024年度
B7: ○温室効果ガス排出量の算定表 | AJ7: ※全産連方式では採用しない
B8: 中間処理業における温室効果ガス排出量の算定結果です。※排出係数の変更、再算定が可能です。 | T8: 更新用 | X8: 算定式 | AB8: 有効桁数 | AF8: 四捨五入桁数 | AJ8: 四捨五入処理 | AO8: 単位考慮
B10: 中間処理業 | G10: 焼却量・溶融量 | J10: CO2排出係数 （tCO2/t） | K10: CH4排出係数 （tCH4/t） | L10: CH4地球 温暖化係数 | M10: N2O排出係数 （tN2O/t） | N10: N2O地球 温暖化係数 | O10: 温室効果ガス排出量（tCO2） | T10: 焼却量・溶融量 | V10: 廃プラスチック割合 | X10: CO2 | Y10: CH4 | Z10: N2O | AB10: CO2 | AC10: CH4 | AD10: N2O | AF10: CO2 | AG10: CH4 | AH10: N2O | AJ10: CO2 | AK10: CH4 | AL10: N2O | AM10: 合計 | AO10: 換算係数
O11: CO2 | P11: CH4 | Q11: N2O | R11: 合計
C12: 産業廃棄物の焼却・溶融 | D12: 汚泥 | E12: 下水汚泥 | F12: 炉No1 | G12: =IF(T12<>"",T12,"") ->  | H12: =IF(U12<>"",IF(U12="（t）",U12,IF(U12="（kg）",U12,"単位誤り")),"単位未入力") -> （t） | K12: 1.5e-06 | L12: 28 | M12: 0.000882 | N12: 265 | P12: =Y12 -> 0 | Q12: =Z12 -> 0 | R12: =SUM(O12:Q12) -> 0 | U12: （t） | Y12: =IF(ISERROR(G12*K12*L12*AO12),0,G12*K12*L12*AO12) -> 0 | Z12: =IF(ISERROR(G12*M12*N12*AO12),0,G12*M12*N12*AO12) -> 0 | AC12: 2 | AD12: 3 | AF12: 0 | AG12: 0 | AH12: 0 | AJ12: =IF(ISERROR(ROUND(X12,AF12)),"",ROUND(X12,AF12)) -> 0 | AK12: =IF(ISERROR(ROUND(Y12,AG12)),"",ROUND(Y12,AG12)) -> 0 | AL12: =IF(ISERROR(ROUND(Z12,AH12)),"",ROUND(Z12,AH12)) -> 0 | AM12: =SUM(AJ12:AL12) -> 0 | AO12: =IF(U12="（t）",1,IF(U12="（kg）",0.001,0)) -> 1
F13: 炉No2 | H13: （t） | K13: 1.5e-06 | L13: 28 | M13: 0.000882 | N13: 265 | P13: 0 | Q13: 0 | R13: 0 | U13: （t） | Y13: 0 | Z13: 0 | AC13: 2 | AD13: 3 | AF13: 0 | AG13: 0 | AH13: 0 | AJ13: =IF(ISERROR(ROUND(X13,AF13)),"",ROUND(X13,AF13)) -> 0 | AK13: =IF(ISERROR(ROUND(Y13,AG13)),"",ROUND(Y13,AG13)) -> 0 | AL13: =IF(ISERROR(ROUND(Z13,AH13)),"",ROUND(Z13,AH13)) -> 0 | AM13: =SUM(AJ13:AL13) -> 0 | AO13: =IF(U13="（t）",1,IF(U13="（kg）",0.001,0)) -> 1
F14: 炉No3 | H14: （t） | K14: 1.5e-06 | L14: 28 | M14: 0.000882 | N14: 265 | P14: 0 | Q14: 0 | R14: 0 | U14: （t） | Y14: 0 | Z14: 0 | AC14: 2 | AD14: 3 | AF14: 0 | AG14: 0 | AH14: 0 | AJ14: 0 | AK14: 0 | AL14: 0 | AM14: 0 | AO14: 1
E15: 下水汚泥以外 | H15: （t） | K15: 1.5e-06 | L15: 28 | M15: 9.89e-05 | N15: 265 | P15: 0 | Q15: 0 | R15: 0 | U15: （t） | Y15: 0 | Z15: 0 | AC15: 2 | AD15: 2 | AF15: 0 | AG15: 0 | AH15: 0 | AJ15: 0 | AK15: 0 | AL15: 0 | AM15: 0 | AO15: 1
D16: 廃油 | E16: 燃料系廃油、潤滑油系廃油、廃溶剤 | H16: （t） | J16: 2.919 | K16: 4e-06 | L16: 28 | M16: 6.22e-05 | N16: 265 | O16: =X16 -> 0 | P16: 0 | Q16: 0 | R16: 0 | U16: （t） | X16: =IF(ISERROR(G16*J16*AO16),0,G16*J16*AO16) -> 0 | Y16: =IF(ISERROR(G16*K16*L16*AO16),0,G16*K16*L16*AO16) -> 0 | Z16: =IF(ISERROR(G16*M16*N16*AO16),0,G16*M16*N16*AO16) -> 0 | AB16: 3 | AC16: 2 | AD16: 2 | AF16: 0 | AG16: 0 | AH16: 0 | AJ16: 0 | AK16: 0 | AL16: 0 | AM16: 0 | AO16: 1
E17: 動植物性廃油 | H17: （t） | K17: 4e-06 | L17: 28 | M17: 6.22e-05 | N17: 265 | P17: 0 | Q17: 0 | R17: 0 | U17: （t） | X17: =IF(ISERROR(G17*J17*AO17),0,G17*J17*AO17) -> 0 | Y17: 0 | Z17: 0 | AC17: 2 | AD17: 2 | AF17: 0 | AG17: 0 | AH17: 0 | AJ17: 0 | AK17: 0 | AL17: 0 | AM17: 0 | AO17: 1
D18: 廃ﾌﾟﾗｽﾁｯｸ類 | E18: 廃ﾌﾟﾗｽﾁｯｸ類、合成ゴムくず、合成繊維 | H18: （t） | J18: 2.554 | K18: 8e-06 | L18: 28 | M18: 1.48e-05 | N18: 265 | O18: =X18 -> 0 | P18: 0 | Q18: 0 | R18: 0 | U18: （t） | V18: 水分割合 | X18: =IF(ISERROR(G18*J18*AO18),0,G18*J18*AO18) -> 0 | Y18: 0 | Z18: 0 | AB18: 3 | AC18: 2 | AD18: 2 | AF18: 0 | AG18: 0 | AH18: 0 | AJ18: 0 | AK18: 0 | AL18: 0 | AM18: 0 | AO18: 1
E19: 廃タイヤ | H19: （t） | J19: 1.64255 | K19: 8e-06 | L19: 28 | M19: 1.48e-05 | N19: 265 | O19: =X19 -> 0 | P19: 0 | Q19: 0 | R19: 0 | U19: （t） | V19: 5 | X19: =IF(ISERROR(G19*J19*AO19),0,G19*J19*AO19) -> 0 | Y19: 0 | Z19: 0 | AB19: 3 | AC19: 2 | AD19: 2 | AF19: 0 | AG19: 0 | AH19: 0 | AJ19: 0 | AK19: 0 | AL19: 0 | AM19: 0 | AO19: 1
D20: 紙くず | H20: （t） | K20: 0.0002245 | L20: 28 | M20: 7.69e-05 | N20: 265 | P20: 0 | Q20: 0 | R20: 0 | U20: （t） | Y20: 0 | Z20: 0 | AC20: 2 | AD20: 2 | AF20: 0 | AG20: 0 | AH20: 0 | AJ20: 0 | AK20: 0 | AL20: 0 | AM20: 0 | AO20: 1
D21: 木くず | H21: （t） | K21: 0.0002245 | L21: 28 | M21: 7.69e-05 | N21: 265 | P21: 0 | Q21: 0 | R21: 0 | U21: （t） | Y21: 0 | Z21: 0 | AC21: 2 | AD21: 2 | AF21: 0 | AG21: 0 | AH21: 0 | AJ21: 0 | AK21: 0 | AL21: 0 | AM21: 0 | AO21: 1
D22: 繊維くず | H22: （t） | K22: 0.0002245 | L22: 28 | M22: 7.69e-05 | N22: 265 | P22: 0 | Q22: 0 | R22: 0 | U22: （t） | Y22: 0 | Z22: 0 | AC22: 2 | AD22: 2 | AF22: 0 | AG22: 0 | AH22: 0 | AJ22: 0 | AK22: 0 | AL22: 0 | AM22: 0 | AO22: 1
D23: 動植物性残渣 | H23: （t） | K23: 0.0002245 | L23: 28 | M23: 7.69e-05 | N23: 265 | P23: 0 | Q23: 0 | R23: 0 | U23: （t） | Y23: 0 | Z23: 0 | AC23: 2 | AD23: 2 | AF23: 0 | AG23: 0 | AH23: 0 | AJ23: 0 | AK23: 0 | AL23: 0 | AM23: 0 | AO23: 1
D24: 動物系固形不要物 | H24: （t） | K24: 0.0002245 | L24: 28 | M24: 7.69e-05 | N24: 265 | P24: 0 | Q24: 0 | R24: 0 | U24: （t） | Y24: 0 | Z24: 0 | AC24: 2 | AD24: 2 | AF24: 0 | AG24: 0 | AH24: 0 | AJ24: 0 | AK24: 0 | AL24: 0 | AM24: 0 | AO24: 1
D25: 動物のふん尿 | H25: （t） | K25: 0.0002245 | L25: 28 | M25: 7.69e-05 | N25: 265 | P25: 0 | Q25: 0 | R25: 0 | U25: （t） | Y25: 0 | Z25: 0 | AC25: 2 | AD25: 2 | AF25: 0 | AG25: 0 | AH25: 0 | AJ25: 0 | AK25: 0 | AL25: 0 | AM25: 0 | AO25: 1
D26: 動物の死体 | H26: （t） | K26: 0.0002245 | L26: 28 | M26: 7.69e-05 | N26: 265 | P26: 0 | Q26: 0 | R26: 0 | U26: （t） | Y26: 0 | Z26: 0 | AC26: 2 | AD26: 2 | AF26: 0 | AG26: 0 | AH26: 0 | AJ26: 0 | AK26: 0 | AL26: 0 | AM26: 0 | AO26: 1
D27: 特別管理産業廃棄物の廃油 | H27: （t） | J27: 2.919 | K27: 4e-06 | L27: 28 | M27: 6.22e-05 | N27: 265 | O27: =X27 -> 0 | P27: 0 | Q27: 0 | R27: 0 | U27: （t） | X27: =IF(ISERROR(G27*J27*AO27),0,G27*J27*AO27) -> 0 | Y27: 0 | Z27: 0 | AB27: 3 | AC27: 2 | AD27: 2 | AF27: 0 | AG27: 0 | AH27: 0 | AJ27: 0 | AK27: 0 | AL27: 0 | AM27: 0 | AO27: 1
D28: 感染性廃棄物 | E28: うち、廃プラスチック | G28: =IF(T28<>"",T28*(V28/100),"") ->  | H28: （t） | J28: 2.554 | K28: 8e-06 | L28: 28 | M28: 1.48e-05 | N28: 265 | O28: =X28 -> 0 | P28: 0 | Q28: 0 | R28: 0 | U28: （t） | V28: 42.6 | X28: =IF(ISERROR(G28*J28*AO28),0,G28*J28*AO28) -> 0 | Y28: 0 | Z28: 0 | AB28: 3 | AC28: 2 | AD28: 2 | AF28: 0 | AG28: 0 | AH28: 0 | AJ28: 0 | AK28: 0 | AL28: 0 | AM28: 0 | AO28: 1
E29: 廃プラスチック以外 の廃棄物 | G29: =IF(T28<>"",T28*(1-V28/100),"") ->  | H29: =H28 -> （t） | K29: 0.0002245 | L29: 28 | M29: 7.69e-05 | N29: 265 | P29: 0 | Q29: 0 | R29: 0 | U29: （t） | Y29: 0 | Z29: 0 | AC29: 2 | AD29: 2 | AF29: 0 | AG29: 0 | AH29: 0 | AJ29: 0 | AK29: 0 | AL29: 0 | AM29: 0 | AO29: =AO28 -> 1
D30: その他 混合 | E30: うち、廃プラスチック | G30: =IF(T29<>"",T29*(V29/100),"") ->  | H30: =IF(U29<>"",IF(U29="（t）",U29,IF(U29="（kg）",U29,"単位誤り")),"単位未入力") -> （t） | J30: 2.554 | K30: 8e-06 | L30: 28 | M30: 1.48e-05 | N30: 265 | O30: =X30 -> 0 | P30: 0 | Q30: 0 | R30: 0 | X30: =IF(ISERROR(G30*J30*AO30),0,G30*J30*AO30) -> 0 | Y30: 0 | Z30: 0 | AB30: 3 | AC30: 2 | AD30: 2 | AF30: 0 | AG30: 0 | AH30: 0 | AJ30: 0 | AK30: 0 | AL30: 0 | AM30: 0 | AO30: =IF(U29="（t）",1,IF(U29="（kg）",0.001,0)) -> 1
E31: 廃プラスチック以外 の廃棄物 | G31: =IF(T29<>"",T29*(1-V29/100),"") ->  | H31: =H30 -> （t） | K31: 0.0002245 | L31: 28 | M31: 7.69e-05 | N31: 265 | P31: 0 | Q31: 0 | R31: 0 | Y31: 0 | Z31: 0 | AC31: 2 | AD31: 2 | AF31: 0 | AG31: 0 | AH31: 0 | AJ31: 0 | AK31: 0 | AL31: 0 | AM31: 0 | AO31: =AO30 -> 1
C32: 有機性廃棄物の コンポスト化 | D32: 有機性汚泥 | G32: =IF(T32<>"",T32,"") ->  | H32: =IF(U32<>"",IF(U32="（t）",U32,IF(U32="（kg）",U32,"単位誤り")),"単位未入力") -> （t） | K32: 0.01 | L32: 28 | M32: 0.0006 | N32: 265 | P32: =Y32 -> 0 | Q32: 0 | R32: =SUM(O32:Q32) -> 0 | U32: （t） | Y32: =IF(ISERROR(G32*K32*L32*AO32),0,G32*K32*L32*AO32) -> 0 | Z32: =IF(ISERROR(G32*M32*N32*AO32),0,G32*M32*N32*AO32) -> 0 | AC32: 2 | AD32: 2 | AF32: 0 | AG32: 0 | AH32: 0 | AJ32: =IF(ISERROR(ROUND(X32,AF32)),"",ROUND(X32,AF32)) -> 0 | AK32: 0 | AL32: 0 | AM32: =SUM(AJ32:AL32) -> 0 | AO32: =IF(U32="（t）",1,IF(U32="（kg）",0.001,0)) -> 1
D33: 動植物性残渣 | G33: =IF(T33<>"",T33,"") ->  | H33: =IF(U33<>"",IF(U33="（t）",U33,IF(U33="（kg）",U33,"単位誤り")),"単位未入力") -> （t） | K33: 0.01 | L33: 28 | M33: 0.0006 | N33: 265 | P33: 0 | Q33: 0 | R33: =SUM(O33:Q33) -> 0 | U33: （t） | Y33: =IF(ISERROR(G33*K33*L33*AO33),0,G33*K33*L33*AO33) -> 0 | Z33: =IF(ISERROR(G33*M33*N33*AO33),0,G33*M33*N33*AO33) -> 0 | AC33: 2 | AD33: 2 | AF33: 0 | AG33: 0 | AH33: 0 | AJ33: 0 | AK33: 0 | AL33: 0 | AM33: =SUM(AJ33:AL33) -> 0 | AO33: =IF(U33="（t）",1,IF(U33="（kg）",0.001,0)) -> 1
D34: 紙くず、木くず、繊維くず | G34: =IF(T34<>"",T34,"") ->  | H34: =IF(U34<>"",IF(U34="（t）",U34,IF(U34="（kg）",U34,"単位誤り")),"単位未入力") -> （t） | K34: 0.01 | L34: 28 | M34: 0.0006 | N34: 265 | P34: 0 | Q34: 0 | R34: =SUM(O34:Q34) -> 0 | U34: （t） | Y34: =IF(ISERROR(G34*K34*L34*AO34),0,G34*K34*L34*AO34) -> 0 | Z34: =IF(ISERROR(G34*M34*N34*AO34),0,G34*M34*N34*AO34) -> 0 | AC34: 2 | AD34: 2 | AF34: 0 | AG34: 0 | AH34: 0 | AJ34: 0 | AK34: 0 | AL34: 0 | AM34: =SUM(AJ34:AL34) -> 0 | AO34: =IF(U34="（t）",1,IF(U34="（kg）",0.001,0)) -> 1
D35: その他の有機性廃棄物 | G35: =IF(T35<>"",T35,"") ->  | H35: =IF(U35<>"",IF(U35="（t）",U35,IF(U35="（kg）",U35,"単位誤り")),"単位未入力") -> （t） | K35: 0.01 | L35: 28 | M35: 0.0006 | N35: 265 | P35: 0 | Q35: 0 | R35: =SUM(O35:Q35) -> 0 | U35: （t） | Y35: =IF(ISERROR(G35*K35*L35*AO35),0,G35*K35*L35*AO35) -> 0 | Z35: =IF(ISERROR(G35*M35*N35*AO35),0,G35*M35*N35*AO35) -> 0 | AC35: 2 | AD35: 2 | AF35: 0 | AG35: 0 | AH35: 0 | AJ35: 0 | AK35: 0 | AL35: 0 | AM35: =SUM(AJ35:AL35) -> 0 | AO35: =IF(U35="（t）",1,IF(U35="（kg）",0.001,0)) -> 1
D36: 中間処理業における温室効果ガス排出量小計 | O36: =SUM(O12:O35) -> 0 | P36: =SUM(P12:P35) -> 0 | Q36: =SUM(Q12:Q35) -> 0 | R36: =SUM(O36:Q36) -> 0
C37: -- 温室効果ガス削減量 -- | T37: 更新用 | AB37: 有効桁数 | AJ37: 四捨五入処理 | AO37: 有効桁数
G39: 発電量・熱利用量 | J39: CO2排出係数 （tCO2/千kWh， tCO2/千MJ） | O39: 温室効果ガス削減量（tCO2） | T39: 発電・熱利用量 | AB39: CO2 | AC39: CH4 | AD39: N2O | AJ39: CO2 | AK39: CH4 | AL39: N2O | AM39: 合計 | AO39: CO2
O40: CO2 | P40: CH4 | Q40: N2O | R40: 合計
C41: 発電・熱利用 | D41: 廃棄物発電 | G41: =IF(T41<>"",T41,"") ->  | H41: =IF(U41<>"",IF(U41="（千kWh）",U41,IF(U41="（kWh）",U41,"単位誤り")),"単位未入力") -> （千kWh） | J41: 0.555 | O41: =X41 -> 0 | R41: =SUM(O41:Q41) -> 0 | U41: （千kWh） | X41: =IF(ISERROR(G41*J41*AO41),0,G41*J41*AO41) -> 0 | AB41: 3 | AF41: 0 | AJ41: =IF(ISERROR(ROUND(X41,AF41)),"",ROUND(X41,AF41)) -> 0 | AK41: 0 | AL41: 0 | AM41: =SUM(AJ41:AL41) -> 0 | AO41: =IF(U41="（千kWh）",1,IF(U41="（kWh）",0.001,0)) -> 1
D42: 廃棄物熱利用 | G42: =IF(T42<>"",T42,"") ->  | H42: =IF(U42<>"",IF(U42="（千MJ）",U42,IF(U42="（MJ）",U42,"単位誤り")),"単位未入力") -> （千MJ） | J42: 0.057 | O42: =X42 -> 0 | R42: =SUM(O42:Q42) -> 0 | U42: （千MJ） | X42: =IF(ISERROR(G42*J42*AO42),0,G42*J42*AO42) -> 0 | AB42: 3 | AF42: 0 | AJ42: 0 | AK42: 0 | AL42: 0 | AM42: =SUM(AJ42:AL42) -> 0 | AO42: =IF(U42="（千MJ）",1,IF(U42="（MJ）",0.001,0)) -> 1
D43: 温室効果ガス削減量小計 | O43: =SUM(O41:O42) -> 0 | P43: =SUM(P41:P42) -> 0 | Q43: =SUM(Q41:Q42) -> 0 | R43: =SUM(O43:Q43) -> 0 | AQ43: 42.6
D44: 温室効果ガス排出量合計 （中間処理業における温室効果ガス排出量小計－温室効果ガス削減量小計＝温室効果ガス排出量合計） | O44: =O36-O43 -> 0 | P44: =P36-P43 -> 0 | Q44: =Q36-Q43 -> 0 | R44: =SUM(O44:Q44) -> 0
B46: ○温室効果ガス排出量グラフ
C49: 中間処理業における 温室効果ガス排出量
C50: 項目 | D50: CO2 | E50: CH4 | F50: N2O | G50: 合計
C51: 下水汚泥の焼却 | D51: =SUM(O12:O14) -> 0 | E51: =SUM(P12:P14) -> 0 | F51: =SUM(Q12:Q14) -> 0 | G51: =SUM(R12:R14) -> 0
C52: 下水汚泥以外の焼却 | D52: =O15 -> 0 | E52: 0 | F52: 0 | G52: =R15 -> 0
C53: 燃料系廃油、潤滑油系廃油、廃溶剤の焼却 | D53: 0 | E53: 0 | F53: 0 | G53: 0
C54: 動植物性廃油の焼却 | D54: 0 | E54: 0 | F54: 0 | G54: 0
C55: 廃ﾌﾟﾗｽﾁｯｸ類、合成ゴムくず、合成繊維の焼却 | D55: 0 | E55: 0 | F55: 0 | G55: 0
C56: 廃タイヤの焼却 | D56: 0 | E56: 0 | F56: 0 | G56: 0
C57: 紙くずの焼却 | D57: 0 | E57: 0 | F57: 0 | G57: 0
C58: 木くずの焼却 | D58: 0 | E58: 0 | F58: 0 | G58: 0
C59: 繊維くずの焼却 | D59: 0 | E59: 0 | F59: 0 | G59: 0
C60: 動植物性残渣の焼却 | D60: 0 | E60: 0 | F60: 0 | G60: 0
C61: 動物系固形不要物の焼却 | D61: 0 | E61: 0 | F61: 0 | G61: 0
C62: 動物のふん尿の焼却 | D62: 0 | E62: 0 | F62: 0 | G62: 0
C63: 動物の死体の焼却 | D63: 0 | E63: 0 | F63: 0 | G63: 0
C64: 特別管理産業廃棄物の廃油の焼却 | D64: 0 | E64: 0 | F64: 0 | G64: 0
C65: 感染性廃棄物の焼却 | D65: =SUM(O28:O29) -> 0 | E65: =SUM(P28:P29) -> 0 | F65: =SUM(Q28:Q29) -> 0 | G65: =SUM(R28:R29) -> 0
C66: その他の焼却 | D66: =SUM(O30:O31) -> 0 | E66: =SUM(P30:P31) -> 0 | F66: =SUM(Q30:Q31) -> 0 | G66: =SUM(R30:R31) -> 0
C67: コンポスト化 | D67: =SUM(O32:O35) -> 0 | E67: =SUM(P32:P35) -> 0 | F67: =SUM(Q32:Q35) -> 0 | G67: =SUM(R32:R35) -> 0

Sheet 排出量（最終）
A3: 最終処分業における温室効果ガス排出量の算定
A4: 2024年度
B7: ○温室効果ガス排出量の算定表 | AK7: ※全産連方式では採用しない
B8: 最終処分業における温室効果ガス排出量の算定結果です。※排出係数の変更、再算定が可能です。 | T8: 更新用 | Y8: 算定式 | AC8: 有効桁数 | AG8: 四捨五入桁数 | AK8: 四捨五入処理 | AP8: 単位考慮
B10: 最終処分業 | G10: 最終処分量 （乾重量） | J10: 10 | K10: CH4排出係数 （tCH4/t） | L10: CH4地球 温暖化係数 | O10: 温室効果ガス排出量（tCO2） | T10: 最終処分量 （湿重量） | V10: 水分割合 | W10: 有機成分の割合 | Y10: CO2 | Z10: CH4 | AA10: N2O | AC10: CO2 | AD10: CH4 | AE10: N2O | AG10: CO2 | AH10: CH4 | AI10: N2O | AK10: CO2 | AL10: CH4 | AM10: N2O | AN10: 合計 | AP10: 換算係数
O11: CO2 | P11: CH4 | Q11: N2O | R11: 合計
C12: 生分解性廃棄物の最終処分 | D12: 有機性汚泥 | E12: 下水汚泥 | G12: =IF(T12<>"",T12*(100-V12)/100,"") ->  | H12: =IF(U12<>"",IF(U12="（t）",U12,IF(U12="（kg）",U12,"単位誤り")),"単位未入力") -> （t） | K12: 0.1333 | L12: 28 | P12: =Z12 -> 0 | R12: =SUM(O12:Q12) -> 0 | U12: （t） | V12: 70 | Z12: =IF(ISERROR(G12*K12*L12*AP12),0,G12*K12*L12*AP12) -> 0 | AD12: 3 | AH12: 0 | AK12: =IF(ISERROR(ROUND(Y12,AG12)),"",ROUND(Y12,AG12)) -> 0 | AL12: =IF(ISERROR(ROUND(Z12,AH12)),"",ROUND(Z12,AH12)) -> 0 | AM12: =IF(ISERROR(ROUND(AA12,AI12)),"",ROUND(AA12,AI12)) -> 0 | AN12: =SUM(AK12:AM12) -> 0 | AP12: =IF(U12="（t）",1,IF(U12="（kg）",0.001,0)) -> 1
E13: 製造業有機性汚泥 | G13: =IF(T13<>"",T13*(100-V13)/100,"") ->  | H13: （t） | K13: 0.15 | L13: 28 | P13: 0 | R13: 0 | U13: （t） | V13: 67 | Z13: =IF(ISERROR(G13*K13*L13*AP13),0,G13*K13*L13*AP13) -> 0 | AD13: 3 | AH13: 0 | AK13: =IF(ISERROR(ROUND(Y13,AG13)),"",ROUND(Y13,AG13)) -> 0 | AL13: =IF(ISERROR(ROUND(Z13,AH13)),"",ROUND(Z13,AH13)) -> 0 | AM13: =IF(ISERROR(ROUND(AA13,AI13)),"",ROUND(AA13,AI13)) -> 0 | AN13: =SUM(AK13:AM13) -> 0 | AP13: =IF(U13="（t）",1,IF(U13="（kg）",0.001,0)) -> 1
E14: 浄水汚泥 | H14: （t） | K14: 0.025 | L14: 28 | P14: 0 | R14: 0 | U14: （t） | V14: 70 | Z14: =IF(ISERROR(G14*K14*L14*AP14),0,G14*K14*L14*AP14) -> 0 | AD14: 3 | AH14: 0 | AK14: 0 | AL14: 0 | AM14: 0 | AN14: 0 | AP14: 1
E15: し尿処理汚泥 | H15: （t） | K15: 0.1333 | L15: 28 | P15: 0 | R15: 0 | U15: （t） | V15: 70 | Z15: 0 | AD15: 3 | AH15: 0 | AK15: 0 | AL15: 0 | AM15: 0 | AN15: 0 | AP15: 1
E16: その他（有機無機混合汚泥） | G16: =IF(T16<>"",T16*(100-V16)/100*W16/100,"") ->  | H16: （t） | K16: 0.15 | L16: 28 | P16: 0 | R16: 0 | U16: （t） | V16: 67 | W16: 50 | Z16: 0 | AD16: 3 | AH16: 0 | AK16: 0 | AL16: 0 | AM16: 0 | AN16: 0 | AP16: 1
D17: 紙くず | H17: （t） | K17: 0.1363 | L17: 28 | P17: =Z17 -> 0 | R17: 0 | U17: （t） | V17: 15 | Z17: =IF(ISERROR(G17*K17*L17*AP17),0,G17*K17*L17*AP17) -> 0 | AD17: 3 | AH17: 0 | AK17: 0 | AL17: 0 | AM17: 0 | AN17: 0 | AP17: 1
D18: 木くず | H18: （t） | K18: 0.1505 | L18: 28 | P18: 0 | R18: 0 | U18: （t） | V18: 45 | Z18: 0 | AD18: 3 | AH18: 0 | AK18: 0 | AL18: 0 | AM18: 0 | AN18: 0 | AP18: 1
D19: 繊維くず | H19: （t） | K19: 0.1499 | L19: 28 | P19: 0 | R19: 0 | U19: （t） | V19: 15 | Z19: 0 | AD19: 3 | AH19: 0 | AK19: =IF(ISERROR(ROUND(Y19,AG19)),"",ROUND(Y19,AG19)) -> 0 | AL19: =IF(ISERROR(ROUND(Z19,AH19)),"",ROUND(Z19,AH19)) -> 0 | AM19: =IF(ISERROR(ROUND(AA19,AI19)),"",ROUND(AA19,AI19)) -> 0 | AN19: =SUM(AK19:AM19) -> 0 | AP19: 1
D20: 動植物性残渣 | H20: （t） | K20: 0.1448 | L20: 28 | P20: 0 | R20: 0 | U20: （t） | V20: 75 | Z20: 0 | AD20: 3 | AH20: 0 | AK20: 0 | AL20: 0 | AM20: 0 | AN20: 0 | AP20: 1
D21: 動物系固形不要物 | H21: （t） | K21: 0.1448 | L21: 28 | P21: 0 | R21: 0 | U21: （t） | V21: 75 | Z21: 0 | AD21: 3 | AH21: 0 | AK21: 0 | AL21: 0 | AM21: 0 | AN21: 0 | AP21: 1
D22: 動物のふん尿 | H22: （t） | K22: 0.1333 | L22: 28 | P22: 0 | R22: 0 | U22: （t） | V22: 75 | Z22: 0 | AD22: 3 | AH22: 0 | AK22: 0 | AL22: 0 | AM22: 0 | AN22: 0 | AP22: 1
D23: 動物の死体 | H23: （t） | K23: 0.1448 | L23: 28 | P23: 0 | R23: 0 | U23: （t） | V23: 75 | Z23: 0 | AD23: 3 | AH23: 0 | AK23: 0 | AL23: 0 | AM23: 0 | AN23: 0 | AP23: 1
D24: その他（混合廃棄物） | G24: =IF(T24<>"",T24*(100-V24)/100*W24/100,"") ->  | H24: （t） | K24: 0.1505 | L24: 28 | P24: 0 | R24: 0 | U24: （t） | V24: 75 | W24: 10 | Z24: 0 | AD24: 3 | AH24: 0 | AK24: 0 | AL24: 0 | AM24: 0 | AN24: 0 | AP24: =IF(U24="（t）",1,IF(U24="（kg）",0.001,0)) -> 1
D25: 最終処分業における温室効果ガス排出量小計 | O25: =SUM(O12:O24) -> 0 | P25: =SUM(P12:P24) -> 0 | Q25: =SUM(Q12:Q24) -> 0 | R25: 0
C26: -- 温室効果ガス削減量 -- | T26: 更新用
G28: 発生ガスの焼却量 | I28: 発生ガス中の メタン濃度（％） | K28: 重量換算 係数（t/m3N） | L28: CH4地球 温暖化係数 | O28: 温室効果ガス削減量（tCO2） | T28: 発生ガス中の焼却量 | V28: 発生ガス中の メタン濃度（％）
O29: CO2 | P29: CH4 | Q29: N2O | R29: 合計
C30: メタン破壊 | D30: 発生ガスの回収・焼却 | G30: =IF(T30<>"",T30,"") ->  | H30: =IF(U30<>"",IF(U30="（千㎥N）",U30,IF(U30="（㎥N）",U30,"単位誤り")),"単位未入力") -> （㎥N） | I30: =IF(V30<>"",V30,"") -> 15 | K30: 0.00071 | L30: 28 | P30: =Z30 -> 0 | R30: =SUM(O30:Q30) -> 0 | U30: （㎥N） | V30: 15 | Z30: =IF(ISERROR(G30*I30/100*K30*L30*AP30),0,G30*I30/100*K30*L30*AP30) -> 0 | AD30: 2 | AH30: 0 | AK30: =IF(ISERROR(ROUND(Y30,AG30)),"",ROUND(Y30,AG30)) -> 0 | AL30: =IF(ISERROR(ROUND(Z30,AH30)),"",ROUND(Z30,AH30)) -> 0 | AM30: =IF(ISERROR(ROUND(AA30,AI30)),"",ROUND(AA30,AI30)) -> 0 | AN30: =SUM(AK30:AM30) -> 0 | AP30: =IF(U30="（㎥N）",1,IF(U30="（千㎥N）",1000,0)) -> 1
D31: 温室効果ガス削減量小計 | O31: =SUM(O30) -> 0 | P31: =SUM(P30) -> 0 | Q31: =SUM(Q30) -> 0 | R31: =SUM(O31:Q31) -> 0
D32: 温室効果ガス排出量合計 （中間処理業における温室効果ガス排出量小計－温室効果ガス削減量小計＝温室効果ガス排出量合計） | O32: =O25-O31 -> 0 | P32: =P25-P31 -> 0 | Q32: =Q25-Q31 -> 0 | R32: =SUM(O32:Q32) -> 0
B34: ○温室効果ガス排出量グラフ
C37: 最終処分業における 温室効果ガス排出量
C38: 項目 | D38: CO2 | E38: CH4 | F38: N2O | G38: 合計
C39: 有機性の下水汚泥 | D39: =O12 -> 0 | E39: =P12 -> 0 | F39: =Q12 -> 0 | G39: =R12 -> 0
C40: 製造業有機性汚泥 | D40: 0 | E40: 0 | F40: 0 | G40: 0
C41: 浄水施設に係る汚泥 | D41: 0 | E41: 0 | F41: 0 | G41: 0
C42: し尿処理施設に 係る汚泥 | D42: 0 | E42: 0 | F42: 0 | G42: 0
C43: その他（有機無機混合汚泥） | D43: 0 | E43: 0 | F43: 0 | G43: 0
C44: 紙くず | D44: 0 | E44: 0 | F44: 0 | G44: 0
C45: 木くず | D45: 0 | E45: 0 | F45: 0 | G45: 0 | AS45: 45
C46: 繊維くず | D46: 0 | E46: 0 | F46: 0 | G46: 0
C47: 動植物性残渣 | D47: 0 | E47: 0 | F47: 0 | G47: 0
C48: 動物系固形不要物 | D48: 0 | E48: 0 | F48: 0 | G48: 0
C49: 動物のふん尿 | D49: 0 | E49: 0 | F49: 0 | G49: 0
C50: 動物の死体 | D50: 0 | E50: 0 | F50: 0 | G50: 0 | AX50: 50
C51: その他（混合廃棄物） | D51: 0 | E51: 0 | F51: 0 | G51: 0
BO67: 67
BR70: 70
BW75: 75

Sheet 排出量（関連）
A3: 産業廃棄物関連施設及び構内車両における温室効果ガス排出量の算定
A4: 2024年度
B7: ○温室効果ガス排出量の算定表 | AJ7: ※全産連方式では採用しない
B8: 関連施設及び構内車両における温室効果ガス排出量の算定結果です。※排出係数の変更、再算定が可能です。 | T8: 更新用 | U8: 占める割合 | V8: 100 | X8: 算定式 | AB8: 有効桁数 | AF8: 四捨五入桁数 | AJ8: 四捨五入処理 | AO8: 単位考慮
B10: 関連施設及び構内車両 | G10: エネルギー使用量 | I10: 固有単位当りの 単位発熱量(GJ) | J10: CO2排出係数 （tCO2/GJ， tCO2/固有単位） | K10: CH4排出係数 （tCH4/GJ， tCH4/固有単位） | L10: CH4地球 温暖化係数 | M10: N2O排出係数 （tN2O/GJ， tN2O/固有単位） | N10: N2O地球 温暖化係数 | O10: 温室効果ガス排出量（tCO2） | T10: エネルギー使用量 | V10: バイオ燃料の割合 | X10: CO2 | Y10: CH4 | Z10: N2O | AB10: CO2 | AC10: CH4 | AD10: N2O | AF10: CO2 | AG10: CH4 | AH10: N2O | AJ10: CO2 | AK10: CH4 | AL10: N2O | AM10: 合計 | AO10: 換算係数
E11: 電気事業者 | O11: CO2 | P11: CH4 | Q11: N2O | R11: 合計
C12: 施設等のエネルギー（電気・ガス・燃料）使用 | D12: 電気 | E12: 東京電力ｴﾅｼﾞｰﾊﾟｰﾄﾅｰ（株） | G12: =IF(T12<>"",IF(U12="（kWh）",T12*$V$8/100/1000,T12*$V$8/100),"") ->  | H12: =IF(U12<>"",IF(U12="（千kWh）",U12,IF(U12="（kWh）","（千kWh）","単位誤り")),"単位未入力") -> （千kWh） | J12: 0.457 | O12: =X12 -> 0 | R12: =SUM(O12:Q12) -> 0 | U12: （千kWh） | X12: =IF(ISERROR(G12*J12*AO12),0,G12*J12*AO12) -> 0 | AB12: 3 | AF12: 0 | AJ12: =IF(ISERROR(ROUND(X12,AF12)),"",ROUND(X12,AF12)) -> 0 | AK12: 0 | AL12: 0 | AM12: =SUM(AJ12:AL12) -> 0 | AO12: =IF(U12="（千kWh）",1,IF(U12="（kWh）",1,0)) -> 1
D13: 都市ガス | F13: ボイラー 燃料 | G13: =IF(T13<>"",IF(U13="（㎥）",T13*$V$8/100/1000,T13*$V$8/100),"") ->  | H13: =IF(U13<>"",IF(U13="（千㎥）",U13,IF(U13="（㎥）","（千㎥）","単位誤り")),"単位未入力") -> （千㎥） | I13: 44.8 | J13: 0.0506 | K13: 2.3e-07 | L13: 28 | M13: 1.7e-07 | N13: 265 | O13: 0 | P13: =Y13 -> 0 | Q13: =Z13 -> 0 | R13: 0 | U13: （千㎥） | X13: =IF(ISERROR(G13*J13*I13*AO13),0,G13*J13*I13*AO13) -> 0 | Y13: =IF(ISERROR(G13*K13*L13*I13*AO13),0,G13*K13*L13*I13*AO13) -> 0 | Z13: =IF(ISERROR(G13*M13*N13*I13*AO13),0,G13*M13*N13*I13*AO13) -> 0 | AB13: 3 | AC13: 2 | AD13: 2 | AF13: 0 | AG13: 0 | AH13: 0 | AJ13: 0 | AK13: 0 | AL13: 0 | AM13: =SUM(AJ13:AL13) -> 0 | AO13: =IF(U13="（千㎥）",1,IF(U13="（㎥）",1,0)) -> 1
F14: 助燃剤 | G14: =IF(T14<>"",IF(U14="（㎥）",T14*$V$8/100/1000,T14*$V$8/100),"") ->  | H14: =IF(U14<>"",IF(U14="（千㎥）",U14,IF(U14="（㎥）","（千㎥）","単位誤り")),"単位未入力") -> （千㎥） | I14: 44.8 | J14: 0.0506 | K14: 2.3e-06 | L14: 28 | M14: 1.7e-07 | N14: 265 | O14: 0 | P14: 0 | Q14: 0 | R14: 0 | U14: （千㎥） | X14: 0 | Y14: 0 | Z14: =IF(ISERROR(G14*M14*N14*I14*AO14),0,G14*M14*N14*I14*AO14) -> 0 | AB14: 3 | AC14: 2 | AD14: 2 | AF14: 0 | AG14: 0 | AH14: 0 | AJ14: =IF(ISERROR(ROUND(X14,AF14)),"",ROUND(X14,AF14)) -> 0 | AK14: =IF(ISERROR(ROUND(Y14,AG14)),"",ROUND(Y14,AG14)) -> 0 | AL14: =IF(ISERROR(ROUND(Z14,AH14)),"",ROUND(Z14,AH14)) -> 0 | AM14: =SUM(AJ14:AL14) -> 0 | AO14: =IF(U14="（千㎥）",1,IF(U14="（㎥）",1,0)) -> 1
F15: それ以外 | G15: =IF(T15<>"",IF(U15="（㎥）",T15*$V$8/100/1000,T15*$V$8/100),"") ->  | H15: =IF(U15<>"",IF(U15="（千㎥）",U15,IF(U15="（㎥）","（千㎥）","単位誤り")),"単位未入力") -> （千㎥） | I15: 44.8 | J15: 0.0506 | K15: 2.3e-06 | L15: 28 | M15: 1.7e-07 | N15: 265 | O15: 0 | P15: 0 | Q15: 0 | R15: 0 | U15: （千㎥） | X15: 0 | Y15: 0 | Z15: 0 | AB15: 3 | AC15: 2 | AD15: 2 | AF15: 0 | AG15: 0 | AH15: 0 | AJ15: =IF(ISERROR(ROUND(X15,AF15)),"",ROUND(X15,AF15)) -> 0 | AK15: 0 | AL15: 0 | AM15: 0 | AO15: =IF(U15="（千㎥）",1,IF(U15="（㎥）",1,0)) -> 1
D16: 液化天然ガス （LNG） | F16: ボイラー 燃料 | G16: =IF(T16<>"",IF(U16="（kg）",T16*$V$8/100/1000,T16*$V$8/100),"") ->  | H16: =IF(U16<>"",IF(U16="（t）",U16,IF(U16="（kg）","（t）","単位誤り")),"単位未入力") -> （t） | I16: 54.6 | J16: 0.0495 | K16: 2.3e-07 | L16: 28 | M16: 1.7e-07 | N16: 265 | O16: 0 | P16: 0 | Q16: 0 | R16: 0 | U16: （t） | X16: 0 | Y16: 0 | Z16: 0 | AB16: 3 | AC16: 2 | AD16: 2 | AF16: 0 | AG16: 0 | AH16: 0 | AJ16: 0 | AK16: 0 | AL16: 0 | AM16: 0 | AO16: =IF(U16="（t）",1,IF(U16="（kg）",1,0)) -> 1
F17: 助燃剤 | G17: =IF(T17<>"",IF(U17="（kg）",T17*$V$8/100/1000,T17*$V$8/100),"") ->  | H17: =IF(U17<>"",IF(U17="（t）",U17,IF(U17="（kg）","（t）","単位誤り")),"単位未入力") -> （t） | I17: 54.6 | J17: 0.0495 | K17: 2.3e-06 | L17: 28 | M17: 1.7e-07 | N17: 265 | O17: 0 | P17: 0 | Q17: 0 | R17: 0 | U17: （t） | X17: 0 | Y17: 0 | Z17: 0 | AB17: 3 | AC17: 2 | AD17: 2 | AF17: 0 | AG17: 0 | AH17: 0 | AJ17: 0 | AK17: 0 | AL17: 0 | AM17: 0 | AO17: =IF(U17="（t）",1,IF(U17="（kg）",1,0)) -> 1
F18: それ以外 | G18: =IF(T18<>"",IF(U18="（kg）",T18*$V$8/100/1000,T18*$V$8/100),"") ->  | H18: =IF(U18<>"",IF(U18="（t）",U18,IF(U18="（kg）","（t）","単位誤り")),"単位未入力") -> （t） | I18: 54.6 | J18: 0.0495 | K18: 2.3e-06 | L18: 28 | M18: 1.7e-07 | N18: 265 | O18: 0 | P18: 0 | Q18: 0 | R18: 0 | U18: （t） | X18: 0 | Y18: 0 | Z18: 0 | AB18: 3 | AC18: 2 | AD18: 2 | AF18: 0 | AG18: 0 | AH18: 0 | AJ18: 0 | AK18: 0 | AL18: 0 | AM18: 0 | AO18: =IF(U18="（t）",1,IF(U18="（kg）",1,0)) -> 1
D19: 軽油 | F19: ボイラー 燃料 | G19: =IF(T19<>"",IF(U19="（ﾘｯﾄﾙ）",T19*$V$8/100/1000,T19*$V$8/100),"") ->  | H19: =IF(U19<>"",IF(U19="（kl）",U19,IF(U19="（ﾘｯﾄﾙ）","（kl）","単位誤り")),"単位未入力") -> （kl） | I19: 37.7 | J19: 0.0686 | K19: 2.6e-07 | L19: 28 | M19: 1.9e-07 | N19: 265 | O19: 0 | P19: 0 | Q19: 0 | R19: 0 | U19: （kl） | X19: 0 | Y19: 0 | Z19: 0 | AB19: 3 | AC19: 2 | AD19: 2 | AF19: 0 | AG19: 0 | AH19: 0 | AJ19: 0 | AK19: 0 | AL19: 0 | AM19: 0 | AO19: =IF(U19="（kl）",1,IF(U19="（ﾘｯﾄﾙ）",1,0)) -> 1
F20: 助燃剤 | H20: =IF(U20<>"",IF(U20="（kl）",U20,IF(U20="（ﾘｯﾄﾙ）","（kl）","単位誤り")),"単位未入力") -> （kl） | I20: 37.7 | J20: 0.0686 | K20: 8.3e-07 | L20: 28 | M20: 1.9e-07 | N20: 265 | O20: 0 | P20: 0 | Q20: 0 | R20: 0 | U20: （kl） | X20: 0 | Y20: 0 | Z20: 0 | AB20: 3 | AC20: 2 | AD20: 2 | AF20: 0 | AG20: 0 | AH20: 0 | AJ20: 0 | AK20: 0 | AL20: 0 | AM20: 0 | AO20: 1
F21: それ以外 | H21: （kl） | I21: 37.7 | J21: 0.0686 | K21: 8.3e-07 | L21: 28 | M21: 1.9e-07 | N21: 265 | O21: 0 | P21: 0 | Q21: 0 | R21: 0 | U21: （kl） | X21: 0 | Y21: 0 | Z21: 0 | AB21: 3 | AC21: 2 | AD21: 2 | AF21: 0 | AG21: 0 | AH21: 0 | AJ21: 0 | AK21: 0 | AL21: 0 | AM21: 0 | AO21: 1
D22: 灯油 | F22: ボイラー 燃料 | H22: （kl） | I22: 36.7 | J22: 0.0678 | K22: 2.6e-07 | L22: 28 | M22: 1.9e-07 | N22: 265 | O22: 0 | P22: 0 | Q22: 0 | R22: 0 | U22: （kl） | X22: 0 | Y22: 0 | Z22: 0 | AB22: 3 | AC22: 2 | AD22: 2 | AF22: 0 | AG22: 0 | AH22: 0 | AJ22: 0 | AK22: 0 | AL22: 0 | AM22: 0 | AO22: 1
F23: 助燃剤 | H23: （kl） | I23: 36.7 | J23: 0.0678 | K23: 8.3e-07 | L23: 28 | M23: 1.9e-07 | N23: 265 | O23: 0 | P23: 0 | Q23: 0 | R23: 0 | U23: （kl） | X23: 0 | Y23: 0 | Z23: 0 | AB23: 3 | AC23: 2 | AD23: 2 | AF23: 0 | AG23: 0 | AH23: 0 | AJ23: 0 | AK23: 0 | AL23: 0 | AM23: 0 | AO23: 1
F24: それ以外 | H24: （kl） | I24: 36.7 | J24: 0.0678 | K24: 8.3e-07 | L24: 28 | M24: 1.9e-07 | N24: 265 | O24: 0 | P24: 0 | Q24: 0 | R24: 0 | U24: （kl） | X24: 0 | Y24: 0 | Z24: =IF(ISERROR(G24*M24*N24*I24*AO24),0,G24*M24*N24*I24*AO24) -> 0 | AB24: 3 | AC24: 2 | AD24: 2 | AF24: 0 | AG24: 0 | AH24: 0 | AJ24: 0 | AK24: 0 | AL24: 0 | AM24: 0 | AO24: 1
D25: A重油 | F25: ボイラー 燃料 | H25: （kl） | I25: 39.1 | J25: 0.0693 | K25: 2.6e-07 | L25: 28 | M25: 1.9e-07 | N25: 265 | O25: 0 | P25: 0 | Q25: 0 | R25: 0 | U25: （kl） | X25: 0 | Y25: 0 | Z25: 0 | AB25: 3 | AC25: 2 | AD25: 2 | AF25: 0 | AG25: 0 | AH25: 0 | AJ25: 0 | AK25: 0 | AL25: 0 | AM25: 0 | AO25: 1
F26: 助燃剤 | H26: （kl） | I26: 39.1 | J26: 0.0693 | K26: 8.3e-07 | L26: 28 | M26: 1.9e-07 | N26: 265 | O26: 0 | P26: 0 | Q26: 0 | R26: 0 | U26: （kl） | X26: 0 | Y26: 0 | Z26: 0 | AB26: 3 | AC26: 2 | AD26: 2 | AF26: 0 | AG26: 0 | AH26: 0 | AJ26: 0 | AK26: 0 | AL26: 0 | AM26: 0 | AO26: 1
F27: それ以外 | H27: （kl） | I27: 39.1 | J27: 0.0693 | K27: 8.3e-07 | L27: 28 | M27: 1.9e-07 | N27: 265 | O27: 0 | P27: 0 | Q27: 0 | R27: 0 | U27: （kl） | X27: 0 | Y27: 0 | Z27: 0 | AB27: 3 | AC27: 2 | AD27: 2 | AF27: 0 | AG27: 0 | AH27: 0 | AJ27: 0 | AK27: 0 | AL27: 0 | AM27: 0 | AO27: 1
D28: C重油 | F28: ボイラー 燃料 | H28: （kl） | I28: 41.9 | J28: 0.0715 | K28: 1e-07 | L28: 28 | M28: 2.2e-07 | N28: 265 | O28: 0 | P28: 0 | Q28: 0 | R28: 0 | U28: （kl） | X28: 0 | Y28: 0 | Z28: 0 | AB28: 3 | AC28: 2 | AD28: 2 | AF28: 0 | AG28: 0 | AH28: 0 | AJ28: 0 | AK28: 0 | AL28: 0 | AM28: 0 | AO28: 1
F29: 助燃剤 | H29: （kl） | I29: 41.9 | J29: 0.0715 | K29: 8.3e-07 | L29: 28 | M29: 2.2e-07 | N29: 265 | O29: 0 | P29: 0 | Q29: 0 | R29: 0 | U29: （kl） | X29: 0 | Y29: 0 | Z29: 0 | AB29: 3 | AC29: 2 | AD29: 2 | AF29: 0 | AG29: 0 | AH29: 0 | AJ29: 0 | AK29: 0 | AL29: 0 | AM29: 0 | AO29: 1
F30: それ以外 | H30: （kl） | I30: 41.9 | J30: 0.0715 | K30: 8.3e-07 | L30: 28 | M30: 2.2e-07 | N30: 265 | O30: 0 | P30: 0 | Q30: 0 | R30: 0 | U30: （kl） | X30: 0 | Y30: 0 | Z30: 0 | AB30: 3 | AC30: 2 | AD30: 2 | AF30: 0 | AG30: 0 | AH30: 0 | AJ30: 0 | AK30: 0 | AL30: 0 | AM30: 0 | AO30: 1
D31: LPG | F31: ボイラー 燃料 | G31: =IF(T31<>"",IF(U31="（kg）",T31*$V$8/100/1000,T31*$V$8/100),"") ->  | H31: =IF(U31<>"",IF(U31="（t）",U31,IF(U31="（kg）","（t）","単位誤り")),"単位未入力") -> （t） | I31: 50.8 | J31: 0.0598 | K31: 2.3e-07 | L31: 28 | M31: 1.7e-07 | N31: 265 | O31: 0 | P31: 0 | Q31: 0 | R31: 0 | U31: （t） | X31: 0 | Y31: 0 | Z31: 0 | AB31: 3 | AC31: 2 | AD31: 2 | AF31: 0 | AG31: 0 | AH31: 0 | AJ31: 0 | AK31: 0 | AL31: 0 | AM31: 0 | AO31: =IF(U31="（t）",1,IF(U31="（kg）",1,0)) -> 1
F32: 助燃剤 | H32: （t） | I32: 50.8 | J32: 0.0598 | K32: 2.3e-06 | L32: 28 | M32: 1.7e-07 | N32: 265 | O32: 0 | P32: 0 | Q32: 0 | R32: 0 | U32: （t） | X32: 0 | Y32: 0 | Z32: 0 | AB32: 3 | AC32: 2 | AD32: 2 | AF32: 0 | AG32: 0 | AH32: 0 | AJ32: 0 | AK32: 0 | AL32: 0 | AM32: 0 | AO32: 1
F33: それ以外 | H33: （t） | I33: 50.8 | J33: 0.0598 | K33: 2.3e-06 | L33: 28 | M33: 1.7e-07 | N33: 265 | O33: 0 | P33: 0 | Q33: 0 | R33: 0 | U33: （t） | X33: 0 | Y33: 0 | Z33: 0 | AB33: 3 | AC33: 2 | AD33: 2 | AF33: 0 | AG33: 0 | AH33: 0 | AJ33: 0 | AK33: 0 | AL33: 0 | AM33: 0 | AO33: 1
D34: 石炭 | F34: ボイラー 燃料 | H34: （t） | I34: 25.7 | J34: 0.0906 | K34: 1.3e-07 | L34: 28 | M34: 8.5e-07 | N34: 265 | O34: 0 | P34: 0 | Q34: 0 | R34: 0 | U34: （t） | X34: 0 | Y34: =IF(ISERROR(G34*K34*L34*I34*AO34),0,G34*K34*L34*I34*AO34) -> 0 | Z34: =IF(ISERROR(G34*M34*N34*I34*AO34),0,G34*M34*N34*I34*AO34) -> 0 | AB34: 3 | AC34: 2 | AD34: 2 | AF34: 0 | AG34: 0 | AH34: 0 | AJ34: 0 | AK34: 0 | AL34: 0 | AM34: 0 | AO34: 1
F35: 助燃剤 | H35: （t） | I35: 25.7 | J35: 0.0906 | K35: 1.3e-05 | L35: 28 | M35: 8.5e-07 | N35: 265 | O35: 0 | P35: 0 | Q35: 0 | R35: 0 | U35: （t） | X35: 0 | Y35: 0 | Z35: 0 | AB35: 3 | AC35: 2 | AD35: 2 | AF35: 0 | AG35: 0 | AH35: 0 | AJ35: 0 | AK35: 0 | AL35: 0 | AM35: 0 | AO35: 1
F36: それ以外 | H36: （t） | I36: 25.7 | J36: 0.0906 | K36: 1.3e-05 | L36: 28 | M36: 8.5e-07 | N36: 265 | O36: 0 | P36: 0 | Q36: 0 | R36: 0 | U36: （t） | X36: 0 | Y36: 0 | Z36: 0 | AB36: 3 | AC36: 2 | AD36: 2 | AF36: 0 | AG36: 0 | AH36: 0 | AJ36: 0 | AK36: 0 | AL36: 0 | AM36: 0 | AO36: 1
D37: コークス | F37: ボイラー 燃料 | H37: （t） | I37: 29.4 | J37: 0.1079 | K37: 1.3e-07 | L37: 28 | M37: 8.5e-07 | N37: 265 | O37: =X37 -> 0 | P37: 0 | Q37: 0 | R37: =SUM(O37:Q37) -> 0 | U37: （t） | X37: =IF(ISERROR(G37*J37*I37*AO37),0,G37*J37*I37*AO37) -> 0 | Y37: =IF(ISERROR(G37*K37*L37*I37*AO37),0,G37*K37*L37*I37*AO37) -> 0 | Z37: =IF(ISERROR(G37*M37*N37*I37*AO37),0,G37*M37*N37*I37*AO37) -> 0 | AB37: 3 | AC37: 2 | AD37: 2 | AF37: 0 | AG37: 0 | AH37: 0 | AJ37: =IF(ISERROR(ROUND(X37,AF37)),"",ROUND(X37,AF37)) -> 0 | AK37: 0 | AL37: 0 | AM37: =SUM(AJ37:AL37) -> 0 | AO37: 1
F38: 助燃剤 | H38: （t） | I38: 29.4 | J38: 0.1079 | K38: 1.3e-05 | L38: 28 | M38: 8.5e-07 | N38: 265 | O38: 0 | P38: 0 | Q38: 0 | R38: =SUM(O38:Q38) -> 0 | U38: （t） | X38: =IF(ISERROR(G38*J38*I38*AO38),0,G38*J38*I38*AO38) -> 0 | Y38: =IF(ISERROR(G38*K38*L38*I38*AO38),0,G38*K38*L38*I38*AO38) -> 0 | Z38: =IF(ISERROR(G38*M38*N38*I38*AO38),0,G38*M38*N38*I38*AO38) -> 0 | AB38: 3 | AC38: 2 | AD38: 2 | AF38: 0 | AG38: 0 | AH38: 0 | AJ38: 0 | AK38: 0 | AL38: 0 | AM38: =SUM(AJ38:AL38) -> 0 | AO38: 1
F39: それ以外 | H39: （t） | I39: 29.4 | J39: 0.1079 | K39: 1.3e-05 | L39: 28 | M39: 8.5e-07 | N39: 265 | O39: 0 | P39: 0 | Q39: 0 | R39: =SUM(O39:Q39) -> 0 | U39: （t） | X39: =IF(ISERROR(G39*J39*I39*AO39),0,G39*J39*I39*AO39) -> 0 | Y39: =IF(ISERROR(G39*K39*L39*I39*AO39),0,G39*K39*L39*I39*AO39) -> 0 | Z39: =IF(ISERROR(G39*M39*N39*I39*AO39),0,G39*M39*N39*I39*AO39) -> 0 | AB39: 3 | AC39: 2 | AD39: 2 | AF39: 0 | AG39: 0 | AH39: 0 | AJ39: 0 | AK39: 0 | AL39: 0 | AM39: =SUM(AJ39:AL39) -> 0 | AO39: 1
D40: 廃油・ 再生油 | E40: 燃料系廃油、 潤滑油系廃油等 | H40: （t） | J40: 2.919 | K40: 1.2e-05 | L40: 28 | M40: 8.3e-06 | N40: 265 | O40: 0 | P40: 0 | Q40: 0 | R40: 0 | U40: （t） | X40: =IF(ISERROR(G40*J40*AO40),0,G40*J40*AO40) -> 0 | Y40: =IF(ISERROR(G40*K40*L40*AO40),0,G40*K40*L40*AO40) -> 0 | Z40: =IF(ISERROR(G40*M40*N40*AO40),0,G40*M40*N40*AO40) -> 0 | AB40: 3 | AC40: 2 | AD40: 2 | AF40: 0 | AG40: 0 | AH40: 0 | AJ40: =IF(ISERROR(ROUND(X40,AF40)),"",ROUND(X40,AF40)) -> 0 | AK40: =IF(ISERROR(ROUND(Y40,AG40)),"",ROUND(Y40,AG40)) -> 0 | AL40: =IF(ISERROR(ROUND(Z40,AH40)),"",ROUND(Z40,AH40)) -> 0 | AM40: =SUM(AJ40:AL40) -> 0 | AO40: 1
E41: 動植物性廃油 | G41: =IF(T41<>"",IF(U41="（kg）",T41*$V$8/100/1000,T41*$V$8/100),"") ->  | H41: （t） | K41: 1.2e-05 | L41: 28 | M41: 8.3e-06 | N41: 265 | P41: 0 | Q41: 0 | R41: =SUM(O41:Q41) -> 0 | U41: （t） | X41: =IF(ISERROR(G41*J41*AO41),0,G41*J41*AO41) -> 0 | Y41: =IF(ISERROR(G41*K41*L41*AO41),0,G41*K41*L41*AO41) -> 0 | Z41: =IF(ISERROR(G41*M41*N41*AO41),0,G41*M41*N41*AO41) -> 0 | AB41: 3 | AC41: 2 | AD41: 2 | AF41: 0 | AG41: 0 | AH41: 0 | AJ41: 0 | AK41: 0 | AL41: 0 | AM41: 0 | AO41: 1
D42: 木くず | H42: （t） | K42: 0.0011 | L42: 28 | M42: 1.2e-05 | N42: 265 | P42: 0 | Q42: 0 | R42: 0 | U42: （t） | Y42: =IF(ISERROR(G42*K42*L42*AO42),0,G42*K42*L42*AO42) -> 0 | Z42: =IF(ISERROR(G42*M42*N42*AO42),0,G42*M42*N42*AO42) -> 0 | AC42: 2 | AD42: 2 | AG42: 0 | AH42: 0 | AJ42: 0 | AK42: 0 | AL42: 0 | AM42: 0 | AO42: 1
D43: バイオディーゼル ※CO2排出量は、バイオ成分を使用量から除いて算定。 | G43: =IF(T43<>"",IF(U43="（ﾘｯﾄﾙ）",T43*($V$8/100)*(100-V43)/100/1000,T43*($V$8/100)*(100-V43)/100),"") ->  | H43: =IF(U43<>"",IF(U43="（kl）",U43,IF(U43="（ﾘｯﾄﾙ）","（kl）","単位誤り")),"単位未入力") -> （kl） | I43: 37.7 | J43: 0.0686 | O43: 0 | R43: =SUM(O43:Q43) -> 0 | U43: （kl） | V43: 100 | X43: =IF(ISERROR(G43*J43*I43*AO43),0,G43*J43*I43*AO43) -> 0 | Y43: =IF(ISERROR(G43*K43*L43*I43*AO43),0,G43*K43*L43*I43*AO43) -> 0 | Z43: =IF(ISERROR(G43*M43*N43*I43*AO43),0,G43*M43*N43*I43*AO43) -> 0 | AB43: 3 | AF43: 0 | AJ43: 0 | AK43: 0 | AL43: 0 | AM43: 0 | AO43: =IF(U43="（kl）",1,IF(U43="（ﾘｯﾄﾙ）",1,0)) -> 1
G44: =IF(T43<>"",IF(U43="（ﾘｯﾄﾙ）",T43*$V$8/100/1000,T43*$V$8/100),"") ->  | H44: =IF(U43<>"",IF(U43="（kl）",U43,IF(U43="（ﾘｯﾄﾙ）","（kl）","単位誤り")),"単位未入力") -> （kl） | I44: 37.7 | K44: 2.6e-07 | L44: 28 | M44: 1.9e-07 | N44: 265 | P44: 0 | Q44: 0 | R44: =SUM(O44:Q44) -> 0 | V44: 水分割合 | X44: =IF(ISERROR(G44*J44*I44*AO44),0,G44*J44*I44*AO44) -> 0 | Y44: =IF(ISERROR(G44*K44*L44*I44*AO44),0,G44*K44*L44*I44*AO44) -> 0 | Z44: =IF(ISERROR(G44*M44*N44*I44*AO44),0,G44*M44*N44*I44*AO44) -> 0 | AC44: 2 | AD44: 2 | AG44: 0 | AH44: 0 | AJ44: =IF(ISERROR(ROUND(X44,AF44)),"",ROUND(X44,AF44)) -> 0 | AK44: =IF(ISERROR(ROUND(Y44,AG44)),"",ROUND(Y44,AG44)) -> 0 | AL44: =IF(ISERROR(ROUND(Z44,AH44)),"",ROUND(Z44,AH44)) -> 0 | AM44: =SUM(AJ44:AL44) -> 0 | AO44: =IF(U43="（kl）",1,IF(U43="（ﾘｯﾄﾙ）",1,0)) -> 1
D45: RPF | F45: ボイラー 燃料 | G45: =IF(T45<>"",IF(U45="（kg）",T45*$V$8/100/1000,T45*$V$8/100),"") ->  | H45: =IF(U45<>"",IF(U45="（t）",U45,IF(U45="（kg）","（t）","単位誤り")),"単位未入力") -> （t） | J45: 1.584698 | K45: 3.5e-06 | L45: 28 | M45: 2.3e-05 | N45: 265 | O45: 0 | P45: 0 | Q45: 0 | R45: 0 | U45: （t） | V45: 2.6 | X45: =IF(ISERROR(G45*J45*AO45),0,G45*J45*AO45) -> 0 | Y45: =IF(ISERROR(G45*K45*L45*AO45),0,G45*K45*L45*AO45) -> 0 | Z45: =IF(ISERROR(G45*M45*N45*AO45),0,G45*M45*N45*AO45) -> 0 | AB45: 3 | AC45: 2 | AD45: 2 | AF45: 0 | AG45: 0 | AH45: 0 | AJ45: 0 | AK45: 0 | AL45: 0 | AM45: 0 | AO45: =IF(U45="（t）",1,IF(U45="（kg）",1,0)) -> 1
F46: それ以外 | G46: =IF(T46<>"",IF(U46="（kg）",T46*$V$8/100/1000,T46*$V$8/100),"") ->  | H46: =IF(U46<>"",IF(U46="（t）",U46,IF(U46="（kg）","（t）","単位誤り")),"単位未入力") -> （t） | J46: 1.584698 | K46: 3.5e-06 | L46: 28 | M46: 2.3e-05 | N46: 265 | O46: 0 | P46: 0 | Q46: 0 | R46: 0 | U46: （t） | V46: 2.6 | X46: =IF(ISERROR(G46*J46*AO46),0,G46*J46*AO46) -> 0 | Y46: =IF(ISERROR(G46*K46*L46*AO46),0,G46*K46*L46*AO46) -> 0 | Z46: =IF(ISERROR(G46*M46*N46*AO46),0,G46*M46*N46*AO46) -> 0 | AB46: 3 | AC46: 2 | AD46: 2 | AF46: 0 | AG46: 0 | AH46: 0 | AJ46: 0 | AK46: 0 | AL46: 0 | AM46: 0 | AO46: =IF(U46="（t）",1,IF(U46="（kg）",1,0)) -> 1
C47: 構内車両（重機等） | D47: 電気 | G47: =IF(T47<>"",IF(U47="（kWh）",T47*$V$8/100/1000,T47*$V$8/100),"") ->  | H47: =IF(U47<>"",IF(U47="（千kWh）",U47,IF(U47="（kWh）","（千kWh）","単位誤り")),"単位未入力") -> （千kWh） | J47: 0.457 | O47: 0 | R47: 0 | U47: （千kWh） | X47: =IF(ISERROR(G47*J47*AO47),0,G47*J47*AO47) -> 0 | AB47: 3 | AF47: 0 | AJ47: 0 | AK47: 0 | AL47: 0 | AM47: 0 | AO47: =IF(U47="（千kWh）",1,IF(U47="（kWh）",1,0)) -> 1
D48: ガソリン | G48: =IF(T48<>"",IF(U48="（ﾘｯﾄﾙ）",T48*$V$8/100/1000,T48*$V$8/100),"") ->  | H48: =IF(U48<>"",IF(U48="（kl）",U48,IF(U48="（ﾘｯﾄﾙ）","（kl）","単位誤り")),"単位未入力") -> （kl） | I48: 34.6 | J48: 0.0671 | O48: =X48 -> 0 | R48: 0 | U48: （kl） | X48: =IF(ISERROR(G48*J48*I48*AO48),0,G48*J48*I48*AO48) -> 0 | Y48: =IF(ISERROR(G48*K48*L48*I48*AO48),0,G48*K48*L48*I48*AO48) -> 0 | Z48: =IF(ISERROR(G48*M48*N48*I48*AO48),0,G48*M48*N48*I48*AO48) -> 0 | AB48: 3 | AF48: 0 | AJ48: 0 | AK48: 0 | AL48: 0 | AM48: 0 | AO48: =IF(U48="（kl）",1,IF(U48="（ﾘｯﾄﾙ）",1,0)) -> 1
D49: 軽油 | G49: =IF(T49<>"",IF(U49="（ﾘｯﾄﾙ）",T49*$V$8/100/1000,T49*$V$8/100),"") ->  | H49: =IF(U49<>"",IF(U49="（kl）",U49,IF(U49="（ﾘｯﾄﾙ）","（kl）","単位誤り")),"単位未入力") -> （kl） | I49: 37.7 | J49: 0.0686 | O49: 0 | R49: 0 | U49: （kl） | X49: =IF(ISERROR(G49*J49*I49*AO49),0,G49*J49*I49*AO49) -> 0 | Y49: =IF(ISERROR(G49*K49*L49*I49*AO49),0,G49*K49*L49*I49*AO49) -> 0 | Z49: =IF(ISERROR(G49*M49*N49*I49*AO49),0,G49*M49*N49*I49*AO49) -> 0 | AB49: 3 | AF49: 0 | AJ49: 0 | AK49: 0 | AL49: 0 | AM49: 0 | AO49: =IF(U49="（kl）",1,IF(U49="（ﾘｯﾄﾙ）",1,0)) -> 1
D50: 灯油 | G50: =IF(T50<>"",IF(U50="（ﾘｯﾄﾙ）",T50*$V$8/100/1000,T50*$V$8/100),"") ->  | H50: =IF(U50<>"",IF(U50="（kl）",U50,IF(U50="（ﾘｯﾄﾙ）","（kl）","単位誤り")),"単位未入力") -> （kl） | I50: 36.7 | J50: 0.0678 | O50: 0 | R50: 0 | U50: （kl） | X50: =IF(ISERROR(G50*J50*I50*AO50),0,G50*J50*I50*AO50) -> 0 | Y50: =IF(ISERROR(G50*K50*L50*I50*AO50),0,G50*K50*L50*I50*AO50) -> 0 | Z50: =IF(ISERROR(G50*M50*N50*I50*AO50),0,G50*M50*N50*I50*AO50) -> 0 | AB50: 3 | AF50: 0 | AJ50: 0 | AK50: 0 | AL50: 0 | AM50: 0 | AO50: =IF(U50="（kl）",1,IF(U50="（ﾘｯﾄﾙ）",1,0)) -> 1
D51: バイオディーゼル | G51: =IF(T51<>"",IF(U51="（ﾘｯﾄﾙ）",T51*($V$8/100)*(100-V51)/100/1000,T51*($V$8/100)*(100-V51)/100),"") ->  | H51: =IF(U51<>"",IF(U51="（kl）",U51,IF(U51="（ﾘｯﾄﾙ）","（kl）","単位誤り")),"単位未入力") -> （kl） | I51: 37.7 | J51: 0.0686 | O51: 0 | R51: 0 | U51: （kl） | V51: 100 | X51: =IF(ISERROR(G51*J51*I51*AO51),0,G51*J51*I51*AO51) -> 0 | Y51: =IF(ISERROR(G51*K51*L51*I51*AO51),0,G51*K51*L51*I51*AO51) -> 0 | AB51: 3 | AF51: 0 | AJ51: 0 | AK51: 0 | AL51: 0 | AM51: 0 | AO51: =IF(U51="（kl）",1,IF(U51="（ﾘｯﾄﾙ）",1,0)) -> 1
D52: 温室効果ガス排出量合計 | O52: =SUM(O12:O51) -> 0 | P52: =SUM(P12:P51) -> 0 | Q52: =SUM(Q12:Q51) -> 0 | R52: 0
B54: ○温室効果ガス排出量グラフ
C56: 温室効果ガス排出量グラフ
C57: 項目 | D57: CO2 | E57: CH4 | F57: N2O | G57: 合計
C58: 電気 | D58: =O12 -> 0 | E58: =P12 -> 0 | F58: =Q12 -> 0 | G58: =R12 -> 0
C59: 都市ガス | D59: =SUM(O13:O15) -> 0 | E59: =SUM(P13:P15) -> 0 | F59: =SUM(Q13:Q15) -> 0 | G59: =SUM(R13:R15) -> 0
C60: 天然ガス （LNG除く） | D60: =SUM(O16:O18) -> 0 | E60: =SUM(P16:P18) -> 0 | F60: =SUM(Q16:Q18) -> 0 | G60: =SUM(R16:R18) -> 0
C61: 軽油 | D61: =SUM(O19:O21) -> 0 | E61: =SUM(P19:P21) -> 0 | F61: =SUM(Q19:Q21) -> 0 | G61: =SUM(R19:R21) -> 0
C62: 灯油 | D62: =SUM(O22:O24) -> 0 | E62: =SUM(P22:P24) -> 0 | F62: =SUM(Q22:Q24) -> 0 | G62: =SUM(R22:R24) -> 0
C63: A重油 | D63: =SUM(O25:O27) -> 0 | E63: =SUM(P25:P27) -> 0 | F63: =SUM(Q25:Q27) -> 0 | G63: =SUM(R25:R27) -> 0
C64: C重油 | D64: =SUM(O28:O30) -> 0 | E64: =SUM(P28:P30) -> 0 | F64: =SUM(Q28:Q30) -> 0 | G64: =SUM(R28:R30) -> 0
C65: LPG | D65: =SUM(O31:O33) -> 0 | E65: =SUM(P31:P33) -> 0 | F65: =SUM(Q31:Q33) -> 0 | G65: =SUM(R31:R33) -> 0
C66: 石炭 | D66: =SUM(O34:O36) -> 0 | E66: =SUM(P34:P36) -> 0 | F66: =SUM(Q34:Q36) -> 0 | G66: =SUM(R34:R36) -> 0
C67: コークス | D67: =SUM(O37:O39) -> 0 | E67: =SUM(P37:P39) -> 0 | F67: =SUM(Q37:Q39) -> 0 | G67: =SUM(R37:R39) -> 0
C68: 燃料系廃油、 潤滑油系廃油等 | D68: =O40 -> 0 | E68: 0 | F68: 0 | G68: 0
C69: 動植物性廃油 | D69: 0 | E69: 0 | F69: 0 | G69: 0
C70: 木くず | D70: 0 | E70: 0 | F70: 0 | G70: 0
C71: バイオディーゼル | D71: =SUM(O43:O44) -> 0 | E71: =SUM(P43:P44) -> 0 | F71: =SUM(Q43:Q44) -> 0 | G71: =SUM(R43:R44) -> 0
C72: RPF | D72: =SUM(O45:O46) -> 0 | E72: =SUM(P45:P46) -> 0 | F72: =SUM(Q45:Q46) -> 0 | G72: =SUM(R45:R46) -> 0
C73: 構内車両：電気 | D73: =O47 -> 0 | E73: 0 | F73: 0 | G73: 0
C74: 構内車両：ガソリン | D74: 0 | E74: 0 | F74: 0 | G74: 0
C75: 構内車両：軽油 | D75: 0 | E75: 0 | F75: 0 | G75: 0
C76: 構内車両：灯油 | D76: 0 | E76: 0 | F76: 0 | G76: 0
C77: 構内車両：バイオディーゼル | D77: 0 | E77: 0 | F77: 0 | G77: 0
CV100: 100

Sheet 算定結果の閲覧
A3: 温室効果ガス排出量算定結果の閲覧
A4: 1990年度～2024年度
B7: ○年度別、温室効果ガス排出量（グラフ） | T7: 開始年度 | U7: 1990
B8: 産業廃棄物事業全体における温室効果ガス排出量の算定結果です。 | T8: 終了年度 | U8: 2024
D38: 温室効果ガス排出量
D39: 収集運搬業 | E39: 中間処理業 | F39: 最終処分業 | G39: 関連施設及び構内車両 | H39: 事業合計 | I39: 前年度からの 増加率
C40: 1990 | H40: 0
C41: 1991 | H41: 0
C42: 1992 | H42: 0
C43: 1993 | H43: 0
C44: 1994 | H44: 0
C45: 1995 | H45: 0
C46: 1996 | H46: 0
C47: 1997 | H47: 0
C48: 1998 | H48: 0
C49: 1999 | H49: 0
C50: 2000 | H50: 0
C51: 2001 | H51: 0
C52: 2002 | H52: 0
C53: 2003 | H53: 0
C54: 2004 | H54: 0
C55: 2005 | H55: 0
C56: 2006 | H56: 0
C57: 2007 | H57: 0
C58: 2008 | H58: 0
C59: 2009 | H59: 0
C60: 2010 | H60: 0
C61: 2011 | H61: 0
C62: 2012 | H62: 0
C63: 2013 | H63: 0
C64: 2014 | H64: 0
C65: 2015 | H65: 0
C66: 2016 | H66: 0
C67: 2017 | H67: 0
C68: 2018 | H68: 0
C69: 2019 | H69: 0
C70: 2020 | H70: 0
C71: 2021 | H71: 0
C72: 2022 | H72: 0
C73: 2023 | D73: 0 | E73: 0 | F73: 0 | G73: 0 | H73: 0
C74: 2024 | D74: 0 | E74: 0 | F74: 0 | G74: 0 | H74: 0
C75: 2025 | H75: 0
C76: 2026 | H76: 0
C77: 2027 | H77: 0
C78: 2028 | H78: 0
C79: 2029 | H79: 0
C80: 2030 | H80: 0
C81: 2031 | H81: 0
C82: 2032 | H82: 0
C83: 2033 | H83: 0
C84: 2034 | H84: 0
C85: 2035 | H85: 0
C86: 2036 | H86: 0
C87: 2037 | H87: 0
C88: 2038 | H88: 0
C89: 2039 | H89: 0
C90: 2040 | H90: 0
C91: 2041 | H91: 0
C92: 2042 | H92: 0
C93: 2043 | H93: 0
C94: 2044 | H94: 0
C95: 2045 | H95: 0
C96: 2046 | H96: 0
C97: 2047 | H97: 0
C98: 2048 | H98: 0
C99: 2049 | H99: 0
C100: 2050 | H100: 0

Sheet 削減効果
A1: C
A3: 地球温暖化対策の実施による削減効果の試算
Q4: 削減効果の合計
Q5: =O35+O57+O65+O73+O81+O89+O110+O118+O140+O164+O172+O185+O194+O205+O213+O233 -> 0
B6: ○削減効果の試算表について
B7: 下記一覧から削減効果を試算する対策にチェックを入れてください。対策に対応する試算表が表示されます。
B8: 表示した削減表に必要な値を入力することで、削減効果が自動で算定されます。
B20: ○選別率の向上
C21: 選別率の向上により、単純焼却を回避した産業廃棄物の焼却に伴う温室効果ガス排出量を削減効果とみなします。
C23: ▼入力値（受入量、選別率）
E24: 受入量 (t) | F24: 選別率(%) | H24: 水分割合 （%） | I24: 焼却回避量 (t) | J24: CO2排出係数 (tCO2/t) | K24: CH4排出係数 (tCH4/t) | L24: CH4地球温暖化係数 | M24: N2O排出係数 (tN2O/t) | N24: N2O地球温暖化係数 | O24: 削減効果 （tCO2）
F25: 対策前 | G25: 対策後
C26: 焼却する産業廃棄物種類 | D26: 廃プラスチック類（廃プラスチック類、合成ゴムくず） | I26: =E26*(G26-F26)/100 -> 0 | J26: 2.554 | K26: 3e-05 | L26: 21 | M26: 0.00018 | N26: 310 | O26: =I26*J26+I26*K26*L26+I26*M26*N26 -> 0
D27: 廃プラスチック類（廃タイヤ） | H27: 5 | I27: =E27*(G27-F27)/100 -> 0 | J27: 1.753 | K27: 3e-05 | L27: 21 | M27: 0.00018 | N27: 310 | O27: =I27*J27*(100-H27)/100+I27*K27*L27+I27*M27*N27 -> 0
D28: 紙くず | I28: 0 | K28: 2.2e-05 | L28: 21 | M28: 2.1e-05 | N28: 310 | O28: =I28*J28+I28*K28*L28+I28*M28*N28 -> 0
D29: 木くず | I29: 0 | K29: 2.2e-05 | L29: 21 | M29: 2.1e-05 | N29: 310 | O29: 0
D30: 繊維くず | I30: 0 | K30: 2.2e-05 | L30: 21 | M30: 2.1e-05 | N30: 310 | O30: 0
D31: 動植物残渣 | I31: 0 | K31: 2.2e-05 | L31: 21 | M31: 2.1e-05 | N31: 310 | O31: 0
D32: 動物系固形不要物 | I32: 0 | K32: 2.2e-05 | L32: 21 | M32: 2.1e-05 | N32: 310 | O32: 0
D33: 動物のふん尿 | I33: 0 | K33: 2.2e-05 | L33: 21 | M33: 2.1e-05 | N33: 310 | O33: 0
D34: 動物の死体 | I34: 0 | K34: 2.2e-05 | L34: 21 | M34: 2.1e-05 | N34: 310 | O34: 0
C35: 合計 | O35: =SUM(O26:O34) -> 0
B37: ○産業廃棄物を原料とした燃料・製品製造
C38: 産業廃棄物を原料とした燃料・製品を製造することにより、単純焼却を回避した産業廃棄物の焼却に伴う温室効果ガス排出量を削減効果とみなします。
C40: ▼入力値（原料投入量）
E41: 原料として 利用した量（t） | F41: 水分割合 （%） | G41: 焼却回避量 （t） | J41: CO2排出係数 (tCO2/t) | K41: CH4排出係数 (tCH4/t) | L41: CH4地球温暖化係数 | M41: N2O排出係数 (tN2O/t) | N41: N2O地球温暖化係数 | O41: 削減効果 （tCO2）
C43: エネルギー・製品製造の 原料となる産業廃棄物 | D43: 汚泥（下水汚泥） | G43: =E43 -> 0 | K43: 1.4e-05 | L43: 21 | M43: 0.000882 | N43: 310 | O43: =G43*J43+G43*K43*L43+G43*M43*N43 -> 0
D44: 汚泥（下水汚泥以外） | G44: 0 | K44: 1.4e-05 | L44: 21 | M44: 0.00046 | N44: 310 | O44: =G44*J44+G44*K44*L44+G44*M44*N44 -> 0
D45: 廃油（燃料系廃油、潤滑油系廃油、水系廃油） | G45: 0 | J45: 2.919 | K45: 4.8e-06 | L45: 21 | M45: 1.2e-05 | N45: 310 | O45: =G45*J45+G45*K45*L45+G45*M45*N45 -> 0
D46: 廃油（動植物性廃油） | G46: 0 | J46: 0 | K46: 4.8e-06 | L46: 21 | M46: 1.2e-05 | N46: 310 | O46: =G46*J46+G46*K46*L46+G46*M46*N46 -> 0
D47: 廃プラスチック類（廃プラスチック類、合成ゴムくず） | G47: 0 | J47: 2.554 | K47: 3e-05 | L47: 21 | M47: 0.00018 | N47: 310 | O47: =G47*J47+G47*K47*L47+G47*M47*N47 -> 0
D48: 廃プラスチック類（廃タイヤ） | F48: 5 | G48: 0 | J48: 1.753 | K48: 3e-05 | L48: 21 | M48: 0.00018 | N48: 310 | O48: =G48*J48*(100-F48)/100+G48*K48*L48+G48*M48*N48 -> 0
D49: 紙くず | G49: 0 | K49: 2.2e-05 | L49: 21 | M49: 2.1e-05 | N49: 310 | O49: =G49*J49+G49*K49*L49+G49*M49*N49 -> 0
D50: 木くず | G50: 0 | K50: 2.2e-05 | L50: 21 | M50: 2.1e-05 | N50: 310 | O50: 0
D51: 繊維くず | G51: 0 | K51: 2.2e-05 | L51: 21 | M51: 2.1e-05 | N51: 310 | O51: 0
D52: 動植物残渣 | G52: 0 | K52: 2.2e-05 | L52: 21 | M52: 2.1e-05 | N52: 310 | O52: 0
D53: 動物系固形不要物 | G53: 0 | K53: 2.2e-05 | L53: 21 | M53: 2.1e-05 | N53: 310 | O53: 0
D54: 動物のふん尿 | G54: 0 | K54: 2.2e-05 | L54: 21 | M54: 2.1e-05 | N54: 310 | O54: 0
D55: 動物の死体 | G55: 0 | K55: 2.2e-05 | L55: 21 | M55: 2.1e-05 | N55: 310 | O55: 0
D56: 特別管理産業廃棄物の廃油 | G56: 0 | J56: 2.919 | K56: 4.8e-06 | L56: 21 | M56: 1.2e-05 | N56: 310 | O56: 0
C57: 合計 | O57: =SUM(O43:O56) -> 0
B59: ○廃棄物発電設備の導入
C60: 産業廃棄物焼却施設における廃熱を回収して電力利用することにより、その発電量に相当する温室効果ガス排出量を削減効果とみなします。
J61: 電気事業者 | L61: 電気のCO2排出係数
C62: ▼入力（運転時間、施設の発電出力） | L62: 2024年度値を適用
E63: 運転時間 （h/年） | F63: 電気出力 （kW） | G63: 発電効率 （%） | H63: 発電量 （千kWh） | J63: CO2排出係数 (tCO2/千kWh) | O63: 削減効果 （tCO2）
C65: 廃棄物発電 | H65: =E65*F65*G65/100/1000 -> 0 | O65: =H65*J65 -> 0
B67: ○廃棄物発電設備の発電効率の向上
C68: 廃棄物発電設備の発電効率の向上により、その発電量の増加分に相当する温室効果ガス排出量を削減効果とみなします。
J69: 電気事業者 | L69: 電気のCO2排出係数
C70: ▼入力値（運転時間、施設の発電出力） | L70: 2024年度値を適用
E71: 運転時間 （h/年） | F71: 電気出力 （kW） | G71: 発電効率(%) | I71: 増加した発電量 （千kWh） | J71: CO2排出係数 (tCO2/千kWh) | O71: 削減効果 （tCO2）
G72: 従来方式 | H72: 対策後
C73: 廃棄物発電 | I73: =E73*F73*(H73-G73)/100/1000 -> 0 | O73: =I73*J73 -> 0
B75: ○廃棄物熱利用設備の導入
C76: 産業廃棄物焼却施設における廃熱を回収して熱利用することによりその熱利用量に相当する温室効果ガス排出量を削減効果とみなします。
C78: ▼入力値（運転時間、施設の供給量）
E79: 運転時間 （h/年） | F79: 熱出力 （MJ/h） | G79: 熱利用量 （GJ） | J79: CO2排出係数 (tCO2/GJ) | O79: 削減効果 （tCO2）
C81: 廃棄物熱利用 | G81: =E81*F81/1000 -> 0 | J81: 0.057 | O81: =G81*J81 -> 0
B83: ○下水汚泥焼却炉における燃焼の高度化
C84: 下水汚泥焼却炉における燃焼温度を高度化（850℃以上）することにより、削減される一酸化二窒素の温室効果ガス排出量を削減効果とみなします。
C86: ▼入力値（下水汚泥焼却量）
E87: 下水汚泥焼却量（t） | M87: N2O排出係数 (tN2O/t) | N87: N2O地球温暖化係数 | O87: 削減効果 （tCO2）
C89: 焼却処分する下水汚泥 | M89: =(1.51-0.645)/1000 -> 0.000865 | N89: 310 | O89: =E89*M89*N89 -> 0
C90: ※焼却炉は流動床炉、凝集剤には高分子凝集剤を使用していると仮定した。
B92: ○準好気性埋立構造の採用
C93: 準好気性埋立構造を採用することにより、嫌気性埋立構造を採用した場合と比べて削減される最終処分場から排出されるメタンの温室効果ガス排出量を削減効果とみなします。
C95: ▼入力値（最終処分量）
E96: 最終処分量 （湿重量）（t） | F96: 水分割合 （%） | G96: 最終処分量 （乾重量）（t） | K96: CH4排出係数 (tCH4/t) | L96: CH4地球温暖化係数 | O96: 削減効果 （tCO2）
C98: 最終処分する生分解性廃棄物 | D98: 下水汚泥 | F98: 70 | G98: =E98*(1-F98/100) -> 0 | K98: =0.1333-0.0667 -> 0.0666 | L98: 21 | O98: =G98*K98*L98 -> 0
D99: 製造業有機性汚泥 | F99: 67 | G99: =E99*(1-F99/100) -> 0 | K99: =0.15-0.075 -> 0.075 | L99: 21 | O99: =G99*K99*L99 -> 0
D100: 浄水汚泥 | F100: 70 | G100: =E100*(1-F100/100) -> 0 | K100: =0.025-0.0125 -> 0.0125 | L100: 21 | O100: 0
D101: し尿処理汚泥 | F101: 70 | G101: =E101*(1-F101/100) -> 0 | K101: =0.1333-0.0667 -> 0.0666 | L101: 21 | O101: 0
D102: その他（有機無機混合汚泥） | F102: 67 | G102: =E102*(1-F102/100) -> 0 | K102: =0.15-0.075 -> 0.075 | L102: 21 | O102: 0
D103: 紙くず | F103: 15 | G103: 0 | K103: =1.363-0.0682 -> 1.2948 | L103: 21 | O103: 0
D104: 木くず | F104: 45 | G104: 0 | K104: =0.1505-0.0753 -> 0.0752 | L104: 21 | O104: 0
D105: 繊維くず | F105: 15 | G105: 0 | K105: =0.1499-0.0749 -> 0.075 | L105: 21 | O105: 0
D106: 動植物性残渣 | F106: 75 | G106: 0 | K106: =0.1448-0.0724 -> 0.0724 | L106: 21 | O106: 0
D107: 動物系固形不要物 | F107: 75 | G107: 0 | K107: =0.1448-0.0724 -> 0.0724 | L107: 21 | O107: 0
D108: 動物のふん尿 | F108: 75 | G108: 0 | K108: =0.1333-0.0667 -> 0.0666 | L108: 21 | O108: 0
D109: 動物の死体 | F109: 75 | G109: 0 | K109: =0.1448-0.0724 -> 0.0724 | L109: 21 | O109: =G109*K109*L109 -> 0
C110: 合計 | O110: =SUM(O98:O109) -> 0
B112: ○最終処分場発生ガスの回収・焼却
C113: 最終処分場で発生ガスの回収・焼却を行うことにより、回収・焼却されたガス中のメタンの温室効果ガス排出量を削減効果とみなします。
C115: ▼入力値（回収・焼却量）
E116: 発生ガスの回収・焼却量（m3N） | F116: 発生ガス中 メタン濃度(%) | G116: 重量換算係数 （ｔ/m3N） | H116: メタンの 回収・焼却量（t） | L116: CH4地球温暖化係数 | O116: 削減効果 （tCO2）
C118: 処分場で発生するガスの回収・焼却処理 | F118: 15 | G118: 0.00071 | H118: =E118*F118/100*G118 -> 0 | L118: 21 | O118: =H118*L118 -> 0
B120: ○適正な最終処分場管理（法令等に基づく適正な覆土施工、浸出水排水管の水位管理・維持管理、ガス抜き管の延伸工事等）
C121: 適正な最終処分場管理（法令等に基づく適正な覆土施工 / 浸出水集排水管の水位管理・維持管理 / 計画的なガス抜き管の延伸工事、目詰・損傷に留意した埋立管理）を行う
C122: ことにより、適正な最終処分場管理が行われなかった場合から適正な最終処分場管理を行った場合に、削減される最終処分場から排出されるメタンの温室効果ガス排出量を
C123: 削減効果とみなします。
C125: ▼入力値（最終処分量）
E126: 最終処分量 （湿重量）（t） | F126: 水分割合 （%） | G126: 最終処分量 （乾重量）（t） | K126: CH4排出係数 (tCH4/t) | L126: CH4地球温暖化係数 | O126: 削減効果 （tCO2）
C128: 最終処分する生分解性廃棄物 | D128: 下水汚泥 | F128: 70 | G128: =E128*(1-F128/100) -> 0 | K128: =(133.3-66.7)/1000 -> 0.0666 | L128: 21 | O128: =G128*K128*L128 -> 0
D129: 製造業有機性汚泥 | F129: 67 | G129: =E129*(1-F129/100) -> 0 | K129: =(150-75)/1000 -> 0.075 | L129: 21 | O129: =G129*K129*L129 -> 0
D130: 浄水汚泥 | F130: 70 | G130: 0 | K130: =(25-12.5)/1000 -> 0.0125 | L130: 21 | O130: 0
D131: し尿処理汚泥 | F131: 70 | G131: 0 | K131: =(133.3-66.7)/1000 -> 0.0666 | L131: 21 | O131: 0
D132: その他（有機無機混合汚泥） | F132: 67 | G132: 0 | K132: =(150-75)/1000 -> 0.075 | L132: 21 | O132: 0
D133: 紙くず | F133: 15 | G133: 0 | K133: =(136.3-68.2)/1000 -> 0.0681 | L133: 21 | O133: 0
D134: 木くず | F134: 45 | G134: 0 | K134: =(150.5-75.3)/1000 -> 0.0752 | L134: 21 | O134: 0
D135: 繊維くず | F135: 15 | G135: 0 | K135: =(149.9-74.9)/1000 -> 0.075 | L135: 21 | O135: 0
D136: 動植物性残渣 | F136: 75 | G136: 0 | K136: =(144.8-72.4)/1000 -> 0.0724 | L136: 21 | O136: 0
D137: 動物系固形不要物 | F137: 75 | G137: 0 | K137: =(144.8-72.4)/1000 -> 0.0724 | L137: 21 | O137: 0
D138: 動物のふん尿 | F138: 75 | G138: 0 | K138: =(133.3-66.7)/1000 -> 0.0666 | L138: 21 | O138: 0
D139: 動物の死体 | F139: 75 | G139: 0 | K139: =(144.8-72.4)/1000 -> 0.0724 | L139: 21 | O139: =G139*K139*L139 -> 0
C140: 合計 | O140: =SUM(O128:O139) -> 0
C141: ※「浸出水集排水管の水位管理・維持管理」及び「計画的なガス抜き管の延伸工事、目詰・損傷に留意した埋立管理」については、管理が適正に行われた場合は、管理型処分場
C142: が準好気性に維持されるとして準好気性埋立の排出係数を適用し、適正な管理が行われなかった場合には嫌気性埋立の排出係数を適用した。
C143: ※「法令等に基づく適正な覆土施工」については、2006年IPCCガイドライン1に基づき酸化係数を設定して評価することができるが、我が国のインベントリでは酸化係数をもともと
C144: ゼロと扱っていることから、本試算でも酸化係数をゼロと扱い、メタン排出量算定に考慮しないこととした。
B146: ○生分解性廃棄物の埋立量削減（選別率の向上、選別排出の促進、直接最終処分の削減）
C147: 最終処分される生分解性廃棄物の量を削減することにより、削減された最終処分場から排出されるメタンの温室効果ガス排出量を削減効果とみなします。
C149: ▼入力値（最終処分量）
E150: 最終処分量（湿重量）（t） | G150: 水分割合 (%) | H150: 削減した最終処分量（乾重量）（t） | K150: CH4排出係数 (tCH4/t) | L150: CH4地球温暖化係数 | O150: 削減効果 （tCO2）
E151: 対策前 | F151: 対策後
C152: 最終処分する生分解性廃棄物 | D152: 下水汚泥 | G152: 70 | H152: =(E152-F152)*(1-G152/100) -> 0 | K152: 0.0667 | L152: 21 | O152: =H152*K152*L152 -> 0
D153: 製造業有機性汚泥 | G153: 67 | H153: =(E153-F153)*(1-G153/100) -> 0 | K153: 0.075 | L153: 21 | O153: =H153*K153*L153 -> 0
D154: 浄水汚泥 | G154: 70 | H154: 0 | K154: 0.0125 | L154: 21 | O154: 0
D155: し尿処理汚泥 | G155: 70 | H155: 0 | K155: 0.0667 | L155: 21 | O155: 0
D156: その他（有機無機混合汚泥） | G156: 67 | H156: 0 | K156: 0.075 | L156: 21 | O156: 0
D157: 紙くず | G157: 15 | H157: 0 | K157: 0.0682 | L157: 21 | O157: 0
D158: 木くず | G158: 45 | H158: 0 | K158: 0.0753 | L158: 21 | O158: 0
D159: 繊維くず | G159: 15 | H159: 0 | K159: 0.0749 | L159: 21 | O159: 0
D160: 動植物性残渣 | G160: 75 | H160: 0 | K160: 0.0724 | L160: 21 | O160: =H160*K160*L160 -> 0
D161: 動物系固形不要物 | G161: 75 | H161: 0 | K161: 0.0724 | L161: 21 | O161: 0
D162: 動物のふん尿 | G162: 75 | H162: 0 | K162: 0.0667 | L162: 21 | O162: 0
D163: 動物の死体 | G163: 75 | H163: 0 | K163: 0.0724 | L163: 21 | O163: 0
C164: 合計 | O164: =SUM(O152:O163) -> 0
B166: ○最終処分場周辺地及び処分場跡地の緑化
C167: 最終処分場周辺及び処分場跡地の緑化活動により、植林された樹木による二酸化炭素の吸収分に相当する温室効果ガス排出量を削減効果とみなします。
C169: ▼入力値（公園面積、面積あたりの高木本数）
E170: 公園・植林面積（ha） | F170: 面積あたり 高木本数（本/ha） | G170: 高木本数 （本） | H170: 吸収原単位 （tCO2/本/年） | O170: 削減効果 （tCO2）
C172: 最終処分場周辺地及び処分場跡地の緑化 | G172: =E172*F172 -> 0 | H172: 0.033 | O172: =G172*H172 -> 0
B174: ○収集運搬時の燃料使用量削減（アイドリングストップ、エコドライブ関連機器の導入、低公害型車両の導入等）
C175: 収集運搬時の燃料使用量削減の取組みにより、削減された燃料使用量に相当する温室効果ガス排出量を削減効果とみなします。
C176: 削減効果の試算は、対策前後の「燃料使用量」または「燃費」の２つ方法で行うことができます。
C178: ▼入力値（燃料使用量）
E179: 燃料使用量（固有単位） | G179: 削減した 燃料使用量 （固有単位） | J179: CO2排出係数 (tCO2/固有単位) | O179: 削減効果 （tCO2）
E180: 対策前 | F180: 対策後
C181: 収集運搬 車両燃料 | D181: ガソリン（kl） | G181: =IF(AND(E181>0,F181>0),E181-F181,"") ->  | J181: =0.0183*44/12*34.6 -> 2.32166 | O181: =IF(G181<>"",G181*J181,"") -> 
D182: 軽油（kl） | G182: =IF(AND(E182>0,F182>0),E182-F182,"") ->  | J182: =0.0187*44/12*37.7 -> 2.584963333 | O182: =IF(G182<>"",G182*J182,"") -> 
D183: ＬＰＧ（t） | G183: =IF(AND(E183>0,F183>0),E183-F183,"") ->  | J183: =0.0163*44/12*50.8 -> 3.036146667 | O183: =IF(G183<>"",G183*J183,"") -> 
D184: 天然ガス（CNG車燃料）（千m3） | G184: =IF(AND(E184>0,F184>0),E184-F184,"") ->  | J184: =0.0138*44/12*44.8 -> 2.26688 | O184: =IF(G184<>"",G184*J184,"") -> 
C185: 合計 | O185: =SUM(O181:O184) -> 0
C187: ▼入力値（台数、走行距離、燃費）
E188: 台数 | F188: 走行距離 （km/年/台) | G188: 燃費（km/l, km/m3） | I188: 削減した 燃料使用量 （固有単位） | J188: CO2排出係数 (tCO2/固有単位) | O188: 削減効果 （tCO2）
G189: 対策前 | H189: 対策後
C190: 収集運搬 車両燃料 | D190: ガソリン（kl） | I190: =IF(ISERROR(((E190*F190/G190)-(E190*F190/H190))/1000),"",((E190*F190/G190)-(E190*F190/H190))/1000) ->  | J190: =0.0183*44/12*34.6 -> 2.32166 | O190: =IF(ISERROR(I190*J190),0,I190*J190) -> 0
D191: 軽油（kl） | I191: =IF(ISERROR(((E191*F191/G191)-(E191*F191/H191))/1000),"",((E191*F191/G191)-(E191*F191/H191))/1000) ->  | J191: =0.0187*44/12*37.7 -> 2.584963333 | O191: =IF(ISERROR(I191*J191),0,I191*J191) -> 0
D192: ＬＰＧ（t） | I192: =IF(ISERROR(((E192*F192/G192)-(E192*F192/H192))/1000),"",((E192*F192/G192)-(E192*F192/H192))/1000) ->  | J192: =0.0163*44/12*50.8 -> 3.036146667 | O192: =IF(ISERROR(I192*J192),0,I192*J192) -> 0
D193: 天然ガス（CNG車燃料）（千m3） | I193: =IF(ISERROR(((E193*F193/G193)-(E193*F193/H193))/1000),"",((E193*F193/G193)-(E193*F193/H193))/1000) ->  | J193: =0.0138*44/12*44.8 -> 2.26688 | O193: =IF(ISERROR(I193*J193),0,I193*J193) -> 0
C194: 合計 | O194: =SUM(O190:O193) -> 0
B196: ○バイオマス燃料の使用
C197: バイオマス燃料の使用により、代替された燃料の使用量に相当する温室効果ガス排出量を削減効果とみなします。
C199: ▼対策効果を事前に試算する場合（ディーゼル・ガソリン使用量より計算）
E200: ディーゼル・ガソリン使用量（kl） | F200: バイオ成分割合 （%） | G200: バイオエタノール 混合率（%） | H200: バイオエタノール混合ガソリン 発熱量（MJ/l） | J200: CO2排出係数 (tCO2/kl) | O200: 削減効果 （tCO2）
C202: バイオディーゼル（BDF）の使用（軽油代替） | F202: 5 | J202: =0.0187*44/12*37.7 -> 2.584963333 | O202: =E202*(F202/100)*J202 -> 0
C203: バイオエタノール混合ガソリン（ETBE-7）の使用（ガソリン代替） | G203: 7 | H203: 34.1 | J203: =0.0183*44/12*34.6 -> 2.32166 | O203: =E203*(1-34.6/H203*(1-G203/100))*J203 -> 0
C204: バイオエタノール混合ガソリン（E3）の使用（ガソリン代替） | G204: 3 | H204: 34.2 | J204: =0.0183*44/12*34.6 -> 2.32166 | O204: =E204*(1-34.6/H204*(1-G204/100))*J204 -> 0
C205: 合計 | O205: =SUM(O202:O204) -> 0
C207: ▼対策効果を事後に試算する場合（バイオマス燃料使用量より計算）
E208: バイオマス燃料 使用量（kl） | F208: バイオ成分割合 （%） | G208: バイオエタノール 混合率（%） | H208: バイオエタノール混合ガソリン 発熱量（MJ/l） | J208: CO2排出係数 (tCO2/kl) | O208: 削減効果 （tCO2）
C210: バイオディーゼル（BDF）の使用（軽油代替） | F210: 5 | J210: =0.0187*44/12*37.7 -> 2.584963333 | O210: =E210*(F210/100)*J210 -> 0
C211: バイオエタノール混合ガソリン（ETBE-7）の使用（ガソリン代替） | G211: 7 | H211: 34.1 | J211: =0.0183*44/12*34.6 -> 2.32166 | O211: =E211*(H211/34.6-(1-G211/100))*J211 -> 0
C212: バイオエタノール混合ガソリン（E3）の使用（ガソリン代替） | G212: 3 | H212: 34.2 | J212: =0.0183*44/12*34.6 -> 2.32166 | O212: =E212*(H212/34.6-(1-G212/100))*J212 -> 0
C213: 合計 | O213: =SUM(O210:O212) -> 0
B215: ○省エネルギー行動の実践、省エネルギー機器への買い替え
C216: 省エネルギー行動の実践、省エネルギー機器への買い替えにより、削減されたエネルギー使用量に相当する温室効果ガス排出量を削減効果とみなします。
J217: 電気事業者 | L217: 電気のCO2排出係数
C218: ▼入力値（エネルギー使用量） | L218: 2024年度値を適用
E219: エネルギー使用量（固有単位） | G219: 削減した エネルギー使用量 （固有単位） | J219: CO2排出係数 (tCO2/固有単位) | K219: CH4排出係数 (tCH4/t) | L219: CH4地球温暖化係数 | M219: N2O排出係数 (tN2O/t) | N219: N2O地球温暖化係数 | O219: 削減効果 （tCO2）
E220: 対策前 | F220: 対策後
C221: エネルギー（電気・ガス・燃料） | D221: 電気（千kWh） | G221: =IF(AND(E221>0,F221>0),E221-F221,"") ->  | O221: =IF(G221<>"",G221*J221,"") -> 
D222: 都市ガス（千m3） | J222: =0.0506*44.8 -> 2.26688 | K222: =44.8*0.00000023 -> 1.0304e-05 | L222: 21 | M222: =44.8*0.00000017 -> 7.616e-06 | N222: 310
D223: 液化天然ガス（LNG）（千m3） | J223: =0.0495*54.6 -> 2.7027 | K223: =54.6*0.00000023 -> 1.2558e-05 | L223: 21 | M223: =54.6*0.00000017 -> 9.282e-06 | N223: 310
D224: 軽油（kl） | J224: =0.0686*37.7 -> 2.58622 | K224: =37.7*0.00000026 -> 9.802e-06 | L224: 21 | M224: =37.7*0.00000019 -> 7.163e-06 | N224: 310
D225: 灯油（kl） | J225: =0.0678*36.7 -> 2.48826 | K225: =36.7*0.00000026 -> 9.542e-06 | L225: 21 | M225: =36.7*0.00000019 -> 6.973e-06 | N225: 310
D226: A重油（kl） | J226: =0.0693*39.1 -> 2.70963 | K226: =39.1*0.00000026 -> 1.0166e-05 | L226: 21 | M226: =39.1*0.00000019 -> 7.429e-06 | N226: 310
D227: C重油（kl） | J227: =0.0715*41.9 -> 2.99585 | K227: =41.9*0.0000001 -> 4.19e-06 | L227: 21 | M227: =41.9*0.00000022 -> 9.218e-06 | N227: 310
D228: LPG（t） | J228: =0.0598*50.8 -> 3.03784 | K228: =50.8*0.00000023 -> 1.1684e-05 | L228: 21 | M228: =50.8*0.00000017 -> 8.636e-06 | N228: 310
D229: 石炭（t） | J229: =0.0906*25.7 -> 2.32842 | K229: =25.7*0.00000013 -> 3.341e-06 | L229: 21 | M229: =25.7*0.00000085 -> 2.1845e-05 | N229: 310
D230: コークス(t) | J230: =0.1079*29.4 -> 3.17226 | K230: =29.4*0.00000013 -> 3.822e-06 | L230: 21 | M230: =29.4*0.00000085 -> 2.499e-05 | N230: 310
D231: 廃油（t） | J231: 2.92 | K231: 1.2e-05 | L231: 21 | M231: 8.3e-06 | N231: 310
D232: 木くず（t） | K232: 0.0011 | L232: 21 | M232: 1.2e-05 | N232: 310
C233: 合計 | O233: =SUM(O221:O232) -> 0

Sheet 削減効果の閲覧
A3: 試算した削減効果の閲覧
B6: 削減効果の合計 | L6: =削減効果!Q5 -> 0 | S6: (tCO2) | W6: は、
B10: ○森林面積に換算すると、 | AT10: 森林面積
B12: 森林面積 | L12: =ROUND(L6*12/44/0.974,1) -> 0 | S12: (ha) | W12: の吸収量に相当します。 | BD12: ="＝ " &L12 & "ha" -> ＝ 0ha
B15: ※1ヘクタールの森林の炭素(C)吸収量を0.974(tC/ha)として試算。
B16: （出典：太陽光発電導入ガイドブック, 2000年改訂版, 新エネルギー・産業技術総合開発機構）
B18: それを東京ドームの個数に換算すると、 | AT18: 東京ドーム
B20: 東京ドーム | L20: =ROUND(L12*10000/46755,1) -> 0 | S20: (個) | W20: となります。 | BE20: ="× " &L20 & "個" -> × 0個
B23: ※東京ドームの建築面積を46,755(m2)として試算。（出典：東京ドームホームページ）
B26: ○電気使用量に換算すると、 | AT26: 平均的な家庭
B28: 平均的な家庭 | L28: =ROUND(L6/0.555/3.6,1) -> 0 | S28: (世帯) | W28: の電気使用量に相当します。 | BE28: ="＝ " &L28 & "世帯" -> ＝ 0世帯
B31: ※電気の二酸化炭素排出係数を0.555(tCO2/千kWh)、一世帯あたり年間電気使用量を3.6（千kWh）として試算。
B32: （出典：１世帯あたりの電力消費量の推移, 電気事業連合会）
B34: それを原油換算すると、 | AT34: ドラム缶
B36: ドラム缶 | L36: =ROUND(L6/0.555*0.252*1000/200,1) -> 0 | S36: (本) | W36: となります。 | BE36: ="× " &L36 & "本" -> × 0本
B39: ※省エネ法に基づき、電力換算係数を9.76MJ/kWh、原油換算係数を0.0258(l/MJ)、ドラム缶の容積を200(l)として試算。

Sheet 分野別GHG
T1: パラメータ | CU1: ※2008年度までの算定報告公表制度での、分解量ベースの算定方法
T2: 単位 | CU2: 参考１ 温室効果ガス排出量の算定式 | EA2: 参考１ 温室効果ガス排出量の算定式
A3: 分野別GHG排出量の算定 | T3: 液体 | U3: 気体 | V3: 固体 | W3: 電力 | X3: 熱利用
A4: 2024年度 | T4: （kl） | U4: （千㎥） | V4: （t） | W4: （千kWh） | X4: （千MJ）
T5: （ﾘｯﾄﾙ） | U5: （㎥） | V5: （kg） | W5: （kWh） | X5: （MJ）
T6: 年度
C7: 温室効果ガスである物質の区分 | K7: 温室効果ガス算定排出量 | T7: 1990 | U7: 1991 | V7: 1992 | W7: 1993 | X7: 1994 | Y7: 1995 | Z7: 1996 | AA7: 1997 | AB7: 1998 | AC7: 1999 | AD7: 2000 | AE7: 2001 | AF7: 2002 | AG7: 2003 | AH7: 2004 | AI7: 2005 | AJ7: 2006 | AK7: 2007 | AL7: 2008 | AM7: 2009 | AN7: 2010 | AO7: 2011 | AP7: 2012 | AQ7: 2013 | AR7: 2014 | AS7: 2015 | AT7: 2016 | AU7: 2017 | AV7: 2018 | AW7: 2019 | AX7: 2020
C8: １．エネルギーの使用に伴って発生する二酸化炭素 | L8: =ROUND(O31+O139-(AP128+AP129+AP132+AP133),2) -> 0 | M8: tCO2 | R8: 報告年度 | T8: 2024
C9: ２．エネルギーの使用に伴って発生する二酸化炭素以外の二酸化炭素 | L9: =ROUND(O58+(AP128+AP129+AP132+AP133),2) -> 0 | M9: tCO2 | R9: =T8 -> 2024
C10: ３．メタン | L10: =ROUND(P58+P86+P139,2) -> 0 | M10: tCO2 | R10: コピー元
C11: ４．一酸化二窒素 | L11: =ROUND(Q58+Q139,2) -> 0 | M11: tCO2 | R11: 2023
B14: ○収集運搬業における温室効果ガス排出量 | T14: ※活動量の入力に合わせて自動更新
B15: 収集運搬業における温室効果ガス排出量の算定結果です。※排出係数の変更、再算定が可能です。 | T15: 活動量の入力値 | V15: ⇒⇒⇒⇒⇒⇒⇒⇒⇒ | X15: 当該年度の活動量 | AA15: 算定用 | AD15: 算定式 | AH15: 有効桁数 | AL15: 四捨五入桁数 | AP15: 四捨五入処理 | AU15: 単位考慮
B17: 収集運搬業 | G17: 燃料使用量 | I17: 固有単位当りの 単位発熱量(GJ) | J17: CO2排出係数 （tCO2/GJ） | O17: 温室効果ガス排出量（tCO2） | T17: 燃料使用量 | V17: バイオ燃料のっ割合 | X17: 活動量 | AA17: 活動量 | AD17: CO2 | AE17: CH4 | AF17: N2O | AH17: CO2 | AI17: CH4 | AJ17: N2O | AL17: CO2 | AM17: CH4 | AN17: N2O | AP17: CO2 | AQ17: CH4 | AR17: N2O | AS17: 合計 | AU17: 換算係数
O18: CO2 | P18: CH4 | Q18: N2O | R18: 合計
C19: 収集運搬車両の燃料使用 | D19: 燃料法 | E19: ガソリン | I19: 34.6 | J19: 0.0671 | O19: =AP19 -> 0 | R19: =SUM(O19:Q19) -> 0 | U19: （kl） | X19: =IF(T19<>"",IF(U19="（ﾘｯﾄﾙ）",T19/1000,T19),"") ->  | Y19: =IF(U19<>"",IF(U19="（kl）",U19,IF(U19="（ﾘｯﾄﾙ）","（kl）","単位誤り")),"単位未入力") -> （kl） | AA19: =IF(G19<>"",G19,"") ->  | AB19: =IF(H19<>"",H19,"") ->  | AD19: =IF(ISERROR(AA19*J19*I19*AU19),0,AA19*J19*I19*AU19) -> 0 | AH19: 3 | AL19: 0 | AP19: =IF(ISERROR(ROUND(AD19,AL19)),"",ROUND(AD19,AL19)) -> 0 | AS19: =SUM(AP19:AR19) -> 0 | AU19: =IF(AB19="（kl）",1,IF(AB19="（ﾘｯﾄﾙ）",0.001,0)) -> 0
E20: 軽油 | I20: 37.7 | J20: 0.0686 | O20: 0 | R20: 0 | U20: （kl） | X20: =IF(T20<>"",IF(U20="（ﾘｯﾄﾙ）",T20/1000,T20),"") ->  | Y20: =IF(U20<>"",IF(U20="（kl）",U20,IF(U20="（ﾘｯﾄﾙ）","（kl）","単位誤り")),"単位未入力") -> （kl） | AD20: 0 | AH20: 3 | AL20: 0 | AP20: 0 | AS20: =SUM(AP20:AR20) -> 0 | AU20: =IF(AB20="（kl）",1,IF(AB20="（ﾘｯﾄﾙ）",0.001,0)) -> 0
E21: ＬＰＧ | I21: 50.8 | J21: 0.059 | O21: 0 | R21: 0 | U21: （t） | X21: =IF(T21<>"",IF(U21="（kg）",T21/1000,T21),"") ->  | Y21: =IF(U21<>"",IF(U21="（t）",U21,IF(U21="（kg）","（t）","単位誤り")),"単位未入力") -> （t） | AD21: 0 | AH21: 3 | AL21: 0 | AP21: 0 | AS21: 0 | AU21: =IF(AB21="（t）",1,IF(AB21="（kg）",0.001,0)) -> 0
E22: 天然ガス（CNG車燃料） | I22: 44.8 | J22: 0.0499 | O22: 0 | R22: 0 | U22: （千㎥） | X22: =IF(T22<>"",IF(U22="（㎥）",T22/1000,T22),"") ->  | Y22: =IF(U22<>"",IF(U22="（千㎥）",U22,IF(U22="（㎥）","（千㎥）","単位誤り")),"単位未入力") -> （千㎥） | AD22: 0 | AH22: 3 | AL22: 0 | AP22: 0 | AS22: 0 | AU22: =IF(AB22="（千㎥）",1,IF(AB22="（㎥）",0.001,0)) -> 0
E23: バイオエタノール混合 ガソリン（バイオ分除く） | I23: 34.6 | J23: 0.0671 | O23: 0 | R23: 0 | U23: （kl） | V23: 3 | X23: =IF(T23<>"",IF(U23="（ﾘｯﾄﾙ）",T23*(100-V23)/100/1000,T23*(100-V23)/100),"") ->  | Y23: =IF(U23<>"",IF(U23="（kl）",U23,IF(U23="（ﾘｯﾄﾙ）","（kl）","単位誤り")),"単位未入力") -> （kl） | AD23: 0 | AH23: 3 | AL23: 0 | AP23: 0 | AS23: 0 | AU23: =IF(AB23="（kl）",1,IF(AB23="（ﾘｯﾄﾙ）",0.001,0)) -> 0
E24: バイオディーゼル （バイオ分除く） | I24: 37.7 | J24: 0.0686 | O24: 0 | R24: 0 | U24: （kl） | V24: 5 | X24: =IF(T24<>"",IF(U24="（ﾘｯﾄﾙ）",T24*(100-V24)/100/1000,T24*(100-V24)/100),"") ->  | Y24: =IF(U24<>"",IF(U24="（kl）",U24,IF(U24="（ﾘｯﾄﾙ）","（kl）","単位誤り")),"単位未入力") -> （kl） | AD24: 0 | AH24: 3 | AL24: 0 | AP24: 0 | AS24: 0 | AU24: =IF(AB24="（kl）",1,IF(AB24="（ﾘｯﾄﾙ）",0.001,0)) -> 0
D25: 燃費法 | E25: ガソリン | I25: 34.6 | J25: 0.0671 | O25: 0 | R25: 0 | U25: （kl） | X25: =IF(T25<>"",IF(U25="（ﾘｯﾄﾙ）",T25/1000,T25),"") ->  | Y25: =IF(U25<>"",IF(U25="（kl）",U25,IF(U25="（ﾘｯﾄﾙ）","（kl）","単位誤り")),"単位未入力") -> （kl） | AD25: 0 | AH25: 3 | AL25: 0 | AP25: 0 | AS25: 0 | AU25: =IF(AB25="（kl）",1,IF(AB25="（ﾘｯﾄﾙ）",0.001,0)) -> 0
E26: 軽油 | I26: 37.7 | J26: 0.0686 | O26: 0 | R26: 0 | U26: （kl） | X26: =IF(T26<>"",IF(U26="（ﾘｯﾄﾙ）",T26/1000,T26),"") ->  | Y26: =IF(U26<>"",IF(U26="（kl）",U26,IF(U26="（ﾘｯﾄﾙ）","（kl）","単位誤り")),"単位未入力") -> （kl） | AD26: 0 | AH26: 3 | AL26: 0 | AP26: 0 | AS26: 0 | AU26: =IF(AB26="（kl）",1,IF(AB26="（ﾘｯﾄﾙ）",0.001,0)) -> 0
E27: ＬＰＧ | I27: 50.8 | J27: 0.059 | O27: 0 | R27: 0 | U27: （t） | X27: =IF(T27<>"",IF(U27="（kg）",T27/1000,T27),"") ->  | Y27: =IF(U27<>"",IF(U27="（t）",U27,IF(U27="（kg）","（t）","単位誤り")),"単位未入力") -> （t） | AD27: 0 | AH27: 3 | AL27: 0 | AP27: 0 | AS27: 0 | AU27: =IF(AB27="（t）",1,IF(AB27="（kg）",0.001,0)) -> 0
E28: 天然ガス（CNG車燃料） | I28: 44.8 | J28: 0.0499 | O28: 0 | R28: 0 | U28: （千㎥） | X28: =IF(T28<>"",IF(U28="（㎥）",T28/1000,T28),"") ->  | Y28: =IF(U28<>"",IF(U28="（千㎥）",U28,IF(U28="（㎥）","（千㎥）","単位誤り")),"単位未入力") -> （千㎥） | AD28: 0 | AH28: 3 | AL28: 0 | AP28: 0 | AS28: 0 | AU28: =IF(AB28="（千㎥）",1,IF(AB28="（㎥）",0.001,0)) -> 0
D29: 改良 ﾄﾝｷﾛ法 | E29: ガソリン | I29: 34.6 | J29: 0.0671 | O29: 0 | R29: 0 | U29: （kl） | X29: =IF(T29<>"",IF(U29="（ﾘｯﾄﾙ）",T29/1000,T29),"") ->  | Y29: =IF(U29<>"",IF(U29="（kl）",U29,IF(U29="（ﾘｯﾄﾙ）","（kl）","単位誤り")),"単位未入力") -> （kl） | AD29: 0 | AH29: 3 | AL29: 0 | AP29: 0 | AS29: 0 | AU29: =IF(AB29="（kl）",1,IF(AB29="（ﾘｯﾄﾙ）",0.001,0)) -> 0
E30: 軽油 | I30: 37.7 | J30: 0.0686 | O30: 0 | R30: 0 | U30: （kl） | X30: =IF(T30<>"",IF(U30="（ﾘｯﾄﾙ）",T30/1000,T30),"") ->  | Y30: =IF(U30<>"",IF(U30="（kl）",U30,IF(U30="（ﾘｯﾄﾙ）","（kl）","単位誤り")),"単位未入力") -> （kl） | AD30: 0 | AH30: 3 | AL30: 0 | AP30: 0 | AS30: 0 | AU30: =IF(AB30="（kl）",1,IF(AB30="（ﾘｯﾄﾙ）",0.001,0)) -> 0
D31: 温室効果ガス排出量合計 | O31: =SUM(O19:O30) -> 0 | P31: =SUM(P19:P30) -> 0 | Q31: =SUM(Q19:Q30) -> 0 | R31: 0
B33: ○中間処理業における温室効果ガス排出量
B34: 中間処理業における温室効果ガス排出量の算定結果です。※排出係数の変更、再算定が可能です。 | T34: 活動量入力値 | AH34: 有効桁数 | AP34: 四捨五入処理 | AU34: 単位考慮
B36: 中間処理業 | G36: 焼却量・溶融量 | J36: CO2排出係数 （tCO2/t） | K36: CH4排出係数 （tCH4/t） | L36: CH4地球 温暖化係数 | M36: N2O排出係数 （tN2O/t） | N36: N2O地球 温暖化係数 | O36: 温室効果ガス排出量（tCO2） | T36: 焼却量・溶融量 | V36: 廃プラスチック割合 | X36: 活動量 | AA36: 活動量 | AH36: CO2 | AI36: CH4 | AJ36: N2O | AP36: CO2 | AQ36: CH4 | AR36: N2O | AS36: 合計 | AU36: 換算係数
O37: CO2 | P37: CH4 | Q37: N2O | R37: 合計
C38: 産業廃棄物の焼却・溶融 | D38: 汚泥 | E38: 下水汚泥 | F38: 炉No1 | K38: 9.7e-06 | L38: 28 | M38: 0.000882 | N38: 265 | P38: =AQ38 -> 0 | Q38: =AR38 -> 0 | R38: =SUM(O38:Q38) -> 0 | U38: （t） | X38: =IF(T38<>"",T38,"") ->  | Y38: =IF(U38<>"",IF(U38="（t）",U38,IF(U38="（kg）",U38,"単位誤り")),"単位未入力") -> （t） | AA38: =IF(G38<>"",G38,"") ->  | AB38: =IF(H38<>"",H38,"") ->  | AE38: =IF(ISERROR(AA38*K38*L38*AU38),0,AA38*K38*L38*AU38) -> 0 | AF38: =IF(ISERROR(AA38*M38*N38*AU38),0,AA38*M38*N38*AU38) -> 0 | AI38: 2 | AJ38: 3 | AL38: 0 | AM38: 0 | AN38: 0 | AP38: =IF(ISERROR(ROUND(AD38,AL38)),"",ROUND(AD38,AL38)) -> 0 | AQ38: =IF(ISERROR(ROUND(AE38,AM38)),"",ROUND(AE38,AM38)) -> 0 | AR38: =IF(ISERROR(ROUND(AF38,AN38)),"",ROUND(AF38,AN38)) -> 0 | AS38: =SUM(AP38:AR38) -> 0 | AU38: =IF(AB38="（t）",1,IF(AB38="（kg）",0.001,0)) -> 0
F39: 炉No2 | K39: 9.7e-06 | L39: 28 | M39: 0.000882 | N39: 265 | P39: 0 | Q39: 0 | R39: 0 | U39: （t） | X39: =IF(T39<>"",T39,"") ->  | Y39: （t） | AE39: 0 | AF39: 0 | AI39: 2 | AJ39: 3 | AL39: 0 | AM39: 0 | AN39: 0 | AP39: =IF(ISERROR(ROUND(AD39,AL39)),"",ROUND(AD39,AL39)) -> 0 | AQ39: 0 | AR39: 0 | AS39: =SUM(AP39:AR39) -> 0 | AU39: =IF(AB39="（t）",1,IF(AB39="（kg）",0.001,0)) -> 0
F40: 炉No3 | K40: 9.7e-06 | L40: 28 | M40: 0.000882 | N40: 265 | P40: 0 | Q40: 0 | R40: 0 | U40: （t） | Y40: （t） | AE40: 0 | AF40: 0 | AI40: 2 | AJ40: 3 | AL40: 0 | AM40: 0 | AN40: 0 | AP40: 0 | AQ40: 0 | AR40: 0 | AS40: 0 | AU40: 0
E41: 下水汚泥以外 | K41: 9.7e-06 | L41: 28 | M41: 0.00045 | N41: 265 | P41: 0 | Q41: 0 | R41: 0 | U41: （t） | Y41: （t） | AE41: 0 | AF41: 0 | AI41: 2 | AJ41: 2 | AL41: 0 | AM41: 0 | AN41: 0 | AP41: 0 | AQ41: 0 | AR41: 0 | AS41: 0 | AU41: 0
D42: 廃油 | E42: 燃料系廃油、潤滑油系廃油、廃溶剤 | J42: 2.92 | K42: 5.6e-07 | L42: 28 | M42: 9.8e-06 | N42: 265 | O42: =AP42 -> 0 | P42: 0 | Q42: 0 | R42: 0 | U42: （t） | Y42: （t） | AD42: =IF(ISERROR(AA42*J42*AU42),0,AA42*J42*AU42) -> 0 | AE42: 0 | AF42: 0 | AH42: 3 | AI42: 2 | AJ42: 2 | AL42: 0 | AM42: 0 | AN42: 0 | AP42: 0 | AQ42: 0 | AR42: 0 | AS42: 0 | AU42: 0
E43: 動植物性廃油 | K43: 5.6e-07 | L43: 28 | M43: 9.8e-06 | N43: 265 | P43: 0 | Q43: 0 | R43: 0 | U43: （t） | Y43: （t） | AD43: =IF(ISERROR(AA43*J43*AU43),0,AA43*J43*AU43) -> 0 | AE43: 0 | AF43: 0 | AI43: 2 | AJ43: 2 | AL43: 0 | AM43: 0 | AN43: 0 | AP43: 0 | AQ43: 0 | AR43: 0 | AS43: 0 | AU43: 0
D44: 廃ﾌﾟﾗｽﾁｯｸ類 | E44: 廃ﾌﾟﾗｽﾁｯｸ類、合成ゴムくず、合成繊維 | J44: 2.55 | K44: 0.00036 | L44: 28 | M44: 0.00017 | N44: 265 | O44: =AP44 -> 0 | P44: 0 | Q44: 0 | R44: 0 | U44: （t） | Y44: （t） | AD44: =IF(ISERROR(AA44*J44*AU44),0,AA44*J44*AU44) -> 0 | AE44: 0 | AF44: 0 | AH44: 3 | AI44: 2 | AJ44: 2 | AL44: 0 | AM44: 0 | AN44: 0 | AP44: 0 | AQ44: 0 | AR44: 0 | AS44: 0 | AU44: 0
E45: 廃タイヤ | J45: 1.72 | K45: 0.00025 | L45: 28 | M45: 0.00017 | N45: 265 | O45: =AP45 -> 0 | P45: 0 | Q45: 0 | R45: 0 | U45: （t） | V45: 5 | Y45: （t） | AD45: =IF(ISERROR(AA45*J45*AU45),0,AA45*J45*AU45) -> 0 | AE45: 0 | AF45: 0 | AH45: 3 | AI45: 2 | AJ45: 2 | AL45: 0 | AM45: 0 | AN45: 0 | AP45: 0 | AQ45: 0 | AR45: 0 | AS45: 0 | AU45: 0
D46: 紙くず | M46: 1e-05 | N46: 265 | Q46: 0 | R46: 0 | U46: （t） | Y46: （t） | AE46: 0 | AF46: 0 | AI46: 2 | AJ46: 2 | AL46: 0 | AM46: 0 | AN46: 0 | AP46: 0 | AQ46: 0 | AR46: 0 | AS46: 0 | AU46: 0
D47: 木くず | M47: 1e-05 | N47: 265 | Q47: 0 | R47: 0 | U47: （t） | Y47: （t） | AE47: 0 | AF47: 0 | AI47: 2 | AJ47: 2 | AL47: 0 | AM47: 0 | AN47: 0 | AP47: 0 | AQ47: 0 | AR47: 0 | AS47: 0 | AU47: 0
D48: 繊維くず | M48: 1e-05 | N48: 265 | Q48: 0 | R48: 0 | U48: （t） | Y48: （t） | AE48: 0 | AF48: 0 | AI48: 2 | AJ48: 2 | AL48: 0 | AM48: 0 | AN48: 0 | AP48: 0 | AQ48: 0 | AR48: 0 | AS48: 0 | AU48: 0
D49: 動植物性残渣 | M49: 1e-05 | N49: 265 | Q49: 0 | R49: 0 | U49: （t） | Y49: （t） | AE49: 0 | AF49: 0 | AI49: 2 | AJ49: 2 | AL49: 0 | AM49: 0 | AN49: 0 | AP49: 0 | AQ49: 0 | AR49: 0 | AS49: 0 | AU49: 0
D50: 動物系固形不要物 | M50: 1e-05 | N50: 265 | Q50: 0 | R50: 0 | U50: （t） | Y50: （t） | AE50: 0 | AF50: 0 | AI50: 2 | AJ50: 2 | AL50: 0 | AM50: 0 | AN50: 0 | AP50: 0 | AQ50: 0 | AR50: 0 | AS50: 0 | AU50: 0
D51: 動物のふん尿 | M51: 1e-05 | N51: 265 | Q51: 0 | R51: 0 | U51: （t） | Y51: （t） | AE51: 0 | AF51: 0 | AI51: 2 | AJ51: 2 | AL51: 0 | AM51: 0 | AN51: 0 | AP51: 0 | AQ51: 0 | AR51: 0 | AS51: 0 | AU51: 0
D52: 動物の死体 | M52: 1e-05 | N52: 265 | Q52: 0 | R52: 0 | U52: （t） | Y52: （t） | AE52: 0 | AF52: 0 | AI52: 2 | AJ52: 2 | AL52: 0 | AM52: 0 | AN52: 0 | AP52: 0 | AQ52: 0 | AR52: 0 | AS52: 0 | AU52: 0
D53: 特別管理産業廃棄物の廃油 | J53: 2.92 | K53: 5.6e-07 | L53: 28 | M53: 9.8e-06 | N53: 265 | O53: =AP53 -> 0 | P53: 0 | Q53: 0 | R53: 0 | U53: （t） | X53: =IF(T53<>"",T53,"") ->  | Y53: （t） | AD53: =IF(ISERROR(AA53*J53*AU53),0,AA53*J53*AU53) -> 0 | AE53: 0 | AF53: 0 | AH53: 3 | AI53: 2 | AJ53: 2 | AL53: 0 | AM53: 0 | AN53: 0 | AP53: 0 | AQ53: 0 | AR53: 0 | AS53: 0 | AU53: 0
D54: 感染性 廃棄物 | E54: うち、廃プラスチック | J54: 2.55 | K54: 0.00036 | L54: 28 | M54: 0.00017 | N54: 265 | O54: =AP54 -> 0 | P54: 0 | Q54: 0 | R54: 0 | U54: （t） | V54: 42.6 | X54: =IF(T54<>"",T54*(V54/100),"") ->  | Y54: （t） | AD54: =IF(ISERROR(AA54*J54*AU54),0,AA54*J54*AU54) -> 0 | AE54: 0 | AF54: 0 | AH54: 3 | AI54: 2 | AJ54: 2 | AL54: 0 | AM54: 0 | AN54: 0 | AP54: 0 | AQ54: 0 | AR54: 0 | AS54: 0 | AU54: =IF(AB54="（t）",1,IF(AB54="（kg）",0.001,0)) -> 0
E55: 廃プラスチック以外 の廃棄物 | M55: 1e-05 | N55: 265 | Q55: 0 | R55: 0 | U55: （t） | X55: =IF(T54<>"",T54*(1-V54/100),"") ->  | Y55: =Y54 -> （t） | AE55: 0 | AF55: 0 | AI55: 2 | AJ55: 2 | AL55: 0 | AM55: 0 | AN55: 0 | AP55: 0 | AQ55: 0 | AR55: 0 | AS55: 0 | AU55: =AU54 -> 0
D56: その他 混合 | E56: うち、廃プラスチック | J56: 2.55 | K56: 0.00036 | L56: 28 | M56: 0.00017 | N56: 265 | O56: =AP56 -> 0 | P56: 0 | Q56: 0 | R56: 0 | X56: =IF(T55<>"",T55*(V55/100),"") ->  | Y56: =IF(U55<>"",IF(U55="（t）",U55,IF(U55="（kg）",U55,"単位誤り")),"単位未入力") -> （t） | AD56: =IF(ISERROR(AA56*J56*AU56),0,AA56*J56*AU56) -> 0 | AE56: 0 | AF56: 0 | AH56: 3 | AI56: 2 | AJ56: 2 | AL56: 0 | AM56: 0 | AN56: 0 | AP56: 0 | AQ56: 0 | AR56: 0 | AS56: 0 | AU56: =IF(AB56="（t）",1,IF(AB56="（kg）",0.001,0)) -> 0
E57: 廃プラスチック以外 の廃棄物 | M57: 1e-05 | N57: 265 | Q57: 0 | R57: 0 | X57: =IF(T55<>"",T55*(1-V55/100),"") ->  | Y57: =Y56 -> （t） | AE57: 0 | AF57: 0 | AI57: 2 | AJ57: 2 | AL57: 0 | AM57: 0 | AN57: 0 | AP57: 0 | AQ57: 0 | AR57: 0 | AS57: 0 | AU57: =AU56 -> 0
D58: 温室効果ガス排出量合計 | O58: =SUM(O38:O57) -> 0 | P58: =SUM(P38:P57) -> 0 | Q58: =SUM(Q38:Q57) -> 0 | R58: 0
B59: 中間処理業 | C59: -- 温室効果ガス削減量 -- | T59: 活動量入力値 | AH59: 有効桁数 | AP59: 四捨五入処理 | AU59: 有効桁数
G61: 発電・熱利用量 | J61: CO2排出係数 （tCO2/千kWh, 千MJ） | O61: 温室効果ガス削減量 | T61: 発電・熱利用量 | X61: 活動量 | AA61: 活動量 | AH61: CO2 | AI61: CH4 | AJ61: N2O | AP61: CO2 | AQ61: CH4 | AR61: N2O | AS61: 合計 | AU61: CO2
O62: CO2 | P62: CH4 | Q62: N2O | R62: 合計
C63: 発電・熱利用 | D63: 廃棄物発電 | O63: =AP63 -> 0 | P63: 0 | Q63: 0 | R63: =SUM(O63:Q63) -> 0 | U63: （千kWh） | X63: =IF(T63<>"",T63,"") ->  | Y63: =IF(U63<>"",U63,"") -> （千kWh） | AA63: =IF(G63<>"",G63,"") ->  | AB63: =IF(H63<>"",H63,"") ->  | AD63: =IF(ISERROR(AA63*J63*AU63),0,AA63*J63*AU63) -> 0 | AH63: 3 | AL63: 0 | AP63: =IF(ISERROR(ROUND(AD63,AL63)),"",ROUND(AD63,AL63)) -> 0 | AQ63: 0 | AR63: 0 | AS63: =SUM(AP63:AR63) -> 0 | AU63: =IF(AB63="（千kWh）",1,0.001) -> 0.001
D64: 廃棄物熱利用 | O64: 0 | P64: 0 | Q64: 0 | R64: =SUM(O64:Q64) -> 0 | U64: （千MJ） | X64: =IF(T64<>"",T64,"") ->  | Y64: =IF(U64<>"",U64,"") -> （千MJ） | AA64: =IF(G64<>"",G64,"") ->  | AB64: =IF(H64<>"",H64,"") ->  | AD64: =IF(ISERROR(AA64*J64*AU64),0,AA64*J64*AU64) -> 0 | AH64: 3 | AL64: 0 | AP64: 0 | AQ64: 0 | AR64: 0 | AS64: =SUM(AP64:AR64) -> 0 | AU64: =IF(AB64="（千MJ）",1,0.001) -> 0.001
D65: 温室効果ガス削減量合計 | O65: =SUM(O63:O64) -> 0 | P65: =SUM(P63:P64) -> 0 | Q65: =SUM(Q63:Q64) -> 0 | R65: =SUM(O65:Q65) -> 0
D66: 温室効果ガス排出量合計 | O66: =O58-O65 -> 0 | P66: =P58-P65 -> 0 | Q66: =Q58-Q65 -> 0 | R66: =SUM(O66:Q66) -> 0
BO67: ※2008年度までの算定報告公表制度での、分解量ベースの算定方法
B68: ○最終処分業における温室効果ガス排出量 | AW68: 最終処分場の埋立分解量の算定 | BO68: 参考２ 各年度の分解量内訳 | CE68: 1 | CF68: 2 | CG68: 3 | CH68: 4 | CI68: 5 | CJ68: 6 | CK68: 7 | CL68: 8 | CM68: 9 | CN68: 10 | CO68: 11 | CP68: 12 | CQ68: 13 | CR68: 14 | CS68: 15
B69: 最終処分業における温室効果ガス排出量の算定結果です。※排出係数の変更、再算定が可能です。 | T69: 活動量入力値 | X69: 当該年度 | AH69: 有効桁数 | AP69: 四捨五入処理 | AU69: 単位考慮 | AW69: 埋立量 | BM69: 分解期間 | BO69: 各年度の最終処分量から算定した分解量 | CE69: 分解量
B71: 最終処分業 | G71: 報告年度における 廃棄物の埋立処分量 | K71: CH4排出係数 （tCH4/t） | L71: CH4地球 温暖化係数 | O71: 温室効果ガス排出量（tCO2） | T71: 最終処分量 （乾燥ベース） | V71: 水分割合 | W71: 有機成分の割合 | X71: 活動量 | AA71: 活動量 | AH71: CO2 | AI71: CH4 | AJ71: N2O | AP71: CO2 | AQ71: CH4 | AR71: N2O | AS71: 合計 | AU71: 換算係数 | AW71: 2006 年度 | AX71: 2007 年度 | AY71: 2008 年度 | AZ71: 2009 年度 | BA71: 2010 年度 | BB71: 2011 年度 | BC71: 2012 年度 | BD71: 2013 年度 | BE71: 2014 年度 | BF71: 2015 年度 | BG71: 2016 年度 | BH71: 2017 年度 | BI71: 2018 年度 | BJ71: 2019 年度 | BK71: 2020 年度 | BM71: 分解期間 | BO71: 各年度の分解量(単位：t) | CE71: 2006 年度 | CF71: 2007 年度 | CG71: 2008 年度 | CH71: 2009 年度 | CI71: 2010 年度 | CJ71: 2011 年度 | CK71: 2012 年度 | CL71: 2013 年度 | CM71: 2014 年度 | CN71: 2015 年度 | CO71: 2016 年度 | CP71: 2017 年度 | CQ71: 2018 年度 | CR71: 2019 年度 | CS71: 2020 年度
O72: CO2 | P72: CH4 | Q72: N2O | R72: 合計 | BO72: 2006年度 | BP72: 2007年度 | BQ72: 2008年度 | BR72: 2009年度 | BS72: 2010年度 | BT72: 2011年度 | BU72: 2012年度 | BV72: 2013年度 | BW72: 2014年度 | BX72: 2015年度 | BY72: 2016年度 | BZ72: 2017年度 | CA72: 2018年度 | CB72: 2019年度 | CC72: 2020年度
C73: 生分解性廃棄物の最終処分 | D73: 有機性汚泥 | E73: 下水汚泥 | K73: 0.133 | L73: 28 | P73: =AQ73 -> 0 | R73: =SUM(O73:Q73) -> 0 | U73: （t） | V73: 70 | X73: =IF(T73<>"",T73*(1-V73/100),"") ->  | Y73: =IF(U73<>"",IF(U73="（t）",U73,IF(U73="（kg）",U73,"単位誤り")),"単位未入力") -> （t） | AA73: =IF(G73<>"",G73,"") ->  | AB73: =IF(H73<>"",H73,"") ->  | AE73: =IF(ISERROR(AA73*K73*L73*AU73),0,AA73*K73*L73*AU73) -> 0 | AI73: 3 | AM73: 0 | AP73: =IF(ISERROR(ROUND(AD73,AL73)),"",ROUND(AD73,AL73)) -> 0 | AQ73: =IF(ISERROR(ROUND(AE73,AM73)),"",ROUND(AE73,AM73)) -> 0 | AR73: =IF(ISERROR(ROUND(AF73,AN73)),"",ROUND(AF73,AN73)) -> 0 | AS73: =SUM(AP73:AR73) -> 0 | AU73: =IF(AB73="（t）",1,IF(AB73="（kg）",0.001,0)) -> 0 | AW73: 0 | AX73: 0 | AY73: 30 | AZ73: 0 | BA73: 0 | BB73: 0 | BC73: 0 | BD73: 0 | BE73: 0 | BF73: 0 | BG73: 0 | BH73: 0 | BI73: 0 | BJ73: 0 | BK73: 0 | BM73: 11 | BO73: =AW73/$BM73 -> 0 | BP73: =AX73/$BM73 -> 0 | BQ73: =AY73/$BM73 -> 2.727272727 | BR73: =AZ73/$BM73 -> 0 | BS73: =BA73/$BM73 -> 0 | BT73: =BB73/$BM73 -> 0 | BU73: =BC73/$BM73 -> 0 | BV73: =BD73/$BM73 -> 0 | BW73: =BE73/$BM73 -> 0 | BX73: =BF73/$BM73 -> 0 | BY73: =BG73/$BM73 -> 0 | BZ73: =BH73/$BM73 -> 0 | CA73: =BI73/$BM73 -> 0 | CB73: =BJ73/$BM73 -> 0 | CC73: =BK73/$BM73 -> 0 | CE73: =ROUND(SUM(BO73),8) -> 0 | CF73: =ROUND(SUM(BO73:BP73),8) -> 0 | CG73: =ROUND(SUM(BO73:BQ73),8) -> 2.72727273 | CH73: =ROUND(SUM(BO73:BR73),8) -> 2.72727273 | CI73: =ROUND(SUM(BO73:BS73),8) -> 2.72727273 | CJ73: =ROUND(SUM(BO73:BT73),8) -> 2.72727273 | CK73: =ROUND(SUM(BO73:BU73),8) -> 2.72727273 | CL73: =ROUND(SUM(BO73:BV73),8) -> 2.72727273 | CM73: =ROUND(SUM(BO73:BW73),8) -> 2.72727273 | CN73: =ROUND(SUM(BO73:BX73),8) -> 2.72727273 | CO73: =ROUND(SUM(BO73:BY73),8) -> 2.72727273 | CP73: 2.72727273 | CQ73: 2.72727273 | CR73: 0 | CS73: 0
E74: 製造業有機性汚泥 | K74: 0.15 | L74: 28 | P74: 0 | R74: 0 | U74: （t） | V74: 67 | X74: =IF(T74<>"",T74*(1-V74/100),"") ->  | Y74: （t） | AA74: =IF(G74<>"",G74,"") ->  | AE74: 0 | AI74: 3 | AM74: 0 | AP74: =IF(ISERROR(ROUND(AD74,AL74)),"",ROUND(AD74,AL74)) -> 0 | AQ74: 0 | AR74: 0 | AS74: =SUM(AP74:AR74) -> 0 | AU74: =IF(AB74="（t）",1,IF(AB74="（kg）",0.001,0)) -> 0 | AW74: 0 | AX74: 0 | AY74: 33 | AZ74: 0 | BA74: 0 | BB74: 0 | BC74: 0 | BD74: 0 | BE74: 0 | BF74: 0 | BG74: 0 | BH74: 0 | BI74: 0 | BJ74: 0 | BK74: 0 | BM74: 11 | BO74: =AW74/$BM74 -> 0 | BP74: 0 | BQ74: 3 | BR74: 0 | BS74: 0 | BT74: 0 | BU74: 0 | BV74: 0 | BW74: 0 | BX74: 0 | BY74: 0 | BZ74: 0 | CA74: 0 | CB74: 0 | CC74: 0 | CE74: =ROUND(SUM(BO74),8) -> 0 | CF74: =ROUND(SUM(BO74:BP74),8) -> 0 | CG74: =ROUND(SUM(BO74:BQ74),8) -> 3 | CH74: =ROUND(SUM(BO74:BR74),8) -> 3 | CI74: =ROUND(SUM(BO74:BS74),8) -> 3 | CJ74: =ROUND(SUM(BO74:BT74),8) -> 3 | CK74: =ROUND(SUM(BO74:BU74),8) -> 3 | CL74: =ROUND(SUM(BO74:BV74),8) -> 3 | CM74: =ROUND(SUM(BO74:BW74),8) -> 3 | CN74: =ROUND(SUM(BO74:BX74),8) -> 3 | CO74: 3 | CP74: 3 | CQ74: 3 | CR74: 0 | CS74: 0
E75: 浄水汚泥 | K75: 0.025 | L75: 28 | P75: 0 | R75: 0 | U75: （t） | V75: 70 | Y75: （t） | AE75: 0 | AI75: 3 | AM75: 0 | AP75: 0 | AQ75: 0 | AR75: 0 | AS75: 0 | AU75: 0 | AW75: 0 | AX75: 0 | AY75: 30 | AZ75: 0 | BA75: 0 | BB75: 0 | BC75: 0 | BD75: 0 | BE75: 0 | BF75: 0 | BG75: 0 | BH75: 0 | BI75: 0 | BJ75: 0 | BK75: 0 | BM75: 11 | BO75: 0 | BP75: 0 | BQ75: 2.727272727 | BR75: 0 | BS75: 0 | BT75: 0 | BU75: 0 | BV75: 0 | BW75: 0 | BX75: 0 | BY75: 0 | BZ75: 0 | CA75: 0 | CB75: 0 | CC75: 0 | CE75: 0 | CF75: 0 | CG75: 2.72727273 | CH75: 2.72727273 | CI75: 2.72727273 | CJ75: 2.72727273 | CK75: 2.72727273 | CL75: 2.72727273 | CM75: 2.72727273 | CN75: 2.72727273 | CO75: 2.72727273 | CP75: 2.72727273 | CQ75: 2.72727273 | CR75: 0 | CS75: 0
E76: し尿処理汚泥 | K76: 0.133 | L76: 28 | P76: 0 | R76: 0 | U76: （t） | V76: 70 | Y76: （t） | AE76: 0 | AI76: 3 | AM76: 0 | AP76: 0 | AQ76: 0 | AR76: 0 | AS76: 0 | AU76: 0 | AW76: 0 | AX76: 0 | AY76: 30 | AZ76: 0 | BA76: 0 | BB76: 0 | BC76: 0 | BD76: 0 | BE76: 0 | BF76: 0 | BG76: 0 | BH76: 0 | BI76: 0 | BJ76: 0 | BK76: 0 | BM76: 11 | BO76: 0 | BP76: 0 | BQ76: 2.727272727 | BR76: 0 | BS76: 0 | BT76: 0 | BU76: 0 | BV76: 0 | BW76: 0 | BX76: 0 | BY76: 0 | BZ76: 0 | CA76: 0 | CB76: 0 | CC76: 0 | CE76: 0 | CF76: 0 | CG76: 2.72727273 | CH76: 2.72727273 | CI76: 2.72727273 | CJ76: 2.72727273 | CK76: 2.72727273 | CL76: 2.72727273 | CM76: 2.72727273 | CN76: 2.72727273 | CO76: 2.72727273 | CP76: 2.72727273 | CQ76: 2.72727273 | CR76: 0 | CS76: 0
E77: その他（有機無機混合汚泥） | K77: 0.15 | L77: 28 | P77: 0 | R77: 0 | U77: （t） | V77: 67 | W77: 50 | X77: =IF(T77<>"",T77*(1-V77/100)*W77/100,"") ->  | Y77: （t） | AE77: 0 | AI77: 3 | AM77: 0 | AP77: 0 | AQ77: 0 | AR77: 0 | AS77: 0 | AU77: 0 | AW77: 0 | AX77: 0 | AY77: 16.5 | AZ77: 0 | BA77: 0 | BB77: 0 | BC77: 0 | BD77: 0 | BE77: 0 | BF77: 0 | BG77: 0 | BH77: 0 | BI77: 0 | BJ77: 0 | BK77: 0 | BM77: 11 | BO77: 0 | BP77: 0 | BQ77: 1.5 | BR77: 0 | BS77: 0 | BT77: 0 | BU77: 0 | BV77: 0 | BW77: 0 | BX77: 0 | BY77: 0 | BZ77: 0 | CA77: 0 | CB77: 0 | CC77: 0 | CE77: 0 | CF77: 0 | CG77: 1.5 | CH77: 1.5 | CI77: 1.5 | CJ77: 1.5 | CK77: 1.5 | CL77: 1.5 | CM77: 1.5 | CN77: 1.5 | CO77: 1.5 | CP77: 1.5 | CQ77: 1.5 | CR77: 0 | CS77: 0
D78: 紙くず | K78: 0.136 | L78: 28 | P78: 0 | R78: 0 | U78: （t） | V78: 15 | Y78: （t） | AE78: 0 | AI78: 3 | AM78: 0 | AP78: 0 | AQ78: 0 | AR78: 0 | AS78: 0 | AU78: =IF(AB78="（t）",1,IF(AB78="（kg）",0.001,0)) -> 0 | AW78: 0 | AX78: 0 | AY78: 85 | AZ78: 0 | BA78: 0 | BB78: 0 | BC78: 0 | BD78: 0 | BE78: 0 | BF78: 0 | BG78: 0 | BH78: 0 | BI78: 0 | BJ78: 0 | BK78: 0 | BM78: 21 | BO78: 0 | BP78: 0 | BQ78: 4.047619048 | BR78: 0 | BS78: 0 | BT78: 0 | BU78: 0 | BV78: 0 | BW78: 0 | BX78: 0 | BY78: 0 | BZ78: 0 | CA78: 0 | CB78: 0 | CC78: 0 | CE78: 0 | CF78: 0 | CG78: 4.04761905 | CH78: 4.04761905 | CI78: 4.04761905 | CJ78: 4.04761905 | CK78: 4.04761905 | CL78: 4.04761905 | CM78: 4.04761905 | CN78: 4.04761905 | CO78: =ROUND(SUM(BO78:BY78),8) -> 4.04761905 | CP78: =ROUND(SUM(BO78:BZ78),8) -> 4.04761905 | CQ78: =ROUND(SUM(BO78:CA78),8) -> 4.04761905 | CR78: =ROUND(SUM(BO78:CB78),8) -> 4.04761905 | CS78: =ROUND(SUM(BO78:CC78),8) -> 4.04761905
D79: 木くず | K79: 0.151 | L79: 28 | P79: 0 | R79: 0 | U79: （t） | V79: 45 | Y79: （t） | AE79: 0 | AI79: 3 | AM79: 0 | AP79: 0 | AQ79: 0 | AR79: 0 | AS79: 0 | AU79: 0 | AW79: 0 | AX79: 0 | AY79: 55 | AZ79: 0 | BA79: 0 | BB79: 0 | BC79: 0 | BD79: 0 | BE79: 0 | BF79: 0 | BG79: 0 | BH79: 0 | BI79: 0 | BJ79: 0 | BK79: 0 | BM79: 103 | BO79: 0 | BP79: 0 | BQ79: 0.5339805825 | BR79: 0 | BS79: 0 | BT79: 0 | BU79: 0 | BV79: 0 | BW79: 0 | BX79: 0 | BY79: 0 | BZ79: 0 | CA79: 0 | CB79: 0 | CC79: 0 | CE79: 0 | CF79: 0 | CG79: 0.53398058 | CH79: 0.53398058 | CI79: 0.53398058 | CJ79: 0.53398058 | CK79: 0.53398058 | CL79: 0.53398058 | CM79: 0.53398058 | CN79: 0.53398058 | CO79: =ROUND(SUM(BO79:BY79),8) -> 0.53398058 | CP79: =ROUND(SUM(BO79:BZ79),8) -> 0.53398058 | CQ79: =ROUND(SUM(BO79:CA79),8) -> 0.53398058 | CR79: =ROUND(SUM(BO79:CB79),8) -> 0.53398058 | CS79: =ROUND(SUM(BO79:CC79),8) -> 0.53398058
D80: 繊維くず | K80: 0.15 | L80: 28 | P80: 0 | R80: 0 | U80: （t） | V80: 15 | Y80: （t） | AE80: 0 | AI80: 3 | AM80: 0 | AP80: 0 | AQ80: 0 | AR80: 0 | AS80: 0 | AU80: 0 | AW80: 0 | AX80: 0 | AY80: 85 | AZ80: 0 | BA80: 0 | BB80: 0 | BC80: 0 | BD80: 0 | BE80: 0 | BF80: 0 | BG80: 0 | BH80: 0 | BI80: 0 | BJ80: 0 | BK80: 0 | BM80: 21 | BO80: 0 | BP80: 0 | BQ80: 4.047619048 | BR80: 0 | BS80: 0 | BT80: 0 | BU80: 0 | BV80: 0 | BW80: 0 | BX80: 0 | BY80: 0 | BZ80: 0 | CA80: 0 | CB80: 0 | CC80: 0 | CE80: 0 | CF80: 0 | CG80: 4.04761905 | CH80: 4.04761905 | CI80: 4.04761905 | CJ80: 4.04761905 | CK80: 4.04761905 | CL80: 4.04761905 | CM80: 4.04761905 | CN80: 4.04761905 | CO80: =ROUND(SUM(BO80:BY80),8) -> 4.04761905 | CP80: =ROUND(SUM(BO80:BZ80),8) -> 4.04761905 | CQ80: =ROUND(SUM(BO80:CA80),8) -> 4.04761905 | CR80: =ROUND(SUM(BO80:CB80),8) -> 4.04761905 | CS80: =ROUND(SUM(BO80:CC80),8) -> 4.04761905
D81: 動植物性残渣 | K81: 0.145 | L81: 28 | P81: 0 | R81: 0 | U81: （t） | V81: 75 | Y81: （t） | AE81: 0 | AI81: 3 | AM81: 0 | AP81: 0 | AQ81: 0 | AR81: 0 | AS81: 0 | AU81: 0 | AW81: 0 | AX81: 0 | AY81: 25 | AZ81: 0 | BA81: 0 | BB81: 0 | BC81: 0 | BD81: 0 | BE81: 0 | BF81: 0 | BG81: 0 | BH81: 0 | BI81: 0 | BJ81: 0 | BK81: 0 | BM81: 10 | BO81: 0 | BP81: 0 | BQ81: 2.5 | BR81: 0 | BS81: 0 | BT81: 0 | BU81: 0 | BV81: 0 | BW81: 0 | BX81: 0 | BY81: 0 | BZ81: 0 | CA81: 0 | CB81: 0 | CC81: 0 | CE81: 0 | CF81: 0 | CG81: 2.5 | CH81: 2.5 | CI81: 2.5 | CJ81: 2.5 | CK81: 2.5 | CL81: 2.5 | CM81: 2.5 | CN81: =ROUND(SUM(BO81:BX81),8) -> 2.5 | CO81: 2.5 | CP81: 2.5 | CQ81: 0 | CR81: 0 | CS81: 0
D82: 動物系固形不要物 | K82: 0.145 | L82: 28 | P82: 0 | R82: 0 | U82: （t） | V82: 75 | Y82: （t） | AE82: 0 | AI82: 3 | AM82: 0 | AP82: 0 | AQ82: 0 | AR82: 0 | AS82: 0 | AU82: 0 | AW82: 0 | AX82: 0 | AY82: 25 | AZ82: 0 | BA82: 0 | BB82: 0 | BC82: 0 | BD82: 0 | BE82: 0 | BF82: 0 | BG82: 0 | BH82: 0 | BI82: 0 | BJ82: 0 | BK82: 0 | BM82: 10 | BO82: 0 | BP82: 0 | BQ82: 2.5 | BR82: 0 | BS82: 0 | BT82: 0 | BU82: 0 | BV82: 0 | BW82: 0 | BX82: 0 | BY82: 0 | BZ82: 0 | CA82: 0 | CB82: 0 | CC82: 0 | CE82: 0 | CF82: 0 | CG82: 2.5 | CH82: 2.5 | CI82: 2.5 | CJ82: 2.5 | CK82: 2.5 | CL82: 2.5 | CM82: 2.5 | CN82: 2.5 | CO82: 2.5 | CP82: 2.5 | CQ82: 0 | CR82: 0 | CS82: 0
D83: 動物のふん尿 | K83: 0.145 | L83: 28 | R83: 0 | U83: （t） | V83: 75 | X83: =IF(T83<>"",T83*(1-V83/100),"") ->  | Y83: （t） | AE83: 0 | AI83: 3 | AM83: 0 | AP83: 0 | AQ83: 0 | AR83: 0 | AS83: 0 | AU83: 0 | AW83: 0 | AX83: 0 | AY83: 25 | AZ83: 0 | BA83: 0 | BB83: 0 | BC83: 0 | BD83: 0 | BE83: 0 | BF83: 0 | BG83: 0 | BH83: 0 | BI83: 0 | BJ83: 0 | BK83: 0 | BM83: 10 | BO83: 0 | BP83: 0 | BQ83: 2.5 | BR83: 0 | BS83: 0 | BT83: 0 | BU83: 0 | BV83: 0 | BW83: 0 | BX83: 0 | BY83: 0 | BZ83: 0 | CA83: 0 | CB83: 0 | CC83: 0 | CE83: 0 | CF83: 0 | CG83: 2.5 | CH83: 2.5 | CI83: 2.5 | CJ83: 2.5 | CK83: 2.5 | CL83: 2.5 | CM83: 2.5 | CN83: 2.5 | CO83: 2.5 | CP83: 2.5 | CQ83: 0 | CR83: 0 | CS83: 0
D84: 動物の死体 | K84: 0.145 | L84: 28 | P84: 0 | R84: 0 | U84: （t） | V84: 75 | Y84: （t） | AE84: 0 | AI84: 3 | AM84: 0 | AP84: 0 | AQ84: 0 | AR84: 0 | AS84: 0 | AU84: 0 | AW84: 0 | AX84: 0 | AY84: 25 | AZ84: 0 | BA84: 0 | BB84: 0 | BC84: 0 | BD84: 0 | BE84: 0 | BF84: 0 | BG84: 0 | BH84: 0 | BI84: 0 | BJ84: 0 | BK84: 0 | BM84: 10 | BO84: 0 | BP84: 0 | BQ84: 2.5 | BR84: 0 | BS84: 0 | BT84: 0 | BU84: 0 | BV84: 0 | BW84: 0 | BX84: 0 | BY84: 0 | BZ84: 0 | CA84: 0 | CB84: 0 | CC84: 0 | CE84: 0 | CF84: 0 | CG84: 2.5 | CH84: 2.5 | CI84: 2.5 | CJ84: 2.5 | CK84: 2.5 | CL84: 2.5 | CM84: 2.5 | CN84: 2.5 | CO84: 2.5 | CP84: 2.5 | CQ84: 0 | CR84: 0 | CS84: 0
D85: その他（混合廃棄物） | K85: 0.138 | L85: 28 | P85: 0 | R85: 0 | U85: （t） | V85: 75 | W85: 10 | X85: =IF(T85<>"",T85*(1-V85/100)*W85/100,"") ->  | Y85: （t） | AE85: 0 | AI85: 3 | AM85: 0 | AP85: 0 | AQ85: 0 | AR85: 0 | AS85: 0 | AU85: 0 | AW85: 0 | AX85: 0 | AY85: 2.5 | AZ85: 0 | BA85: 0 | BB85: 0 | BC85: 0 | BD85: 0 | BE85: 0 | BF85: 0 | BG85: 0 | BH85: 0 | BI85: 0 | BJ85: 0 | BK85: 0 | BM85: 103 | BO85: 0 | BP85: 0 | BQ85: 0.02427184466 | BR85: 0 | BS85: 0 | BT85: 0 | BU85: 0 | BV85: 0 | BW85: 0 | BX85: 0 | BY85: 0 | BZ85: 0 | CA85: 0 | CB85: 0 | CC85: 0 | CE85: 0 | CF85: 0 | CG85: 0.02427184 | CH85: 0.02427184 | CI85: 0.02427184 | CJ85: 0.02427184 | CK85: 0.02427184 | CL85: 0.02427184 | CM85: 0.02427184 | CN85: 0.02427184 | CO85: 0.02427184 | CP85: 0.02427184 | CQ85: 0 | CR85: 0 | CS85: 0
D86: 温室効果ガス排出量合計 | O86: =SUM(O73:O85) -> 0 | P86: =SUM(P73:P85) -> 0 | Q86: =SUM(Q73:Q85) -> 0 | R86: 0
B87: 最終処分業 | C87: -- 温室効果ガス削減量 -- | T87: 活動量入力値
G89: 発生ガス中の焼却量 | I89: 発生ガス中の メタン濃度（％） | K89: 重量換算 係数（t/m3） | L89: 地球温暖化 係数(GWP) | O89: 温室効果ガス削減量 | T89: 発生ガス中の焼却量 | V89: 発生ガス中の メタン濃度（％） | X89: 活動量 | AA89: 活動量
O90: CO2 | P90: CH4 | Q90: N2O | R90: 合計
C91: メタン破壊 | D91: 発生ガスの回収・焼却 | L91: 21 | O91: =AP91 -> 0 | P91: =AQ91 -> 0 | Q91: =AR91 -> 0 | R91: =SUM(O91:Q91) -> 0 | U91: （㎥N） | V91: 15 | X91: =IF(T91<>"",T91,"") ->  | Y91: =IF(U91<>"",U91,"") -> （㎥N） | AA91: =IF(G91<>"",G91,"") ->  | AB91: =IF(H91<>"",H91,"") ->  | AE91: =IF(ISERROR(AA91*I91/100*K91*L91*AU91),0,AA91*I91/100*K91*L91*AU91) -> 0 | AI91: 2 | AM91: 0 | AP91: =IF(ISERROR(ROUND(AD91,AL91)),"",ROUND(AD91,AL91)) -> 0 | AQ91: =IF(ISERROR(ROUND(AE91,AM91)),"",ROUND(AE91,AM91)) -> 0 | AR91: =IF(ISERROR(ROUND(AF91,AN91)),"",ROUND(AF91,AN91)) -> 0 | AS91: =SUM(AP91:AR91) -> 0 | AU91: =IF(AB91="（m3）",1,1000) -> 1000
D92: 温室効果ガス削減量合計 | O92: =SUM(O91) -> 0 | P92: =SUM(P91) -> 0 | Q92: =SUM(Q91) -> 0 | R92: =SUM(O92:Q92) -> 0
D93: 温室効果ガス排出量合計 | O93: =O86-O92 -> 0 | P93: =P86-P92 -> 0 | Q93: =Q86-Q92 -> 0 | R93: =SUM(O93:Q93) -> 0
B95: ○関連施設及び構内車両における温室効果ガス排出量
B96: 関連施設及び構内車両における温室効果ガス排出量の算定結果です。※排出係数の変更、再算定が可能です。 | T96: 活動量入力値 | U96: 占める割合 | V96: 100 | AH96: 有効桁数 | AP96: 四捨五入処理 | AU96: 単位考慮
B98: 関連施設及び構内車両 | G98: エネルギー使用量 | I98: 固有単位当りの 単位発熱量(GJ) | J98: CO2排出係数 （tCO2/GJ， tCO2/固有単位） | K98: CH4排出係数 （tCH4/GJ， tCH4/固有単位） | L98: CH4地球 温暖化係数 | M98: N2O排出係数 （tN2O/GJ， tN2O/固有単位） | N98: N2O地球 温暖化係数 | O98: 温室効果ガス排出量（tCO2） | T98: エネルギー使用量 | V98: バイオ燃料の割合 | X98: 活動量 | AA98: 活動量 | AH98: CO2 | AI98: CH4 | AJ98: N2O | AP98: CO2 | AQ98: CH4 | AR98: N2O | AS98: 合計 | AU98: 換算係数
E99: 電気事業者 | O99: CO2 | P99: CH4 | Q99: N2O | R99: 合計
C100: エネルギー（電気・ガス・燃料）使用 | D100: 電気 | E100: 東京電力ｴﾅｼﾞｰﾊﾟｰﾄﾅｰ（株） | J100: 0.457 | O100: =AP100 -> 0 | R100: =SUM(O100:Q100) -> 0 | U100: （千kWh） | X100: =IF(T100<>"",IF(U100="（kWh）",T100*$V$96/100/1000,T100*$V$96/100),"") ->  | Y100: =IF(U100<>"",IF(U100="（千kWh）",U100,IF(U100="（kWh）","（千kWh）","単位誤り")),"単位未入力") -> （千kWh） | AA100: =IF(G100<>"",G100,"") ->  | AB100: =IF(H100<>"",H100,"") ->  | AD100: =IF(ISERROR(AA100*J100*AU100),0,AA100*J100*AU100) -> 0 | AH100: 3 | AL100: 0 | AP100: =IF(ISERROR(ROUND(AD100,AL100)),"",ROUND(AD100,AL100)) -> 0 | AQ100: 0 | AR100: 0 | AS100: =SUM(AP100:AR100) -> 0 | AU100: =IF(AB100="（千kWh）",1,IF(AB100="（kWh）",0.001,0)) -> 0
D101: 都市ガス | F101: ボイラー燃料 | I101: 44.8 | J101: 0.0499 | O101: 0 | R101: 0 | U101: （千㎥） | X101: =IF(T101<>"",IF(U101="（㎥）",T101*$V$96/100/1000,T101*$V$96/100),"") ->  | Y101: =IF(U101<>"",IF(U101="（千㎥）",U101,IF(U101="（㎥）","（千㎥）","単位誤り")),"単位未入力") -> （千㎥） | AA101: =IF(G101<>"",G101,"") ->  | AB101: =IF(H101<>"",H101,"") ->  | AD101: =IF(ISERROR(AA101*J101*I101*AU101),0,AA101*J101*I101*AU101) -> 0 | AE101: =IF(ISERROR(AA101*K101*L101*I101*AU101),0,AA101*K101*L101*I101*AU101) -> 0 | AF101: =IF(ISERROR(AA101*M101*N101*I101*AU101),0,A101*M101*N101*I101*AU101) -> 0 | AH101: 3 | AI101: 2 | AJ101: 2 | AL101: 0 | AM101: 0 | AN101: 0 | AP101: 0 | AQ101: 0 | AR101: 0 | AS101: =SUM(AP101:AR101) -> 0 | AU101: =IF(AB101="（千㎥）",1,IF(AB101="（㎥）",0.001,0)) -> 0
F102: 助燃剤 | I102: 44.8 | J102: 0.0499 | O102: 0 | R102: 0 | U102: （千㎥） | X102: =IF(T102<>"",IF(U102="（㎥）",T102*$V$96/100/1000,T102*$V$96/100),"") ->  | Y102: =IF(U102<>"",IF(U102="（千㎥）",U102,IF(U102="（㎥）","（千㎥）","単位誤り")),"単位未入力") -> （千㎥） | AD102: 0 | AE102: 0 | AF102: 0 | AH102: 3 | AI102: 2 | AJ102: 2 | AL102: 0 | AM102: 0 | AN102: 0 | AP102: =IF(ISERROR(ROUND(AD102,AL102)),"",ROUND(AD102,AL102)) -> 0 | AQ102: 0 | AR102: 0 | AS102: =SUM(AP102:AR102) -> 0 | AU102: =IF(AB102="（千㎥）",1,IF(AB102="（㎥）",0.001,0)) -> 0
F103: それ以外 | I103: 44.8 | J103: 0.0499 | O103: 0 | R103: 0 | U103: （千㎥） | X103: =IF(T103<>"",IF(U103="（㎥）",T103*$V$96/100/1000,T103*$V$96/100),"") ->  | Y103: =IF(U103<>"",IF(U103="（千㎥）",U103,IF(U103="（㎥）","（千㎥）","単位誤り")),"単位未入力") -> （千㎥） | AD103: 0 | AE103: 0 | AF103: 0 | AH103: 3 | AI103: 2 | AJ103: 2 | AL103: 0 | AM103: 0 | AN103: 0 | AP103: =IF(ISERROR(ROUND(AD103,AL103)),"",ROUND(AD103,AL103)) -> 0 | AQ103: 0 | AR103: 0 | AS103: 0 | AU103: =IF(AB103="（千㎥）",1,IF(AB103="（㎥）",0.001,0)) -> 0
D104: 液化天然ガス （LNG） | F104: ボイラー燃料 | I104: 54.6 | J104: 0.0495 | O104: 0 | R104: 0 | U104: （t） | X104: =IF(T104<>"",IF(U104="（kg）",T104*$V$96/100/1000,T104*$V$96/100),"") ->  | Y104: =IF(U104<>"",IF(U104="（t）",U104,IF(U104="（kg）","（t）","単位誤り")),"単位未入力") -> （t） | AD104: 0 | AE104: 0 | AF104: 0 | AH104: 3 | AI104: 2 | AJ104: 2 | AL104: 0 | AM104: 0 | AN104: 0 | AP104: 0 | AQ104: 0 | AR104: 0 | AS104: 0 | AU104: =IF(AB104="（t）",1,IF(AB104="（kg）",0.001,0)) -> 0
F105: 助燃剤 | I105: 54.6 | J105: 0.0495 | O105: 0 | R105: 0 | U105: （t） | X105: =IF(T105<>"",IF(U105="（kg）",T105*$V$96/100/1000,T105*$V$96/100),"") ->  | Y105: =IF(U105<>"",IF(U105="（t）",U105,IF(U105="（kg）","（t）","単位誤り")),"単位未入力") -> （t） | AD105: 0 | AE105: 0 | AF105: 0 | AH105: 3 | AI105: 2 | AJ105: 2 | AL105: 0 | AM105: 0 | AN105: 0 | AP105: 0 | AQ105: 0 | AR105: 0 | AS105: 0 | AU105: =IF(AB105="（t）",1,IF(AB105="（kg）",0.001,0)) -> 0
F106: それ以外 | I106: 54.6 | J106: 0.0495 | O106: 0 | R106: 0 | U106: （t） | X106: =IF(T106<>"",IF(U106="（kg）",T106*$V$96/100/1000,T106*$V$96/100),"") ->  | Y106: =IF(U106<>"",IF(U106="（t）",U106,IF(U106="（kg）","（t）","単位誤り")),"単位未入力") -> （t） | AD106: 0 | AE106: 0 | AF106: 0 | AH106: 3 | AI106: 2 | AJ106: 2 | AL106: 0 | AM106: 0 | AN106: 0 | AP106: 0 | AQ106: 0 | AR106: 0 | AS106: 0 | AU106: =IF(AB106="（t）",1,IF(AB106="（kg）",0.001,0)) -> 0
D107: 軽油 | F107: ボイラー燃料 | I107: 37.7 | J107: 0.0686 | O107: 0 | R107: 0 | U107: （kl） | X107: =IF(T107<>"",IF(U107="（ﾘｯﾄﾙ）",T107*$V$96/100/1000,T107*$V$96/100),"") ->  | Y107: =IF(U107<>"",IF(U107="（kl）",U107,IF(U107="（ﾘｯﾄﾙ）","（kl）","単位誤り")),"単位未入力") -> （kl） | AD107: 0 | AE107: 0 | AF107: 0 | AH107: 3 | AI107: 2 | AJ107: 2 | AL107: 0 | AM107: 0 | AN107: 0 | AP107: 0 | AQ107: 0 | AR107: 0 | AS107: 0 | AU107: =IF(AB107="（kl）",1,IF(AB107="（ﾘｯﾄﾙ）",0.001,0)) -> 0
F108: 助燃剤 | I108: 37.7 | J108: 0.0686 | O108: 0 | R108: 0 | U108: （kl） | X108: =IF(T108<>"",IF(U108="（ﾘｯﾄﾙ）",T108*$V$96/100/1000,T108*$V$96/100),"") ->  | Y108: =IF(U108<>"",IF(U108="（kl）",U108,IF(U108="（ﾘｯﾄﾙ）","（kl）","単位誤り")),"単位未入力") -> （kl） | AD108: 0 | AE108: 0 | AF108: 0 | AH108: 3 | AI108: 2 | AJ108: 2 | AL108: 0 | AM108: 0 | AN108: 0 | AP108: 0 | AQ108: 0 | AR108: 0 | AS108: 0 | AU108: 0
F109: それ以外 | I109: 37.7 | J109: 0.0686 | O109: 0 | R109: 0 | U109: （kl） | X109: =IF(T109<>"",IF(U109="（ﾘｯﾄﾙ）",T109*$V$96/100/1000,T109*$V$96/100),"") ->  | Y109: （kl） | AD109: 0 | AE109: 0 | AF109: 0 | AH109: 3 | AI109: 2 | AJ109: 2 | AL109: 0 | AM109: 0 | AN109: 0 | AP109: 0 | AQ109: 0 | AR109: 0 | AS109: 0 | AU109: 0
D110: 灯油 | F110: ボイラー燃料 | I110: 36.7 | J110: 0.0678 | O110: 0 | R110: 0 | U110: （kl） | Y110: （kl） | AD110: 0 | AE110: 0 | AF110: 0 | AH110: 3 | AI110: 2 | AJ110: 2 | AL110: 0 | AM110: 0 | AN110: 0 | AP110: 0 | AQ110: 0 | AR110: 0 | AS110: 0 | AU110: 0
F111: 助燃剤 | I111: 36.7 | J111: 0.0678 | O111: 0 | R111: 0 | U111: （kl） | Y111: （kl） | AD111: 0 | AE111: 0 | AF111: 0 | AH111: 3 | AI111: 2 | AJ111: 2 | AL111: 0 | AM111: 0 | AN111: 0 | AP111: 0 | AQ111: 0 | AR111: 0 | AS111: 0 | AU111: 0
F112: それ以外 | I112: 36.7 | J112: 0.0678 | O112: 0 | R112: 0 | U112: （kl） | Y112: （kl） | AD112: 0 | AE112: 0 | AF112: 0 | AH112: 3 | AI112: 2 | AJ112: 2 | AL112: 0 | AM112: 0 | AN112: 0 | AP112: 0 | AQ112: 0 | AR112: 0 | AS112: 0 | AU112: 0
D113: A重油 | F113: ボイラー燃料 | I113: 39.1 | J113: 0.0693 | O113: 0 | R113: 0 | U113: （kl） | Y113: （kl） | AD113: 0 | AE113: 0 | AF113: 0 | AH113: 3 | AI113: 2 | AJ113: 2 | AL113: 0 | AM113: 0 | AN113: 0 | AP113: 0 | AQ113: 0 | AR113: 0 | AS113: 0 | AU113: 0
F114: 助燃剤 | I114: 39.1 | J114: 0.0693 | O114: 0 | R114: 0 | U114: （kl） | Y114: （kl） | AD114: 0 | AE114: 0 | AF114: 0 | AH114: 3 | AI114: 2 | AJ114: 2 | AL114: 0 | AM114: 0 | AN114: 0 | AP114: 0 | AQ114: 0 | AR114: 0 | AS114: 0 | AU114: 0
F115: それ以外 | I115: 39.1 | J115: 0.0693 | O115: 0 | R115: 0 | U115: （kl） | Y115: （kl） | AD115: 0 | AE115: 0 | AF115: 0 | AH115: 3 | AI115: 2 | AJ115: 2 | AL115: 0 | AM115: 0 | AN115: 0 | AP115: 0 | AQ115: 0 | AR115: 0 | AS115: 0 | AU115: 0
D116: C重油 | F116: ボイラー燃料 | I116: 41.9 | J116: 0.0715 | M116: 1.7e-08 | N116: 265 | O116: 0 | Q116: =AR116 -> 0 | R116: 0 | U116: （kl） | Y116: （kl） | AD116: 0 | AE116: 0 | AF116: =IF(ISERROR(AA116*M116*N116*I116*AU116),0,AA116*M116*N116*I116*AU116) -> 0 | AH116: 3 | AI116: 2 | AJ116: 2 | AL116: 0 | AM116: 0 | AN116: 0 | AP116: 0 | AQ116: 0 | AR116: =IF(ISERROR(ROUND(AF116,AN116)),"",ROUND(AF116,AN116)) -> 0 | AS116: =SUM(AP116:AR116) -> 0 | AU116: 0
F117: 助燃剤 | I117: 41.9 | J117: 0.0715 | M117: 1.7e-08 | N117: 265 | O117: 0 | Q117: =AR117 -> 0 | R117: 0 | U117: （kl） | Y117: （kl） | AD117: 0 | AE117: 0 | AF117: =IF(ISERROR(AA117*M117*N117*I117*AU117),0,AA117*M117*N117*I117*AU117) -> 0 | AH117: 3 | AI117: 2 | AJ117: 2 | AL117: 0 | AM117: 0 | AN117: 0 | AP117: 0 | AQ117: 0 | AR117: 0 | AS117: 0 | AU117: 0
F118: それ以外 | I118: 41.9 | J118: 0.0715 | M118: 1.7e-08 | N118: 265 | O118: 0 | Q118: =AR118 -> 0 | R118: 0 | U118: （kl） | Y118: （kl） | AD118: 0 | AE118: 0 | AF118: =IF(ISERROR(AA118*M118*N118*I118*AU118),0,AA118*M118*N118*I118*AU118) -> 0 | AH118: 3 | AI118: 2 | AJ118: 2 | AL118: 0 | AM118: 0 | AN118: 0 | AP118: 0 | AQ118: 0 | AR118: 0 | AS118: 0 | AU118: 0
D119: LPG | F119: ボイラー燃料 | I119: 50.8 | J119: 0.059 | O119: 0 | R119: 0 | U119: （t） | X119: =IF(T119<>"",IF(U119="（kg）",T119*$V$96/100/1000,T119*$V$96/100),"") ->  | Y119: =IF(U119<>"",IF(U119="（t）",U119,IF(U119="（kg）","（t）","単位誤り")),"単位未入力") -> （t） | AD119: 0 | AE119: 0 | AF119: =IF(ISERROR(AA119*M119*N119*I119*AU119),0,A119*M119*N119*I119*AU119) -> 0 | AH119: 3 | AI119: 2 | AJ119: 2 | AL119: 0 | AM119: 0 | AN119: 0 | AP119: 0 | AQ119: 0 | AR119: 0 | AS119: 0 | AU119: =IF(AB119="（t）",1,IF(AB119="（kg）",0.001,0)) -> 0
F120: 助燃剤 | I120: 50.8 | J120: 0.059 | O120: 0 | R120: 0 | U120: （t） | Y120: （t） | AD120: 0 | AE120: 0 | AF120: =IF(ISERROR(AA120*M120*N120*I120*AU120),0,A120*M120*N120*I120*AU120) -> 0 | AH120: 3 | AI120: 2 | AJ120: 2 | AL120: 0 | AM120: 0 | AN120: 0 | AP120: 0 | AQ120: 0 | AR120: 0 | AS120: 0 | AU120: 0
F121: それ以外 | I121: 50.8 | J121: 0.059 | O121: 0 | R121: 0 | U121: （t） | Y121: （t） | AD121: 0 | AE121: 0 | AF121: =IF(ISERROR(AA121*M121*N121*I121*AU121),0,A121*M121*N121*I121*AU121) -> 0 | AH121: 3 | AI121: 2 | AJ121: 2 | AL121: 0 | AM121: 0 | AN121: 0 | AP121: 0 | AQ121: 0 | AR121: 0 | AS121: 0 | AU121: 0
D122: 石炭 | F122: ボイラー燃料 | I122: 25.7 | J122: 0.0906 | M122: 5.8e-07 | N122: 265 | O122: 0 | Q122: =AR122 -> 0 | R122: 0 | U122: （t） | Y122: （t） | AD122: 0 | AE122: 0 | AF122: =IF(ISERROR(AA122*M122*N122*I122*AU122),0,AA122*M122*N122*I122*AU122) -> 0 | AH122: 3 | AI122: 2 | AJ122: 2 | AL122: 0 | AM122: 0 | AN122: 0 | AP122: 0 | AQ122: 0 | AR122: 0 | AS122: 0 | AU122: 0
F123: 助燃剤 | I123: 25.7 | J123: 0.0906 | M123: 5.8e-07 | N123: 265 | O123: 0 | Q123: =AR123 -> 0 | R123: 0 | U123: （t） | Y123: （t） | AD123: 0 | AE123: 0 | AF123: 0 | AH123: 3 | AI123: 2 | AJ123: 2 | AL123: 0 | AM123: 0 | AN123: 0 | AP123: 0 | AQ123: 0 | AR123: 0 | AS123: 0 | AU123: 0
F124: それ以外 | I124: 25.7 | J124: 0.0906 | M124: 5.8e-07 | N124: 265 | O124: 0 | Q124: =AR124 -> 0 | R124: 0 | U124: （t） | Y124: （t） | AD124: 0 | AE124: 0 | AF124: 0 | AH124: 3 | AI124: 2 | AJ124: 2 | AL124: 0 | AM124: 0 | AN124: 0 | AP124: 0 | AQ124: 0 | AR124: 0 | AS124: 0 | AU124: 0
D125: コークス | F125: ボイラー燃料 | I125: 29.4 | J125: 0.1079 | M125: 5.8e-07 | N125: 265 | O125: =AP125 -> 0 | Q125: 0 | R125: =SUM(O125:Q125) -> 0 | U125: （t） | Y125: （t） | AA125: =IF(G125<>"",G125,"") ->  | AD125: =IF(ISERROR(AA125*J125*I125*AU125),0,AA125*J125*I125*AU125) -> 0 | AE125: =IF(ISERROR(AA125*K125*L125*I125*AU125),0,AA125*K125*L125*I125*AU125) -> 0 | AF125: 0 | AH125: 3 | AI125: 2 | AJ125: 2 | AL125: 0 | AM125: 0 | AN125: 0 | AP125: =IF(ISERROR(ROUND(AD125,AL125)),"",ROUND(AD125,AL125)) -> 0 | AQ125: 0 | AR125: 0 | AS125: =SUM(AP125:AR125) -> 0 | AU125: =IF(AB125="（t）",1,IF(AB125="（kg）",0.001,0)) -> 0
F126: 助燃剤 | I126: 29.4 | J126: 0.1079 | M126: 5.8e-07 | N126: 265 | O126: 0 | Q126: 0 | R126: =SUM(O126:Q126) -> 0 | U126: （t） | Y126: （t） | AD126: =IF(ISERROR(AA126*J126*I126*AU126),0,AA126*J126*I126*AU126) -> 0 | AE126: =IF(ISERROR(AA126*K126*L126*I126*AU126),0,AA126*K126*L126*I126*AU126) -> 0 | AF126: 0 | AH126: 3 | AI126: 2 | AJ126: 2 | AL126: 0 | AM126: 0 | AN126: 0 | AP126: 0 | AQ126: 0 | AR126: 0 | AS126: =SUM(AP126:AR126) -> 0 | AU126: =IF(AB126="（t）",1,IF(AB126="（kg）",0.001,0)) -> 0
F127: それ以外 | I127: 29.4 | J127: 0.1079 | M127: 5.8e-07 | N127: 265 | O127: 0 | Q127: 0 | R127: =SUM(O127:Q127) -> 0 | U127: （t） | Y127: （t） | AD127: =IF(ISERROR(AA127*J127*I127*AU127),0,AA127*J127*I127*AU127) -> 0 | AE127: =IF(ISERROR(AA127*K127*L127*I127*AU127),0,AA127*K127*L127*I127*AU127) -> 0 | AF127: 0 | AH127: 3 | AI127: 2 | AJ127: 2 | AL127: 0 | AM127: 0 | AN127: 0 | AP127: 0 | AQ127: 0 | AR127: 0 | AS127: =SUM(AP127:AR127) -> 0 | AU127: =IF(AB127="（t）",1,IF(AB127="（kg）",0.001,0)) -> 0
D128: 廃油・ 再生油 | E128: 燃料系廃油、 潤滑油系廃油等 | J128: 2.92 | M128: 9.8e-06 | N128: 265 | O128: 0 | Q128: =AR128 -> 0 | R128: 0 | U128: （t） | Y128: （t） | AD128: =IF(ISERROR(AA128*J128*AU128),0,AA128*J128*AU128) -> 0 | AE128: =IF(ISERROR(AA128*K128*L128*AU128),0,AA128*K128*L128*AU128) -> 0 | AF128: =IF(ISERROR(AA128*M128*N128*AU128),0,AA128*M128*N128*AU128) -> 0 | AH128: 3 | AI128: 2 | AJ128: 2 | AL128: 0 | AM128: 0 | AN128: 0 | AP128: =IF(ISERROR(ROUND(AD128,AL128)),"",ROUND(AD128,AL128)) -> 0 | AQ128: 0 | AR128: 0 | AS128: 0 | AU128: 0
E129: 動植物性廃油 | M129: 9.8e-06 | N129: 265 | O129: 0 | Q129: =AR129 -> 0 | R129: 0 | U129: （t） | Y129: （t） | AD129: =IF(ISERROR(AA129*J129*AU129),0,AA129*J129*AU129) -> 0 | AE129: =IF(ISERROR(AA129*K129*L129*AU129),0,AA129*K129*L129*AU129) -> 0 | AF129: =IF(ISERROR(AA129*M129*N129*AU129),0,AA129*M129*N129*AU129) -> 0 | AH129: 3 | AI129: 2 | AJ129: 2 | AL129: 0 | AM129: 0 | AN129: 0 | AP129: 0 | AQ129: 0 | AR129: 0 | AS129: 0 | AU129: 0
D130: 木くず | R130: 0 | U130: （t） | X130: =IF(T130<>"",IF(U130="（kg）",T130*$V$96/100/1000,T130*$V$96/100),"") ->  | Y130: （t） | AE130: =IF(ISERROR(AA130*K130*L130*AU130),0,AA130*K130*L130*AU130) -> 0 | AF130: =IF(ISERROR(AA130*M130*N130*AU130),0,AA130*M130*N130*AU130) -> 0 | AI130: 2 | AJ130: 2 | AM130: 0 | AN130: 0 | AP130: 0 | AQ130: 0 | AR130: 0 | AS130: 0 | AU130: 0
D131: バイオディーゼル （バイオ分除く） | I131: 37.7 | J131: 0.0686 | O131: 0 | R131: 0 | U131: （kl） | V131: 100 | X131: =IF(T131<>"",IF(U131="（ﾘｯﾄﾙ）",T131*($V$96/100)*(100-V131)/100/1000,T131*($V$96/100)*(100-V131)/100),"") ->  | Y131: =IF(U131<>"",IF(U131="（kl）",U131,IF(U131="（ﾘｯﾄﾙ）","（kl）","単位誤り")),"単位未入力") -> （kl） | AD131: =IF(ISERROR(AA131*J131*I131*AU131),0,AA131*J131*I131*AU131) -> 0 | AE131: =IF(ISERROR(AA131*K131*L131*I131*AU131),0,AA131*K131*L131*I131*AU131) -> 0 | AF131: =IF(ISERROR(AA131*M131*N131*I131*AU131),0,A131*M131*N131*I131*AU131) -> 0 | AH131: 3 | AL131: 0 | AP131: 0 | AQ131: 0 | AR131: 0 | AS131: 0 | AU131: =IF(AB131="（kl）",1,IF(AB131="（ﾘｯﾄﾙ）",0.001,0)) -> 0
D132: RPF | F132: 用途1 | J132: 1.57 | K132: 0.00032 | L132: 28 | M132: 1.6e-05 | N132: 265 | O132: 0 | P132: =AQ132 -> 0 | Q132: =AR132 -> 0 | R132: 0 | U132: （t） | V132: 2.6 | X132: =IF(T132<>"",IF(U132="（kg）",T132*$V$96/100/1000,T132*$V$96/100),"") ->  | Y132: （t） | AD132: =IF(ISERROR(AA132*J132*AU132),0,AA132*J132*AU132) -> 0 | AE132: =IF(ISERROR(AA132*K132*L132*AU132),0,AA132*K132*L132*AU132) -> 0 | AF132: =IF(ISERROR(AA132*M132*N132*AU132),0,AA132*M132*N132*AU132) -> 0 | AH132: 3 | AI132: 2 | AJ132: 2 | AL132: 0 | AM132: 0 | AN132: 0 | AP132: 0 | AQ132: 0 | AR132: 0 | AS132: 0 | AU132: =IF(AB132="（t）",1,IF(AB132="（kg）",0.001,0)) -> 0
F133: 用途2 | J133: 1.57 | K133: 0.00032 | L133: 28 | M133: 1.8e-05 | N133: 265 | O133: 0 | P133: =AQ133 -> 0 | Q133: =AR133 -> 0 | R133: 0 | U133: （t） | V133: 2.6 | X133: =IF(T133<>"",IF(U133="（kg）",T133*$V$96/100/1000,T133*$V$96/100),"") ->  | Y133: （t） | AD133: =IF(ISERROR(AA133*J133*AU133),0,AA133*J133*AU133) -> 0 | AE133: =IF(ISERROR(AA133*K133*L133*AU133),0,AA133*K133*L133*AU133) -> 0 | AF133: =IF(ISERROR(AA133*M133*N133*AU133),0,AA133*M133*N133*AU133) -> 0 | AH133: 3 | AI133: 2 | AJ133: 2 | AL133: 0 | AM133: 0 | AN133: 0 | AP133: 0 | AQ133: 0 | AR133: 0 | AS133: 0 | AU133: =IF(AB133="（t）",1,IF(AB133="（kg）",0.001,0)) -> 0
C134: 構内車両（重機等） | D134: 電気 | E134: =$E$100 -> 東京電力ｴﾅｼﾞｰﾊﾟｰﾄﾅｰ（株） | J134: 0.457 | O134: 0 | R134: 0 | U134: （千kWh） | X134: =IF(T134<>"",IF(U134="（kWh）",T134*$V$96/100/1000,T134*$V$96/100),"") ->  | Y134: =IF(U134<>"",IF(U134="（千kWh）",U134,IF(U134="（kWh）","（千kWh）","単位誤り")),"単位未入力") -> （千kWh） | AD134: =IF(ISERROR(AA134*J134*AU134),0,AA134*J134*AU134) -> 0 | AH134: 3 | AL134: 0 | AP134: 0 | AQ134: 0 | AR134: 0 | AS134: 0 | AU134: =IF(AB134="（千kWh）",1,IF(AB134="（kWh）",0.001,0)) -> 0
D135: ガソリン | I135: 34.6 | J135: 0.0671 | O135: 0 | R135: 0 | U135: （kl） | X135: =IF(T135<>"",IF(U135="（ﾘｯﾄﾙ）",T135*$V$96/100/1000,T135*$V$96/100),"") ->  | Y135: =IF(U135<>"",IF(U135="（kl）",U135,IF(U135="（ﾘｯﾄﾙ）","（kl）","単位誤り")),"単位未入力") -> （kl） | AD135: =IF(ISERROR(AA135*J135*I135*AU135),0,AA135*J135*I135*AU135) -> 0 | AE135: =IF(ISERROR(AA135*K135*L135*I135*AU135),0,AA135*K135*L135*I135*AU135) -> 0 | AF135: =IF(ISERROR(AA135*M135*N135*I135*AU135),0,A135*M135*N135*I135*AU135) -> 0 | AH135: 3 | AL135: 0 | AP135: 0 | AQ135: 0 | AR135: 0 | AS135: 0 | AU135: =IF(AB135="（kl）",1,IF(AB135="（ﾘｯﾄﾙ）",0.001,0)) -> 0
D136: 軽油 | I136: 37.7 | J136: 0.0686 | O136: 0 | R136: 0 | U136: （kl） | X136: =IF(T136<>"",IF(U136="（ﾘｯﾄﾙ）",T136*$V$96/100/1000,T136*$V$96/100),"") ->  | Y136: =IF(U136<>"",IF(U136="（kl）",U136,IF(U136="（ﾘｯﾄﾙ）","（kl）","単位誤り")),"単位未入力") -> （kl） | AD136: =IF(ISERROR(AA136*J136*I136*AU136),0,AA136*J136*I136*AU136) -> 0 | AE136: =IF(ISERROR(AA136*K136*L136*I136*AU136),0,AA136*K136*L136*I136*AU136) -> 0 | AF136: =IF(ISERROR(AA136*M136*N136*I136*AU136),0,A136*M136*N136*I136*AU136) -> 0 | AH136: 3 | AL136: 0 | AP136: 0 | AQ136: 0 | AR136: 0 | AS136: 0 | AU136: =IF(AB136="（kl）",1,IF(AB136="（ﾘｯﾄﾙ）",0.001,0)) -> 0
D137: 灯油 | I137: 36.7 | J137: 0.0678 | O137: 0 | R137: 0 | U137: （kl） | X137: =IF(T137<>"",IF(U137="（ﾘｯﾄﾙ）",T137*$V$96/100/1000,T137*$V$96/100),"") ->  | Y137: =IF(U137<>"",IF(U137="（kl）",U137,IF(U137="（ﾘｯﾄﾙ）","（kl）","単位誤り")),"単位未入力") -> （kl） | AD137: =IF(ISERROR(AA137*J137*I137*AU137),0,AA137*J137*I137*AU137) -> 0 | AE137: =IF(ISERROR(AA137*K137*L137*I137*AU137),0,AA137*K137*L137*I137*AU137) -> 0 | AF137: =IF(ISERROR(AA137*M137*N137*I137*AU137),0,A137*M137*N137*I137*AU137) -> 0 | AH137: 3 | AL137: 0 | AP137: =IF(ISERROR(ROUND(AD137,AL137)),"",ROUND(AD137,AL137)) -> 0 | AQ137: 0 | AR137: 0 | AS137: 0 | AU137: =IF(AB137="（kl）",1,IF(AB137="（ﾘｯﾄﾙ）",0.001,0)) -> 0
D138: バイオディーゼル （バイオ分除く） | I138: 37.7 | J138: 0.0686 | O138: 0 | R138: 0 | U138: （kl） | V138: 100 | X138: =IF(T138<>"",IF(U138="（ﾘｯﾄﾙ）",T138*($V$96/100)*(100-V138)/100/1000,T138*($V$96/100)*(100-V138)/100),"") ->  | Y138: =IF(U138<>"",IF(U138="（kl）",U138,IF(U138="（ﾘｯﾄﾙ）","（kl）","単位誤り")),"単位未入力") -> （kl） | AD138: =IF(ISERROR(AA138*J138*I138*AU138),0,AA138*J138*I138*AU138) -> 0 | AE138: =IF(ISERROR(AA138*K138*L138*I138*AU138),0,AA138*K138*L138*I138*AU138) -> 0 | AF138: =IF(ISERROR(AA138*M138*N138*I138*AU138),0,A138*M138*N138*I138*AU138) -> 0 | AH138: 3 | AL138: 0 | AP138: 0 | AQ138: 0 | AR138: 0 | AS138: 0 | AU138: =IF(AB138="（kl）",1,IF(AB138="（ﾘｯﾄﾙ）",0.001,0)) -> 0
D139: 温室効果ガス排出量合計 | O139: =SUM(O100:O138) -> 0 | P139: =SUM(P100:P138) -> 0 | Q139: =SUM(Q100:Q138) -> 0 | R139: 0

Sheet 様式出力 (hidden)
B3: 温室効果ガス算定排出量の報告書
B4: 様式第１（第４条関係）
B6: 温室効果ガス算定排出量の報告書
B8: 年 月 日
B9: 事業所管大臣（地方支分部局長） 殿
B11: （ふ り が な）
B12: 報告者 住 所 〒
B13: （ふ り が な）
B14: 氏 名
B16: （法人にあっては名称及び代表者の氏名）
B18: 地球温暖化対策の推進に関する法律（以下「法」という。）第21条の２第１項の規定により、温室効果ガス算定排出量について、次のとおり報告します。
B20: 事業所 | D20: （ふりがな）
D21: 特定排出者の名称
D23: （前回の報告における名称）
D24: （ふりがな）
D25: 事業所の名称
D27: （前回の報告における名称）
D28: 所在地 | L28: 〒 －
Q29: 都道 | V29: 市区
Q30: 府県 | V30: 町村
D31: （ふりがな）
B34: 事業所において行われる事業
B35: 特定排出者において常時使用される従業員の数
B36: 温室効果ガス算定排出量 | L36: 別紙第１表及び第２表のとおり
B37: 本報告が法第21条の３第１項の請求 に係るものであることの有無 | L37: １．有 | O37: 法第21条の８第１項の規定による 提供の有無 | Y37: １．有
B38: （該当するものに○をすること） | L38: ２．無 | O38: （該当するものに○をすること） | Y38: ２．無
B39: 担当者 | G39: 部署
B41: （問い合わせ先） | G41: （ふりがな）
G42: 氏名
G43: 電話番号
B44: ※受理年月日 | E44: 年 月 日 | O44: ※処理年月日 | S44: 年 月 日
A46: 備考 | C46: １ | D46: 本報告書は、事業所ごとに作成すること。
C47: ２ | D47: 氏名（法人にあってはその代表者の氏名）を記載し、押印することに代えて、本人（法人にあってはその代表者）が署名することができる。
C48: ３ | D48: 前回の報告における名称の欄は、変更された場合のみ記載すること。
C49: ４ | D49: 事業所において行われる事業の欄には、日本標準産業分類の細分類に従って事業名を記載し、二以上の業種に属する事業を行う事業所にあっては、そのうちの主たる事業を記載すること。
C50: ５ | D50: 特定排出者において常時使用される従業員の数の欄には、前年４月１日現在（前年度中に事業を開始した特定排出者においては事業を開始した日）における人数を記載すること。
C51: ６ | D51: ※の欄には、記載しないこと。
C52: ７ | D52: 報告書及び別紙の用紙の大きさは、日本工業規格Ａ４とすること。
B53: （別紙）
B54: 報告年度： 年度
B56: 特 定 排 出 者 コ ー ド | W56: ※
B58: 都 道 府 県 コ ー ド | N58: 事 業 コ ー ド
B59: エネルギーの使用の合理化に関する法律に基づく第一種エネルギー管理指定工場等の該当の有無（該当する場合にはその番号及び同法に基づく指定に係る番号を記載） | L59: １．第一種エネルギー管理指定工場
L60: ２．第二種エネルギー管理指定工場
L61: ｴﾈﾙｷﾞｰ管理指定工場指定番号
A63: 備考 | C63: １ | D63: 特定排出者コード、都道府県コード及び事業コードの欄には、環境大臣及び経済産業大臣が定めるところにより、それぞれ特定排出者、都道府県及び事業ごとに付された番号を記載すること。
C64: ２ | D64: ※の欄には、記載しないこと。
A66: 第１表 温室効果ガス算定排出量（その１）
B67: 温室効果ガスである物質の区分 | U67: 温室効果ガス算定排出量
B68: １．エネルギーの使用に伴って発生する二酸化炭素 | U68: 0 | Z68: t-CO2
B69: ２．エネルギーの使用に伴って発生する二酸化炭素以外の二酸化炭素 | U69: 0 | Z69: t-CO2
B70: ３．メタン | U70: 0 | Z70: t-CO2
B71: ４．一酸化二窒素 | U71: 0 | Z71: t-CO2
B72: ５．ハイドロフルオロカーボン | Z72: t-CO2
B73: ６．パーフルオロカーボン | Z73: t-CO2
B74: ７．六ふっ化硫黄 | Z74: t-CO2
A76: 備考 | C76: １ | D76: エネルギーの使用に伴って発生する二酸化炭素の温室効果ガス算定排出量の欄には、次に掲げる量（他人への電気又は熱の供給に係るものを除く。）の合計量を記載すること。
D77: (1) 燃料の使用に伴って発生する二酸化炭素の排出量
D78: (2) 電気の使用に伴って発生する二酸化炭素の排出量
D79: (3) 熱の使用に伴って発生する二酸化炭素の排出量
C80: ２ | D80: 本報告に係る事業所が、主たる事業として行う電気事業の用に供する発電所又は主たる事業として行う熱供給事業の用に供する熱供給施設が設置されている事業所である場合は、本表に加えて第２表にも必要事項を記載すること。
C81: ３ | D81: 本報告に係る事業所がエネルギーの使用の合理化に関する法律に基づく第一種エネルギー管理指定工場又は第二種エネルギー管理指定工場である場合は、エネルギーの使用に伴って発生する二酸化炭素の温室効果ガス算定排出量の欄には記載する必要はないこと。
C82: ４ | D82: エネルギーの使用に伴って発生する二酸化炭素以外の二酸化炭素の温室効果ガス算定排出量に、次に掲げる活動に伴って発生する二酸化炭素の排出量が含まれる場合は、エネルギーの使用に伴って発生する二酸化炭素以外の二酸化炭素の温室効果ガス算定排出量の欄には、当該活動に伴って発生する二酸化炭素の排出量の合計量を控除した量を記載し、本表に加えて第２表にも必要事項を記載すること。
D83: (1) 廃棄物の焼却（当該廃棄物が燃料（廃棄物を原材料とする燃料を除く。）に代えて燃焼の用に供される場合に限る。）又は次に掲げる用途への使用
D84: イ 廃ゴムタイヤに含まれる鉄を製品の原材料として使用する用途
D85: ロ 廃プラスチック類を高炉において鉄鉱石を還元するために使用する用途
D86: ハ 廃プラスチック類をコークス炉において自らの使用に係るコークス又は炭化水素油を製造するために使用する用途
D87: (2) 廃棄物を原材料とする燃料の使用
C89: ５ | D89: ハイドロフルオロカーボン及びパーフルオロカーボンの温室効果ガス算定排出量の欄には、地球温暖化対策の推進に関する法律施行令に定める温室効果ガスであるハイドロフルオロカーボンである物質の温室効果ガス算定排出量及びパーフルオロカーボンである物質の温室効果ガス算定排出量について、それぞれその合計量を記載すること。
A91: 第２表 温室効果ガス算定排出量（その２）
B93: １ | C93: ．エネルギーの使用に伴って発生する二酸化炭素【発電所又は熱供給事業の用に供する熱供給施設が設置されている事業所のみ】
L94: 温室効果ガス算定排出量 | X94: t-CO2
B97: ２ | C97: ．廃棄物の焼却若しくは製品の製造の用途への使用又は廃棄物燃料の使用に伴って発生する二酸化炭素
L98: 温室効果ガス算定排出量 | X98: t-CO2
A101: 備考 | C101: １ | D101: 本報告に係る事業所が、主たる事業として行う電気事業の用に供する発電所又は主たる事業として行う熱供給事業の用に供する熱供給施設が設置されている事業所である場合は、エネルギーの使用に伴って発生する二酸化炭素の温室効果ガス算定排出量の欄には、第１表の備考の１(1)に掲げる量を記載すること。
C102: ２ | D102: 本報告に係る事業所がエネルギーの使用の合理化に関する法律に基づく第一種エネルギー管理指定工場又は第二種エネルギー管理指定工場である場合は、エネルギーの使用に伴って発生する二酸化炭素の温室効果ガス算定排出量の欄には記載する必要はないこと。
C103: ３ | D103: エネルギーの使用に伴って発生する二酸化炭素以外の二酸化炭素の温室効果ガス算定排出量に、次に掲げる活動に伴って発生する二酸化炭素の排出量が含まれる場合は、廃棄物の焼却若しくは製品の製造の用途への使用又は廃棄物燃料の使用に伴って発生する二酸化炭素の温室効果ガス算定排出量の欄には、当該活動に伴って発生する二酸化炭素の排出量の合計量を記載すること。
D104: (1) 廃棄物の焼却（当該廃棄物が燃料（廃棄物を原材料とする燃料を除く。）に代えて燃焼の用に供される場合に限る。）又は次に掲げる用途への使用
D105: イ 廃ゴムタイヤに含まれる鉄を製品の原材料として使用する用途
D106: ロ 廃プラスチック類を高炉において鉄鉱石を還元するために使用する用途
D107: ハ 廃プラスチック類をコークス炉において自らの使用に係るコークス又は炭化水素油を製造するために使用する用途
D108: (2) 廃棄物を原材料とする燃料の使用
A110: 第３表 法に基づく命令に定める算定方法又は係数と異なる算定方法又は係数
B111: 温室効果ガスである物質の区分 | J111: 当該算定方法又は係数の内容
A120: 備考 | C120: 本表の各欄には、法に基づく命令に定める算定方法又は係数と異なる算定方法又は係数を用いた場合に、当該算定方法又は係数を用いた温室効果ガスである物質の区分を記載し、当該算定方法又は係数の内容について説明すること。

Sheet 電気事業者(CO2排出係数)
A3: 電気事業者別二酸化炭素排出係数の更新
B4: 2023年度以降の排出係数は、2022年度の係数が登録されています。環境省及び経産省より最新年度の排出係数が公表されましたら
B5: 下記一覧の該当する排出係数の値を直接修正して、排出係数の更新を行ってください。
B7: ○電気事業者別二酸化炭素排出係数一覧
B8: 環境省及び経産省より公表された最新年度の電気事業者別排出係数は2022年度です。※2024.6.1現在 | O8: 【単位：ｔCO2/千kWh】
B10: 電気事業者 | C10: 年度
C11: 2005 | D11: 2006 | E11: 2007 | F11: 2008 | G11: 2009 | H11: 2010 | I11: 2011 | J11: 2012 | K11: 2013 | L11: 2014 | M11: 2015 | N11: 2016 | O11: 2017 | P11: 2018 | Q11: 2019 | R11: 2020 | S11: 2021 | T11: 2022 | U11: 2023 | V11: 2024 | W11: 2025 | X11: 2026 | Y11: 2027 | Z11: 2028 | AA11: 2029 | AB11: 2030 | AC11: 2031 | AD11: 2032 | AE11: 2033 | AF11: 2034 | AG11: 2035 | AH11: 2036 | AI11: 2037 | AJ11: 2038 | AK11: 2039 | AL11: 2040 | AM11: 2041 | AN11: 2042 | AO11: 2043 | AP11: 2044 | AQ11: 2045 | AR11: 2046 | AS11: 2047 | AT11: 2048 | AU11: 2049 | AV11: 2050
B12: 北海道電力（株） | C12: 0.502 | D12: 0.479 | E12: 0.517 | F12: 0.588 | G12: 0.433 | H12: 0.353 | I12: 0.485 | J12: 0.688 | K12: 0.678 | L12: 0.683 | M12: 0.669 | N12: 0.632 | O12: 0.666 | P12: 0.643 | Q12: 0.593 | R12: 0.601 | S12: 0.549 | T12: 0.533 | U12: 0.533 | V12: 0.533 | W12: 0.533 | X12: 0.533 | Y12: 0.533 | Z12: 0.533 | AA12: 0.533 | AB12: 0.533 | AC12: 0.533 | AD12: 0.533 | AE12: 0.533 | AF12: 0.533 | AG12: 0.533 | AH12: 0.533 | AI12: 0.533 | AJ12: 0.533 | AK12: 0.533 | AL12: 0.533 | AM12: 0.533 | AN12: 0.533 | AO12: 0.533 | AP12: 0.533 | AQ12: 0.533 | AR12: 0.533 | AS12: 0.533 | AT12: 0.533 | AU12: 0.533 | AV12: 0.533
B13: 東北電力（株） | C13: 0.51 | D13: 0.441 | E13: 0.473 | F13: 0.469 | G13: 0.468 | H13: 0.429 | I13: 0.547 | J13: 0.6 | K13: 0.591 | L13: 0.571 | M13: 0.556 | N13: 0.545 | O13: 0.521 | P13: 0.522 | Q13: 0.519 | R13: 0.476 | S13: 0.496 | T13: 0.477 | U13: 0.477 | V13: 0.477 | W13: 0.477 | X13: 0.477 | Y13: 0.477 | Z13: 0.477 | AA13: 0.477 | AB13: 0.477 | AC13: 0.477 | AD13: 0.477 | AE13: 0.477 | AF13: 0.477 | AG13: 0.477 | AH13: 0.477 | AI13: 0.477 | AJ13: 0.477 | AK13: 0.477 | AL13: 0.477 | AM13: 0.477 | AN13: 0.477 | AO13: 0.477 | AP13: 0.477 | AQ13: 0.477 | AR13: 0.477 | AS13: 0.477 | AT13: 0.477 | AU13: 0.477 | AV13: 0.477
B14: 東京電力ｴﾅｼﾞｰﾊﾟｰﾄﾅｰ（株） | C14: 0.368 | D14: 0.339 | E14: 0.425 | F14: 0.418 | G14: 0.384 | H14: 0.375 | I14: 0.464 | J14: 0.525 | K14: 0.531 | L14: 0.505 | M14: 0.5 | N14: 0.486 | O14: 0.475 | P14: 0.468 | Q14: 0.457 | R14: 0.447 | S14: 0.457 | T14: 0.457 | U14: 0.457 | V14: 0.457 | W14: 0.457 | X14: 0.457 | Y14: 0.457 | Z14: 0.457 | AA14: 0.457 | AB14: 0.457 | AC14: 0.457 | AD14: 0.457 | AE14: 0.457 | AF14: 0.457 | AG14: 0.457 | AH14: 0.457 | AI14: 0.457 | AJ14: 0.457 | AK14: 0.457 | AL14: 0.457 | AM14: 0.457 | AN14: 0.457 | AO14: 0.457 | AP14: 0.457 | AQ14: 0.457 | AR14: 0.457 | AS14: 0.457 | AT14: 0.457 | AU14: 0.457 | AV14: 0.457
B15: 中部電力（株） | C15: 0.452 | D15: 0.481 | E15: 0.47 | F15: 0.455 | G15: 0.474 | H15: 0.473 | I15: 0.518 | J15: 0.516 | K15: 0.513 | L15: 0.497 | M15: 0.486 | N15: 0.485 | O15: 0.476 | P15: 0.457 | Q15: 0.431 | R15: 0.406 | S15: 0.449 | T15: 0.433 | U15: 0.433 | V15: 0.433 | W15: 0.433 | X15: 0.433 | Y15: 0.433 | Z15: 0.433 | AA15: 0.433 | AB15: 0.433 | AC15: 0.433 | AD15: 0.433 | AE15: 0.433 | AF15: 0.433 | AG15: 0.433 | AH15: 0.433 | AI15: 0.433 | AJ15: 0.433 | AK15: 0.433 | AL15: 0.433 | AM15: 0.433 | AN15: 0.433 | AO15: 0.433 | AP15: 0.433 | AQ15: 0.433 | AR15: 0.433 | AS15: 0.433 | AT15: 0.433 | AU15: 0.433 | AV15: 0.433
B16: 北陸電力（株） | C16: 0.407 | D16: 0.457 | E16: 0.555 | F16: 0.55 | G16: 0.374 | H16: 0.423 | I16: 0.641 | J16: 0.663 | K16: 0.63 | L16: 0.647 | M16: 0.627 | N16: 0.64 | O16: 0.593 | P16: 0.542 | Q16: 0.51 | R16: 0.469 | S16: 0.48 | T16: 0.487 | U16: 0.487 | V16: 0.487 | W16: 0.487 | X16: 0.487 | Y16: 0.487 | Z16: 0.487 | AA16: 0.487 | AB16: 0.487 | AC16: 0.487 | AD16: 0.487 | AE16: 0.487 | AF16: 0.487 | AG16: 0.487 | AH16: 0.487 | AI16: 0.487 | AJ16: 0.487 | AK16: 0.487 | AL16: 0.487 | AM16: 0.487 | AN16: 0.487 | AO16: 0.487 | AP16: 0.487 | AQ16: 0.487 | AR16: 0.487 | AS16: 0.487 | AT16: 0.487 | AU16: 0.487 | AV16: 0.487
B17: 関西電力（株） | C17: 0.358 | D17: 0.338 | E17: 0.366 | F17: 0.355 | G17: 0.294 | H17: 0.311 | I17: 0.45 | J17: 0.514 | K17: 0.522 | L17: 0.531 | M17: 0.509 | N17: 0.509 | O17: 0.435 | P17: 0.352 | Q17: 0.34 | R17: 0.362 | S17: 0.299 | T17: 0.36 | U17: 0.36 | V17: 0.36 | W17: 0.36 | X17: 0.36 | Y17: 0.36 | Z17: 0.36 | AA17: 0.36 | AB17: 0.36 | AC17: 0.36 | AD17: 0.36 | AE17: 0.36 | AF17: 0.36 | AG17: 0.36 | AH17: 0.36 | AI17: 0.36 | AJ17: 0.36 | AK17: 0.36 | AL17: 0.36 | AM17: 0.36 | AN17: 0.36 | AO17: 0.36 | AP17: 0.36 | AQ17: 0.36 | AR17: 0.36 | AS17: 0.36 | AT17: 0.36 | AU17: 0.36 | AV17: 0.36
B18: 中国電力（株） | C18: 0.555 | D18: 0.555 | E18: 0.555 | F18: 0.674 | G18: 0.628 | H18: 0.728 | I18: 0.657 | J18: 0.738 | K18: 0.719 | L18: 0.706 | M18: 0.697 | N18: 0.691 | O18: 0.669 | P18: 0.618 | Q18: 0.561 | R18: 0.531 | S18: 0.529 | T18: 0.537 | U18: 0.537 | V18: 0.537 | W18: 0.537 | X18: 0.537 | Y18: 0.537 | Z18: 0.537 | AA18: 0.537 | AB18: 0.537 | AC18: 0.537 | AD18: 0.537 | AE18: 0.537 | AF18: 0.537 | AG18: 0.537 | AH18: 0.537 | AI18: 0.537 | AJ18: 0.537 | AK18: 0.537 | AL18: 0.537 | AM18: 0.537 | AN18: 0.537 | AO18: 0.537 | AP18: 0.537 | AQ18: 0.537 | AR18: 0.537 | AS18: 0.537 | AT18: 0.537 | AU18: 0.537 | AV18: 0.537
B19: 四国電力（株） | C19: 0.378 | D19: 0.368 | E19: 0.392 | F19: 0.378 | G19: 0.407 | H19: 0.326 | I19: 0.552 | J19: 0.7 | K19: 0.699 | L19: 0.676 | M19: 0.651 | N19: 0.51 | O19: 0.514 | P19: 0.5 | Q19: 0.382 | R19: 0.55 | S19: 0.484 | T19: 0.37 | U19: 0.37 | V19: 0.37 | W19: 0.37 | X19: 0.37 | Y19: 0.37 | Z19: 0.37 | AA19: 0.37 | AB19: 0.37 | AC19: 0.37 | AD19: 0.37 | AE19: 0.37 | AF19: 0.37 | AG19: 0.37 | AH19: 0.37 | AI19: 0.37 | AJ19: 0.37 | AK19: 0.37 | AL19: 0.37 | AM19: 0.37 | AN19: 0.37 | AO19: 0.37 | AP19: 0.37 | AQ19: 0.37 | AR19: 0.37 | AS19: 0.37 | AT19: 0.37 | AU19: 0.37 | AV19: 0.37
B20: 九州電力（株） | C20: 0.365 | D20: 0.375 | E20: 0.387 | F20: 0.374 | G20: 0.369 | H20: 0.385 | I20: 0.525 | J20: 0.612 | K20: 0.613 | L20: 0.584 | M20: 0.509 | N20: 0.462 | O20: 0.438 | P20: 0.319 | Q20: 0.344 | R20: 0.365 | S20: 0.296 | T20: 0.407 | U20: 0.407 | V20: 0.407 | W20: 0.407 | X20: 0.407 | Y20: 0.407 | Z20: 0.407 | AA20: 0.407 | AB20: 0.407 | AC20: 0.407 | AD20: 0.407 | AE20: 0.407 | AF20: 0.407 | AG20: 0.407 | AH20: 0.407 | AI20: 0.407 | AJ20: 0.407 | AK20: 0.407 | AL20: 0.407 | AM20: 0.407 | AN20: 0.407 | AO20: 0.407 | AP20: 0.407 | AQ20: 0.407 | AR20: 0.407 | AS20: 0.407 | AT20: 0.407 | AU20: 0.407 | AV20: 0.407
B21: 沖縄電力（株） | C21: 0.555 | D21: 0.555 | E21: 0.555 | F21: 0.946 | G21: 0.931 | H21: 0.935 | I21: 0.932 | J21: 0.903 | K21: 0.858 | L21: 0.816 | M21: 0.802 | N21: 0.799 | O21: 0.786 | P21: 0.786 | Q21: 0.81 | R21: 0.737 | S21: 0.717 | T21: 0.71 | U21: 0.71 | V21: 0.71 | W21: 0.71 | X21: 0.71 | Y21: 0.71 | Z21: 0.71 | AA21: 0.71 | AB21: 0.71 | AC21: 0.71 | AD21: 0.71 | AE21: 0.71 | AF21: 0.71 | AG21: 0.71 | AH21: 0.71 | AI21: 0.71 | AJ21: 0.71 | AK21: 0.71 | AL21: 0.71 | AM21: 0.71 | AN21: 0.71 | AO21: 0.71 | AP21: 0.71 | AQ21: 0.71 | AR21: 0.71 | AS21: 0.71 | AT21: 0.71 | AU21: 0.71 | AV21: 0.71
B22: 10社以外 | C22: 0.5151428571 | D22: 0.5043142857 | E22: 0.5031142857 | F22: 0.5248 | G22: 0.5086285714 | H22: 0.4645142857 | I22: 0.4748571429 | J22: 0.4536571429 | K22: 0.4431428571 | L22: 0.4484571429 | M22: 0.4212857143 | N22: 0.488 | O22: 0.489 | P22: 0.47 | Q22: 0.452 | R22: 0.432 | S22: 0.421 | T22: 0.414 | U22: 0.414 | V22: 0.414 | W22: 0.414 | X22: 0.414 | Y22: 0.414 | Z22: 0.414 | AA22: 0.414 | AB22: 0.414 | AC22: 0.414 | AD22: 0.414 | AE22: 0.414 | AF22: 0.414 | AG22: 0.414 | AH22: 0.414 | AI22: 0.414 | AJ22: 0.414 | AK22: 0.414 | AL22: 0.414 | AM22: 0.414 | AN22: 0.414 | AO22: 0.414 | AP22: 0.414 | AQ22: 0.414 | AR22: 0.414 | AS22: 0.414 | AT22: 0.414 | AU22: 0.414 | AV22: 0.414
B23: 代替値 | C23: 0.555 | D23: 0.555 | E23: 0.555 | F23: 0.561 | G23: 0.561 | H23: 0.559 | I23: 0.55 | J23: 0.55 | K23: 0.551 | L23: 0.579 | M23: 0.587 | N23: 0.512 | O23: 0.5 | P23: 0.488 | Q23: 0.47 | R23: 0.453 | S23: 0.441 | T23: 0.429 | U23: 0.429 | V23: 0.429 | W23: 0.429 | X23: 0.429 | Y23: 0.429 | Z23: 0.429 | AA23: 0.429 | AB23: 0.429 | AC23: 0.429 | AD23: 0.429 | AE23: 0.429 | AF23: 0.429 | AG23: 0.429 | AH23: 0.429 | AI23: 0.429 | AJ23: 0.429 | AK23: 0.429 | AL23: 0.429 | AM23: 0.429 | AN23: 0.429 | AO23: 0.429 | AP23: 0.429 | AQ23: 0.429 | AR23: 0.429 | AS23: 0.429 | AT23: 0.429 | AU23: 0.429 | AV23: 0.429
B25: ※「10社以外」について
B26: ・2005～2015年度は当支援ツール旧版（v.2.1）に掲載した事業者（10社以外）の平均値とした。
B27: ・2016年度以降は環境省公表資料に掲載された事業者（10社以外）の平均値を記載した。
B28: ・平均値を算出する際、二酸化炭素排出係数が0と記載されている事業者のデータは除外した。

Sheet 月報（収運）
W1: データ部
W2: 車両燃料種類 | X2: 単位
A3: 収集運搬業における月別の車両別、燃料使用量の記入用シート | W3: ガソリン | X3: ﾘｯﾄﾙ
A4: 2024年度 | W4: 軽油 | X4: ﾘｯﾄﾙ
W5: ＬＰＧ | X5: kg
B6: ○燃料別、台数及び燃料使用量の合計（集計結果） | W6: 天然ガス | X6: ㎥
B7: 燃料種 | E7: 単位 | F7: 台数 合計 | G7: 燃料使用量 合計 | W7: バイオエタノール | X7: ﾘｯﾄﾙ
G8: 4月 | H8: 5月 | I8: 6月 | J8: 7月 | K8: 8月 | L8: 9月 | M8: 10月 | N8: 11月 | O8: 12月 | P8: 1月 | Q8: 2月 | R8: 3月 | S8: 年度合計 | W8: バイオディーゼル | X8: ﾘｯﾄﾙ
B9: 車両の燃料使用 | C9: =$W3 -> ガソリン | E9: kl | F9: =SUMIF($D$20:$D$69,$C9,$F$20:$F$69) -> 0 | G9: =SUMIF($D$20:$D$69,$C9,$G$20:$G$69)/1000 -> 0 | H9: =SUMIF($D$20:$D$69,$C9,$H$20:$H$69)/1000 -> 0 | I9: =SUMIF($D$20:$D$69,$C9,$I$20:$I$69)/1000 -> 0 | J9: =SUMIF($D$20:$D$69,$C9,$J$20:$J$69)/1000 -> 0 | K9: =SUMIF($D$20:$D$69,$C9,$K$20:$K$69)/1000 -> 0 | L9: =SUMIF($D$20:$D$69,$C9,$L$20:$L$69)/1000 -> 0 | M9: =SUMIF($D$20:$D$69,$C9,$M$20:$M$69)/1000 -> 0 | N9: =SUMIF($D$20:$D$69,$C9,$N$20:$N$69)/1000 -> 0 | O9: =SUMIF($D$20:$D$69,$C9,$O$20:$O$69)/1000 -> 0 | P9: =SUMIF($D$20:$D$69,$C9,$P$20:$P$69)/1000 -> 0 | Q9: =SUMIF($D$20:$D$69,$C9,$Q$20:$Q$69)/1000 -> 0 | R9: =SUMIF($D$20:$D$69,$C9,$R$20:$R$69)/1000 -> 0 | S9: =SUM(G9:R9) -> 0 | T9: （kl）
C10: 軽油 | E10: kl | F10: 0 | G10: 0 | H10: 0 | I10: 0 | J10: 0 | K10: 0 | L10: 0 | M10: 0 | N10: 0 | O10: 0 | P10: 0 | Q10: 0 | R10: 0 | S10: 0 | T10: （kl）
C11: ＬＰＧ | E11: t | F11: 0 | G11: 0 | H11: 0 | I11: 0 | J11: 0 | K11: 0 | L11: 0 | M11: 0 | N11: 0 | O11: 0 | P11: 0 | Q11: 0 | R11: 0 | S11: 0 | T11: （t）
C12: 天然ガス | E12: 千㎥ | F12: 0 | G12: 0 | H12: 0 | I12: 0 | J12: 0 | K12: 0 | L12: 0 | M12: 0 | N12: 0 | O12: 0 | P12: 0 | Q12: 0 | R12: 0 | S12: 0 | T12: （千m3）
C13: =$W7 -> バイオエタノール | E13: kl | F13: 0 | G13: 0 | H13: 0 | I13: 0 | J13: 0 | K13: 0 | L13: 0 | M13: 0 | N13: 0 | O13: 0 | P13: 0 | Q13: 0 | R13: 0 | S13: 0 | T13: （kl）
C14: バイオディーゼル | E14: kl | F14: 0 | G14: 0 | H14: 0 | I14: 0 | J14: 0 | K14: 0 | L14: 0 | M14: 0 | N14: 0 | O14: 0 | P14: 0 | Q14: 0 | R14: 0 | S14: 0 | T14: （kl）
E16: ※入力した値は、活動量の入力画面にある「燃料法」の燃料使用量へ自動反映されます。
B17: ○月別の車両別、燃料使用量（記入用） | E17: 「燃料法」の燃料使用量に入力された値があった場合は、月別で入力した値に上書きされます。
B18: No | C18: 車種名 | D18: 燃料種 | E18: 単位 | F18: 台数 | G18: 燃料使用量
G19: 4月 | H19: 5月 | I19: 6月 | J19: 7月 | K19: 8月 | L19: 9月 | M19: 10月 | N19: 11月 | O19: 12月 | P19: 1月 | Q19: 2月 | R19: 3月 | S19: 年度合計
B20: 1 | E20: =IF(ISERROR(VLOOKUP(D20,$W$3:$X$8,2,FALSE)),"",VLOOKUP(D20,$W$3:$X$8,2,FALSE)) ->  | S20: =SUM(G20:R20) -> 0
B21: 2 | E21: =IF(ISERROR(VLOOKUP(D21,$W$3:$X$8,2,FALSE)),"",VLOOKUP(D21,$W$3:$X$8,2,FALSE)) ->  | S21: 0
B22: 3 | S22: 0
B23: 4 | S23: 0
B24: 5 | S24: 0
B25: 6 | S25: 0
B26: 7 | S26: 0
B27: 8 | S27: 0
B28: 9 | S28: 0
B29: 10 | S29: 0
B30: 11 | S30: 0
B31: 12 | S31: 0
B32: 13 | S32: 0
B33: 14 | S33: 0
B34: 15 | S34: 0
B35: 16 | S35: 0
B36: 17 | S36: 0
B37: 18 | S37: 0
B38: 19 | S38: 0
B39: 20 | S39: 0
B40: 21 | S40: 0
B41: 22 | S41: 0
B42: 23 | S42: 0
B43: 24 | S43: 0
B44: 25 | S44: 0
B45: 26 | S45: 0
B46: 27 | S46: 0
B47: 28 | S47: 0
B48: 29 | S48: 0
B49: 30 | S49: 0
B50: 31 | S50: 0
B51: 32 | S51: 0
B52: 33 | S52: =SUM(G52:R52) -> 0
B53: 34 | S53: 0
B54: 35 | S54: 0
B55: 36 | S55: 0
B56: 37 | S56: 0
B57: 38 | S57: 0
B58: 39 | S58: 0
B59: 40 | S59: 0
B60: 41 | S60: 0
B61: 42 | S61: 0
B62: 43 | S62: 0
B63: 44 | S63: 0
B64: 45 | S64: 0
B65: 46 | S65: 0
B66: 47 | S66: 0
B67: 48 | S67: 0
B68: 49 | S68: 0
B69: 50 | S69: 0

Sheet 月報（中間）
W1: データ部
W2: 産業廃棄物種類 | X2: 単位
A3: 中間処理業における月別の産業廃棄物別、焼却量・溶融量の記入用シート | W3: 下水汚泥：炉No1 | X3: kg
A4: 2024年度 | W4: 下水汚泥：炉No2 | X4: kg
W5: 下水汚泥：炉No3 | X5: kg
B6: ○産業廃棄物種類別、施設数及び焼却量・溶融量の合計（集計結果） | W6: 下水汚泥以外 | X6: kg
B7: 産業廃棄物の種類 | E7: 単位 | F7: 施設数 合計 | G7: 焼却量・溶融量 合計 | W7: 燃料系廃油、潤滑油系廃油、廃溶剤 | X7: kg
G8: 4月 | H8: 5月 | I8: 6月 | J8: 7月 | K8: 8月 | L8: 9月 | M8: 10月 | N8: 11月 | O8: 12月 | P8: 1月 | Q8: 2月 | R8: 3月 | S8: 年度合計 | W8: 動植物性廃油 | X8: kg
B9: 産業廃棄物の焼却・溶融 | C9: =$W3 -> 下水汚泥：炉No1 | E9: t | F9: =SUMIF($D$38:$D$87,$C9,$F$38:$F$87) -> 0 | G9: =SUMIF($D$38:$D$87,$C9,$G$38:$G$87)/1000 -> 0 | H9: =SUMIF($D$38:$D$87,$C9,$H$38:$H$87)/1000 -> 0 | I9: =SUMIF($D$38:$D$87,$C9,$I$38:$I$87)/1000 -> 0 | J9: =SUMIF($D$38:$D$87,$C9,$J$38:$J$87)/1000 -> 0 | K9: =SUMIF($D$38:$D$87,$C9,$K$38:$K$87)/1000 -> 0 | L9: =SUMIF($D$38:$D$87,$C9,$L$38:$L$87)/1000 -> 0 | M9: =SUMIF($D$38:$D$87,$C9,$M$38:$M$87)/1000 -> 0 | N9: =SUMIF($D$38:$D$87,$C9,$N$38:$N$87)/1000 -> 0 | O9: =SUMIF($D$38:$D$87,$C9,$O$38:$O$87)/1000 -> 0 | P9: =SUMIF($D$38:$D$87,$C9,$P$38:$P$87)/1000 -> 0 | Q9: =SUMIF($D$38:$D$87,$C9,$Q$38:$Q$87)/1000 -> 0 | R9: =SUMIF($D$38:$D$87,$C9,$R$38:$R$87)/1000 -> 0 | S9: =SUM(G9:R9) -> 0 | T9: （t） | W9: 廃プラスチック類、合成ゴムくず、合成繊維 | X9: kg
C10: 下水汚泥：炉No2 | E10: t | F10: 0 | G10: 0 | H10: 0 | I10: 0 | J10: 0 | K10: 0 | L10: 0 | M10: 0 | N10: 0 | O10: 0 | P10: 0 | Q10: 0 | R10: 0 | S10: 0 | T10: （t） | W10: 廃タイヤ | X10: kg
C11: 下水汚泥：炉No3 | E11: t | F11: 0 | G11: 0 | H11: 0 | I11: 0 | J11: 0 | K11: 0 | L11: 0 | M11: 0 | N11: 0 | O11: 0 | P11: 0 | Q11: 0 | R11: 0 | S11: 0 | T11: （t） | W11: 紙くず | X11: kg
C12: 下水汚泥以外 | E12: t | F12: 0 | G12: 0 | H12: 0 | I12: 0 | J12: 0 | K12: 0 | L12: 0 | M12: 0 | N12: 0 | O12: 0 | P12: 0 | Q12: 0 | R12: 0 | S12: 0 | T12: （t） | W12: 木くず | X12: kg
C13: 燃料系廃油、潤滑油系廃油、廃溶剤 | E13: t | F13: 0 | G13: 0 | H13: 0 | I13: 0 | J13: 0 | K13: 0 | L13: 0 | M13: 0 | N13: 0 | O13: 0 | P13: 0 | Q13: 0 | R13: 0 | S13: 0 | T13: （t） | W13: 繊維くず | X13: kg
C14: 動植物性廃油 | E14: t | F14: 0 | G14: 0 | H14: 0 | I14: 0 | J14: 0 | K14: 0 | L14: 0 | M14: 0 | N14: 0 | O14: 0 | P14: 0 | Q14: 0 | R14: 0 | S14: 0 | T14: （t） | W14: 動植物性残渣 | X14: kg
C15: 廃プラスチック類、合成ゴムくず、合成繊維 | E15: t | F15: 0 | G15: 0 | H15: 0 | I15: 0 | J15: 0 | K15: 0 | L15: 0 | M15: 0 | N15: 0 | O15: 0 | P15: 0 | Q15: 0 | R15: 0 | S15: 0 | T15: （t） | W15: 動物系固形不要物 | X15: kg
C16: 廃タイヤ | E16: t | F16: 0 | G16: 0 | H16: 0 | I16: 0 | J16: 0 | K16: 0 | L16: 0 | M16: 0 | N16: 0 | O16: 0 | P16: 0 | Q16: 0 | R16: 0 | S16: 0 | T16: （t） | W16: 動物のふん尿 | X16: kg
C17: 紙くず | E17: t | F17: 0 | G17: 0 | H17: 0 | I17: 0 | J17: 0 | K17: 0 | L17: 0 | M17: 0 | N17: 0 | O17: 0 | P17: 0 | Q17: 0 | R17: 0 | S17: 0 | T17: （t） | W17: 動物の死体 | X17: kg
C18: 木くず | E18: t | F18: 0 | G18: 0 | H18: 0 | I18: 0 | J18: 0 | K18: 0 | L18: 0 | M18: 0 | N18: 0 | O18: 0 | P18: 0 | Q18: 0 | R18: 0 | S18: 0 | T18: （t） | W18: 特別管理産業廃棄物の廃油 | X18: kg
C19: 繊維くず | E19: t | F19: 0 | G19: 0 | H19: 0 | I19: 0 | J19: 0 | K19: 0 | L19: 0 | M19: 0 | N19: 0 | O19: 0 | P19: 0 | Q19: 0 | R19: 0 | S19: 0 | T19: （t） | W19: 感染性廃棄物 | X19: kg
C20: 動植物性残渣 | E20: t | F20: 0 | G20: 0 | H20: 0 | I20: 0 | J20: 0 | K20: 0 | L20: 0 | M20: 0 | N20: 0 | O20: 0 | P20: 0 | Q20: 0 | R20: 0 | S20: 0 | T20: （t） | W20: その他（混合廃棄物） | X20: kg
C21: 動物系固形不要物 | E21: t | F21: 0 | G21: 0 | H21: 0 | I21: 0 | J21: 0 | K21: 0 | L21: 0 | M21: 0 | N21: 0 | O21: 0 | P21: 0 | Q21: 0 | R21: 0 | S21: 0 | T21: （t） | W21: コンポスト：有機性汚泥 | X21: kg
C22: 動物のふん尿 | E22: t | F22: 0 | G22: 0 | H22: 0 | I22: 0 | J22: 0 | K22: 0 | L22: 0 | M22: 0 | N22: 0 | O22: 0 | P22: 0 | Q22: 0 | R22: 0 | S22: 0 | T22: （t） | W22: コンポスト：動植物性残渣 | X22: kg
C23: 動物の死体 | E23: t | F23: 0 | G23: 0 | H23: 0 | I23: 0 | J23: 0 | K23: 0 | L23: 0 | M23: 0 | N23: 0 | O23: 0 | P23: 0 | Q23: 0 | R23: 0 | S23: 0 | T23: （t） | W23: コンポスト：紙くず、木くず、繊維くず | X23: kg
C24: 特別管理産業廃棄物の廃油 | E24: t | F24: 0 | G24: 0 | H24: 0 | I24: 0 | J24: 0 | K24: 0 | L24: 0 | M24: 0 | N24: 0 | O24: 0 | P24: 0 | Q24: 0 | R24: 0 | S24: 0 | T24: （t） | W24: コンポスト：その他の有機性廃棄物 | X24: kg
C25: 感染性廃棄物 | E25: t | F25: 0 | G25: 0 | H25: 0 | I25: 0 | J25: 0 | K25: 0 | L25: 0 | M25: 0 | N25: 0 | O25: 0 | P25: 0 | Q25: 0 | R25: 0 | S25: 0 | T25: （t） | W25: 廃棄物発電 | X25: kWh
C26: その他（混合廃棄物） | E26: t | F26: =SUMIF($D$38:$D$87,$C26,$F$38:$F$87) -> 0 | G26: =SUMIF($D$38:$D$87,$C26,$G$38:$G$87)/1000 -> 0 | H26: =SUMIF($D$38:$D$87,$C26,$H$38:$H$87)/1000 -> 0 | I26: 0 | J26: 0 | K26: 0 | L26: 0 | M26: 0 | N26: 0 | O26: 0 | P26: 0 | Q26: 0 | R26: 0 | S26: 0 | T26: （t） | W26: 廃棄物熱利用 | X26: kJ
B27: コンポスト化 | C27: コンポスト：有機性汚泥 | E27: t | F27: 0 | G27: 0 | H27: 0 | I27: 0 | J27: 0 | K27: 0 | L27: 0 | M27: 0 | N27: 0 | O27: 0 | P27: 0 | Q27: 0 | R27: 0 | S27: =SUM(G27:R27) -> 0 | T27: （t）
C28: コンポスト：動植物性残渣 | E28: t | F28: 0 | G28: 0 | H28: 0 | I28: 0 | J28: 0 | K28: 0 | L28: 0 | M28: 0 | N28: 0 | O28: 0 | P28: 0 | Q28: 0 | R28: 0 | S28: 0 | T28: （t）
C29: コンポスト：紙くず、木くず、繊維くず | E29: t | F29: 0 | G29: 0 | H29: 0 | I29: 0 | J29: 0 | K29: 0 | L29: 0 | M29: 0 | N29: 0 | O29: 0 | P29: 0 | Q29: 0 | R29: 0 | S29: 0 | T29: （t）
C30: コンポスト：その他の有機性廃棄物 | E30: t | F30: 0 | G30: 0 | H30: 0 | I30: 0 | J30: 0 | K30: 0 | L30: 0 | M30: 0 | N30: 0 | O30: 0 | P30: 0 | Q30: 0 | R30: 0 | S30: 0 | T30: （t）
B31: 発電・ 熱利用 | C31: =$W25 -> 廃棄物発電 | E31: 千kWh | F31: 0 | G31: 0 | H31: 0 | I31: 0 | J31: 0 | K31: 0 | L31: 0 | M31: 0 | N31: 0 | O31: 0 | P31: 0 | Q31: 0 | R31: =SUMIF($D$38:$D$87,$C31,$R$38:$R$87)/1000 -> 0 | S31: 0 | T31: （千kWh）
C32: =$W26 -> 廃棄物熱利用 | E32: 千MJ | F32: 0 | G32: 0 | H32: 0 | I32: 0 | J32: =SUMIF($D$38:$D$87,$C32,$J$38:$J$87)/1000 -> 0 | K32: 0 | L32: 0 | M32: 0 | N32: 0 | O32: 0 | P32: 0 | Q32: =SUMIF($D$38:$D$87,$C32,$Q$38:$Q$87)/1000 -> 0 | R32: =SUMIF($D$38:$D$87,$C32,$R$38:$R$87)/1000 -> 0 | S32: 0 | T32: （千MJ）
H34: ※入力した値は、活動量の入力画面にある焼却量・溶融量及び発電・熱利用量へ自動反映されます。
B35: ○月別の産業廃棄物種類別、施設数及び焼却量・溶融量（記入用） | H35: 焼却量・溶融量又は発電・熱利用量に入力された値があった場合は、月別で入力した値に上書きされます。
B36: No | C36: 施設名 | D36: 産業廃棄物種類 | E36: 単位 | F36: 施設数 | G36: 焼却量・溶融量
G37: 4月 | H37: 5月 | I37: 6月 | J37: 7月 | K37: 8月 | L37: 9月 | M37: 10月 | N37: 11月 | O37: 12月 | P37: 1月 | Q37: 2月 | R37: 3月 | S37: 年度合計
B38: 1 | E38: =IF(ISERROR(VLOOKUP(D38,$W$3:$X$26,2,FALSE)),"",VLOOKUP(D38,$W$3:$X$26,2,FALSE)) ->  | S38: =SUM(G38:R38) -> 0
B39: 2 | E39: =IF(ISERROR(VLOOKUP(D39,$W$3:$X$26,2,FALSE)),"",VLOOKUP(D39,$W$3:$X$26,2,FALSE)) ->  | S39: 0
B40: 3 | E40: =IF(ISERROR(VLOOKUP(D40,$W$3:$X$26,2,FALSE)),"",VLOOKUP(D40,$W$3:$X$26,2,FALSE)) ->  | S40: 0
B41: 4 | S41: 0
B42: 5 | S42: 0
B43: 6 | S43: 0
B44: 7 | S44: 0
B45: 8 | S45: 0
B46: 9 | S46: 0
B47: 10 | S47: 0
B48: 11 | S48: 0
B49: 12 | S49: 0
B50: 13 | S50: 0
B51: 14 | S51: 0
B52: 15 | S52: 0
B53: 16 | S53: 0
B54: 17 | S54: 0
B55: 18 | S55: 0
B56: 19 | S56: 0
B57: 20 | S57: 0
B58: 21 | S58: 0
B59: 22 | S59: 0
B60: 23 | S60: 0
B61: 24 | S61: 0
B62: 25 | S62: 0
B63: 26 | S63: 0
B64: 27 | S64: 0
B65: 28 | S65: 0
B66: 29 | S66: 0
B67: 30 | S67: 0
B68: 31 | S68: 0
B69: 32 | S69: 0
B70: 33 | S70: =SUM(G70:R70) -> 0
B71: 34 | S71: 0
B72: 35 | S72: 0
B73: 36 | S73: 0
B74: 37 | S74: 0
B75: 38 | S75: 0
B76: 39 | S76: 0
B77: 40 | S77: 0
B78: 41 | S78: 0
B79: 42 | S79: 0
B80: 43 | S80: 0
B81: 44 | S81: 0
B82: 45 | S82: 0
B83: 46 | S83: 0
B84: 47 | S84: 0
B85: 48 | S85: 0
B86: 49 | S86: 0
B87: 50 | S87: 0

Sheet 月報（最終）
W1: データ部
W2: 産業廃棄物種類 | X2: 単位
A3: 最終処分業における月別の産業廃棄物別、最終処分量の記入用シート | W3: 下水汚泥 | X3: kg
A4: 2024年度 | W4: 製造業有機性汚泥 | X4: kg
W5: 浄水施汚泥 | X5: kg
B6: ○産業廃棄物種類別、処分場数及び最終処分量の合計（集計結果） | W6: し尿処理汚泥 | X6: kg
B7: 産業廃棄物の種類 | E7: 単位 | F7: 処分 場数 合計 | G7: 最終処分量（湿重量） 合計 | W7: その他（有機無機混合汚泥） | X7: kg
G8: 4月 | H8: 5月 | I8: 6月 | J8: 7月 | K8: 8月 | L8: 9月 | M8: 10月 | N8: 11月 | O8: 12月 | P8: 1月 | Q8: 2月 | R8: 3月 | S8: 年度合計 | W8: 紙くず | X8: kg
B9: 生分解性廃棄物の最終処分 | C9: =$W3 -> 下水汚泥 | E9: t | F9: =SUMIF($D$28:$D$77,$C9,$F$28:$F$77) -> 0 | G9: =SUMIF($D$28:$D$77,$C9,$G$28:$G$77)/1000 -> 0 | H9: =SUMIF($D$28:$D$77,$C9,$H$28:$H$77)/1000 -> 0 | I9: =SUMIF($D$28:$D$77,$C9,$I$28:$I$77)/1000 -> 0 | J9: =SUMIF($D$28:$D$77,$C9,$J$28:$J$77)/1000 -> 0 | K9: =SUMIF($D$28:$D$77,$C9,$K$28:$K$77)/1000 -> 0 | L9: =SUMIF($D$28:$D$77,$C9,$L$28:$L$77)/1000 -> 0 | M9: =SUMIF($D$28:$D$77,$C9,$M$28:$M$77)/1000 -> 0 | N9: =SUMIF($D$28:$D$77,$C9,$N$28:$N$77)/1000 -> 0 | O9: =SUMIF($D$28:$D$77,$C9,$O$28:$O$77)/1000 -> 0 | P9: =SUMIF($D$28:$D$77,$C9,$P$28:$P$77)/1000 -> 0 | Q9: =SUMIF($D$28:$D$77,$C9,$Q$28:$Q$77)/1000 -> 0 | R9: =SUMIF($D$28:$D$77,$C9,$R$28:$R$77)/1000 -> 0 | S9: =SUM(G9:R9) -> 0 | T9: （t） | W9: 木くず | X9: kg
C10: 製造業有機性汚泥 | E10: t | F10: =SUMIF($D$28:$D$77,$C10,$F$28:$F$77) -> 0 | G10: =SUMIF($D$28:$D$77,$C10,$G$28:$G$77)/1000 -> 0 | H10: 0 | I10: 0 | J10: 0 | K10: 0 | L10: 0 | M10: 0 | N10: 0 | O10: 0 | P10: 0 | Q10: 0 | R10: 0 | S10: =SUM(G10:R10) -> 0 | T10: （t） | W10: 繊維くず | X10: kg
C11: 浄水施汚泥 | E11: t | F11: 0 | G11: 0 | H11: 0 | I11: 0 | J11: 0 | K11: 0 | L11: 0 | M11: 0 | N11: 0 | O11: 0 | P11: 0 | Q11: 0 | R11: 0 | S11: =SUM(G11:R11) -> 0 | T11: （t） | W11: 動植物性残渣 | X11: kg
C12: し尿処理汚泥 | E12: t | F12: 0 | G12: 0 | H12: 0 | I12: 0 | J12: 0 | K12: 0 | L12: 0 | M12: 0 | N12: 0 | O12: 0 | P12: 0 | Q12: 0 | R12: 0 | S12: 0 | T12: （t） | W12: 動物系固形不要物 | X12: kg
C13: その他（有機無機混合汚泥） | E13: t | F13: 0 | G13: 0 | H13: 0 | I13: 0 | J13: 0 | K13: 0 | L13: 0 | M13: 0 | N13: 0 | O13: 0 | P13: 0 | Q13: 0 | R13: 0 | S13: 0 | T13: （t） | W13: 動物のふん尿 | X13: kg
C14: 紙くず | E14: t | F14: 0 | G14: 0 | H14: 0 | I14: 0 | J14: 0 | K14: 0 | L14: 0 | M14: 0 | N14: 0 | O14: 0 | P14: 0 | Q14: 0 | R14: 0 | S14: 0 | T14: （t） | W14: 動物の死体 | X14: kg
C15: 木くず | E15: t | F15: 0 | G15: 0 | H15: 0 | I15: 0 | J15: 0 | K15: 0 | L15: 0 | M15: 0 | N15: 0 | O15: 0 | P15: 0 | Q15: 0 | R15: 0 | S15: 0 | T15: （t） | W15: その他（混合廃棄物） | X15: kg
C16: 繊維くず | E16: t | F16: 0 | G16: 0 | H16: 0 | I16: 0 | J16: 0 | K16: 0 | L16: 0 | M16: 0 | N16: 0 | O16: 0 | P16: 0 | Q16: 0 | R16: 0 | S16: 0 | T16: （t） | W16: 発生ガスの回収・焼却 | X16: ㎥
C17: 動植物性残渣 | E17: t | F17: 0 | G17: 0 | H17: 0 | I17: 0 | J17: 0 | K17: 0 | L17: 0 | M17: 0 | N17: 0 | O17: 0 | P17: 0 | Q17: 0 | R17: 0 | S17: 0 | T17: （t）
C18: 動物系固形不要物 | E18: t | F18: 0 | G18: 0 | H18: 0 | I18: 0 | J18: 0 | K18: 0 | L18: 0 | M18: 0 | N18: 0 | O18: 0 | P18: 0 | Q18: 0 | R18: 0 | S18: 0 | T18: （t）
C19: 動物のふん尿 | E19: t | F19: 0 | G19: 0 | H19: 0 | I19: 0 | J19: 0 | K19: 0 | L19: 0 | M19: 0 | N19: 0 | O19: 0 | P19: 0 | Q19: 0 | R19: 0 | S19: 0 | T19: （t）
C20: 動物の死体 | E20: t | F20: 0 | G20: 0 | H20: 0 | I20: 0 | J20: 0 | K20: 0 | L20: 0 | M20: 0 | N20: 0 | O20: 0 | P20: 0 | Q20: 0 | R20: 0 | S20: 0 | T20: （t）
C21: その他（混合廃棄物） | E21: t | F21: 0 | G21: 0 | H21: 0 | I21: 0 | J21: 0 | K21: 0 | L21: 0 | M21: 0 | N21: 0 | O21: 0 | P21: 0 | Q21: 0 | R21: 0 | S21: 0 | T21: （t）
B22: 発生ガスの回収・焼却 | E22: ㎥ | F22: =SUMIF($D$28:$D$77,$B22,$F$28:$F$77) -> 0 | G22: =SUMIF($D$28:$D$77,$B22,$G$28:$G$77) -> 0 | H22: 0 | I22: 0 | J22: 0 | K22: 0 | L22: 0 | M22: 0 | N22: 0 | O22: 0 | P22: 0 | Q22: 0 | R22: 0 | S22: =SUM(G22:R22) -> 0 | T22: （m3）
H24: ※入力した値は、活動量の入力画面にある最終処分量及び発生ガスの焼却量へ自動反映されます。
B25: ○月別の産業廃棄物種類別、処分場数及び最終処分量（記入用） | H25: 最終処分量又は発生ガスの焼却量に入力された値があった場合は、月別で入力した値に上書きされます。
B26: No | C26: 処分場名 | D26: 産業廃棄物種類 | E26: 単位 | F26: 処分 場数 | G26: 最終処分量（湿重量） 合計
G27: 4月 | H27: 5月 | I27: 6月 | J27: 7月 | K27: 8月 | L27: 9月 | M27: 10月 | N27: 11月 | O27: 12月 | P27: 1月 | Q27: 2月 | R27: 3月 | S27: 年度合計
B28: 1 | E28: =IF(ISERROR(VLOOKUP(D28,$W$3:$X$16,2,FALSE)),"",VLOOKUP(D28,$W$3:$X$16,2,FALSE)) ->  | S28: =SUM(G28:R28) -> 0
B29: 2 | E29: =IF(ISERROR(VLOOKUP(D29,$W$3:$X$16,2,FALSE)),"",VLOOKUP(D29,$W$3:$X$16,2,FALSE)) ->  | S29: 0
B30: 3 | S30: 0
B31: 4 | S31: 0
B32: 5 | S32: 0
B33: 6 | S33: 0
B34: 7 | S34: 0
B35: 8 | S35: 0
B36: 9 | S36: 0
B37: 10 | S37: 0
B38: 11 | S38: 0
B39: 12 | S39: 0
B40: 13 | S40: 0
B41: 14 | S41: 0
B42: 15 | S42: 0
B43: 16 | S43: 0
B44: 17 | S44: 0
B45: 18 | S45: 0
B46: 19 | S46: 0
B47: 20 | S47: 0
B48: 21 | S48: 0
B49: 22 | S49: 0
B50: 23 | S50: 0
B51: 24 | S51: 0
B52: 25 | S52: 0
B53: 26 | S53: 0
B54: 27 | S54: 0
B55: 28 | S55: 0
B56: 29 | S56: 0
B57: 30 | S57: 0
B58: 31 | S58: 0
B59: 32 | S59: 0
B60: 33 | S60: =SUM(G60:R60) -> 0
B61: 34 | S61: 0
B62: 35 | S62: 0
B63: 36 | S63: 0
B64: 37 | S64: 0
B65: 38 | S65: 0
B66: 39 | S66: 0
B67: 40 | S67: 0
B68: 41 | S68: 0
B69: 42 | S69: 0
B70: 43 | S70: 0
B71: 44 | S71: 0
B72: 45 | S72: 0
B73: 46 | S73: 0
B74: 47 | S74: 0
B75: 48 | S75: 0
B76: 49 | S76: 0
B77: 50 | S77: 0

Sheet 月報（関連）
W1: データ部
W2: エネルギー種類 | X2: 単位
A3: 産業廃棄物関連施設における月別のエネルギー種類別、エネルギー使用量の記入用シート | W3: 電気 | X3: kWh
A4: 2024年度 | W4: 都市ガス：用途1 | X4: ㎥
W5: 都市ガス：用途2 | X5: ㎥
B6: ○エネルギー種類別、施設数及びエネルギー使用量の合計（集計結果） | W6: 都市ガス：用途3 | X6: ㎥
B7: エネルギー種類 | E7: 単位 | F7: 施設数 合計 | G7: エネルギー使用量 合計 | W7: 液化天然ガス：用途1 | X7: kg
G8: 4月 | H8: 5月 | I8: 6月 | J8: 7月 | K8: 8月 | L8: 9月 | M8: 10月 | N8: 11月 | O8: 12月 | P8: 1月 | Q8: 2月 | R8: 3月 | S8: 年度合計 | W8: 液化天然ガス：用途2 | X8: kg
B9: エネルギー（電気・ガス・燃料）使用 | C9: =$W3 -> 電気 | E9: 千kWh | F9: =SUMIF($D$53:$D$102,$C9,$F$53:$F$102) -> 0 | G9: =SUMIF($D$53:$D$102,$C9,$G$53:$G$102)/1000 -> 0 | H9: =SUMIF($D$53:$D$102,$C9,$H$53:$H$102)/1000 -> 0 | I9: =SUMIF($D$53:$D$102,$C9,$I$53:$I$102)/1000 -> 0 | J9: =SUMIF($D$53:$D$102,$C9,$J$53:$J$102)/1000 -> 0 | K9: =SUMIF($D$53:$D$102,$C9,$K$53:$K$102)/1000 -> 0 | L9: =SUMIF($D$53:$D$102,$C9,$L$53:$L$102)/1000 -> 0 | M9: =SUMIF($D$53:$D$102,$C9,$M$53:$M$102)/1000 -> 0 | N9: =SUMIF($D$53:$D$102,$C9,$N$53:$N$102)/1000 -> 0 | O9: =SUMIF($D$53:$D$102,$C9,$O$53:$O$102)/1000 -> 0 | P9: =SUMIF($D$53:$D$102,$C9,$P$53:$P$102)/1000 -> 0 | Q9: =SUMIF($D$53:$D$102,$C9,$Q$53:$Q$102)/1000 -> 0 | R9: =SUMIF($D$53:$D$102,$C9,$R$53:$R$102)/1000 -> 0 | S9: =SUM(G9:R9) -> 0 | T9: （千kWh） | W9: 液化天然ガス：用途3 | X9: kg
C10: =$W4 -> 都市ガス：用途1 | E10: 千㎥ | F10: =SUMIF($D$53:$D$102,$C10,$F$53:$F$102) -> 0 | G10: =SUMIF($D$53:$D$102,$C10,$G$53:$G$102)/1000 -> 0 | H10: =SUMIF($D$53:$D$102,$C10,$H$53:$H$102)/1000 -> 0 | I10: =SUMIF($D$53:$D$102,$C10,$I$53:$I$102)/1000 -> 0 | J10: =SUMIF($D$53:$D$102,$C10,$J$53:$J$102)/1000 -> 0 | K10: =SUMIF($D$53:$D$102,$C10,$K$53:$K$102)/1000 -> 0 | L10: =SUMIF($D$53:$D$102,$C10,$L$53:$L$102)/1000 -> 0 | M10: =SUMIF($D$53:$D$102,$C10,$M$53:$M$102)/1000 -> 0 | N10: =SUMIF($D$53:$D$102,$C10,$N$53:$N$102)/1000 -> 0 | O10: =SUMIF($D$53:$D$102,$C10,$O$53:$O$102)/1000 -> 0 | P10: =SUMIF($D$53:$D$102,$C10,$P$53:$P$102)/1000 -> 0 | Q10: =SUMIF($D$53:$D$102,$C10,$Q$53:$Q$102)/1000 -> 0 | R10: =SUMIF($D$53:$D$102,$C10,$R$53:$R$102)/1000 -> 0 | S10: =SUM(G10:R10) -> 0 | T10: （千m3） | W10: 軽油：用途1 | X10: ﾘｯﾄﾙ
C11: 都市ガス：用途2 | E11: 千㎥ | F11: =SUMIF($D$53:$D$102,$C11,$F$53:$F$102) -> 0 | G11: =SUMIF($D$53:$D$102,$C11,$G$53:$G$102)/1000 -> 0 | H11: =SUMIF($D$53:$D$102,$C11,$H$53:$H$102)/1000 -> 0 | I11: =SUMIF($D$53:$D$102,$C11,$I$53:$I$102)/1000 -> 0 | J11: =SUMIF($D$53:$D$102,$C11,$J$53:$J$102)/1000 -> 0 | K11: =SUMIF($D$53:$D$102,$C11,$K$53:$K$102)/1000 -> 0 | L11: =SUMIF($D$53:$D$102,$C11,$L$53:$L$102)/1000 -> 0 | M11: =SUMIF($D$53:$D$102,$C11,$M$53:$M$102)/1000 -> 0 | N11: =SUMIF($D$53:$D$102,$C11,$N$53:$N$102)/1000 -> 0 | O11: =SUMIF($D$53:$D$102,$C11,$O$53:$O$102)/1000 -> 0 | P11: =SUMIF($D$53:$D$102,$C11,$P$53:$P$102)/1000 -> 0 | Q11: =SUMIF($D$53:$D$102,$C11,$Q$53:$Q$102)/1000 -> 0 | R11: =SUMIF($D$53:$D$102,$C11,$R$53:$R$102)/1000 -> 0 | S11: =SUM(G11:R11) -> 0 | T11: （千m3） | W11: 軽油：用途2 | X11: ﾘｯﾄﾙ
C12: 都市ガス：用途3 | E12: 千㎥ | F12: 0 | G12: 0 | H12: 0 | I12: 0 | J12: 0 | K12: 0 | L12: 0 | M12: 0 | N12: 0 | O12: 0 | P12: 0 | Q12: 0 | R12: 0 | S12: 0 | T12: （千m3） | W12: 軽油：用途3 | X12: ﾘｯﾄﾙ
C13: 液化天然ガス：用途1 | E13: ｔ | F13: 0 | G13: 0 | H13: 0 | I13: 0 | J13: 0 | K13: 0 | L13: 0 | M13: 0 | N13: 0 | O13: 0 | P13: 0 | Q13: 0 | R13: 0 | S13: 0 | T13: （千m3） | W13: 灯油：用途1 | X13: ﾘｯﾄﾙ
C14: 液化天然ガス：用途2 | E14: ｔ | F14: 0 | G14: 0 | H14: 0 | I14: 0 | J14: 0 | K14: 0 | L14: 0 | M14: 0 | N14: 0 | O14: 0 | P14: 0 | Q14: 0 | R14: 0 | S14: 0 | T14: （千m3） | W14: 灯油：用途2 | X14: ﾘｯﾄﾙ
C15: 液化天然ガス：用途3 | E15: ｔ | F15: 0 | G15: 0 | H15: 0 | I15: 0 | J15: 0 | K15: 0 | L15: 0 | M15: 0 | N15: 0 | O15: 0 | P15: 0 | Q15: 0 | R15: 0 | S15: 0 | T15: （千m3） | W15: 灯油：用途3 | X15: ﾘｯﾄﾙ
C16: 軽油：用途1 | E16: kl | F16: 0 | G16: 0 | H16: 0 | I16: 0 | J16: 0 | K16: 0 | L16: 0 | M16: 0 | N16: 0 | O16: 0 | P16: 0 | Q16: 0 | R16: 0 | S16: 0 | T16: （kl） | W16: A重油：用途1 | X16: ﾘｯﾄﾙ
C17: 軽油：用途2 | E17: kl | F17: 0 | G17: 0 | H17: 0 | I17: 0 | J17: 0 | K17: 0 | L17: 0 | M17: 0 | N17: 0 | O17: 0 | P17: 0 | Q17: 0 | R17: 0 | S17: 0 | T17: （kl） | W17: A重油：用途2 | X17: ﾘｯﾄﾙ
C18: 軽油：用途3 | E18: kl | F18: 0 | G18: 0 | H18: 0 | I18: 0 | J18: 0 | K18: 0 | L18: 0 | M18: 0 | N18: 0 | O18: 0 | P18: 0 | Q18: 0 | R18: 0 | S18: 0 | T18: （kl） | W18: A重油：用途3 | X18: ﾘｯﾄﾙ
C19: 灯油：用途1 | E19: kl | F19: 0 | G19: 0 | H19: 0 | I19: 0 | J19: 0 | K19: 0 | L19: 0 | M19: 0 | N19: 0 | O19: 0 | P19: 0 | Q19: 0 | R19: 0 | S19: 0 | T19: （kl） | W19: C重油：用途1 | X19: ﾘｯﾄﾙ
C20: 灯油：用途2 | E20: kl | F20: 0 | G20: 0 | H20: 0 | I20: 0 | J20: 0 | K20: 0 | L20: 0 | M20: 0 | N20: 0 | O20: 0 | P20: 0 | Q20: 0 | R20: 0 | S20: 0 | T20: （kl） | W20: C重油：用途2 | X20: ﾘｯﾄﾙ
C21: 灯油：用途3 | E21: kl | F21: 0 | G21: 0 | H21: 0 | I21: 0 | J21: 0 | K21: 0 | L21: 0 | M21: 0 | N21: 0 | O21: 0 | P21: 0 | Q21: 0 | R21: 0 | S21: 0 | T21: （kl） | W21: C重油：用途3 | X21: ﾘｯﾄﾙ
C22: A重油：用途1 | E22: kl | F22: 0 | G22: 0 | H22: 0 | I22: 0 | J22: 0 | K22: 0 | L22: 0 | M22: 0 | N22: 0 | O22: 0 | P22: 0 | Q22: 0 | R22: 0 | S22: 0 | T22: （kl） | W22: LPG：用途1 | X22: kg
C23: A重油：用途2 | E23: kl | F23: 0 | G23: 0 | H23: 0 | I23: 0 | J23: 0 | K23: 0 | L23: 0 | M23: 0 | N23: 0 | O23: 0 | P23: 0 | Q23: 0 | R23: 0 | S23: 0 | T23: （kl） | W23: LPG：用途2 | X23: kg
C24: A重油：用途3 | E24: kl | F24: 0 | G24: 0 | H24: 0 | I24: 0 | J24: 0 | K24: 0 | L24: 0 | M24: 0 | N24: 0 | O24: 0 | P24: 0 | Q24: 0 | R24: 0 | S24: 0 | T24: （kl） | W24: LPG：用途3 | X24: kg
C25: C重油：用途1 | E25: kl | F25: 0 | G25: 0 | H25: 0 | I25: 0 | J25: 0 | K25: 0 | L25: 0 | M25: 0 | N25: 0 | O25: 0 | P25: 0 | Q25: 0 | R25: 0 | S25: 0 | T25: （kl） | W25: 石炭：用途1 | X25: kg
C26: C重油：用途2 | E26: kl | F26: 0 | G26: 0 | H26: 0 | I26: 0 | J26: 0 | K26: 0 | L26: 0 | M26: 0 | N26: 0 | O26: 0 | P26: 0 | Q26: 0 | R26: 0 | S26: 0 | T26: （kl） | W26: 石炭：用途2 | X26: kg
C27: C重油：用途3 | E27: kl | F27: 0 | G27: 0 | H27: 0 | I27: 0 | J27: 0 | K27: 0 | L27: 0 | M27: 0 | N27: 0 | O27: 0 | P27: 0 | Q27: 0 | R27: 0 | S27: 0 | T27: （kl） | W27: 石炭：用途3 | X27: kg
C28: LPG：用途1 | E28: ｔ | F28: 0 | G28: 0 | H28: 0 | I28: 0 | J28: 0 | K28: 0 | L28: 0 | M28: 0 | N28: 0 | O28: 0 | P28: 0 | Q28: 0 | R28: 0 | S28: 0 | T28: （t） | W28: コークス：用途1 | X28: kg
C29: LPG：用途2 | E29: ｔ | F29: 0 | G29: 0 | H29: 0 | I29: 0 | J29: 0 | K29: 0 | L29: 0 | M29: 0 | N29: 0 | O29: 0 | P29: 0 | Q29: 0 | R29: 0 | S29: 0 | T29: （t） | W29: コークス：用途2 | X29: kg
C30: LPG：用途3 | E30: ｔ | F30: 0 | G30: 0 | H30: 0 | I30: 0 | J30: 0 | K30: 0 | L30: 0 | M30: 0 | N30: 0 | O30: 0 | P30: 0 | Q30: 0 | R30: 0 | S30: 0 | T30: （t） | W30: コークス：用途3 | X30: kg
C31: 石炭：用途1 | E31: ｔ | F31: 0 | G31: 0 | H31: 0 | I31: 0 | J31: 0 | K31: 0 | L31: 0 | M31: 0 | N31: 0 | O31: 0 | P31: 0 | Q31: 0 | R31: 0 | S31: 0 | T31: （t） | W31: 燃料系廃油、潤滑油系廃油 | X31: kg
C32: 石炭：用途2 | E32: ｔ | F32: 0 | G32: 0 | H32: 0 | I32: 0 | J32: 0 | K32: 0 | L32: 0 | M32: 0 | N32: 0 | O32: 0 | P32: 0 | Q32: 0 | R32: 0 | S32: 0 | T32: （t） | W32: 動植物性廃油 | X32: kg
C33: 石炭：用途3 | E33: ｔ | F33: 0 | G33: 0 | H33: 0 | I33: 0 | J33: 0 | K33: 0 | L33: 0 | M33: 0 | N33: 0 | O33: 0 | P33: 0 | Q33: 0 | R33: 0 | S33: 0 | T33: （t） | W33: 木くず | X33: kg
C34: =$W28 -> コークス：用途1 | E34: ｔ | F34: 0 | G34: 0 | H34: 0 | I34: 0 | J34: 0 | K34: 0 | L34: 0 | M34: 0 | N34: 0 | O34: 0 | P34: 0 | Q34: 0 | R34: 0 | S34: =SUM(G34:R34) -> 0 | T34: （t） | W34: バイオディーゼル | X34: ﾘｯﾄﾙ
C35: コークス：用途2 | E35: ｔ | F35: 0 | G35: 0 | H35: 0 | I35: 0 | J35: 0 | K35: 0 | L35: 0 | M35: 0 | N35: 0 | O35: 0 | P35: 0 | Q35: 0 | R35: 0 | S35: =SUM(G35:R35) -> 0 | T35: （t） | W35: RPF：用途1 | X35: kg
C36: コークス：用途3 | E36: ｔ | F36: 0 | G36: 0 | H36: 0 | I36: 0 | J36: 0 | K36: 0 | L36: 0 | M36: 0 | N36: 0 | O36: 0 | P36: 0 | Q36: 0 | R36: 0 | S36: =SUM(G36:R36) -> 0 | T36: （t） | W36: RPF：用途2 | X36: kg
C37: =$W31 -> 燃料系廃油、潤滑油系廃油 | E37: ｔ | F37: 0 | G37: 0 | H37: 0 | I37: 0 | J37: 0 | K37: 0 | L37: 0 | M37: 0 | N37: 0 | O37: 0 | P37: 0 | Q37: 0 | R37: 0 | S37: 0 | T37: （t） | W37: 構内車両：電気 | X37: kWh
C38: 動植物性廃油 | E38: ｔ | F38: 0 | G38: 0 | H38: 0 | I38: 0 | J38: 0 | K38: 0 | L38: 0 | M38: 0 | N38: 0 | O38: 0 | P38: 0 | Q38: 0 | R38: 0 | S38: 0 | T38: （t） | W38: 構内車両：ガソリン | X38: ﾘｯﾄﾙ
C39: 木くず | E39: ｔ | F39: 0 | G39: 0 | H39: 0 | I39: 0 | J39: 0 | K39: 0 | L39: 0 | M39: 0 | N39: 0 | O39: 0 | P39: 0 | Q39: 0 | R39: 0 | S39: 0 | T39: （t） | W39: 構内車両：軽油 | X39: ﾘｯﾄﾙ
C40: バイオディーゼル | E40: kl | F40: 0 | G40: 0 | H40: 0 | I40: 0 | J40: 0 | K40: 0 | L40: 0 | M40: 0 | N40: 0 | O40: 0 | P40: 0 | Q40: 0 | R40: 0 | S40: 0 | T40: （ﾘｯﾄﾙ） | W40: 構内車両：A重油 | X40: ﾘｯﾄﾙ
C41: RPF：用途1 | E41: ｔ | F41: 0 | G41: 0 | H41: 0 | I41: 0 | J41: 0 | K41: 0 | L41: 0 | M41: 0 | N41: 0 | O41: 0 | P41: 0 | Q41: 0 | R41: 0 | S41: 0 | T41: （t） | W41: 構内車両：バイオディーゼル | X41: ﾘｯﾄﾙ
C42: RPF：用途2 | E42: ｔ | F42: 0 | G42: 0 | H42: 0 | I42: 0 | J42: 0 | K42: 0 | L42: 0 | M42: 0 | N42: 0 | O42: 0 | P42: 0 | Q42: 0 | R42: 0 | S42: 0 | T42: （t）
B43: 構内車両 | C43: 構内車両：電気 | E43: 千kWh | F43: 0 | G43: 0 | H43: 0 | I43: 0 | J43: 0 | K43: 0 | L43: 0 | M43: 0 | N43: 0 | O43: 0 | P43: 0 | Q43: 0 | R43: 0 | S43: 0 | T43: （千kWh）
C44: 構内車両：ガソリン | E44: kl | F44: 0 | G44: 0 | H44: 0 | I44: 0 | J44: 0 | K44: 0 | L44: 0 | M44: 0 | N44: 0 | O44: 0 | P44: 0 | Q44: 0 | R44: 0 | S44: 0 | T44: （kl）
C45: 構内車両：軽油 | E45: kl | F45: 0 | G45: 0 | H45: 0 | I45: 0 | J45: 0 | K45: 0 | L45: 0 | M45: 0 | N45: 0 | O45: 0 | P45: 0 | Q45: 0 | R45: 0 | S45: 0 | T45: （kl）
C46: 構内車両：A重油 | E46: kl | F46: 0 | G46: 0 | H46: 0 | I46: 0 | J46: 0 | K46: 0 | L46: 0 | M46: 0 | N46: 0 | O46: 0 | P46: 0 | Q46: 0 | R46: 0 | S46: 0 | T46: （kl）
C47: 構内車両：バイオディーゼル | E47: kl | F47: 0 | G47: 0 | H47: 0 | I47: 0 | J47: 0 | K47: 0 | L47: 0 | M47: 0 | N47: 0 | O47: 0 | P47: 0 | Q47: 0 | R47: 0 | S47: 0 | T47: （kl）
H49: ※入力した値は、活動量の入力画面にあるエネルギー使用量へ自動反映されます。
B50: ○月別のエネルギー種類別、施設数及びエネルギー使用量（記入用） | H50: エネルギー使用量に入力された値があった場合は、月別で入力した値に上書きされます。
B51: No | C51: 施設名または 車両名 | D51: エネルギー種類 | E51: 単位 | F51: 施設, 台数 | G51: エネルギー使用量
G52: 4月 | H52: 5月 | I52: 6月 | J52: 7月 | K52: 8月 | L52: 9月 | M52: 10月 | N52: 11月 | O52: 12月 | P52: 1月 | Q52: 2月 | R52: 3月 | S52: 年度合計
B53: 1 | E53: =IF(ISERROR(VLOOKUP(D53,$W$3:$X$41,2,FALSE)),"",VLOOKUP(D53,$W$3:$X$41,2,FALSE)) ->  | S53: =SUM(G53:R53) -> 0
B54: 2 | E54: =IF(ISERROR(VLOOKUP(D54,$W$3:$X$41,2,FALSE)),"",VLOOKUP(D54,$W$3:$X$41,2,FALSE)) ->  | S54: 0
B55: 3 | S55: 0
B56: 4 | S56: 0
B57: 5 | S57: 0
B58: 6 | S58: 0
B59: 7 | S59: 0
B60: 8 | S60: 0
B61: 9 | S61: 0
B62: 10 | S62: 0
B63: 11 | S63: 0
B64: 12 | S64: 0
B65: 13 | S65: 0
B66: 14 | S66: 0
B67: 15 | S67: 0
B68: 16 | S68: 0
B69: 17 | S69: 0
B70: 18 | S70: 0
B71: 19 | S71: 0
B72: 20 | S72: 0
B73: 21 | S73: 0
B74: 22 | S74: 0
B75: 23 | S75: 0
B76: 24 | S76: 0
B77: 25 | S77: 0
B78: 26 | S78: 0
B79: 27 | S79: 0
B80: 28 | S80: 0
B81: 29 | S81: 0
B82: 30 | S82: 0
B83: 31 | S83: 0
B84: 32 | S84: 0
B85: 33 | S85: =SUM(G85:R85) -> 0
B86: 34 | S86: 0
B87: 35 | S87: 0
B88: 36 | S88: 0
B89: 37 | S89: 0
B90: 38 | S90: 0
B91: 39 | S91: 0
B92: 40 | S92: 0
B93: 41 | S93: 0
B94: 42 | S94: 0
B95: 43 | S95: 0
B96: 44 | S96: 0
B97: 45 | S97: 0
B98: 46 | S98: 0
B99: 47 | S99: 0
B100: 48 | S100: 0
B101: 49 | S101: 0
B102: 50 | S102: 0

Sheet Parm (hidden)
A3: 電力事業者 | C3: 年度 | D3: 表記1 | E3: 表記2 | F3: 表記3
A4: その他（ユーザー設定値） | C4: 1990 | D4: 1990年度 | E4: 平成2年度 | F4: =E4&"（"&D4&"）" -> 平成2年度（1990年度）
A5: その他（代替値） | C5: 1991 | D5: 1991年度 | E5: 平成3年度 | F5: 平成3年度（1991年度）
A6: 北海道電力（株） | C6: 1992 | D6: 1992年度 | E6: 平成4年度 | F6: 平成4年度（1992年度）
A7: 東北電力（株） | C7: 1993 | D7: 1993年度 | E7: 平成5年度 | F7: 平成5年度（1993年度）
A8: 東京電力ｴﾅｼﾞｰﾊﾟｰﾄﾅｰ（株） | C8: 1994 | D8: 1994年度 | E8: 平成6年度 | F8: 平成6年度（1994年度）
A9: 中部電力（株） | C9: 1995 | D9: 1995年度 | E9: 平成7年度 | F9: 平成7年度（1995年度）
A10: 北陸電力（株） | C10: 1996 | D10: 1996年度 | E10: 平成8年度 | F10: 平成8年度（1996年度）
A11: 関西電力（株） | C11: 1997 | D11: 1997年度 | E11: 平成9年度 | F11: 平成9年度（1997年度）
A12: 中国電力（株） | C12: 1998 | D12: 1998年度 | E12: 平成10年度 | F12: 平成10年度（1998年度）
A13: 四国電力（株） | C13: 1999 | D13: 1999年度 | E13: 平成11年度 | F13: 平成11年度（1999年度）
A14: 九州電力（株） | C14: 2000 | D14: 2000年度 | E14: 平成12年度 | F14: 平成12年度（2000年度）
A15: 沖縄電力（株） | C15: 2001 | D15: 2001年度 | E15: 平成13年度 | F15: 平成13年度（2001年度）
A16: 10社以外 | C16: 2002 | D16: 2002年度 | E16: 平成14年度 | F16: 平成14年度（2002年度）
C17: 2003 | D17: 2003年度 | E17: 平成15年度 | F17: 平成15年度（2003年度）
C18: 2004 | D18: 2004年度 | E18: 平成16年度 | F18: 平成16年度（2004年度）
C19: 2005 | D19: 2005年度 | E19: 平成17年度 | F19: 平成17年度（2005年度）
C20: 2006 | D20: 2006年度 | E20: 平成18年度 | F20: 平成18年度（2006年度）
C21: 2007 | D21: 2007年度 | E21: 平成19年度 | F21: 平成19年度（2007年度）
C22: 2008 | D22: 2008年度 | E22: 平成20年度 | F22: 平成20年度（2008年度）
C23: 2009 | D23: 2009年度 | E23: 平成21年度 | F23: 平成21年度（2009年度）
C24: 2010 | D24: 2010年度 | E24: 平成22年度 | F24: 平成22年度（2010年度）
C25: 2011 | D25: 2011年度 | E25: 平成23年度 | F25: 平成23年度（2011年度）
C26: 2012 | D26: 2012年度 | E26: 平成24年度 | F26: 平成24年度（2012年度）
C27: 2013 | D27: 2013年度 | E27: 平成25年度 | F27: 平成25年度（2013年度）
C28: 2014 | D28: 2014年度 | E28: 平成26年度 | F28: 平成26年度（2014年度）
C29: 2015 | D29: 2015年度 | E29: 平成27年度 | F29: 平成27年度（2015年度）
C30: 2016 | D30: 2016年度 | E30: 平成28年度 | F30: 平成28年度（2016年度）
C31: 2017 | D31: 2017年度 | E31: 平成29年度 | F31: 平成29年度（2017年度）
C32: 2018 | D32: 2018年度 | E32: 平成30年度 | F32: 平成30年度（2018年度）
C33: 2019 | D33: 2019年度 | E33: 令和1年度 | F33: =E33&"（"&D33&"）" -> 令和1年度（2019年度）
C34: 2020 | D34: 2020年度 | E34: 令和2年度 | F34: 令和2年度（2020年度）
C35: 2021 | D35: 2021年度 | E35: 令和3年度 | F35: 令和3年度（2021年度）
C36: 2022 | D36: 2022年度 | E36: 令和4年度 | F36: 令和4年度（2022年度）
C37: 2023 | D37: 2023年度 | E37: 令和5年度 | F37: 令和5年度（2023年度）
C38: 2024 | D38: 2024年度 | E38: 令和6年度 | F38: 令和6年度（2024年度）
C39: 2025 | D39: 2025年度 | E39: 令和7年度 | F39: 令和7年度（2025年度）
C40: 2026 | D40: 2026年度 | E40: 令和8年度 | F40: 令和8年度（2026年度）
C41: 2027 | D41: 2027年度 | E41: 令和9年度 | F41: 令和9年度（2027年度）
C42: 2028 | D42: 2028年度 | E42: 令和10年度 | F42: 令和10年度（2028年度）
C43: 2029 | D43: 2029年度 | E43: 令和11年度 | F43: 令和11年度（2029年度）
C44: 2030 | D44: 2030年度 | E44: 令和12年度 | F44: 令和12年度（2030年度）
C45: 2031 | D45: 2031年度 | E45: 令和13年度 | F45: 令和13年度（2031年度）
C46: 2032 | D46: 2032年度 | E46: 令和14年度 | F46: 令和14年度（2032年度）
C47: 2033 | D47: 2033年度 | E47: 令和15年度 | F47: 令和15年度（2033年度）
C48: 2034 | D48: 2034年度 | E48: 令和16年度 | F48: 令和16年度（2034年度）
C49: 2035 | D49: 2035年度 | E49: 令和17年度 | F49: 令和17年度（2035年度）
C50: 2036 | D50: 2036年度 | E50: 令和18年度 | F50: 令和18年度（2036年度）
C51: 2037 | D51: 2037年度 | E51: 令和19年度 | F51: 令和19年度（2037年度）
C52: 2038 | D52: 2038年度 | E52: 令和20年度 | F52: 令和20年度（2038年度）
C53: 2039 | D53: 2039年度 | E53: 令和21年度 | F53: 令和21年度（2039年度）
C54: 2040 | D54: 2040年度 | E54: 令和22年度 | F54: 令和22年度（2040年度）
C55: 2041 | D55: 2041年度 | E55: 令和23年度 | F55: 令和23年度（2041年度）
C56: 2042 | D56: 2042年度 | E56: 令和24年度 | F56: 令和24年度（2042年度）
C57: 2043 | D57: 2043年度 | E57: 令和25年度 | F57: 令和25年度（2043年度）
C58: 2044 | D58: 2044年度 | E58: 令和26年度 | F58: 令和26年度（2044年度）
C59: 2045 | D59: 2045年度 | E59: 令和27年度 | F59: 令和27年度（2045年度）
C60: 2046 | D60: 2046年度 | E60: 令和28年度 | F60: 令和28年度（2046年度）
C61: 2047 | D61: 2047年度 | E61: 令和29年度 | F61: 令和29年度（2047年度）
C62: 2048 | D62: 2048年度 | E62: 令和30年度 | F62: 令和30年度（2048年度）
C63: 2049 | D63: 2049年度 | E63: 令和31年度 | F63: 令和31年度（2049年度）
C64: 2050 | D64: 2050年度 | E64: 令和32年度 | F64: 令和32年度（2050年度）

Sheet DATA月報 (hidden)
A2: データ格納シート
D3: 収集運搬 | S3: 中間処理 | AH3: 最終処分 | AW3: 関連施設 | BL3: 判定フラグ
D4: 1 | E4: 2 | F4: 3 | G4: 4 | H4: 5 | I4: 6 | J4: 7 | K4: 8 | L4: 9 | M4: 10 | N4: 11 | O4: 12 | P4: 13 | Q4: 14 | R4: 15 | S4: 16 | T4: 17 | U4: 18 | V4: 19 | W4: 20 | X4: 21 | Y4: 22 | Z4: 23 | AA4: 24 | AB4: 25 | AC4: 26 | AD4: 27 | AE4: 28 | AF4: 29 | AG4: 30 | AH4: 31 | AI4: 32 | AJ4: 33 | AK4: 34 | AL4: 35 | AM4: 36 | AN4: 37 | AO4: 38 | AP4: 39 | AQ4: 40 | AR4: 41 | AS4: 42 | AT4: 43 | AU4: 44 | AV4: 45 | AW4: 46 | AX4: 47 | AY4: 48 | AZ4: 49 | BA4: 50 | BB4: 51 | BC4: 52 | BD4: 53 | BE4: 54 | BF4: 55 | BG4: 56 | BH4: 57 | BI4: 58 | BJ4: 59 | BK4: 60
B5: No | C5: 年度 | D5: 収集運搬 | S5: 中間処理 | AH5: 最終処分 | AW5: 関連施設 | BL5: 判定フラグ | BM5: 判定フラグ
D6: 車種名 | E6: 燃料種 | F6: 台数 | G6: 4月 | H6: 5月 | I6: 6月 | J6: 7月 | K6: 8月 | L6: 9月 | M6: 10月 | N6: 11月 | O6: 12月 | P6: 1月 | Q6: 2月 | R6: 3月 | S6: 施設名 | T6: 産業廃棄物種類 | U6: 施設数 | V6: 4月 | W6: 5月 | X6: 6月 | Y6: 7月 | Z6: 8月 | AA6: 9月 | AB6: 10月 | AC6: 11月 | AD6: 12月 | AE6: 1月 | AF6: 2月 | AG6: 3月 | AH6: 処分場名 | AI6: 産業廃棄物種類 | AJ6: 処分場数 | AK6: 4月 | AL6: 5月 | AM6: 6月 | AN6: 7月 | AO6: 8月 | AP6: 9月 | AQ6: 10月 | AR6: 11月 | AS6: 12月 | AT6: 1月 | AU6: 2月 | AV6: 3月 | AW6: 施設名 | AX6: エネルギー種類 | AY6: 施設数 | AZ6: 4月 | BA6: 5月 | BB6: 6月 | BC6: 7月 | BD6: 8月 | BE6: 9月 | BF6: 10月 | BG6: 11月 | BH6: 12月 | BI6: 1月 | BJ6: 2月 | BK6: 3月
D7: 3 | E7: 4 | F7: 6 | G7: 7 | H7: 8 | I7: 9 | J7: 10 | K7: 11 | L7: 12 | M7: 13 | N7: 14 | O7: 15 | P7: 16 | Q7: 17 | R7: 18 | S7: 3 | T7: 4 | U7: 6 | V7: 7 | W7: 8 | X7: 9 | Y7: 10 | Z7: 11 | AA7: 12 | AB7: 13 | AC7: 14 | AD7: 15 | AE7: 16 | AF7: 17 | AG7: 18 | AH7: 3 | AI7: 4 | AJ7: 6 | AK7: 7 | AL7: 8 | AM7: 9 | AN7: 10 | AO7: 11 | AP7: 12 | AQ7: 13 | AR7: 14 | AS7: 15 | AT7: 16 | AU7: 17 | AV7: 18 | AW7: 3 | AX7: 4 | AY7: 6 | AZ7: 7 | BA7: 8 | BB7: 9 | BC7: 10 | BD7: 11 | BE7: 12 | BF7: 13 | BG7: 14 | BH7: 15 | BI7: 16 | BJ7: 17 | BK7: 18
D8: 20 | E8: 20 | F8: 20 | G8: 20 | H8: 20 | I8: 20 | J8: 20 | K8: 20 | L8: 20 | M8: 20 | N8: 20 | O8: 20 | P8: 20 | Q8: 20 | R8: 20 | S8: 38 | T8: 38 | U8: 38 | V8: 38 | W8: 38 | X8: 38 | Y8: 38 | Z8: 38 | AA8: 38 | AB8: 38 | AC8: 38 | AD8: 38 | AE8: 38 | AF8: 38 | AG8: 38 | AH8: 28 | AI8: 28 | AJ8: 28 | AK8: 28 | AL8: 28 | AM8: 28 | AN8: 28 | AO8: 28 | AP8: 28 | AQ8: 28 | AR8: 28 | AS8: 28 | AT8: 28 | AU8: 28 | AV8: 28 | AW8: 53 | AX8: 53 | AY8: 53 | AZ8: 53 | BA8: 53 | BB8: 53 | BC8: 53 | BD8: 53 | BE8: 53 | BF8: 53 | BG8: 53 | BH8: 53 | BI8: 53 | BJ8: 53 | BK8: 53
B9: 1 | C9: 1990 | BL9: =IF(SUBTOTAL(3,D9:BK9),1,0) -> 0 | BM9: =COUNTIF(BL9:BL58,1) -> 0
B10: 2 | C10: 1990 | BL10: 0
B11: 3 | C11: 1990 | BL11: 0
B12: 4 | C12: 1990 | BL12: 0
B13: 5 | C13: 1990 | BL13: 0
B14: 6 | C14: 1990 | BL14: 0
B15: 7 | C15: 1990 | BL15: 0
B16: 8 | C16: 1990 | BL16: 0
B17: 9 | C17: 1990 | BL17: 0
B18: 10 | C18: 1990 | BL18: 0
B19: 11 | C19: 1990 | BL19: 0
B20: 12 | C20: 1990 | BL20: 0
B21: 13 | C21: 1990 | BL21: 0
B22: 14 | C22: 1990 | BL22: 0
B23: 15 | C23: 1990 | BL23: 0
B24: 16 | C24: 1990 | BL24: 0
B25: 17 | C25: 1990 | BL25: 0
B26: 18 | C26: 1990 | BL26: 0
B27: 19 | C27: 1990 | BL27: 0
B28: 20 | C28: 1990 | BL28: 0
B29: 21 | C29: 1990 | BL29: 0
B30: 22 | C30: 1990 | BL30: 0
B31: 23 | C31: 1990 | BL31: 0
B32: 24 | C32: 1990 | BL32: 0
B33: 25 | C33: 1990 | BL33: 0
B34: 26 | C34: 1990 | BL34: 0
B35: 27 | C35: 1990 | BL35: 0
B36: 28 | C36: 1990 | BL36: 0
B37: 29 | C37: 1990 | BL37: 0
B38: 30 | C38: 1990 | BL38: 0
B39: 31 | C39: 1990 | BL39: 0
B40: 32 | C40: 1990 | BL40: 0
B41: 33 | C41: 1990 | BL41: 0
B42: 34 | C42: 1990 | BL42: 0
B43: 35 | C43: 1990 | BL43: 0
B44: 36 | C44: 1990 | BL44: 0
B45: 37 | C45: 1990 | BL45: 0
B46: 38 | C46: 1990 | BL46: 0
B47: 39 | C47: 1990 | BL47: 0
B48: 40 | C48: 1990 | BL48: 0
B49: 41 | C49: 1990 | BL49: 0
B50: 42 | C50: 1990 | BL50: 0
B51: 43 | C51: 1990 | BL51: 0
B52: 44 | C52: 1990 | BL52: 0
B53: 45 | C53: 1990 | BL53: 0
B54: 46 | C54: 1990 | BL54: 0
B55: 47 | C55: 1990 | BL55: 0
B56: 48 | C56: 1990 | BL56: 0
B57: 49 | C57: 1990 | BL57: 0
B58: 50 | C58: 1990 | BL58: 0
B59: 1 | C59: 1991 | BL59: 0 | BM59: =COUNTIF(BL59:BL108,1) -> 0
B60: 2 | C60: 1991 | BL60: 0
B61: 3 | C61: 1991 | BL61: 0
B62: 4 | C62: 1991 | BL62: 0
B63: 5 | C63: 1991 | BL63: 0
B64: 6 | C64: 1991 | BL64: 0
B65: 7 | C65: 1991 | BL65: 0
B66: 8 | C66: 1991 | BL66: 0
B67: 9 | C67: 1991 | BL67: 0
B68: 10 | C68: 1991 | BL68: 0
B69: 11 | C69: 1991 | BL69: 0
B70: 12 | C70: 1991 | BL70: 0
B71: 13 | C71: 1991 | BL71: 0
B72: 14 | C72: 1991 | BL72: 0
B73: 15 | C73: 1991 | BL73: =IF(SUBTOTAL(3,D73:BK73),1,0) -> 0
B74: 16 | C74: 1991 | BL74: 0
B75: 17 | C75: 1991 | BL75: 0
B76: 18 | C76: 1991 | BL76: 0
B77: 19 | C77: 1991 | BL77: 0
B78: 20 | C78: 1991 | BL78: 0
B79: 21 | C79: 1991 | BL79: 0
B80: 22 | C80: 1991 | BL80: 0
B81: 23 | C81: 1991 | BL81: 0
B82: 24 | C82: 1991 | BL82: 0
B83: 25 | C83: 1991 | BL83: 0
B84: 26 | C84: 1991 | BL84: 0
B85: 27 | C85: 1991 | BL85: 0
B86: 28 | C86: 1991 | BL86: 0
B87: 29 | C87: 1991 | BL87: 0
B88: 30 | C88: 1991 | BL88: 0
B89: 31 | C89: 1991 | BL89: 0
B90: 32 | C90: 1991 | BL90: 0
B91: 33 | C91: 1991 | BL91: 0
B92: 34 | C92: 1991 | BL92: 0
B93: 35 | C93: 1991 | BL93: 0
B94: 36 | C94: 1991 | BL94: 0
B95: 37 | C95: 1991 | BL95: 0
B96: 38 | C96: 1991 | BL96: 0
B97: 39 | C97: 1991 | BL97: 0
B98: 40 | C98: 1991 | BL98: 0
B99: 41 | C99: 1991 | BL99: 0
B100: 42 | C100: 1991 | BL100: 0
B101: 43 | C101: 1991 | BL101: 0
B102: 44 | C102: 1991 | BL102: 0
B103: 45 | C103: 1991 | BL103: 0
B104: 46 | C104: 1991 | BL104: 0
B105: 47 | C105: 1991 | BL105: 0
B106: 48 | C106: 1991 | BL106: 0
B107: 49 | C107: 1991 | BL107: 0
B108: 50 | C108: 1991 | BL108: 0
B109: 1 | C109: 1992 | BL109: 0 | BM109: =COUNTIF(BL109:BL158,1) -> 0
B110: 2 | C110: 1992 | BL110: 0
B111: 3 | C111: 1992 | BL111: 0
B112: 4 | C112: 1992 | BL112: 0
B113: 5 | C113: 1992 | BL113: 0
B114: 6 | C114: 1992 | BL114: 0
B115: 7 | C115: 1992 | BL115: 0
B116: 8 | C116: 1992 | BL116: 0
B117: 9 | C117: 1992 | BL117: 0
B118: 10 | C118: 1992 | BL118: 0
B119: 11 | C119: 1992 | BL119: 0
B120: 12 | C120: 1992 | BL120: 0
B121: 13 | C121: 1992 | BL121: 0
B122: 14 | C122: 1992 | BL122: 0
B123: 15 | C123: 1992 | BL123: 0
B124: 16 | C124: 1992 | BL124: 0
B125: 17 | C125: 1992 | BL125: 0
B126: 18 | C126: 1992 | BL126: 0
B127: 19 | C127: 1992 | BL127: 0
B128: 20 | C128: 1992 | BL128: 0
B129: 21 | C129: 1992 | BL129: 0
B130: 22 | C130: 1992 | BL130: 0
B131: 23 | C131: 1992 | BL131: 0
B132: 24 | C132: 1992 | BL132: 0
B133: 25 | C133: 1992 | BL133: 0
B134: 26 | C134: 1992 | BL134: 0
B135: 27 | C135: 1992 | BL135: 0
B136: 28 | C136: 1992 | BL136: 0
B137: 29 | C137: 1992 | BL137: =IF(SUBTOTAL(3,D137:BK137),1,0) -> 0
B138: 30 | C138: 1992 | BL138: 0
B139: 31 | C139: 1992 | BL139: 0
B140: 32 | C140: 1992 | BL140: 0
B141: 33 | C141: 1992 | BL141: 0
B142: 34 | C142: 1992 | BL142: 0
B143: 35 | C143: 1992 | BL143: 0
B144: 36 | C144: 1992 | BL144: 0
B145: 37 | C145: 1992 | BL145: 0
B146: 38 | C146: 1992 | BL146: 0
B147: 39 | C147: 1992 | BL147: 0
B148: 40 | C148: 1992 | BL148: 0
B149: 41 | C149: 1992 | BL149: 0
B150: 42 | C150: 1992 | BL150: 0
B151: 43 | C151: 1992 | BL151: 0
B152: 44 | C152: 1992 | BL152: 0
B153: 45 | C153: 1992 | BL153: 0
B154: 46 | C154: 1992 | BL154: 0
B155: 47 | C155: 1992 | BL155: 0
B156: 48 | C156: 1992 | BL156: 0
B157: 49 | C157: 1992 | BL157: 0
B158: 50 | C158: 1992 | BL158: 0
B159: 1 | C159: 1993 | BL159: 0 | BM159: =COUNTIF(BL159:BL208,1) -> 0
B160: 2 | C160: 1993 | BL160: 0
B161: 3 | C161: 1993 | BL161: 0
B162: 4 | C162: 1993 | BL162: 0
B163: 5 | C163: 1993 | BL163: 0
B164: 6 | C164: 1993 | BL164: 0
B165: 7 | C165: 1993 | BL165: 0
B166: 8 | C166: 1993 | BL166: 0
B167: 9 | C167: 1993 | BL167: 0
B168: 10 | C168: 1993 | BL168: 0
B169: 11 | C169: 1993 | BL169: 0
B170: 12 | C170: 1993 | BL170: 0
B171: 13 | C171: 1993 | BL171: 0
B172: 14 | C172: 1993 | BL172: 0
B173: 15 | C173: 1993 | BL173: 0
B174: 16 | C174: 1993 | BL174: 0
B175: 17 | C175: 1993 | BL175: 0
B176: 18 | C176: 1993 | BL176: 0
B177: 19 | C177: 1993 | BL177: 0
B178: 20 | C178: 1993 | BL178: 0
B179: 21 | C179: 1993 | BL179: 0
B180: 22 | C180: 1993 | BL180: 0
B181: 23 | C181: 1993 | BL181: 0
B182: 24 | C182: 1993 | BL182: 0
B183: 25 | C183: 1993 | BL183: 0
B184: 26 | C184: 1993 | BL184: 0
B185: 27 | C185: 1993 | BL185: 0
B186: 28 | C186: 1993 | BL186: 0
B187: 29 | C187: 1993 | BL187: 0
B188: 30 | C188: 1993 | BL188: 0
B189: 31 | C189: 1993 | BL189: 0
B190: 32 | C190: 1993 | BL190: 0
B191: 33 | C191: 1993 | BL191: 0
B192: 34 | C192: 1993 | BL192: 0
B193: 35 | C193: 1993 | BL193: 0
B194: 36 | C194: 1993 | BL194: 0
B195: 37 | C195: 1993 | BL195: 0
B196: 38 | C196: 1993 | BL196: 0
B197: 39 | C197: 1993 | BL197: 0
B198: 40 | C198: 1993 | BL198: 0
B199: 41 | C199: 1993 | BL199: 0
B200: 42 | C200: 1993 | BL200: 0
B201: 43 | C201: 1993 | BL201: =IF(SUBTOTAL(3,D201:BK201),1,0) -> 0
... 924 more rows

Sheet DATA活動量 (hidden)
Q1: 初期値：感染性産業廃棄物の廃油の廃プラスチック割合、有機性汚泥のその他の有機成分の割合、発生ガスの回収・焼却のメタン濃度
A2: データ格納シート | Q2: 産業廃棄物業の占める割合 | BW2: 初期値
B3: DATA1：活動量データ | G3: 参照先 | I3: チェック対象外：0,数値チェック：1,％範囲チェック：2 | BS3: 更新先 | BU3: 更新先
G4: 座標 | I4: chk | J4: 1 | K4: 2 | L4: 3 | M4: 4 | N4: 5 | O4: 6 | P4: 7 | Q4: 8 | R4: 9 | S4: 10 | T4: 11 | U4: 12 | V4: 13 | W4: 14 | X4: 15 | Y4: 16 | Z4: 17 | AA4: 18 | AB4: 19 | AC4: 20 | AD4: 21 | AE4: 22 | AF4: 23 | AG4: 24 | AH4: 25 | AI4: 26 | AJ4: 27 | AK4: 28 | AL4: 29 | AM4: 30 | AN4: 31 | AO4: 32 | AP4: 33 | AQ4: 34 | AR4: 35 | AS4: 36 | AT4: 37 | AU4: 38 | AV4: 39 | AW4: 40 | AX4: 41 | AY4: 42 | AZ4: 43 | BA4: 44 | BB4: 45 | BC4: 46 | BD4: 47 | BE4: 48 | BF4: 49 | BG4: 50 | BH4: 51 | BI4: 52 | BJ4: 53 | BK4: 54 | BL4: 55 | BM4: 56 | BN4: 57 | BO4: 58 | BP4: 59 | BQ4: 60 | BR4: 61 | BS4: 排出表 | BU4: 報告様式
B5: No | C5: 項目 | G5: x | H5: y | J5: 1990 | K5: 1991 | L5: 1992 | M5: 1993 | N5: 1994 | O5: 1995 | P5: 1996 | Q5: 1997 | R5: 1998 | S5: 1999 | T5: 2000 | U5: 2001 | V5: 2002 | W5: 2003 | X5: 2004 | Y5: 2005 | Z5: 2006 | AA5: 2007 | AB5: 2008 | AC5: 2009 | AD5: 2010 | AE5: 2011 | AF5: 2012 | AG5: 2013 | AH5: 2014 | AI5: 2015 | AJ5: 2016 | AK5: 2017 | AL5: 2018 | AM5: 2019 | AN5: 2020 | AO5: 2021 | AP5: 2022 | AQ5: 2023 | AR5: 2024 | AS5: 2025 | AT5: 2026 | AU5: 2027 | AV5: 2028 | AW5: 2029 | AX5: 2030 | AY5: 2031 | AZ5: 2032 | BA5: 2033 | BB5: 2034 | BC5: 2035 | BD5: 2036 | BE5: 2037 | BF5: 2038 | BG5: 2039 | BH5: 2040 | BI5: 2041 | BJ5: 2042 | BK5: 2043 | BL5: 2044 | BM5: 2045 | BN5: 2046 | BO5: 2047 | BP5: 2048 | BQ5: 2049 | BR5: 2050 | BS5: x | BT5: y | BU5: x | BV5: y
A6: 収集運搬 | B6: 1 | C6: 活動量 | D6: 燃料法 | E6: 燃料使用量 | F6: ガソリン | G6: 12 | H6: 7 | I6: 1 | BS6: 12 | BT6: 20 | BU6: 19 | BV6: 20
B7: 2 | F7: 軽油 | G7: 13 | H7: 7 | I7: 1 | BS7: 13 | BT7: 20 | BU7: 20 | BV7: 20
B8: 3 | F8: LPG | G8: 14 | H8: 7 | I8: 1 | BS8: 14 | BT8: 20 | BU8: 21 | BV8: 20
B9: 4 | F9: 天然ガス | G9: 15 | H9: 7 | I9: 1 | BS9: 15 | BT9: 20 | BU9: 22 | BV9: 20
B10: 5 | F10: バイオエタノール | G10: 16 | H10: 7 | I10: 1 | BS10: 16 | BT10: 20 | BU10: 23 | BV10: 20
B11: 6 | F11: バイオディーゼル | G11: 17 | H11: 7 | I11: 1 | BS11: 17 | BT11: 20 | BU11: 24 | BV11: 20
B12: 7 | D12: 燃費法 | F12: ガソリン | G12: 20 | H12: 7 | I12: 0 | BS12: 18 | BT12: 20 | BU12: 25 | BV12: 20
B13: 8 | F13: 軽油う | G13: 21 | H13: 7 | I13: 0 | BS13: 19 | BT13: 20 | BU13: 26 | BV13: 20
B14: 9 | F14: LPG | G14: 22 | H14: 7 | I14: 0 | BS14: 20 | BT14: 20 | BU14: 27 | BV14: 20
B15: 10 | F15: 天然ガス | G15: 23 | H15: 7 | I15: 0 | BS15: 21 | BT15: 20 | BU15: 28 | BV15: 20
B16: 11 | D16: 改良ﾄﾝｷﾛ法 | F16: ガソリン | G16: 26 | H16: 7 | I16: 0 | BS16: 22 | BT16: 20 | BU16: 29 | BV16: 20
B17: 12 | F17: 軽油 | G17: 27 | H17: 7 | I17: 0 | BS17: 23 | BT17: 20 | BU17: 30 | BV17: 20
B18: 13 | D18: バイオ燃料の割合 | F18: バイオエタノール | G18: 16 | H18: 9 | I18: 2 | J18: 3 | K18: 3 | L18: 3 | M18: 3 | N18: 3 | O18: 3 | P18: 3 | Q18: 3 | R18: 3 | S18: 3 | T18: 3 | U18: 3 | V18: 3 | W18: 3 | X18: 3 | Y18: 3 | Z18: 3 | AA18: 3 | AB18: 3 | AC18: 3 | AD18: 3 | AE18: 3 | AF18: 3 | AG18: 3 | AH18: 3 | AI18: 3 | AJ18: 3 | AK18: 3 | AL18: 3 | AM18: 3 | AN18: 3 | AO18: 3 | AP18: 3 | AQ18: 3 | AR18: 3 | AS18: 3 | AT18: 3 | AU18: 3 | AV18: 3 | AW18: 3 | AX18: 3 | AY18: 3 | AZ18: 3 | BA18: 3 | BB18: 3 | BC18: 3 | BD18: 3 | BE18: 3 | BF18: 3 | BG18: 3 | BH18: 3 | BI18: 3 | BJ18: 3 | BK18: 3 | BL18: 3 | BM18: 3 | BN18: 3 | BO18: 3 | BP18: 3 | BQ18: 3 | BR18: 3 | BS18: 16 | BT18: 22 | BU18: 23 | BV18: 22 | BW18: 3
B19: 14 | F19: バイオディーゼル | G19: 17 | H19: 9 | I19: 2 | J19: 5 | K19: 5 | L19: 5 | M19: 5 | N19: 5 | O19: 5 | P19: 5 | Q19: 5 | R19: 5 | S19: 5 | T19: 5 | U19: 5 | V19: 5 | W19: 5 | X19: 5 | Y19: 5 | Z19: 5 | AA19: 5 | AB19: 5 | AC19: 5 | AD19: 5 | AE19: 5 | AF19: 5 | AG19: 5 | AH19: 5 | AI19: 5 | AJ19: 5 | AK19: 5 | AL19: 5 | AM19: 5 | AN19: 5 | AO19: 5 | AP19: 5 | AQ19: 5 | AR19: 5 | AS19: 5 | AT19: 5 | AU19: 5 | AV19: 5 | AW19: 5 | AX19: 5 | AY19: 5 | AZ19: 5 | BA19: 5 | BB19: 5 | BC19: 5 | BD19: 5 | BE19: 5 | BF19: 5 | BG19: 5 | BH19: 5 | BI19: 5 | BJ19: 5 | BK19: 5 | BL19: 5 | BM19: 5 | BN19: 5 | BO19: 5 | BP19: 5 | BQ19: 5 | BR19: 5 | BS19: 17 | BT19: 22 | BU19: 24 | BV19: 22 | BW19: 5
B20: 15 | D20: 燃費法 | E20: 台数 | F20: ガソリン | G20: 20 | H20: 9 | I20: 1
B21: 16 | F21: 軽油 | G21: 21 | H21: 9 | I21: 1
B22: 17 | F22: LPG | G22: 22 | H22: 9 | I22: 1
B23: 18 | F23: 天然ガス | G23: 23 | H23: 9 | I23: 1
B24: 19 | E24: 平均輸送距離 | F24: ガソリン | G24: 20 | H24: 10 | I24: 1
B25: 20 | F25: 軽油 | G25: 21 | H25: 10 | I25: 1
B26: 21 | F26: LPG | G26: 22 | H26: 10 | I26: 1
B27: 22 | F27: 天然ガス | G27: 23 | H27: 10 | I27: 1
B28: 23 | E28: 燃費 | F28: ガソリン | G28: 20 | H28: 11 | I28: 1
B29: 24 | F29: 軽油 | G29: 21 | H29: 11 | I29: 1
B30: 25 | F30: LPG | G30: 22 | H30: 11 | I30: 1
B31: 26 | F31: 天然ガス | G31: 23 | H31: 11 | I31: 1
B32: 27 | D32: 改良ﾄﾝｷﾛ法 | E32: 台数 | F32: ガソリン | G32: 26 | H32: 9 | I32: 1
B33: 28 | F33: 軽油 | G33: 27 | H33: 9 | I33: 1
B34: 29 | E34: 最大積載量 | F34: ガソリン | G34: 26 | H34: 10 | I34: 1
B35: 30 | F35: 軽油 | G35: 27 | H35: 10 | I35: 1
B36: 31 | E36: 平均積載率 | F36: ガソリン | G36: 26 | H36: 11 | I36: 2
B37: 32 | F37: 軽油 | G37: 27 | H37: 11 | I37: 2
B38: 33 | E38: 平均輸送距離 | F38: ガソリン | G38: 26 | H38: 12 | I38: 1
B39: 34 | F39: 軽油 | G39: 27 | H39: 12 | I39: 1
B40: 35 | D40: 燃料法 | E40: 単位 | F40: ガソリン | G40: 12 | H40: 8 | I40: 0 | J40: （kl） | K40: （kl） | L40: （kl） | M40: （kl） | N40: （kl） | O40: （kl） | P40: （kl） | Q40: （kl） | R40: （kl） | S40: （kl） | T40: （kl） | U40: （kl） | V40: （kl） | W40: （kl） | X40: （kl） | Y40: （kl） | Z40: （kl） | AA40: （kl） | AB40: （kl） | AC40: （kl） | AD40: （kl） | AE40: （kl） | AF40: （kl） | AG40: （kl） | AH40: （kl） | AI40: （kl） | AJ40: （kl） | AK40: （kl） | AL40: （kl） | AM40: （kl） | AN40: （kl） | AO40: （kl） | AP40: （kl） | AQ40: （kl） | AR40: （kl） | AS40: （kl） | AT40: （kl） | AU40: （kl） | AV40: （kl） | AW40: （kl） | AX40: （kl） | AY40: （kl） | AZ40: （kl） | BA40: （kl） | BB40: （kl） | BC40: （kl） | BD40: （kl） | BE40: （kl） | BF40: （kl） | BG40: （kl） | BH40: （kl） | BI40: （kl） | BJ40: （kl） | BK40: （kl） | BL40: （kl） | BM40: （kl） | BN40: （kl） | BO40: （kl） | BP40: （kl） | BQ40: （kl） | BR40: （kl） | BS40: 12 | BT40: 21 | BU40: 19 | BV40: 21 | BW40: （kl）
B41: 36 | F41: 軽油 | G41: 13 | H41: 8 | I41: 0 | J41: （kl） | K41: （kl） | L41: （kl） | M41: （kl） | N41: （kl） | O41: （kl） | P41: （kl） | Q41: （kl） | R41: （kl） | S41: （kl） | T41: （kl） | U41: （kl） | V41: （kl） | W41: （kl） | X41: （kl） | Y41: （kl） | Z41: （kl） | AA41: （kl） | AB41: （kl） | AC41: （kl） | AD41: （kl） | AE41: （kl） | AF41: （kl） | AG41: （kl） | AH41: （kl） | AI41: （kl） | AJ41: （kl） | AK41: （kl） | AL41: （kl） | AM41: （kl） | AN41: （kl） | AO41: （kl） | AP41: （kl） | AQ41: （kl） | AR41: （kl） | AS41: （kl） | AT41: （kl） | AU41: （kl） | AV41: （kl） | AW41: （kl） | AX41: （kl） | AY41: （kl） | AZ41: （kl） | BA41: （kl） | BB41: （kl） | BC41: （kl） | BD41: （kl） | BE41: （kl） | BF41: （kl） | BG41: （kl） | BH41: （kl） | BI41: （kl） | BJ41: （kl） | BK41: （kl） | BL41: （kl） | BM41: （kl） | BN41: （kl） | BO41: （kl） | BP41: （kl） | BQ41: （kl） | BR41: （kl） | BS41: 13 | BT41: 21 | BU41: 20 | BV41: 21 | BW41: （kl）
B42: 37 | F42: LPG | G42: 14 | H42: 8 | I42: 0 | J42: （t） | K42: （t） | L42: （t） | M42: （t） | N42: （t） | O42: （t） | P42: （t） | Q42: （t） | R42: （t） | S42: （t） | T42: （t） | U42: （t） | V42: （t） | W42: （t） | X42: （t） | Y42: （t） | Z42: （t） | AA42: （t） | AB42: （t） | AC42: （t） | AD42: （t） | AE42: （t） | AF42: （t） | AG42: （t） | AH42: （t） | AI42: （t） | AJ42: （t） | AK42: （t） | AL42: （t） | AM42: （t） | AN42: （t） | AO42: （t） | AP42: （t） | AQ42: （t） | AR42: （t） | AS42: （t） | AT42: （t） | AU42: （t） | AV42: （t） | AW42: （t） | AX42: （t） | AY42: （t） | AZ42: （t） | BA42: （t） | BB42: （t） | BC42: （t） | BD42: （t） | BE42: （t） | BF42: （t） | BG42: （t） | BH42: （t） | BI42: （t） | BJ42: （t） | BK42: （t） | BL42: （t） | BM42: （t） | BN42: （t） | BO42: （t） | BP42: （t） | BQ42: （t） | BR42: （t） | BS42: 14 | BT42: 21 | BU42: 21 | BV42: 21 | BW42: （t）
B43: 38 | F43: 天然ガス | G43: 15 | H43: 8 | I43: 0 | J43: （千㎥） | K43: （千㎥） | L43: （千㎥） | M43: （千㎥） | N43: （千㎥） | O43: （千㎥） | P43: （千㎥） | Q43: （千㎥） | R43: （千㎥） | S43: （千㎥） | T43: （千㎥） | U43: （千㎥） | V43: （千㎥） | W43: （千㎥） | X43: （千㎥） | Y43: （千㎥） | Z43: （千㎥） | AA43: （千㎥） | AB43: （千㎥） | AC43: （千㎥） | AD43: （千㎥） | AE43: （千㎥） | AF43: （千㎥） | AG43: （千㎥） | AH43: （千㎥） | AI43: （千㎥） | AJ43: （千㎥） | AK43: （千㎥） | AL43: （千㎥） | AM43: （千㎥） | AN43: （千㎥） | AO43: （千㎥） | AP43: （千㎥） | AQ43: （千㎥） | AR43: （千㎥） | AS43: （千㎥） | AT43: （千㎥） | AU43: （千㎥） | AV43: （千㎥） | AW43: （千㎥） | AX43: （千㎥） | AY43: （千㎥） | AZ43: （千㎥） | BA43: （千㎥） | BB43: （千㎥） | BC43: （千㎥） | BD43: （千㎥） | BE43: （千㎥） | BF43: （千㎥） | BG43: （千㎥） | BH43: （千㎥） | BI43: （千㎥） | BJ43: （千㎥） | BK43: （千㎥） | BL43: （千㎥） | BM43: （千㎥） | BN43: （千㎥） | BO43: （千㎥） | BP43: （千㎥） | BQ43: （千㎥） | BR43: （千㎥） | BS43: 15 | BT43: 21 | BU43: 22 | BV43: 21 | BW43: （千㎥）
B44: 39 | F44: バイオエタノール | G44: 16 | H44: 8 | I44: 0 | J44: （kl） | K44: （kl） | L44: （kl） | M44: （kl） | N44: （kl） | O44: （kl） | P44: （kl） | Q44: （kl） | R44: （kl） | S44: （kl） | T44: （kl） | U44: （kl） | V44: （kl） | W44: （kl） | X44: （kl） | Y44: （kl） | Z44: （kl） | AA44: （kl） | AB44: （kl） | AC44: （kl） | AD44: （kl） | AE44: （kl） | AF44: （kl） | AG44: （kl） | AH44: （kl） | AI44: （kl） | AJ44: （kl） | AK44: （kl） | AL44: （kl） | AM44: （kl） | AN44: （kl） | AO44: （kl） | AP44: （kl） | AQ44: （kl） | AR44: （kl） | AS44: （kl） | AT44: （kl） | AU44: （kl） | AV44: （kl） | AW44: （kl） | AX44: （kl） | AY44: （kl） | AZ44: （kl） | BA44: （kl） | BB44: （kl） | BC44: （kl） | BD44: （kl） | BE44: （kl） | BF44: （kl） | BG44: （kl） | BH44: （kl） | BI44: （kl） | BJ44: （kl） | BK44: （kl） | BL44: （kl） | BM44: （kl） | BN44: （kl） | BO44: （kl） | BP44: （kl） | BQ44: （kl） | BR44: （kl） | BS44: 16 | BT44: 21 | BU44: 23 | BV44: 21 | BW44: （kl）
B45: 40 | F45: バイオディーゼル | G45: 17 | H45: 8 | I45: 0 | J45: （kl） | K45: （kl） | L45: （kl） | M45: （kl） | N45: （kl） | O45: （kl） | P45: （kl） | Q45: （kl） | R45: （kl） | S45: （kl） | T45: （kl） | U45: （kl） | V45: （kl） | W45: （kl） | X45: （kl） | Y45: （kl） | Z45: （kl） | AA45: （kl） | AB45: （kl） | AC45: （kl） | AD45: （kl） | AE45: （kl） | AF45: （kl） | AG45: （kl） | AH45: （kl） | AI45: （kl） | AJ45: （kl） | AK45: （kl） | AL45: （kl） | AM45: （kl） | AN45: （kl） | AO45: （kl） | AP45: （kl） | AQ45: （kl） | AR45: （kl） | AS45: （kl） | AT45: （kl） | AU45: （kl） | AV45: （kl） | AW45: （kl） | AX45: （kl） | AY45: （kl） | AZ45: （kl） | BA45: （kl） | BB45: （kl） | BC45: （kl） | BD45: （kl） | BE45: （kl） | BF45: （kl） | BG45: （kl） | BH45: （kl） | BI45: （kl） | BJ45: （kl） | BK45: （kl） | BL45: （kl） | BM45: （kl） | BN45: （kl） | BO45: （kl） | BP45: （kl） | BQ45: （kl） | BR45: （kl） | BS45: 17 | BT45: 21 | BU45: 24 | BV45: 21 | BW45: （kl）
A46: 中間処理 | B46: 41 | D46: 中間処理業 | E46: 焼却量・溶融量 | F46: 炉No1 | G46: 34 | H46: 7 | I46: 1 | BS46: 12 | BT46: 20 | BU46: 38 | BV46: 20
B47: 42 | F47: 炉No2 | G47: 35 | H47: 7 | I47: 1 | BS47: 13 | BT47: 20 | BU47: 39 | BV47: 20
B48: 43 | F48: 炉No3 | G48: 36 | H48: 7 | I48: 1 | BS48: 14 | BT48: 20 | BU48: 40 | BV48: 20
B49: 44 | F49: 下水汚泥以外 | G49: 37 | H49: 7 | I49: 1 | BS49: 15 | BT49: 20 | BU49: 41 | BV49: 20
B50: 45 | F50: 燃料系廃油 | G50: 38 | H50: 7 | I50: 1 | BS50: 16 | BT50: 20 | BU50: 42 | BV50: 20
B51: 46 | F51: 動植物性廃油 | G51: 39 | H51: 7 | I51: 1 | BS51: 17 | BT51: 20 | BU51: 43 | BV51: 20
B52: 47 | F52: 廃プラスチック類 | G52: 40 | H52: 7 | I52: 1 | BS52: 18 | BT52: 20 | BU52: 44 | BV52: 20
B53: 48 | F53: 廃タイヤ | G53: 41 | H53: 7 | I53: 1 | BS53: 19 | BT53: 20 | BU53: 45 | BV53: 20
B54: 49 | F54: 紙くず | G54: 42 | H54: 7 | I54: 1 | BS54: 20 | BT54: 20 | BU54: 46 | BV54: 20
B55: 50 | F55: 木くず | G55: 43 | H55: 7 | I55: 1 | BS55: 21 | BT55: 20 | BU55: 47 | BV55: 20
B56: 51 | F56: 繊維くず | G56: 44 | H56: 7 | I56: 1 | BS56: 22 | BT56: 20 | BU56: 48 | BV56: 20
B57: 52 | F57: 動植物性残渣 | G57: 45 | H57: 7 | I57: 1 | BS57: 23 | BT57: 20 | BU57: 49 | BV57: 20
B58: 53 | F58: 動物系固形不要物 | G58: 46 | H58: 7 | I58: 1 | BS58: 24 | BT58: 20 | BU58: 50 | BV58: 20
B59: 54 | F59: 動物のふん尿 | G59: 47 | H59: 7 | I59: 1 | BS59: 25 | BT59: 20 | BU59: 51 | BV59: 20
B60: 55 | F60: 動物の死体 | G60: 48 | H60: 7 | I60: 1 | BS60: 26 | BT60: 20 | BU60: 52 | BV60: 20
B61: 56 | F61: 特別管理産業廃棄物の廃油 | G61: 49 | H61: 7 | I61: 1 | BS61: 27 | BT61: 20 | BU61: 53 | BV61: 20
B62: 57 | F62: 感染性廃棄物 | G62: 50 | H62: 7 | I62: 1 | BS62: 28 | BT62: 20 | BU62: 54 | BV62: 20
B63: 58 | F63: その他 | G63: 51 | H63: 7 | I63: 1 | BS63: 29 | BT63: 20 | BU63: 55 | BV63: 20
B64: 59 | E64: 燃焼温度 | F64: 炉No1 | G64: 34 | H64: 11
B65: 60 | F65: 炉No2 | G65: 35 | H65: 11
B66: 61 | F66: 炉No3 | G66: 36 | H66: 11
B67: 62 | E67: 水分割合 | F67: 廃タイヤ | G67: 41 | H67: 13 | I67: 2 | J67: 5 | K67: 5 | L67: 5 | M67: 5 | N67: 5 | O67: 5 | P67: 5 | Q67: 5 | R67: 5 | S67: 5 | T67: 5 | U67: 5 | V67: 5 | W67: 5 | X67: 5 | Y67: 5 | Z67: 5 | AA67: 5 | AB67: 5 | AC67: 5 | AD67: 5 | AE67: 5 | AF67: 5 | AG67: 5 | AH67: 5 | AI67: 5 | AJ67: 5 | AK67: 5 | AL67: 5 | AM67: 5 | AN67: 5 | AO67: 5 | AP67: 5 | AQ67: 5 | AR67: 5 | AS67: 5 | AT67: 5 | AU67: 5 | AV67: 5 | AW67: 5 | AX67: 5 | AY67: 5 | AZ67: 5 | BA67: 5 | BB67: 5 | BC67: 5 | BD67: 5 | BE67: 5 | BF67: 5 | BG67: 5 | BH67: 5 | BI67: 5 | BJ67: 5 | BK67: 5 | BL67: 5 | BM67: 5 | BN67: 5 | BO67: 5 | BP67: 5 | BQ67: 5 | BR67: 5 | BS67: 19 | BT67: 22 | BU67: 45 | BV67: 22 | BW67: 5
B68: 63 | E68: 廃プラスチックの割合 | F68: 感染性廃棄物 | G68: 50 | H68: 12 | I68: 2 | J68: 42.6 | K68: 42.6 | L68: 42.6 | M68: 42.6 | N68: 42.6 | O68: 42.6 | P68: 42.6 | Q68: 42.6 | R68: 42.6 | S68: 42.6 | T68: 42.6 | U68: 42.6 | V68: 42.6 | W68: 42.6 | X68: 42.6 | Y68: 42.6 | Z68: 42.6 | AA68: 42.6 | AB68: 42.6 | AC68: 42.6 | AD68: 42.6 | AE68: 42.6 | AF68: 42.6 | AG68: 42.6 | AH68: 42.6 | AI68: 42.6 | AJ68: 42.6 | AK68: 42.6 | AL68: 42.6 | AM68: 42.6 | AN68: 42.6 | AO68: 42.6 | AP68: 42.6 | AQ68: 42.6 | AR68: 42.6 | AS68: 42.6 | AT68: 42.6 | AU68: 42.6 | AV68: 42.6 | AW68: 42.6 | AX68: 42.6 | AY68: 42.6 | AZ68: 42.6 | BA68: 42.6 | BB68: 42.6 | BC68: 42.6 | BD68: 42.6 | BE68: 42.6 | BF68: 42.6 | BG68: 42.6 | BH68: 42.6 | BI68: 42.6 | BJ68: 42.6 | BK68: 42.6 | BL68: 42.6 | BM68: 42.6 | BN68: 42.6 | BO68: 42.6 | BP68: 42.6 | BQ68: 42.6 | BR68: 42.6 | BS68: 28 | BT68: 22 | BU68: 54 | BV68: 22 | BW68: 42.6
B69: 64 | F69: その他 | G69: 51 | H69: 12 | I69: 2 | BS69: 29 | BT69: 22 | BU69: 55 | BV69: 22
B70: 65 | E70: コンポスト化 | F70: 有機性汚泥 | G70: 54 | H70: 7 | I70: 1 | BS70: 32 | BT70: 20
B71: 66 | F71: 動植物性残渣 | G71: 55 | H71: 7 | I71: 1 | BS71: 33 | BT71: 20
B72: 67 | F72: 紙くず、木くず、繊維くず | G72: 56 | H72: 7 | I72: 1 | BS72: 34 | BT72: 20
B73: 68 | F73: その他の有機性廃棄物 | G73: 57 | H73: 7 | I73: 1 | BS73: 35 | BT73: 20
B74: 69 | E74: 発電・熱利用 | F74: 廃棄物発電 | G74: 63 | H74: 7 | I74: 1 | BS74: 41 | BT74: 20 | BU74: 63 | BV74: 20
B75: 70 | F75: 廃棄物熱利用 | G75: 64 | H75: 7 | I75: 1 | BS75: 42 | BT75: 20 | BU75: 64 | BV75: 20
B76: 71 | E76: 単位 | F76: 炉No1 | G76: 34 | H76: 8 | I76: 0 | J76: （t） | K76: （t） | L76: （t） | M76: （t） | N76: （t） | O76: （t） | P76: （t） | Q76: （t） | R76: （t） | S76: （t） | T76: （t） | U76: （t） | V76: （t） | W76: （t） | X76: （t） | Y76: （t） | Z76: （t） | AA76: （t） | AB76: （t） | AC76: （t） | AD76: （t） | AE76: （t） | AF76: （t） | AG76: （t） | AH76: （t） | AI76: （t） | AJ76: （t） | AK76: （t） | AL76: （t） | AM76: （t） | AN76: （t） | AO76: （t） | AP76: （t） | AQ76: （t） | AR76: （t） | AS76: （t） | AT76: （t） | AU76: （t） | AV76: （t） | AW76: （t） | AX76: （t） | AY76: （t） | AZ76: （t） | BA76: （t） | BB76: （t） | BC76: （t） | BD76: （t） | BE76: （t） | BF76: （t） | BG76: （t） | BH76: （t） | BI76: （t） | BJ76: （t） | BK76: （t） | BL76: （t） | BM76: （t） | BN76: （t） | BO76: （t） | BP76: （t） | BQ76: （t） | BR76: （t） | BS76: 12 | BT76: 21 | BU76: 38 | BV76: 21 | BW76: （t）
B77: 72 | F77: 炉No2 | G77: 35 | H77: 8 | I77: 0 | J77: （t） | K77: （t） | L77: （t） | M77: （t） | N77: （t） | O77: （t） | P77: （t） | Q77: （t） | R77: （t） | S77: （t） | T77: （t） | U77: （t） | V77: （t） | W77: （t） | X77: （t） | Y77: （t） | Z77: （t） | AA77: （t） | AB77: （t） | AC77: （t） | AD77: （t） | AE77: （t） | AF77: （t） | AG77: （t） | AH77: （t） | AI77: （t） | AJ77: （t） | AK77: （t） | AL77: （t） | AM77: （t） | AN77: （t） | AO77: （t） | AP77: （t） | AQ77: （t） | AR77: （t） | AS77: （t） | AT77: （t） | AU77: （t） | AV77: （t） | AW77: （t） | AX77: （t） | AY77: （t） | AZ77: （t） | BA77: （t） | BB77: （t） | BC77: （t） | BD77: （t） | BE77: （t） | BF77: （t） | BG77: （t） | BH77: （t） | BI77: （t） | BJ77: （t） | BK77: （t） | BL77: （t） | BM77: （t） | BN77: （t） | BO77: （t） | BP77: （t） | BQ77: （t） | BR77: （t） | BS77: 13 | BT77: 21 | BU77: 39 | BV77: 21 | BW77: （t）
B78: 73 | F78: 炉No3 | G78: 36 | H78: 8 | I78: 0 | J78: （t） | K78: （t） | L78: （t） | M78: （t） | N78: （t） | O78: （t） | P78: （t） | Q78: （t） | R78: （t） | S78: （t） | T78: （t） | U78: （t） | V78: （t） | W78: （t） | X78: （t） | Y78: （t） | Z78: （t） | AA78: （t） | AB78: （t） | AC78: （t） | AD78: （t） | AE78: （t） | AF78: （t） | AG78: （t） | AH78: （t） | AI78: （t） | AJ78: （t） | AK78: （t） | AL78: （t） | AM78: （t） | AN78: （t） | AO78: （t） | AP78: （t） | AQ78: （t） | AR78: （t） | AS78: （t） | AT78: （t） | AU78: （t） | AV78: （t） | AW78: （t） | AX78: （t） | AY78: （t） | AZ78: （t） | BA78: （t） | BB78: （t） | BC78: （t） | BD78: （t） | BE78: （t） | BF78: （t） | BG78: （t） | BH78: （t） | BI78: （t） | BJ78: （t） | BK78: （t） | BL78: （t） | BM78: （t） | BN78: （t） | BO78: （t） | BP78: （t） | BQ78: （t） | BR78: （t） | BS78: 14 | BT78: 21 | BU78: 40 | BV78: 21 | BW78: （t）
B79: 74 | F79: 下水汚泥以外 | G79: 37 | H79: 8 | I79: 0 | J79: （t） | K79: （t） | L79: （t） | M79: （t） | N79: （t） | O79: （t） | P79: （t） | Q79: （t） | R79: （t） | S79: （t） | T79: （t） | U79: （t） | V79: （t） | W79: （t） | X79: （t） | Y79: （t） | Z79: （t） | AA79: （t） | AB79: （t） | AC79: （t） | AD79: （t） | AE79: （t） | AF79: （t） | AG79: （t） | AH79: （t） | AI79: （t） | AJ79: （t） | AK79: （t） | AL79: （t） | AM79: （t） | AN79: （t） | AO79: （t） | AP79: （t） | AQ79: （t） | AR79: （t） | AS79: （t） | AT79: （t） | AU79: （t） | AV79: （t） | AW79: （t） | AX79: （t） | AY79: （t） | AZ79: （t） | BA79: （t） | BB79: （t） | BC79: （t） | BD79: （t） | BE79: （t） | BF79: （t） | BG79: （t） | BH79: （t） | BI79: （t） | BJ79: （t） | BK79: （t） | BL79: （t） | BM79: （t） | BN79: （t） | BO79: （t） | BP79: （t） | BQ79: （t） | BR79: （t） | BS79: 15 | BT79: 21 | BU79: 41 | BV79: 21 | BW79: （t）
B80: 75 | F80: 燃料系廃油 | G80: 38 | H80: 8 | I80: 0 | J80: （t） | K80: （t） | L80: （t） | M80: （t） | N80: （t） | O80: （t） | P80: （t） | Q80: （t） | R80: （t） | S80: （t） | T80: （t） | U80: （t） | V80: （t） | W80: （t） | X80: （t） | Y80: （t） | Z80: （t） | AA80: （t） | AB80: （t） | AC80: （t） | AD80: （t） | AE80: （t） | AF80: （t） | AG80: （t） | AH80: （t） | AI80: （t） | AJ80: （t） | AK80: （t） | AL80: （t） | AM80: （t） | AN80: （t） | AO80: （t） | AP80: （t） | AQ80: （t） | AR80: （t） | AS80: （t） | AT80: （t） | AU80: （t） | AV80: （t） | AW80: （t） | AX80: （t） | AY80: （t） | AZ80: （t） | BA80: （t） | BB80: （t） | BC80: （t） | BD80: （t） | BE80: （t） | BF80: （t） | BG80: （t） | BH80: （t） | BI80: （t） | BJ80: （t） | BK80: （t） | BL80: （t） | BM80: （t） | BN80: （t） | BO80: （t） | BP80: （t） | BQ80: （t） | BR80: （t） | BS80: 16 | BT80: 21 | BU80: 42 | BV80: 21 | BW80: （t）
B81: 76 | F81: 動植物性廃油 | G81: 39 | H81: 8 | I81: 0 | J81: （t） | K81: （t） | L81: （t） | M81: （t） | N81: （t） | O81: （t） | P81: （t） | Q81: （t） | R81: （t） | S81: （t） | T81: （t） | U81: （t） | V81: （t） | W81: （t） | X81: （t） | Y81: （t） | Z81: （t） | AA81: （t） | AB81: （t） | AC81: （t） | AD81: （t） | AE81: （t） | AF81: （t） | AG81: （t） | AH81: （t） | AI81: （t） | AJ81: （t） | AK81: （t） | AL81: （t） | AM81: （t） | AN81: （t） | AO81: （t） | AP81: （t） | AQ81: （t） | AR81: （t） | AS81: （t） | AT81: （t） | AU81: （t） | AV81: （t） | AW81: （t） | AX81: （t） | AY81: （t） | AZ81: （t） | BA81: （t） | BB81: （t） | BC81: （t） | BD81: （t） | BE81: （t） | BF81: （t） | BG81: （t） | BH81: （t） | BI81: （t） | BJ81: （t） | BK81: （t） | BL81: （t） | BM81: （t） | BN81: （t） | BO81: （t） | BP81: （t） | BQ81: （t） | BR81: （t） | BS81: 17 | BT81: 21 | BU81: 43 | BV81: 21 | BW81: （t）
B82: 77 | F82: 廃プラスチック類 | G82: 40 | H82: 8 | I82: 0 | J82: （t） | K82: （t） | L82: （t） | M82: （t） | N82: （t） | O82: （t） | P82: （t） | Q82: （t） | R82: （t） | S82: （t） | T82: （t） | U82: （t） | V82: （t） | W82: （t） | X82: （t） | Y82: （t） | Z82: （t） | AA82: （t） | AB82: （t） | AC82: （t） | AD82: （t） | AE82: （t） | AF82: （t） | AG82: （t） | AH82: （t） | AI82: （t） | AJ82: （t） | AK82: （t） | AL82: （t） | AM82: （t） | AN82: （t） | AO82: （t） | AP82: （t） | AQ82: （t） | AR82: （t） | AS82: （t） | AT82: （t） | AU82: （t） | AV82: （t） | AW82: （t） | AX82: （t） | AY82: （t） | AZ82: （t） | BA82: （t） | BB82: （t） | BC82: （t） | BD82: （t） | BE82: （t） | BF82: （t） | BG82: （t） | BH82: （t） | BI82: （t） | BJ82: （t） | BK82: （t） | BL82: （t） | BM82: （t） | BN82: （t） | BO82: （t） | BP82: （t） | BQ82: （t） | BR82: （t） | BS82: 18 | BT82: 21 | BU82: 44 | BV82: 21 | BW82: （t）
B83: 78 | F83: 廃タイヤ | G83: 41 | H83: 8 | I83: 0 | J83: （t） | K83: （t） | L83: （t） | M83: （t） | N83: （t） | O83: （t） | P83: （t） | Q83: （t） | R83: （t） | S83: （t） | T83: （t） | U83: （t） | V83: （t） | W83: （t） | X83: （t） | Y83: （t） | Z83: （t） | AA83: （t） | AB83: （t） | AC83: （t） | AD83: （t） | AE83: （t） | AF83: （t） | AG83: （t） | AH83: （t） | AI83: （t） | AJ83: （t） | AK83: （t） | AL83: （t） | AM83: （t） | AN83: （t） | AO83: （t） | AP83: （t） | AQ83: （t） | AR83: （t） | AS83: （t） | AT83: （t） | AU83: （t） | AV83: （t） | AW83: （t） | AX83: （t） | AY83: （t） | AZ83: （t） | BA83: （t） | BB83: （t） | BC83: （t） | BD83: （t） | BE83: （t） | BF83: （t） | BG83: （t） | BH83: （t） | BI83: （t） | BJ83: （t） | BK83: （t） | BL83: （t） | BM83: （t） | BN83: （t） | BO83: （t） | BP83: （t） | BQ83: （t） | BR83: （t） | BS83: 19 | BT83: 21 | BU83: 45 | BV83: 21 | BW83: （t）
B84: 79 | F84: 紙くず | G84: 42 | H84: 8 | I84: 0 | J84: （t） | K84: （t） | L84: （t） | M84: （t） | N84: （t） | O84: （t） | P84: （t） | Q84: （t） | R84: （t） | S84: （t） | T84: （t） | U84: （t） | V84: （t） | W84: （t） | X84: （t） | Y84: （t） | Z84: （t） | AA84: （t） | AB84: （t） | AC84: （t） | AD84: （t） | AE84: （t） | AF84: （t） | AG84: （t） | AH84: （t） | AI84: （t） | AJ84: （t） | AK84: （t） | AL84: （t） | AM84: （t） | AN84: （t） | AO84: （t） | AP84: （t） | AQ84: （t） | AR84: （t） | AS84: （t） | AT84: （t） | AU84: （t） | AV84: （t） | AW84: （t） | AX84: （t） | AY84: （t） | AZ84: （t） | BA84: （t） | BB84: （t） | BC84: （t） | BD84: （t） | BE84: （t） | BF84: （t） | BG84: （t） | BH84: （t） | BI84: （t） | BJ84: （t） | BK84: （t） | BL84: （t） | BM84: （t） | BN84: （t） | BO84: （t） | BP84: （t） | BQ84: （t） | BR84: （t） | BS84: 20 | BT84: 21 | BU84: 46 | BV84: 21 | BW84: （t）
B85: 80 | F85: 木くず | G85: 43 | H85: 8 | I85: 0 | J85: （t） | K85: （t） | L85: （t） | M85: （t） | N85: （t） | O85: （t） | P85: （t） | Q85: （t） | R85: （t） | S85: （t） | T85: （t） | U85: （t） | V85: （t） | W85: （t） | X85: （t） | Y85: （t） | Z85: （t） | AA85: （t） | AB85: （t） | AC85: （t） | AD85: （t） | AE85: （t） | AF85: （t） | AG85: （t） | AH85: （t） | AI85: （t） | AJ85: （t） | AK85: （t） | AL85: （t） | AM85: （t） | AN85: （t） | AO85: （t） | AP85: （t） | AQ85: （t） | AR85: （t） | AS85: （t） | AT85: （t） | AU85: （t） | AV85: （t） | AW85: （t） | AX85: （t） | AY85: （t） | AZ85: （t） | BA85: （t） | BB85: （t） | BC85: （t） | BD85: （t） | BE85: （t） | BF85: （t） | BG85: （t） | BH85: （t） | BI85: （t） | BJ85: （t） | BK85: （t） | BL85: （t） | BM85: （t） | BN85: （t） | BO85: （t） | BP85: （t） | BQ85: （t） | BR85: （t） | BS85: 21 | BT85: 21 | BU85: 47 | BV85: 21 | BW85: （t）
B86: 81 | F86: 繊維くず | G86: 44 | H86: 8 | I86: 0 | J86: （t） | K86: （t） | L86: （t） | M86: （t） | N86: （t） | O86: （t） | P86: （t） | Q86: （t） | R86: （t） | S86: （t） | T86: （t） | U86: （t） | V86: （t） | W86: （t） | X86: （t） | Y86: （t） | Z86: （t） | AA86: （t） | AB86: （t） | AC86: （t） | AD86: （t） | AE86: （t） | AF86: （t） | AG86: （t） | AH86: （t） | AI86: （t） | AJ86: （t） | AK86: （t） | AL86: （t） | AM86: （t） | AN86: （t） | AO86: （t） | AP86: （t） | AQ86: （t） | AR86: （t） | AS86: （t） | AT86: （t） | AU86: （t） | AV86: （t） | AW86: （t） | AX86: （t） | AY86: （t） | AZ86: （t） | BA86: （t） | BB86: （t） | BC86: （t） | BD86: （t） | BE86: （t） | BF86: （t） | BG86: （t） | BH86: （t） | BI86: （t） | BJ86: （t） | BK86: （t） | BL86: （t） | BM86: （t） | BN86: （t） | BO86: （t） | BP86: （t） | BQ86: （t） | BR86: （t） | BS86: 22 | BT86: 21 | BU86: 48 | BV86: 21 | BW86: （t）
B87: 82 | F87: 動植物性残渣 | G87: 45 | H87: 8 | I87: 0 | J87: （t） | K87: （t） | L87: （t） | M87: （t） | N87: （t） | O87: （t） | P87: （t） | Q87: （t） | R87: （t） | S87: （t） | T87: （t） | U87: （t） | V87: （t） | W87: （t） | X87: （t） | Y87: （t） | Z87: （t） | AA87: （t） | AB87: （t） | AC87: （t） | AD87: （t） | AE87: （t） | AF87: （t） | AG87: （t） | AH87: （t） | AI87: （t） | AJ87: （t） | AK87: （t） | AL87: （t） | AM87: （t） | AN87: （t） | AO87: （t） | AP87: （t） | AQ87: （t） | AR87: （t） | AS87: （t） | AT87: （t） | AU87: （t） | AV87: （t） | AW87: （t） | AX87: （t） | AY87: （t） | AZ87: （t） | BA87: （t） | BB87: （t） | BC87: （t） | BD87: （t） | BE87: （t） | BF87: （t） | BG87: （t） | BH87: （t） | BI87: （t） | BJ87: （t） | BK87: （t） | BL87: （t） | BM87: （t） | BN87: （t） | BO87: （t） | BP87: （t） | BQ87: （t） | BR87: （t） | BS87: 23 | BT87: 21 | BU87: 49 | BV87: 21 | BW87: （t）
B88: 83 | F88: 動物系固形不要物 | G88: 46 | H88: 8 | I88: 0 | J88: （t） | K88: （t） | L88: （t） | M88: （t） | N88: （t） | O88: （t） | P88: （t） | Q88: （t） | R88: （t） | S88: （t） | T88: （t） | U88: （t） | V88: （t） | W88: （t） | X88: （t） | Y88: （t） | Z88: （t） | AA88: （t） | AB88: （t） | AC88: （t） | AD88: （t） | AE88: （t） | AF88: （t） | AG88: （t） | AH88: （t） | AI88: （t） | AJ88: （t） | AK88: （t） | AL88: （t） | AM88: （t） | AN88: （t） | AO88: （t） | AP88: （t） | AQ88: （t） | AR88: （t） | AS88: （t） | AT88: （t） | AU88: （t） | AV88: （t） | AW88: （t） | AX88: （t） | AY88: （t） | AZ88: （t） | BA88: （t） | BB88: （t） | BC88: （t） | BD88: （t） | BE88: （t） | BF88: （t） | BG88: （t） | BH88: （t） | BI88: （t） | BJ88: （t） | BK88: （t） | BL88: （t） | BM88: （t） | BN88: （t） | BO88: （t） | BP88: （t） | BQ88: （t） | BR88: （t） | BS88: 24 | BT88: 21 | BU88: 50 | BV88: 21 | BW88: （t）
B89: 84 | F89: 動物のふん尿 | G89: 47 | H89: 8 | I89: 0 | J89: （t） | K89: （t） | L89: （t） | M89: （t） | N89: （t） | O89: （t） | P89: （t） | Q89: （t） | R89: （t） | S89: （t） | T89: （t） | U89: （t） | V89: （t） | W89: （t） | X89: （t） | Y89: （t） | Z89: （t） | AA89: （t） | AB89: （t） | AC89: （t） | AD89: （t） | AE89: （t） | AF89: （t） | AG89: （t） | AH89: （t） | AI89: （t） | AJ89: （t） | AK89: （t） | AL89: （t） | AM89: （t） | AN89: （t） | AO89: （t） | AP89: （t） | AQ89: （t） | AR89: （t） | AS89: （t） | AT89: （t） | AU89: （t） | AV89: （t） | AW89: （t） | AX89: （t） | AY89: （t） | AZ89: （t） | BA89: （t） | BB89: （t） | BC89: （t） | BD89: （t） | BE89: （t） | BF89: （t） | BG89: （t） | BH89: （t） | BI89: （t） | BJ89: （t） | BK89: （t） | BL89: （t） | BM89: （t） | BN89: （t） | BO89: （t） | BP89: （t） | BQ89: （t） | BR89: （t） | BS89: 25 | BT89: 21 | BU89: 51 | BV89: 21 | BW89: （t）
B90: 85 | F90: 動物の死体 | G90: 48 | H90: 8 | I90: 0 | J90: （t） | K90: （t） | L90: （t） | M90: （t） | N90: （t） | O90: （t） | P90: （t） | Q90: （t） | R90: （t） | S90: （t） | T90: （t） | U90: （t） | V90: （t） | W90: （t） | X90: （t） | Y90: （t） | Z90: （t） | AA90: （t） | AB90: （t） | AC90: （t） | AD90: （t） | AE90: （t） | AF90: （t） | AG90: （t） | AH90: （t） | AI90: （t） | AJ90: （t） | AK90: （t） | AL90: （t） | AM90: （t） | AN90: （t） | AO90: （t） | AP90: （t） | AQ90: （t） | AR90: （t） | AS90: （t） | AT90: （t） | AU90: （t） | AV90: （t） | AW90: （t） | AX90: （t） | AY90: （t） | AZ90: （t） | BA90: （t） | BB90: （t） | BC90: （t） | BD90: （t） | BE90: （t） | BF90: （t） | BG90: （t） | BH90: （t） | BI90: （t） | BJ90: （t） | BK90: （t） | BL90: （t） | BM90: （t） | BN90: （t） | BO90: （t） | BP90: （t） | BQ90: （t） | BR90: （t） | BS90: 26 | BT90: 21 | BU90: 52 | BV90: 21 | BW90: （t）
B91: 86 | F91: 特別管理産業廃棄物の廃油 | G91: 49 | H91: 8 | I91: 0 | J91: （t） | K91: （t） | L91: （t） | M91: （t） | N91: （t） | O91: （t） | P91: （t） | Q91: （t） | R91: （t） | S91: （t） | T91: （t） | U91: （t） | V91: （t） | W91: （t） | X91: （t） | Y91: （t） | Z91: （t） | AA91: （t） | AB91: （t） | AC91: （t） | AD91: （t） | AE91: （t） | AF91: （t） | AG91: （t） | AH91: （t） | AI91: （t） | AJ91: （t） | AK91: （t） | AL91: （t） | AM91: （t） | AN91: （t） | AO91: （t） | AP91: （t） | AQ91: （t） | AR91: （t） | AS91: （t） | AT91: （t） | AU91: （t） | AV91: （t） | AW91: （t） | AX91: （t） | AY91: （t） | AZ91: （t） | BA91: （t） | BB91: （t） | BC91: （t） | BD91: （t） | BE91: （t） | BF91: （t） | BG91: （t） | BH91: （t） | BI91: （t） | BJ91: （t） | BK91: （t） | BL91: （t） | BM91: （t） | BN91: （t） | BO91: （t） | BP91: （t） | BQ91: （t） | BR91: （t） | BS91: 27 | BT91: 21 | BU91: 53 | BV91: 21 | BW91: （t）
B92: 87 | F92: 感染性廃棄物 | G92: 50 | H92: 8 | I92: 0 | J92: （t） | K92: （t） | L92: （t） | M92: （t） | N92: （t） | O92: （t） | P92: （t） | Q92: （t） | R92: （t） | S92: （t） | T92: （t） | U92: （t） | V92: （t） | W92: （t） | X92: （t） | Y92: （t） | Z92: （t） | AA92: （t） | AB92: （t） | AC92: （t） | AD92: （t） | AE92: （t） | AF92: （t） | AG92: （t） | AH92: （t） | AI92: （t） | AJ92: （t） | AK92: （t） | AL92: （t） | AM92: （t） | AN92: （t） | AO92: （t） | AP92: （t） | AQ92: （t） | AR92: （t） | AS92: （t） | AT92: （t） | AU92: （t） | AV92: （t） | AW92: （t） | AX92: （t） | AY92: （t） | AZ92: （t） | BA92: （t） | BB92: （t） | BC92: （t） | BD92: （t） | BE92: （t） | BF92: （t） | BG92: （t） | BH92: （t） | BI92: （t） | BJ92: （t） | BK92: （t） | BL92: （t） | BM92: （t） | BN92: （t） | BO92: （t） | BP92: （t） | BQ92: （t） | BR92: （t） | BS92: 28 | BT92: 21 | BU92: 54 | BV92: 21 | BW92: （t）
B93: 88 | F93: その他 | G93: 51 | H93: 8 | I93: 0 | J93: （t） | K93: （t） | L93: （t） | M93: （t） | N93: （t） | O93: （t） | P93: （t） | Q93: （t） | R93: （t） | S93: （t） | T93: （t） | U93: （t） | V93: （t） | W93: （t） | X93: （t） | Y93: （t） | Z93: （t） | AA93: （t） | AB93: （t） | AC93: （t） | AD93: （t） | AE93: （t） | AF93: （t） | AG93: （t） | AH93: （t） | AI93: （t） | AJ93: （t） | AK93: （t） | AL93: （t） | AM93: （t） | AN93: （t） | AO93: （t） | AP93: （t） | AQ93: （t） | AR93: （t） | AS93: （t） | AT93: （t） | AU93: （t） | AV93: （t） | AW93: （t） | AX93: （t） | AY93: （t） | AZ93: （t） | BA93: （t） | BB93: （t） | BC93: （t） | BD93: （t） | BE93: （t） | BF93: （t） | BG93: （t） | BH93: （t） | BI93: （t） | BJ93: （t） | BK93: （t） | BL93: （t） | BM93: （t） | BN93: （t） | BO93: （t） | BP93: （t） | BQ93: （t） | BR93: （t） | BS93: 29 | BT93: 21 | BU93: 55 | BV93: 21 | BW93: （t）
B94: 89 | E94: 炉の種類 | F94: 炉No1 | G94: 34 | H94: 9 | I94: 0
B95: 90 | F95: 炉No2 | G95: 35 | H95: 9 | I95: 0
B96: 91 | F96: 炉No3 | G96: 36 | H96: 9 | I96: 0
B97: 92 | E97: 凝集剤の種類 | F97: 炉No1 | G97: 34 | H97: 10 | I97: 0
B98: 93 | F98: 炉No2 | G98: 35 | H98: 10 | I98: 0
B99: 94 | F99: 炉No3 | G99: 36 | H99: 10 | I99: 0
B100: 95 | E100: 単位 | F100: 有機性汚泥 | G100: 54 | H100: 8 | I100: 0 | J100: （t） | K100: （t） | L100: （t） | M100: （t） | N100: （t） | O100: （t） | P100: （t） | Q100: （t） | R100: （t） | S100: （t） | T100: （t） | U100: （t） | V100: （t） | W100: （t） | X100: （t） | Y100: （t） | Z100: （t） | AA100: （t） | AB100: （t） | AC100: （t） | AD100: （t） | AE100: （t） | AF100: （t） | AG100: （t） | AH100: （t） | AI100: （t） | AJ100: （t） | AK100: （t） | AL100: （t） | AM100: （t） | AN100: （t） | AO100: （t） | AP100: （t） | AQ100: （t） | AR100: （t） | AS100: （t） | AT100: （t） | AU100: （t） | AV100: （t） | AW100: （t） | AX100: （t） | AY100: （t） | AZ100: （t） | BA100: （t） | BB100: （t） | BC100: （t） | BD100: （t） | BE100: （t） | BF100: （t） | BG100: （t） | BH100: （t） | BI100: （t） | BJ100: （t） | BK100: （t） | BL100: （t） | BM100: （t） | BN100: （t） | BO100: （t） | BP100: （t） | BQ100: （t） | BR100: （t） | BS100: 32 | BT100: 21 | BW100: （t）
B101: 96 | F101: 動植物性残渣 | G101: 55 | H101: 8 | I101: 0 | J101: （t） | K101: （t） | L101: （t） | M101: （t） | N101: （t） | O101: （t） | P101: （t） | Q101: （t） | R101: （t） | S101: （t） | T101: （t） | U101: （t） | V101: （t） | W101: （t） | X101: （t） | Y101: （t） | Z101: （t） | AA101: （t） | AB101: （t） | AC101: （t） | AD101: （t） | AE101: （t） | AF101: （t） | AG101: （t） | AH101: （t） | AI101: （t） | AJ101: （t） | AK101: （t） | AL101: （t） | AM101: （t） | AN101: （t） | AO101: （t） | AP101: （t） | AQ101: （t） | AR101: （t） | AS101: （t） | AT101: （t） | AU101: （t） | AV101: （t） | AW101: （t） | AX101: （t） | AY101: （t） | AZ101: （t） | BA101: （t） | BB101: （t） | BC101: （t） | BD101: （t） | BE101: （t） | BF101: （t） | BG101: （t） | BH101: （t） | BI101: （t） | BJ101: （t） | BK101: （t） | BL101: （t） | BM101: （t） | BN101: （t） | BO101: （t） | BP101: （t） | BQ101: （t） | BR101: （t） | BS101: 33 | BT101: 21 | BW101: （t）
B102: 97 | F102: 紙くず、木くず、繊維くず | G102: 56 | H102: 8 | I102: 0 | J102: （t） | K102: （t） | L102: （t） | M102: （t） | N102: （t） | O102: （t） | P102: （t） | Q102: （t） | R102: （t） | S102: （t） | T102: （t） | U102: （t） | V102: （t） | W102: （t） | X102: （t） | Y102: （t） | Z102: （t） | AA102: （t） | AB102: （t） | AC102: （t） | AD102: （t） | AE102: （t） | AF102: （t） | AG102: （t） | AH102: （t） | AI102: （t） | AJ102: （t） | AK102: （t） | AL102: （t） | AM102: （t） | AN102: （t） | AO102: （t） | AP102: （t） | AQ102: （t） | AR102: （t） | AS102: （t） | AT102: （t） | AU102: （t） | AV102: （t） | AW102: （t） | AX102: （t） | AY102: （t） | AZ102: （t） | BA102: （t） | BB102: （t） | BC102: （t） | BD102: （t） | BE102: （t） | BF102: （t） | BG102: （t） | BH102: （t） | BI102: （t） | BJ102: （t） | BK102: （t） | BL102: （t） | BM102: （t） | BN102: （t） | BO102: （t） | BP102: （t） | BQ102: （t） | BR102: （t） | BS102: 34 | BT102: 21 | BW102: （t）
B103: 98 | F103: その他の有機性廃棄物 | G103: 57 | H103: 8 | I103: 0 | J103: （t） | K103: （t） | L103: （t） | M103: （t） | N103: （t） | O103: （t） | P103: （t） | Q103: （t） | R103: （t） | S103: （t） | T103: （t） | U103: （t） | V103: （t） | W103: （t） | X103: （t） | Y103: （t） | Z103: （t） | AA103: （t） | AB103: （t） | AC103: （t） | AD103: （t） | AE103: （t） | AF103: （t） | AG103: （t） | AH103: （t） | AI103: （t） | AJ103: （t） | AK103: （t） | AL103: （t） | AM103: （t） | AN103: （t） | AO103: （t） | AP103: （t） | AQ103: （t） | AR103: （t） | AS103: （t） | AT103: （t） | AU103: （t） | AV103: （t） | AW103: （t） | AX103: （t） | AY103: （t） | AZ103: （t） | BA103: （t） | BB103: （t） | BC103: （t） | BD103: （t） | BE103: （t） | BF103: （t） | BG103: （t） | BH103: （t） | BI103: （t） | BJ103: （t） | BK103: （t） | BL103: （t） | BM103: （t） | BN103: （t） | BO103: （t） | BP103: （t） | BQ103: （t） | BR103: （t） | BS103: 35 | BT103: 21 | BW103: （t）
B104: 99 | E104: 単位 | F104: 廃棄物発電 | G104: 63 | H104: 8 | I104: 0 | J104: （千kWh） | K104: （千kWh） | L104: （千kWh） | M104: （千kWh） | N104: （千kWh） | O104: （千kWh） | P104: （千kWh） | Q104: （千kWh） | R104: （千kWh） | S104: （千kWh） | T104: （千kWh） | U104: （千kWh） | V104: （千kWh） | W104: （千kWh） | X104: （千kWh） | Y104: （千kWh） | Z104: （千kWh） | AA104: （千kWh） | AB104: （千kWh） | AC104: （千kWh） | AD104: （千kWh） | AE104: （千kWh） | AF104: （千kWh） | AG104: （千kWh） | AH104: （千kWh） | AI104: （千kWh） | AJ104: （千kWh） | AK104: （千kWh） | AL104: （千kWh） | AM104: （千kWh） | AN104: （千kWh） | AO104: （千kWh） | AP104: （千kWh） | AQ104: （千kWh） | AR104: （千kWh） | AS104: （千kWh） | AT104: （千kWh） | AU104: （千kWh） | AV104: （千kWh） | AW104: （千kWh） | AX104: （千kWh） | AY104: （千kWh） | AZ104: （千kWh） | BA104: （千kWh） | BB104: （千kWh） | BC104: （千kWh） | BD104: （千kWh） | BE104: （千kWh） | BF104: （千kWh） | BG104: （千kWh） | BH104: （千kWh） | BI104: （千kWh） | BJ104: （千kWh） | BK104: （千kWh） | BL104: （千kWh） | BM104: （千kWh） | BN104: （千kWh） | BO104: （千kWh） | BP104: （千kWh） | BQ104: （千kWh） | BR104: （千kWh） | BS104: 41 | BT104: 21 | BU104: 63 | BV104: 21 | BW104: （千kWh）
B105: 100 | F105: 廃棄物熱利用 | G105: 64 | H105: 8 | I105: 0 | J105: （千MJ） | K105: （千MJ） | L105: （千MJ） | M105: （千MJ） | N105: （千MJ） | O105: （千MJ） | P105: （千MJ） | Q105: （千MJ） | R105: （千MJ） | S105: （千MJ） | T105: （千MJ） | U105: （千MJ） | V105: （千MJ） | W105: （千MJ） | X105: （千MJ） | Y105: （千MJ） | Z105: （千MJ） | AA105: （千MJ） | AB105: （千MJ） | AC105: （千MJ） | AD105: （千MJ） | AE105: （千MJ） | AF105: （千MJ） | AG105: （千MJ） | AH105: （千MJ） | AI105: （千MJ） | AJ105: （千MJ） | AK105: （千MJ） | AL105: （千MJ） | AM105: （千MJ） | AN105: （千MJ） | AO105: （千MJ） | AP105: （千MJ） | AQ105: （千MJ） | AR105: （千MJ） | AS105: （千MJ） | AT105: （千MJ） | AU105: （千MJ） | AV105: （千MJ） | AW105: （千MJ） | AX105: （千MJ） | AY105: （千MJ） | AZ105: （千MJ） | BA105: （千MJ） | BB105: （千MJ） | BC105: （千MJ） | BD105: （千MJ） | BE105: （千MJ） | BF105: （千MJ） | BG105: （千MJ） | BH105: （千MJ） | BI105: （千MJ） | BJ105: （千MJ） | BK105: （千MJ） | BL105: （千MJ） | BM105: （千MJ） | BN105: （千MJ） | BO105: （千MJ） | BP105: （千MJ） | BQ105: （千MJ） | BR105: （千MJ） | BS105: 42 | BT105: 21 | BU105: 64 | BV105: 21 | BW105: （千MJ）
A106: 最終処分 | B106: 101 | D106: 最終処分業 | E106: 最終処分量 | F106: 有機性の下水汚泥 | G106: 71 | H106: 7 | I106: 1 | BS106: 12 | BT106: 20 | BU106: 73 | BV106: 20
B107: 102 | F107: 製造業有機性汚泥 | G107: 72 | H107: 7 | I107: 1 | BS107: 13 | BT107: 20 | BU107: 74 | BV107: 20
B108: 103 | F108: 浄水施設に係る汚泥 | G108: 73 | H108: 7 | I108: 1 | BS108: 14 | BT108: 20 | BU108: 75 | BV108: 20
B109: 104 | F109: し尿処理施設に係る汚泥 | G109: 74 | H109: 7 | I109: 1 | BS109: 15 | BT109: 20 | BU109: 76 | BV109: 20
B110: 105 | F110: その他（有機無機混合汚泥） | G110: 75 | H110: 7 | I110: 1 | BS110: 16 | BT110: 20 | BU110: 77 | BV110: 20
B111: 106 | F111: 紙くず | G111: 76 | H111: 7 | I111: 1 | BS111: 17 | BT111: 20 | BU111: 78 | BV111: 20
B112: 107 | F112: 木くず | G112: 77 | H112: 7 | I112: 1 | BS112: 18 | BT112: 20 | BU112: 79 | BV112: 20
B113: 108 | F113: 繊維くず | G113: 78 | H113: 7 | I113: 1 | BS113: 19 | BT113: 20 | BU113: 80 | BV113: 20
B114: 109 | F114: 動植物性残渣 | G114: 79 | H114: 7 | I114: 1 | BS114: 20 | BT114: 20 | BU114: 81 | BV114: 20
B115: 110 | F115: 動物系固形不要物 | G115: 80 | H115: 7 | I115: 1 | BS115: 21 | BT115: 20 | BU115: 82 | BV115: 20
B116: 111 | F116: 動物のふん尿 | G116: 81 | H116: 7 | I116: 1 | BS116: 22 | BT116: 20 | BU116: 83 | BV116: 20
B117: 112 | F117: 動物の死体 | G117: 82 | H117: 7 | I117: 1 | BS117: 23 | BT117: 20 | BU117: 84 | BV117: 20
B118: 113 | F118: その他（混合廃棄物） | G118: 83 | H118: 7 | I118: 1 | BS118: 24 | BT118: 20 | BU118: 85 | BV118: 20
B119: 114 | E119: 水分割合 | F119: 有機性の下水汚泥 | G119: 71 | H119: 10 | I119: 2 | J119: 70 | K119: 70 | L119: 70 | M119: 70 | N119: 70 | O119: 70 | P119: 70 | Q119: 70 | R119: 70 | S119: 70 | T119: 70 | U119: 70 | V119: 70 | W119: 70 | X119: 70 | Y119: 70 | Z119: 70 | AA119: 70 | AB119: 70 | AC119: 70 | AD119: 70 | AE119: 70 | AF119: 70 | AG119: 70 | AH119: 70 | AI119: 70 | AJ119: 70 | AK119: 70 | AL119: 70 | AM119: 70 | AN119: 70 | AO119: 70 | AP119: 70 | AQ119: 70 | AR119: 70 | AS119: 70 | AT119: 70 | AU119: 70 | AV119: 70 | AW119: 70 | AX119: 70 | AY119: 70 | AZ119: 70 | BA119: 70 | BB119: 70 | BC119: 70 | BD119: 70 | BE119: 70 | BF119: 70 | BG119: 70 | BH119: 70 | BI119: 70 | BJ119: 70 | BK119: 70 | BL119: 70 | BM119: 70 | BN119: 70 | BO119: 70 | BP119: 70 | BQ119: 70 | BR119: 70 | BS119: 12 | BT119: 22 | BU119: 73 | BV119: 22 | BW119: 70 | BX119: 化学業、製紙製造業 68+66
B120: 115 | F120: 製造業有機性汚泥 | G120: 72 | H120: 10 | I120: 2 | J120: 67 | K120: 67 | L120: 67 | M120: 67 | N120: 67 | O120: 67 | P120: 67 | Q120: 67 | R120: 67 | S120: 67 | T120: 67 | U120: 67 | V120: 67 | W120: 67 | X120: 67 | Y120: 67 | Z120: 67 | AA120: 67 | AB120: 67 | AC120: 67 | AD120: 67 | AE120: 67 | AF120: 67 | AG120: 67 | AH120: 67 | AI120: 67 | AJ120: 67 | AK120: 67 | AL120: 67 | AM120: 67 | AN120: 67 | AO120: 67 | AP120: 67 | AQ120: 67 | AR120: 67 | AS120: 67 | AT120: 67 | AU120: 67 | AV120: 67 | AW120: 67 | AX120: 67 | AY120: 67 | AZ120: 67 | BA120: 67 | BB120: 67 | BC120: 67 | BD120: 67 | BE120: 67 | BF120: 67 | BG120: 67 | BH120: 67 | BI120: 67 | BJ120: 67 | BK120: 67 | BL120: 67 | BM120: 67 | BN120: 67 | BO120: 67 | BP120: 67 | BQ120: 67 | BR120: 67 | BS120: 13 | BT120: 22 | BU120: 74 | BV120: 22 | BW120: 67
B121: 116 | F121: 浄水施設に係る汚泥 | G121: 73 | H121: 10 | I121: 2 | J121: 70 | K121: 70 | L121: 70 | M121: 70 | N121: 70 | O121: 70 | P121: 70 | Q121: 70 | R121: 70 | S121: 70 | T121: 70 | U121: 70 | V121: 70 | W121: 70 | X121: 70 | Y121: 70 | Z121: 70 | AA121: 70 | AB121: 70 | AC121: 70 | AD121: 70 | AE121: 70 | AF121: 70 | AG121: 70 | AH121: 70 | AI121: 70 | AJ121: 70 | AK121: 70 | AL121: 70 | AM121: 70 | AN121: 70 | AO121: 70 | AP121: 70 | AQ121: 70 | AR121: 70 | AS121: 70 | AT121: 70 | AU121: 70 | AV121: 70 | AW121: 70 | AX121: 70 | AY121: 70 | AZ121: 70 | BA121: 70 | BB121: 70 | BC121: 70 | BD121: 70 | BE121: 70 | BF121: 70 | BG121: 70 | BH121: 70 | BI121: 70 | BJ121: 70 | BK121: 70 | BL121: 70 | BM121: 70 | BN121: 70 | BO121: 70 | BP121: 70 | BQ121: 70 | BR121: 70 | BS121: 14 | BT121: 22 | BU121: 75 | BV121: 22 | BW121: 70
B122: 117 | F122: し尿処理施設に係る汚泥 | G122: 74 | H122: 10 | I122: 2 | J122: 70 | K122: 70 | L122: 70 | M122: 70 | N122: 70 | O122: 70 | P122: 70 | Q122: 70 | R122: 70 | S122: 70 | T122: 70 | U122: 70 | V122: 70 | W122: 70 | X122: 70 | Y122: 70 | Z122: 70 | AA122: 70 | AB122: 70 | AC122: 70 | AD122: 70 | AE122: 70 | AF122: 70 | AG122: 70 | AH122: 70 | AI122: 70 | AJ122: 70 | AK122: 70 | AL122: 70 | AM122: 70 | AN122: 70 | AO122: 70 | AP122: 70 | AQ122: 70 | AR122: 70 | AS122: 70 | AT122: 70 | AU122: 70 | AV122: 70 | AW122: 70 | AX122: 70 | AY122: 70 | AZ122: 70 | BA122: 70 | BB122: 70 | BC122: 70 | BD122: 70 | BE122: 70 | BF122: 70 | BG122: 70 | BH122: 70 | BI122: 70 | BJ122: 70 | BK122: 70 | BL122: 70 | BM122: 70 | BN122: 70 | BO122: 70 | BP122: 70 | BQ122: 70 | BR122: 70 | BS122: 15 | BT122: 22 | BU122: 76 | BV122: 22 | BW122: 70
B123: 118 | F123: その他（有機無機混合汚泥） | G123: 75 | H123: 10 | I123: 2 | J123: 67 | K123: 67 | L123: 67 | M123: 67 | N123: 67 | O123: 67 | P123: 67 | Q123: 67 | R123: 67 | S123: 67 | T123: 67 | U123: 67 | V123: 67 | W123: 67 | X123: 67 | Y123: 67 | Z123: 67 | AA123: 67 | AB123: 67 | AC123: 67 | AD123: 67 | AE123: 67 | AF123: 67 | AG123: 67 | AH123: 67 | AI123: 67 | AJ123: 67 | AK123: 67 | AL123: 67 | AM123: 67 | AN123: 67 | AO123: 67 | AP123: 67 | AQ123: 67 | AR123: 67 | AS123: 67 | AT123: 67 | AU123: 67 | AV123: 67 | AW123: 67 | AX123: 67 | AY123: 67 | AZ123: 67 | BA123: 67 | BB123: 67 | BC123: 67 | BD123: 67 | BE123: 67 | BF123: 67 | BG123: 67 | BH123: 67 | BI123: 67 | BJ123: 67 | BK123: 67 | BL123: 67 | BM123: 67 | BN123: 67 | BO123: 67 | BP123: 67 | BQ123: 67 | BR123: 67 | BS123: 16 | BT123: 22 | BU123: 77 | BV123: 22 | BW123: 67
B124: 119 | F124: 紙くず | G124: 76 | H124: 10 | I124: 2 | J124: 15 | K124: 15 | L124: 15 | M124: 15 | N124: 15 | O124: 15 | P124: 15 | Q124: 15 | R124: 15 | S124: 15 | T124: 15 | U124: 15 | V124: 15 | W124: 15 | X124: 15 | Y124: 15 | Z124: 15 | AA124: 15 | AB124: 15 | AC124: 15 | AD124: 15 | AE124: 15 | AF124: 15 | AG124: 15 | AH124: 15 | AI124: 15 | AJ124: 15 | AK124: 15 | AL124: 15 | AM124: 15 | AN124: 15 | AO124: 15 | AP124: 15 | AQ124: 15 | AR124: 15 | AS124: 15 | AT124: 15 | AU124: 15 | AV124: 15 | AW124: 15 | AX124: 15 | AY124: 15 | AZ124: 15 | BA124: 15 | BB124: 15 | BC124: 15 | BD124: 15 | BE124: 15 | BF124: 15 | BG124: 15 | BH124: 15 | BI124: 15 | BJ124: 15 | BK124: 15 | BL124: 15 | BM124: 15 | BN124: 15 | BO124: 15 | BP124: 15 | BQ124: 15 | BR124: 15 | BS124: 17 | BT124: 22 | BU124: 78 | BV124: 22 | BW124: 15
B125: 120 | F125: 木くず | G125: 77 | H125: 10 | I125: 2 | J125: 45 | K125: 45 | L125: 45 | M125: 45 | N125: 45 | O125: 45 | P125: 45 | Q125: 45 | R125: 45 | S125: 45 | T125: 45 | U125: 45 | V125: 45 | W125: 45 | X125: 45 | Y125: 45 | Z125: 45 | AA125: 45 | AB125: 45 | AC125: 45 | AD125: 45 | AE125: 45 | AF125: 45 | AG125: 45 | AH125: 45 | AI125: 45 | AJ125: 45 | AK125: 45 | AL125: 45 | AM125: 45 | AN125: 45 | AO125: 45 | AP125: 45 | AQ125: 45 | AR125: 45 | AS125: 45 | AT125: 45 | AU125: 45 | AV125: 45 | AW125: 45 | AX125: 45 | AY125: 45 | AZ125: 45 | BA125: 45 | BB125: 45 | BC125: 45 | BD125: 45 | BE125: 45 | BF125: 45 | BG125: 45 | BH125: 45 | BI125: 45 | BJ125: 45 | BK125: 45 | BL125: 45 | BM125: 45 | BN125: 45 | BO125: 45 | BP125: 45 | BQ125: 45 | BR125: 45 | BS125: 18 | BT125: 22 | BU125: 79 | BV125: 22 | BW125: 45
B126: 121 | F126: 繊維くず | G126: 78 | H126: 10 | I126: 2 | J126: 15 | K126: 15 | L126: 15 | M126: 15 | N126: 15 | O126: 15 | P126: 15 | Q126: 15 | R126: 15 | S126: 15 | T126: 15 | U126: 15 | V126: 15 | W126: 15 | X126: 15 | Y126: 15 | Z126: 15 | AA126: 15 | AB126: 15 | AC126: 15 | AD126: 15 | AE126: 15 | AF126: 15 | AG126: 15 | AH126: 15 | AI126: 15 | AJ126: 15 | AK126: 15 | AL126: 15 | AM126: 15 | AN126: 15 | AO126: 15 | AP126: 15 | AQ126: 15 | AR126: 15 | AS126: 15 | AT126: 15 | AU126: 15 | AV126: 15 | AW126: 15 | AX126: 15 | AY126: 15 | AZ126: 15 | BA126: 15 | BB126: 15 | BC126: 15 | BD126: 15 | BE126: 15 | BF126: 15 | BG126: 15 | BH126: 15 | BI126: 15 | BJ126: 15 | BK126: 15 | BL126: 15 | BM126: 15 | BN126: 15 | BO126: 15 | BP126: 15 | BQ126: 15 | BR126: 15 | BS126: 19 | BT126: 22 | BU126: 80 | BV126: 22 | BW126: 15
B127: 122 | F127: 動植物性残渣 | G127: 79 | H127: 10 | I127: 2 | J127: 75 | K127: 75 | L127: 75 | M127: 75 | N127: 75 | O127: 75 | P127: 75 | Q127: 75 | R127: 75 | S127: 75 | T127: 75 | U127: 75 | V127: 75 | W127: 75 | X127: 75 | Y127: 75 | Z127: 75 | AA127: 75 | AB127: 75 | AC127: 75 | AD127: 75 | AE127: 75 | AF127: 75 | AG127: 75 | AH127: 75 | AI127: 75 | AJ127: 75 | AK127: 75 | AL127: 75 | AM127: 75 | AN127: 75 | AO127: 75 | AP127: 75 | AQ127: 75 | AR127: 75 | AS127: 75 | AT127: 75 | AU127: 75 | AV127: 75 | AW127: 75 | AX127: 75 | AY127: 75 | AZ127: 75 | BA127: 75 | BB127: 75 | BC127: 75 | BD127: 75 | BE127: 75 | BF127: 75 | BG127: 75 | BH127: 75 | BI127: 75 | BJ127: 75 | BK127: 75 | BL127: 75 | BM127: 75 | BN127: 75 | BO127: 75 | BP127: 75 | BQ127: 75 | BR127: 75 | BS127: 20 | BT127: 22 | BU127: 81 | BV127: 22 | BW127: 75
B128: 123 | F128: 動物系固形不要物 | G128: 80 | H128: 10 | I128: 2 | J128: 75 | K128: 75 | L128: 75 | M128: 75 | N128: 75 | O128: 75 | P128: 75 | Q128: 75 | R128: 75 | S128: 75 | T128: 75 | U128: 75 | V128: 75 | W128: 75 | X128: 75 | Y128: 75 | Z128: 75 | AA128: 75 | AB128: 75 | AC128: 75 | AD128: 75 | AE128: 75 | AF128: 75 | AG128: 75 | AH128: 75 | AI128: 75 | AJ128: 75 | AK128: 75 | AL128: 75 | AM128: 75 | AN128: 75 | AO128: 75 | AP128: 75 | AQ128: 75 | AR128: 75 | AS128: 75 | AT128: 75 | AU128: 75 | AV128: 75 | AW128: 75 | AX128: 75 | AY128: 75 | AZ128: 75 | BA128: 75 | BB128: 75 | BC128: 75 | BD128: 75 | BE128: 75 | BF128: 75 | BG128: 75 | BH128: 75 | BI128: 75 | BJ128: 75 | BK128: 75 | BL128: 75 | BM128: 75 | BN128: 75 | BO128: 75 | BP128: 75 | BQ128: 75 | BR128: 75 | BS128: 21 | BT128: 22 | BU128: 82 | BV128: 22 | BW128: 75
B129: 124 | F129: 動物のふん尿 | G129: 81 | H129: 10 | I129: 2 | J129: 75 | K129: 75 | L129: 75 | M129: 75 | N129: 75 | O129: 75 | P129: 75 | Q129: 75 | R129: 75 | S129: 75 | T129: 75 | U129: 75 | V129: 75 | W129: 75 | X129: 75 | Y129: 75 | Z129: 75 | AA129: 75 | AB129: 75 | AC129: 75 | AD129: 75 | AE129: 75 | AF129: 75 | AG129: 75 | AH129: 75 | AI129: 75 | AJ129: 75 | AK129: 75 | AL129: 75 | AM129: 75 | AN129: 75 | AO129: 75 | AP129: 75 | AQ129: 75 | AR129: 75 | AS129: 75 | AT129: 75 | AU129: 75 | AV129: 75 | AW129: 75 | AX129: 75 | AY129: 75 | AZ129: 75 | BA129: 75 | BB129: 75 | BC129: 75 | BD129: 75 | BE129: 75 | BF129: 75 | BG129: 75 | BH129: 75 | BI129: 75 | BJ129: 75 | BK129: 75 | BL129: 75 | BM129: 75 | BN129: 75 | BO129: 75 | BP129: 75 | BQ129: 75 | BR129: 75 | BS129: 22 | BT129: 22 | BU129: 83 | BV129: 22 | BW129: 75
B130: 125 | F130: 動物の死体 | G130: 82 | H130: 10 | I130: 2 | J130: 75 | K130: 75 | L130: 75 | M130: 75 | N130: 75 | O130: 75 | P130: 75 | Q130: 75 | R130: 75 | S130: 75 | T130: 75 | U130: 75 | V130: 75 | W130: 75 | X130: 75 | Y130: 75 | Z130: 75 | AA130: 75 | AB130: 75 | AC130: 75 | AD130: 75 | AE130: 75 | AF130: 75 | AG130: 75 | AH130: 75 | AI130: 75 | AJ130: 75 | AK130: 75 | AL130: 75 | AM130: 75 | AN130: 75 | AO130: 75 | AP130: 75 | AQ130: 75 | AR130: 75 | AS130: 75 | AT130: 75 | AU130: 75 | AV130: 75 | AW130: 75 | AX130: 75 | AY130: 75 | AZ130: 75 | BA130: 75 | BB130: 75 | BC130: 75 | BD130: 75 | BE130: 75 | BF130: 75 | BG130: 75 | BH130: 75 | BI130: 75 | BJ130: 75 | BK130: 75 | BL130: 75 | BM130: 75 | BN130: 75 | BO130: 75 | BP130: 75 | BQ130: 75 | BR130: 75 | BS130: 23 | BT130: 22 | BU130: 84 | BV130: 22 | BW130: 75
B131: 126 | F131: その他（混合廃棄物） | G131: 83 | H131: 10 | I131: 2 | J131: 75 | K131: 75 | L131: 75 | M131: 75 | N131: 75 | O131: 75 | P131: 75 | Q131: 75 | R131: 75 | S131: 75 | T131: 75 | U131: 75 | V131: 75 | W131: 75 | X131: 75 | Y131: 75 | Z131: 75 | AA131: 75 | AB131: 75 | AC131: 75 | AD131: 75 | AE131: 75 | AF131: 75 | AG131: 75 | AH131: 75 | AI131: 75 | AJ131: 75 | AK131: 75 | AL131: 75 | AM131: 75 | AN131: 75 | AO131: 75 | AP131: 75 | AQ131: 75 | AR131: 75 | AS131: 75 | AT131: 75 | AU131: 75 | AV131: 75 | AW131: 75 | AX131: 75 | AY131: 75 | AZ131: 75 | BA131: 75 | BB131: 75 | BC131: 75 | BD131: 75 | BE131: 75 | BF131: 75 | BG131: 75 | BH131: 75 | BI131: 75 | BJ131: 75 | BK131: 75 | BL131: 75 | BM131: 75 | BN131: 75 | BO131: 75 | BP131: 75 | BQ131: 75 | BR131: 75 | BS131: 24 | BT131: 22 | BU131: 85 | BV131: 22 | BW131: 75
B132: 127 | E132: 有機成分の割合 | F132: その他（有機無機混合汚泥） | G132: 75 | H132: 11 | I132: 2 | J132: 50 | K132: 50 | L132: 50 | M132: 50 | N132: 50 | O132: 50 | P132: 50 | Q132: 50 | R132: 50 | S132: 50 | T132: 50 | U132: 50 | V132: 50 | W132: 50 | X132: 50 | Y132: 50 | Z132: 50 | AA132: 50 | AB132: 50 | AC132: 50 | AD132: 50 | AE132: 50 | AF132: 50 | AG132: 50 | AH132: 50 | AI132: 50 | AJ132: 50 | AK132: 50 | AL132: 50 | AM132: 50 | AN132: 50 | AO132: 50 | AP132: 50 | AQ132: 50 | AR132: 50 | AS132: 50 | AT132: 50 | AU132: 50 | AV132: 50 | AW132: 50 | AX132: 50 | AY132: 50 | AZ132: 50 | BA132: 50 | BB132: 50 | BC132: 50 | BD132: 50 | BE132: 50 | BF132: 50 | BG132: 50 | BH132: 50 | BI132: 50 | BJ132: 50 | BK132: 50 | BL132: 50 | BM132: 50 | BN132: 50 | BO132: 50 | BP132: 50 | BQ132: 50 | BR132: 50 | BS132: 16 | BT132: 23 | BU132: 77 | BV132: 23 | BW132: 50
B133: 128 | F133: その他（混合廃棄物） | G133: 83 | H133: 11 | I133: 2 | J133: 10 | K133: 10 | L133: 10 | M133: 10 | N133: 10 | O133: 10 | P133: 10 | Q133: 10 | R133: 10 | S133: 10 | T133: 10 | U133: 10 | V133: 10 | W133: 10 | X133: 10 | Y133: 10 | Z133: 10 | AA133: 10 | AB133: 10 | AC133: 10 | AD133: 10 | AE133: 10 | AF133: 10 | AG133: 10 | AH133: 10 | AI133: 10 | AJ133: 10 | AK133: 10 | AL133: 10 | AM133: 10 | AN133: 10 | AO133: 10 | AP133: 10 | AQ133: 10 | AR133: 10 | AS133: 10 | AT133: 10 | AU133: 10 | AV133: 10 | AW133: 10 | AX133: 10 | AY133: 10 | AZ133: 10 | BA133: 10 | BB133: 10 | BC133: 10 | BD133: 10 | BE133: 10 | BF133: 10 | BG133: 10 | BH133: 10 | BI133: 10 | BJ133: 10 | BK133: 10 | BL133: 10 | BM133: 10 | BN133: 10 | BO133: 10 | BP133: 10 | BQ133: 10 | BR133: 10 | BS133: 24 | BT133: 23 | BU133: 85 | BV133: 23 | BW133: 10
B134: 129 | E134: 発生ガスの回収・焼却 | F134: 発生ガスの焼却量 | G134: 89 | H134: 7 | I134: 1 | BS134: 30 | BT134: 20 | BU134: 91 | BV134: 20
B135: 130 | F135: 発生ガス中のメタン濃度 | G135: 89 | H135: 9 | I135: 1 | J135: 15 | K135: 15 | L135: 15 | M135: 15 | N135: 15 | O135: 15 | P135: 15 | Q135: 15 | R135: 15 | S135: 15 | T135: 15 | U135: 15 | V135: 15 | W135: 15 | X135: 15 | Y135: 15 | Z135: 15 | AA135: 15 | AB135: 15 | AC135: 15 | AD135: 15 | AE135: 15 | AF135: 15 | AG135: 15 | AH135: 15 | AI135: 15 | AJ135: 15 | AK135: 15 | AL135: 15 | AM135: 15 | AN135: 15 | AO135: 15 | AP135: 15 | AQ135: 15 | AR135: 15 | AS135: 15 | AT135: 15 | AU135: 15 | AV135: 15 | AW135: 15 | AX135: 15 | AY135: 15 | AZ135: 15 | BA135: 15 | BB135: 15 | BC135: 15 | BD135: 15 | BE135: 15 | BF135: 15 | BG135: 15 | BH135: 15 | BI135: 15 | BJ135: 15 | BK135: 15 | BL135: 15 | BM135: 15 | BN135: 15 | BO135: 15 | BP135: 15 | BQ135: 15 | BR135: 15 | BS135: 30 | BT135: 22 | BU135: 91 | BV135: 22 | BW135: 15
B136: 131 | E136: 単位 | F136: 有機性の下水汚泥 | G136: 71 | H136: 8 | I136: 0 | J136: （t） | K136: （t） | L136: （t） | M136: （t） | N136: （t） | O136: （t） | P136: （t） | Q136: （t） | R136: （t） | S136: （t） | T136: （t） | U136: （t） | V136: （t） | W136: （t） | X136: （t） | Y136: （t） | Z136: （t） | AA136: （t） | AB136: （t） | AC136: （t） | AD136: （t） | AE136: （t） | AF136: （t） | AG136: （t） | AH136: （t） | AI136: （t） | AJ136: （t） | AK136: （t） | AL136: （t） | AM136: （t） | AN136: （t） | AO136: （t） | AP136: （t） | AQ136: （t） | AR136: （t） | AS136: （t） | AT136: （t） | AU136: （t） | AV136: （t） | AW136: （t） | AX136: （t） | AY136: （t） | AZ136: （t） | BA136: （t） | BB136: （t） | BC136: （t） | BD136: （t） | BE136: （t） | BF136: （t） | BG136: （t） | BH136: （t） | BI136: （t） | BJ136: （t） | BK136: （t） | BL136: （t） | BM136: （t） | BN136: （t） | BO136: （t） | BP136: （t） | BQ136: （t） | BR136: （t） | BS136: 12 | BT136: 21 | BU136: 73 | BV136: 21 | BW136: （t）
B137: 132 | F137: 製造業有機性汚泥 | G137: 72 | H137: 8 | I137: 0 | J137: （t） | K137: （t） | L137: （t） | M137: （t） | N137: （t） | O137: （t） | P137: （t） | Q137: （t） | R137: （t） | S137: （t） | T137: （t） | U137: （t） | V137: （t） | W137: （t） | X137: （t） | Y137: （t） | Z137: （t） | AA137: （t） | AB137: （t） | AC137: （t） | AD137: （t） | AE137: （t） | AF137: （t） | AG137: （t） | AH137: （t） | AI137: （t） | AJ137: （t） | AK137: （t） | AL137: （t） | AM137: （t） | AN137: （t） | AO137: （t） | AP137: （t） | AQ137: （t） | AR137: （t） | AS137: （t） | AT137: （t） | AU137: （t） | AV137: （t） | AW137: （t） | AX137: （t） | AY137: （t） | AZ137: （t） | BA137: （t） | BB137: （t） | BC137: （t） | BD137: （t） | BE137: （t） | BF137: （t） | BG137: （t） | BH137: （t） | BI137: （t） | BJ137: （t） | BK137: （t） | BL137: （t） | BM137: （t） | BN137: （t） | BO137: （t） | BP137: （t） | BQ137: （t） | BR137: （t） | BS137: 13 | BT137: 21 | BU137: 74 | BV137: 21 | BW137: （t）
B138: 133 | F138: 浄水施設に係る汚泥 | G138: 73 | H138: 8 | I138: 0 | J138: （t） | K138: （t） | L138: （t） | M138: （t） | N138: （t） | O138: （t） | P138: （t） | Q138: （t） | R138: （t） | S138: （t） | T138: （t） | U138: （t） | V138: （t） | W138: （t） | X138: （t） | Y138: （t） | Z138: （t） | AA138: （t） | AB138: （t） | AC138: （t） | AD138: （t） | AE138: （t） | AF138: （t） | AG138: （t） | AH138: （t） | AI138: （t） | AJ138: （t） | AK138: （t） | AL138: （t） | AM138: （t） | AN138: （t） | AO138: （t） | AP138: （t） | AQ138: （t） | AR138: （t） | AS138: （t） | AT138: （t） | AU138: （t） | AV138: （t） | AW138: （t） | AX138: （t） | AY138: （t） | AZ138: （t） | BA138: （t） | BB138: （t） | BC138: （t） | BD138: （t） | BE138: （t） | BF138: （t） | BG138: （t） | BH138: （t） | BI138: （t） | BJ138: （t） | BK138: （t） | BL138: （t） | BM138: （t） | BN138: （t） | BO138: （t） | BP138: （t） | BQ138: （t） | BR138: （t） | BS138: 14 | BT138: 21 | BU138: 75 | BV138: 21 | BW138: （t）
B139: 134 | F139: し尿処理施設に係る汚泥 | G139: 74 | H139: 8 | I139: 0 | J139: （t） | K139: （t） | L139: （t） | M139: （t） | N139: （t） | O139: （t） | P139: （t） | Q139: （t） | R139: （t） | S139: （t） | T139: （t） | U139: （t） | V139: （t） | W139: （t） | X139: （t） | Y139: （t） | Z139: （t） | AA139: （t） | AB139: （t） | AC139: （t） | AD139: （t） | AE139: （t） | AF139: （t） | AG139: （t） | AH139: （t） | AI139: （t） | AJ139: （t） | AK139: （t） | AL139: （t） | AM139: （t） | AN139: （t） | AO139: （t） | AP139: （t） | AQ139: （t） | AR139: （t） | AS139: （t） | AT139: （t） | AU139: （t） | AV139: （t） | AW139: （t） | AX139: （t） | AY139: （t） | AZ139: （t） | BA139: （t） | BB139: （t） | BC139: （t） | BD139: （t） | BE139: （t） | BF139: （t） | BG139: （t） | BH139: （t） | BI139: （t） | BJ139: （t） | BK139: （t） | BL139: （t） | BM139: （t） | BN139: （t） | BO139: （t） | BP139: （t） | BQ139: （t） | BR139: （t） | BS139: 15 | BT139: 21 | BU139: 76 | BV139: 21 | BW139: （t）
B140: 135 | F140: その他（有機無機混合汚泥） | G140: 75 | H140: 8 | I140: 0 | J140: （t） | K140: （t） | L140: （t） | M140: （t） | N140: （t） | O140: （t） | P140: （t） | Q140: （t） | R140: （t） | S140: （t） | T140: （t） | U140: （t） | V140: （t） | W140: （t） | X140: （t） | Y140: （t） | Z140: （t） | AA140: （t） | AB140: （t） | AC140: （t） | AD140: （t） | AE140: （t） | AF140: （t） | AG140: （t） | AH140: （t） | AI140: （t） | AJ140: （t） | AK140: （t） | AL140: （t） | AM140: （t） | AN140: （t） | AO140: （t） | AP140: （t） | AQ140: （t） | AR140: （t） | AS140: （t） | AT140: （t） | AU140: （t） | AV140: （t） | AW140: （t） | AX140: （t） | AY140: （t） | AZ140: （t） | BA140: （t） | BB140: （t） | BC140: （t） | BD140: （t） | BE140: （t） | BF140: （t） | BG140: （t） | BH140: （t） | BI140: （t） | BJ140: （t） | BK140: （t） | BL140: （t） | BM140: （t） | BN140: （t） | BO140: （t） | BP140: （t） | BQ140: （t） | BR140: （t） | BS140: 16 | BT140: 21 | BU140: 77 | BV140: 21 | BW140: （t）
B141: 136 | F141: 紙くず | G141: 76 | H141: 8 | I141: 0 | J141: （t） | K141: （t） | L141: （t） | M141: （t） | N141: （t） | O141: （t） | P141: （t） | Q141: （t） | R141: （t） | S141: （t） | T141: （t） | U141: （t） | V141: （t） | W141: （t） | X141: （t） | Y141: （t） | Z141: （t） | AA141: （t） | AB141: （t） | AC141: （t） | AD141: （t） | AE141: （t） | AF141: （t） | AG141: （t） | AH141: （t） | AI141: （t） | AJ141: （t） | AK141: （t） | AL141: （t） | AM141: （t） | AN141: （t） | AO141: （t） | AP141: （t） | AQ141: （t） | AR141: （t） | AS141: （t） | AT141: （t） | AU141: （t） | AV141: （t） | AW141: （t） | AX141: （t） | AY141: （t） | AZ141: （t） | BA141: （t） | BB141: （t） | BC141: （t） | BD141: （t） | BE141: （t） | BF141: （t） | BG141: （t） | BH141: （t） | BI141: （t） | BJ141: （t） | BK141: （t） | BL141: （t） | BM141: （t） | BN141: （t） | BO141: （t） | BP141: （t） | BQ141: （t） | BR141: （t） | BS141: 17 | BT141: 21 | BU141: 78 | BV141: 21 | BW141: （t）
B142: 137 | F142: 木くず | G142: 77 | H142: 8 | I142: 0 | J142: （t） | K142: （t） | L142: （t） | M142: （t） | N142: （t） | O142: （t） | P142: （t） | Q142: （t） | R142: （t） | S142: （t） | T142: （t） | U142: （t） | V142: （t） | W142: （t） | X142: （t） | Y142: （t） | Z142: （t） | AA142: （t） | AB142: （t） | AC142: （t） | AD142: （t） | AE142: （t） | AF142: （t） | AG142: （t） | AH142: （t） | AI142: （t） | AJ142: （t） | AK142: （t） | AL142: （t） | AM142: （t） | AN142: （t） | AO142: （t） | AP142: （t） | AQ142: （t） | AR142: （t） | AS142: （t） | AT142: （t） | AU142: （t） | AV142: （t） | AW142: （t） | AX142: （t） | AY142: （t） | AZ142: （t） | BA142: （t） | BB142: （t） | BC142: （t） | BD142: （t） | BE142: （t） | BF142: （t） | BG142: （t） | BH142: （t） | BI142: （t） | BJ142: （t） | BK142: （t） | BL142: （t） | BM142: （t） | BN142: （t） | BO142: （t） | BP142: （t） | BQ142: （t） | BR142: （t） | BS142: 18 | BT142: 21 | BU142: 79 | BV142: 21 | BW142: （t）
B143: 138 | F143: 繊維くず | G143: 78 | H143: 8 | I143: 0 | J143: （t） | K143: （t） | L143: （t） | M143: （t） | N143: （t） | O143: （t） | P143: （t） | Q143: （t） | R143: （t） | S143: （t） | T143: （t） | U143: （t） | V143: （t） | W143: （t） | X143: （t） | Y143: （t） | Z143: （t） | AA143: （t） | AB143: （t） | AC143: （t） | AD143: （t） | AE143: （t） | AF143: （t） | AG143: （t） | AH143: （t） | AI143: （t） | AJ143: （t） | AK143: （t） | AL143: （t） | AM143: （t） | AN143: （t） | AO143: （t） | AP143: （t） | AQ143: （t） | AR143: （t） | AS143: （t） | AT143: （t） | AU143: （t） | AV143: （t） | AW143: （t） | AX143: （t） | AY143: （t） | AZ143: （t） | BA143: （t） | BB143: （t） | BC143: （t） | BD143: （t） | BE143: （t） | BF143: （t） | BG143: （t） | BH143: （t） | BI143: （t） | BJ143: （t） | BK143: （t） | BL143: （t） | BM143: （t） | BN143: （t） | BO143: （t） | BP143: （t） | BQ143: （t） | BR143: （t） | BS143: 19 | BT143: 21 | BU143: 80 | BV143: 21 | BW143: （t）
B144: 139 | F144: 動植物性残渣 | G144: 79 | H144: 8 | I144: 0 | J144: （t） | K144: （t） | L144: （t） | M144: （t） | N144: （t） | O144: （t） | P144: （t） | Q144: （t） | R144: （t） | S144: （t） | T144: （t） | U144: （t） | V144: （t） | W144: （t） | X144: （t） | Y144: （t） | Z144: （t） | AA144: （t） | AB144: （t） | AC144: （t） | AD144: （t） | AE144: （t） | AF144: （t） | AG144: （t） | AH144: （t） | AI144: （t） | AJ144: （t） | AK144: （t） | AL144: （t） | AM144: （t） | AN144: （t） | AO144: （t） | AP144: （t） | AQ144: （t） | AR144: （t） | AS144: （t） | AT144: （t） | AU144: （t） | AV144: （t） | AW144: （t） | AX144: （t） | AY144: （t） | AZ144: （t） | BA144: （t） | BB144: （t） | BC144: （t） | BD144: （t） | BE144: （t） | BF144: （t） | BG144: （t） | BH144: （t） | BI144: （t） | BJ144: （t） | BK144: （t） | BL144: （t） | BM144: （t） | BN144: （t） | BO144: （t） | BP144: （t） | BQ144: （t） | BR144: （t） | BS144: 20 | BT144: 21 | BU144: 81 | BV144: 21 | BW144: （t）
B145: 140 | F145: 動物系固形不要物 | G145: 80 | H145: 8 | I145: 0 | J145: （t） | K145: （t） | L145: （t） | M145: （t） | N145: （t） | O145: （t） | P145: （t） | Q145: （t） | R145: （t） | S145: （t） | T145: （t） | U145: （t） | V145: （t） | W145: （t） | X145: （t） | Y145: （t） | Z145: （t） | AA145: （t） | AB145: （t） | AC145: （t） | AD145: （t） | AE145: （t） | AF145: （t） | AG145: （t） | AH145: （t） | AI145: （t） | AJ145: （t） | AK145: （t） | AL145: （t） | AM145: （t） | AN145: （t） | AO145: （t） | AP145: （t） | AQ145: （t） | AR145: （t） | AS145: （t） | AT145: （t） | AU145: （t） | AV145: （t） | AW145: （t） | AX145: （t） | AY145: （t） | AZ145: （t） | BA145: （t） | BB145: （t） | BC145: （t） | BD145: （t） | BE145: （t） | BF145: （t） | BG145: （t） | BH145: （t） | BI145: （t） | BJ145: （t） | BK145: （t） | BL145: （t） | BM145: （t） | BN145: （t） | BO145: （t） | BP145: （t） | BQ145: （t） | BR145: （t） | BS145: 21 | BT145: 21 | BU145: 82 | BV145: 21 | BW145: （t）
B146: 141 | F146: 動物のふん尿 | G146: 81 | H146: 8 | I146: 0 | J146: （t） | K146: （t） | L146: （t） | M146: （t） | N146: （t） | O146: （t） | P146: （t） | Q146: （t） | R146: （t） | S146: （t） | T146: （t） | U146: （t） | V146: （t） | W146: （t） | X146: （t） | Y146: （t） | Z146: （t） | AA146: （t） | AB146: （t） | AC146: （t） | AD146: （t） | AE146: （t） | AF146: （t） | AG146: （t） | AH146: （t） | AI146: （t） | AJ146: （t） | AK146: （t） | AL146: （t） | AM146: （t） | AN146: （t） | AO146: （t） | AP146: （t） | AQ146: （t） | AR146: （t） | AS146: （t） | AT146: （t） | AU146: （t） | AV146: （t） | AW146: （t） | AX146: （t） | AY146: （t） | AZ146: （t） | BA146: （t） | BB146: （t） | BC146: （t） | BD146: （t） | BE146: （t） | BF146: （t） | BG146: （t） | BH146: （t） | BI146: （t） | BJ146: （t） | BK146: （t） | BL146: （t） | BM146: （t） | BN146: （t） | BO146: （t） | BP146: （t） | BQ146: （t） | BR146: （t） | BS146: 22 | BT146: 21 | BU146: 83 | BV146: 21 | BW146: （t）
B147: 142 | F147: 動物の死体 | G147: 82 | H147: 8 | I147: 0 | J147: （t） | K147: （t） | L147: （t） | M147: （t） | N147: （t） | O147: （t） | P147: （t） | Q147: （t） | R147: （t） | S147: （t） | T147: （t） | U147: （t） | V147: （t） | W147: （t） | X147: （t） | Y147: （t） | Z147: （t） | AA147: （t） | AB147: （t） | AC147: （t） | AD147: （t） | AE147: （t） | AF147: （t） | AG147: （t） | AH147: （t） | AI147: （t） | AJ147: （t） | AK147: （t） | AL147: （t） | AM147: （t） | AN147: （t） | AO147: （t） | AP147: （t） | AQ147: （t） | AR147: （t） | AS147: （t） | AT147: （t） | AU147: （t） | AV147: （t） | AW147: （t） | AX147: （t） | AY147: （t） | AZ147: （t） | BA147: （t） | BB147: （t） | BC147: （t） | BD147: （t） | BE147: （t） | BF147: （t） | BG147: （t） | BH147: （t） | BI147: （t） | BJ147: （t） | BK147: （t） | BL147: （t） | BM147: （t） | BN147: （t） | BO147: （t） | BP147: （t） | BQ147: （t） | BR147: （t） | BS147: 23 | BT147: 21 | BU147: 84 | BV147: 21 | BW147: （t）
B148: 143 | F148: その他（混合廃棄物） | G148: 83 | H148: 8 | I148: 0 | J148: （t） | K148: （t） | L148: （t） | M148: （t） | N148: （t） | O148: （t） | P148: （t） | Q148: （t） | R148: （t） | S148: （t） | T148: （t） | U148: （t） | V148: （t） | W148: （t） | X148: （t） | Y148: （t） | Z148: （t） | AA148: （t） | AB148: （t） | AC148: （t） | AD148: （t） | AE148: （t） | AF148: （t） | AG148: （t） | AH148: （t） | AI148: （t） | AJ148: （t） | AK148: （t） | AL148: （t） | AM148: （t） | AN148: （t） | AO148: （t） | AP148: （t） | AQ148: （t） | AR148: （t） | AS148: （t） | AT148: （t） | AU148: （t） | AV148: （t） | AW148: （t） | AX148: （t） | AY148: （t） | AZ148: （t） | BA148: （t） | BB148: （t） | BC148: （t） | BD148: （t） | BE148: （t） | BF148: （t） | BG148: （t） | BH148: （t） | BI148: （t） | BJ148: （t） | BK148: （t） | BL148: （t） | BM148: （t） | BN148: （t） | BO148: （t） | BP148: （t） | BQ148: （t） | BR148: （t） | BS148: 24 | BT148: 21 | BU148: 85 | BV148: 21 | BW148: （t）
B149: 144 | E149: 最終処分場の構造 | F149: 有機性の下水汚泥 | G149: 71 | H149: 9 | I149: 0 | J149: 嫌気性 | K149: 嫌気性 | L149: 嫌気性 | M149: 嫌気性 | N149: 嫌気性 | O149: 嫌気性 | P149: 嫌気性 | Q149: 嫌気性 | R149: 嫌気性 | S149: 嫌気性 | T149: 嫌気性 | U149: 嫌気性 | V149: 嫌気性 | W149: 嫌気性 | X149: 嫌気性 | Y149: 嫌気性 | Z149: 嫌気性 | AA149: 嫌気性 | AB149: 嫌気性 | AC149: 嫌気性 | AD149: 嫌気性 | AE149: 嫌気性 | AF149: 嫌気性 | AG149: 嫌気性 | AH149: 嫌気性 | AI149: 嫌気性 | AJ149: 嫌気性 | AK149: 嫌気性 | AL149: 嫌気性 | AM149: 嫌気性 | AN149: 嫌気性 | AO149: 嫌気性 | AP149: 嫌気性 | AQ149: 嫌気性 | AR149: 嫌気性 | AS149: 嫌気性 | AT149: 嫌気性 | AU149: 嫌気性 | AV149: 嫌気性 | AW149: 嫌気性 | AX149: 嫌気性 | AY149: 嫌気性 | AZ149: 嫌気性 | BA149: 嫌気性 | BB149: 嫌気性 | BC149: 嫌気性 | BD149: 嫌気性 | BE149: 嫌気性 | BF149: 嫌気性 | BG149: 嫌気性 | BH149: 嫌気性 | BI149: 嫌気性 | BJ149: 嫌気性 | BK149: 嫌気性 | BL149: 嫌気性 | BM149: 嫌気性 | BN149: 嫌気性 | BO149: 嫌気性 | BP149: 嫌気性 | BQ149: 嫌気性 | BR149: 嫌気性 | BW149: 嫌気性
B150: 145 | F150: 製造業有機性汚泥 | G150: 72 | H150: 9 | I150: 0 | J150: 嫌気性 | K150: 嫌気性 | L150: 嫌気性 | M150: 嫌気性 | N150: 嫌気性 | O150: 嫌気性 | P150: 嫌気性 | Q150: 嫌気性 | R150: 嫌気性 | S150: 嫌気性 | T150: 嫌気性 | U150: 嫌気性 | V150: 嫌気性 | W150: 嫌気性 | X150: 嫌気性 | Y150: 嫌気性 | Z150: 嫌気性 | AA150: 嫌気性 | AB150: 嫌気性 | AC150: 嫌気性 | AD150: 嫌気性 | AE150: 嫌気性 | AF150: 嫌気性 | AG150: 嫌気性 | AH150: 嫌気性 | AI150: 嫌気性 | AJ150: 嫌気性 | AK150: 嫌気性 | AL150: 嫌気性 | AM150: 嫌気性 | AN150: 嫌気性 | AO150: 嫌気性 | AP150: 嫌気性 | AQ150: 嫌気性 | AR150: 嫌気性 | AS150: 嫌気性 | AT150: 嫌気性 | AU150: 嫌気性 | AV150: 嫌気性 | AW150: 嫌気性 | AX150: 嫌気性 | AY150: 嫌気性 | AZ150: 嫌気性 | BA150: 嫌気性 | BB150: 嫌気性 | BC150: 嫌気性 | BD150: 嫌気性 | BE150: 嫌気性 | BF150: 嫌気性 | BG150: 嫌気性 | BH150: 嫌気性 | BI150: 嫌気性 | BJ150: 嫌気性 | BK150: 嫌気性 | BL150: 嫌気性 | BM150: 嫌気性 | BN150: 嫌気性 | BO150: 嫌気性 | BP150: 嫌気性 | BQ150: 嫌気性 | BR150: 嫌気性 | BW150: 嫌気性
B151: 146 | F151: 浄水施設に係る汚泥 | G151: 73 | H151: 9 | I151: 0 | J151: 嫌気性 | K151: 嫌気性 | L151: 嫌気性 | M151: 嫌気性 | N151: 嫌気性 | O151: 嫌気性 | P151: 嫌気性 | Q151: 嫌気性 | R151: 嫌気性 | S151: 嫌気性 | T151: 嫌気性 | U151: 嫌気性 | V151: 嫌気性 | W151: 嫌気性 | X151: 嫌気性 | Y151: 嫌気性 | Z151: 嫌気性 | AA151: 嫌気性 | AB151: 嫌気性 | AC151: 嫌気性 | AD151: 嫌気性 | AE151: 嫌気性 | AF151: 嫌気性 | AG151: 嫌気性 | AH151: 嫌気性 | AI151: 嫌気性 | AJ151: 嫌気性 | AK151: 嫌気性 | AL151: 嫌気性 | AM151: 嫌気性 | AN151: 嫌気性 | AO151: 嫌気性 | AP151: 嫌気性 | AQ151: 嫌気性 | AR151: 嫌気性 | AS151: 嫌気性 | AT151: 嫌気性 | AU151: 嫌気性 | AV151: 嫌気性 | AW151: 嫌気性 | AX151: 嫌気性 | AY151: 嫌気性 | AZ151: 嫌気性 | BA151: 嫌気性 | BB151: 嫌気性 | BC151: 嫌気性 | BD151: 嫌気性 | BE151: 嫌気性 | BF151: 嫌気性 | BG151: 嫌気性 | BH151: 嫌気性 | BI151: 嫌気性 | BJ151: 嫌気性 | BK151: 嫌気性 | BL151: 嫌気性 | BM151: 嫌気性 | BN151: 嫌気性 | BO151: 嫌気性 | BP151: 嫌気性 | BQ151: 嫌気性 | BR151: 嫌気性 | BW151: 嫌気性
B152: 147 | F152: し尿処理施設に係る汚泥 | G152: 74 | H152: 9 | I152: 0 | J152: 嫌気性 | K152: 嫌気性 | L152: 嫌気性 | M152: 嫌気性 | N152: 嫌気性 | O152: 嫌気性 | P152: 嫌気性 | Q152: 嫌気性 | R152: 嫌気性 | S152: 嫌気性 | T152: 嫌気性 | U152: 嫌気性 | V152: 嫌気性 | W152: 嫌気性 | X152: 嫌気性 | Y152: 嫌気性 | Z152: 嫌気性 | AA152: 嫌気性 | AB152: 嫌気性 | AC152: 嫌気性 | AD152: 嫌気性 | AE152: 嫌気性 | AF152: 嫌気性 | AG152: 嫌気性 | AH152: 嫌気性 | AI152: 嫌気性 | AJ152: 嫌気性 | AK152: 嫌気性 | AL152: 嫌気性 | AM152: 嫌気性 | AN152: 嫌気性 | AO152: 嫌気性 | AP152: 嫌気性 | AQ152: 嫌気性 | AR152: 嫌気性 | AS152: 嫌気性 | AT152: 嫌気性 | AU152: 嫌気性 | AV152: 嫌気性 | AW152: 嫌気性 | AX152: 嫌気性 | AY152: 嫌気性 | AZ152: 嫌気性 | BA152: 嫌気性 | BB152: 嫌気性 | BC152: 嫌気性 | BD152: 嫌気性 | BE152: 嫌気性 | BF152: 嫌気性 | BG152: 嫌気性 | BH152: 嫌気性 | BI152: 嫌気性 | BJ152: 嫌気性 | BK152: 嫌気性 | BL152: 嫌気性 | BM152: 嫌気性 | BN152: 嫌気性 | BO152: 嫌気性 | BP152: 嫌気性 | BQ152: 嫌気性 | BR152: 嫌気性 | BW152: 嫌気性
B153: 148 | F153: その他（有機無機混合汚泥） | G153: 75 | H153: 9 | I153: 0 | J153: 嫌気性 | K153: 嫌気性 | L153: 嫌気性 | M153: 嫌気性 | N153: 嫌気性 | O153: 嫌気性 | P153: 嫌気性 | Q153: 嫌気性 | R153: 嫌気性 | S153: 嫌気性 | T153: 嫌気性 | U153: 嫌気性 | V153: 嫌気性 | W153: 嫌気性 | X153: 嫌気性 | Y153: 嫌気性 | Z153: 嫌気性 | AA153: 嫌気性 | AB153: 嫌気性 | AC153: 嫌気性 | AD153: 嫌気性 | AE153: 嫌気性 | AF153: 嫌気性 | AG153: 嫌気性 | AH153: 嫌気性 | AI153: 嫌気性 | AJ153: 嫌気性 | AK153: 嫌気性 | AL153: 嫌気性 | AM153: 嫌気性 | AN153: 嫌気性 | AO153: 嫌気性 | AP153: 嫌気性 | AQ153: 嫌気性 | AR153: 嫌気性 | AS153: 嫌気性 | AT153: 嫌気性 | AU153: 嫌気性 | AV153: 嫌気性 | AW153: 嫌気性 | AX153: 嫌気性 | AY153: 嫌気性 | AZ153: 嫌気性 | BA153: 嫌気性 | BB153: 嫌気性 | BC153: 嫌気性 | BD153: 嫌気性 | BE153: 嫌気性 | BF153: 嫌気性 | BG153: 嫌気性 | BH153: 嫌気性 | BI153: 嫌気性 | BJ153: 嫌気性 | BK153: 嫌気性 | BL153: 嫌気性 | BM153: 嫌気性 | BN153: 嫌気性 | BO153: 嫌気性 | BP153: 嫌気性 | BQ153: 嫌気性 | BR153: 嫌気性 | BW153: 嫌気性
B154: 149 | F154: 紙くず | G154: 76 | H154: 9 | I154: 0 | J154: 嫌気性 | K154: 嫌気性 | L154: 嫌気性 | M154: 嫌気性 | N154: 嫌気性 | O154: 嫌気性 | P154: 嫌気性 | Q154: 嫌気性 | R154: 嫌気性 | S154: 嫌気性 | T154: 嫌気性 | U154: 嫌気性 | V154: 嫌気性 | W154: 嫌気性 | X154: 嫌気性 | Y154: 嫌気性 | Z154: 嫌気性 | AA154: 嫌気性 | AB154: 嫌気性 | AC154: 嫌気性 | AD154: 嫌気性 | AE154: 嫌気性 | AF154: 嫌気性 | AG154: 嫌気性 | AH154: 嫌気性 | AI154: 嫌気性 | AJ154: 嫌気性 | AK154: 嫌気性 | AL154: 嫌気性 | AM154: 嫌気性 | AN154: 嫌気性 | AO154: 嫌気性 | AP154: 嫌気性 | AQ154: 嫌気性 | AR154: 嫌気性 | AS154: 嫌気性 | AT154: 嫌気性 | AU154: 嫌気性 | AV154: 嫌気性 | AW154: 嫌気性 | AX154: 嫌気性 | AY154: 嫌気性 | AZ154: 嫌気性 | BA154: 嫌気性 | BB154: 嫌気性 | BC154: 嫌気性 | BD154: 嫌気性 | BE154: 嫌気性 | BF154: 嫌気性 | BG154: 嫌気性 | BH154: 嫌気性 | BI154: 嫌気性 | BJ154: 嫌気性 | BK154: 嫌気性 | BL154: 嫌気性 | BM154: 嫌気性 | BN154: 嫌気性 | BO154: 嫌気性 | BP154: 嫌気性 | BQ154: 嫌気性 | BR154: 嫌気性 | BW154: 嫌気性
B155: 150 | F155: 木くず | G155: 77 | H155: 9 | I155: 0 | J155: 嫌気性 | K155: 嫌気性 | L155: 嫌気性 | M155: 嫌気性 | N155: 嫌気性 | O155: 嫌気性 | P155: 嫌気性 | Q155: 嫌気性 | R155: 嫌気性 | S155: 嫌気性 | T155: 嫌気性 | U155: 嫌気性 | V155: 嫌気性 | W155: 嫌気性 | X155: 嫌気性 | Y155: 嫌気性 | Z155: 嫌気性 | AA155: 嫌気性 | AB155: 嫌気性 | AC155: 嫌気性 | AD155: 嫌気性 | AE155: 嫌気性 | AF155: 嫌気性 | AG155: 嫌気性 | AH155: 嫌気性 | AI155: 嫌気性 | AJ155: 嫌気性 | AK155: 嫌気性 | AL155: 嫌気性 | AM155: 嫌気性 | AN155: 嫌気性 | AO155: 嫌気性 | AP155: 嫌気性 | AQ155: 嫌気性 | AR155: 嫌気性 | AS155: 嫌気性 | AT155: 嫌気性 | AU155: 嫌気性 | AV155: 嫌気性 | AW155: 嫌気性 | AX155: 嫌気性 | AY155: 嫌気性 | AZ155: 嫌気性 | BA155: 嫌気性 | BB155: 嫌気性 | BC155: 嫌気性 | BD155: 嫌気性 | BE155: 嫌気性 | BF155: 嫌気性 | BG155: 嫌気性 | BH155: 嫌気性 | BI155: 嫌気性 | BJ155: 嫌気性 | BK155: 嫌気性 | BL155: 嫌気性 | BM155: 嫌気性 | BN155: 嫌気性 | BO155: 嫌気性 | BP155: 嫌気性 | BQ155: 嫌気性 | BR155: 嫌気性 | BW155: 嫌気性
B156: 151 | F156: 繊維くず | G156: 78 | H156: 9 | I156: 0 | J156: 嫌気性 | K156: 嫌気性 | L156: 嫌気性 | M156: 嫌気性 | N156: 嫌気性 | O156: 嫌気性 | P156: 嫌気性 | Q156: 嫌気性 | R156: 嫌気性 | S156: 嫌気性 | T156: 嫌気性 | U156: 嫌気性 | V156: 嫌気性 | W156: 嫌気性 | X156: 嫌気性 | Y156: 嫌気性 | Z156: 嫌気性 | AA156: 嫌気性 | AB156: 嫌気性 | AC156: 嫌気性 | AD156: 嫌気性 | AE156: 嫌気性 | AF156: 嫌気性 | AG156: 嫌気性 | AH156: 嫌気性 | AI156: 嫌気性 | AJ156: 嫌気性 | AK156: 嫌気性 | AL156: 嫌気性 | AM156: 嫌気性 | AN156: 嫌気性 | AO156: 嫌気性 | AP156: 嫌気性 | AQ156: 嫌気性 | AR156: 嫌気性 | AS156: 嫌気性 | AT156: 嫌気性 | AU156: 嫌気性 | AV156: 嫌気性 | AW156: 嫌気性 | AX156: 嫌気性 | AY156: 嫌気性 | AZ156: 嫌気性 | BA156: 嫌気性 | BB156: 嫌気性 | BC156: 嫌気性 | BD156: 嫌気性 | BE156: 嫌気性 | BF156: 嫌気性 | BG156: 嫌気性 | BH156: 嫌気性 | BI156: 嫌気性 | BJ156: 嫌気性 | BK156: 嫌気性 | BL156: 嫌気性 | BM156: 嫌気性 | BN156: 嫌気性 | BO156: 嫌気性 | BP156: 嫌気性 | BQ156: 嫌気性 | BR156: 嫌気性 | BW156: 嫌気性
B157: 152 | F157: 動植物性残渣 | G157: 79 | H157: 9 | I157: 0 | J157: 嫌気性 | K157: 嫌気性 | L157: 嫌気性 | M157: 嫌気性 | N157: 嫌気性 | O157: 嫌気性 | P157: 嫌気性 | Q157: 嫌気性 | R157: 嫌気性 | S157: 嫌気性 | T157: 嫌気性 | U157: 嫌気性 | V157: 嫌気性 | W157: 嫌気性 | X157: 嫌気性 | Y157: 嫌気性 | Z157: 嫌気性 | AA157: 嫌気性 | AB157: 嫌気性 | AC157: 嫌気性 | AD157: 嫌気性 | AE157: 嫌気性 | AF157: 嫌気性 | AG157: 嫌気性 | AH157: 嫌気性 | AI157: 嫌気性 | AJ157: 嫌気性 | AK157: 嫌気性 | AL157: 嫌気性 | AM157: 嫌気性 | AN157: 嫌気性 | AO157: 嫌気性 | AP157: 嫌気性 | AQ157: 嫌気性 | AR157: 嫌気性 | AS157: 嫌気性 | AT157: 嫌気性 | AU157: 嫌気性 | AV157: 嫌気性 | AW157: 嫌気性 | AX157: 嫌気性 | AY157: 嫌気性 | AZ157: 嫌気性 | BA157: 嫌気性 | BB157: 嫌気性 | BC157: 嫌気性 | BD157: 嫌気性 | BE157: 嫌気性 | BF157: 嫌気性 | BG157: 嫌気性 | BH157: 嫌気性 | BI157: 嫌気性 | BJ157: 嫌気性 | BK157: 嫌気性 | BL157: 嫌気性 | BM157: 嫌気性 | BN157: 嫌気性 | BO157: 嫌気性 | BP157: 嫌気性 | BQ157: 嫌気性 | BR157: 嫌気性 | BW157: 嫌気性
B158: 153 | F158: 動物系固形不要物 | G158: 80 | H158: 9 | I158: 0 | J158: 嫌気性 | K158: 嫌気性 | L158: 嫌気性 | M158: 嫌気性 | N158: 嫌気性 | O158: 嫌気性 | P158: 嫌気性 | Q158: 嫌気性 | R158: 嫌気性 | S158: 嫌気性 | T158: 嫌気性 | U158: 嫌気性 | V158: 嫌気性 | W158: 嫌気性 | X158: 嫌気性 | Y158: 嫌気性 | Z158: 嫌気性 | AA158: 嫌気性 | AB158: 嫌気性 | AC158: 嫌気性 | AD158: 嫌気性 | AE158: 嫌気性 | AF158: 嫌気性 | AG158: 嫌気性 | AH158: 嫌気性 | AI158: 嫌気性 | AJ158: 嫌気性 | AK158: 嫌気性 | AL158: 嫌気性 | AM158: 嫌気性 | AN158: 嫌気性 | AO158: 嫌気性 | AP158: 嫌気性 | AQ158: 嫌気性 | AR158: 嫌気性 | AS158: 嫌気性 | AT158: 嫌気性 | AU158: 嫌気性 | AV158: 嫌気性 | AW158: 嫌気性 | AX158: 嫌気性 | AY158: 嫌気性 | AZ158: 嫌気性 | BA158: 嫌気性 | BB158: 嫌気性 | BC158: 嫌気性 | BD158: 嫌気性 | BE158: 嫌気性 | BF158: 嫌気性 | BG158: 嫌気性 | BH158: 嫌気性 | BI158: 嫌気性 | BJ158: 嫌気性 | BK158: 嫌気性 | BL158: 嫌気性 | BM158: 嫌気性 | BN158: 嫌気性 | BO158: 嫌気性 | BP158: 嫌気性 | BQ158: 嫌気性 | BR158: 嫌気性 | BW158: 嫌気性
B159: 154 | F159: 動物のふん尿 | G159: 81 | H159: 9 | I159: 0 | J159: 嫌気性 | K159: 嫌気性 | L159: 嫌気性 | M159: 嫌気性 | N159: 嫌気性 | O159: 嫌気性 | P159: 嫌気性 | Q159: 嫌気性 | R159: 嫌気性 | S159: 嫌気性 | T159: 嫌気性 | U159: 嫌気性 | V159: 嫌気性 | W159: 嫌気性 | X159: 嫌気性 | Y159: 嫌気性 | Z159: 嫌気性 | AA159: 嫌気性 | AB159: 嫌気性 | AC159: 嫌気性 | AD159: 嫌気性 | AE159: 嫌気性 | AF159: 嫌気性 | AG159: 嫌気性 | AH159: 嫌気性 | AI159: 嫌気性 | AJ159: 嫌気性 | AK159: 嫌気性 | AL159: 嫌気性 | AM159: 嫌気性 | AN159: 嫌気性 | AO159: 嫌気性 | AP159: 嫌気性 | AQ159: 嫌気性 | AR159: 嫌気性 | AS159: 嫌気性 | AT159: 嫌気性 | AU159: 嫌気性 | AV159: 嫌気性 | AW159: 嫌気性 | AX159: 嫌気性 | AY159: 嫌気性 | AZ159: 嫌気性 | BA159: 嫌気性 | BB159: 嫌気性 | BC159: 嫌気性 | BD159: 嫌気性 | BE159: 嫌気性 | BF159: 嫌気性 | BG159: 嫌気性 | BH159: 嫌気性 | BI159: 嫌気性 | BJ159: 嫌気性 | BK159: 嫌気性 | BL159: 嫌気性 | BM159: 嫌気性 | BN159: 嫌気性 | BO159: 嫌気性 | BP159: 嫌気性 | BQ159: 嫌気性 | BR159: 嫌気性 | BW159: 嫌気性
B160: 155 | F160: 動物の死体 | G160: 82 | H160: 9 | I160: 0 | J160: 嫌気性 | K160: 嫌気性 | L160: 嫌気性 | M160: 嫌気性 | N160: 嫌気性 | O160: 嫌気性 | P160: 嫌気性 | Q160: 嫌気性 | R160: 嫌気性 | S160: 嫌気性 | T160: 嫌気性 | U160: 嫌気性 | V160: 嫌気性 | W160: 嫌気性 | X160: 嫌気性 | Y160: 嫌気性 | Z160: 嫌気性 | AA160: 嫌気性 | AB160: 嫌気性 | AC160: 嫌気性 | AD160: 嫌気性 | AE160: 嫌気性 | AF160: 嫌気性 | AG160: 嫌気性 | AH160: 嫌気性 | AI160: 嫌気性 | AJ160: 嫌気性 | AK160: 嫌気性 | AL160: 嫌気性 | AM160: 嫌気性 | AN160: 嫌気性 | AO160: 嫌気性 | AP160: 嫌気性 | AQ160: 嫌気性 | AR160: 嫌気性 | AS160: 嫌気性 | AT160: 嫌気性 | AU160: 嫌気性 | AV160: 嫌気性 | AW160: 嫌気性 | AX160: 嫌気性 | AY160: 嫌気性 | AZ160: 嫌気性 | BA160: 嫌気性 | BB160: 嫌気性 | BC160: 嫌気性 | BD160: 嫌気性 | BE160: 嫌気性 | BF160: 嫌気性 | BG160: 嫌気性 | BH160: 嫌気性 | BI160: 嫌気性 | BJ160: 嫌気性 | BK160: 嫌気性 | BL160: 嫌気性 | BM160: 嫌気性 | BN160: 嫌気性 | BO160: 嫌気性 | BP160: 嫌気性 | BQ160: 嫌気性 | BR160: 嫌気性 | BW160: 嫌気性
B161: 156 | F161: その他（混合廃棄物） | G161: 83 | H161: 9 | I161: 0 | J161: 嫌気性 | K161: 嫌気性 | L161: 嫌気性 | M161: 嫌気性 | N161: 嫌気性 | O161: 嫌気性 | P161: 嫌気性 | Q161: 嫌気性 | R161: 嫌気性 | S161: 嫌気性 | T161: 嫌気性 | U161: 嫌気性 | V161: 嫌気性 | W161: 嫌気性 | X161: 嫌気性 | Y161: 嫌気性 | Z161: 嫌気性 | AA161: 嫌気性 | AB161: 嫌気性 | AC161: 嫌気性 | AD161: 嫌気性 | AE161: 嫌気性 | AF161: 嫌気性 | AG161: 嫌気性 | AH161: 嫌気性 | AI161: 嫌気性 | AJ161: 嫌気性 | AK161: 嫌気性 | AL161: 嫌気性 | AM161: 嫌気性 | AN161: 嫌気性 | AO161: 嫌気性 | AP161: 嫌気性 | AQ161: 嫌気性 | AR161: 嫌気性 | AS161: 嫌気性 | AT161: 嫌気性 | AU161: 嫌気性 | AV161: 嫌気性 | AW161: 嫌気性 | AX161: 嫌気性 | AY161: 嫌気性 | AZ161: 嫌気性 | BA161: 嫌気性 | BB161: 嫌気性 | BC161: 嫌気性 | BD161: 嫌気性 | BE161: 嫌気性 | BF161: 嫌気性 | BG161: 嫌気性 | BH161: 嫌気性 | BI161: 嫌気性 | BJ161: 嫌気性 | BK161: 嫌気性 | BL161: 嫌気性 | BM161: 嫌気性 | BN161: 嫌気性 | BO161: 嫌気性 | BP161: 嫌気性 | BQ161: 嫌気性 | BR161: 嫌気性 | BW161: 嫌気性
B162: 157 | E162: 単位 | F162: 発生ガスの焼却量 | G162: 89 | H162: 8 | I162: 0 | J162: （㎥N） | K162: （㎥N） | L162: （㎥N） | M162: （㎥N） | N162: （㎥N） | O162: （㎥N） | P162: （㎥N） | Q162: （㎥N） | R162: （㎥N） | S162: （㎥N） | T162: （㎥N） | U162: （㎥N） | V162: （㎥N） | W162: （㎥N） | X162: （㎥N） | Y162: （㎥N） | Z162: （㎥N） | AA162: （㎥N） | AB162: （㎥N） | AC162: （㎥N） | AD162: （㎥N） | AE162: （㎥N） | AF162: （㎥N） | AG162: （㎥N） | AH162: （㎥N） | AI162: （㎥N） | AJ162: （㎥N） | AK162: （㎥N） | AL162: （㎥N） | AM162: （㎥N） | AN162: （㎥N） | AO162: （㎥N） | AP162: （㎥N） | AQ162: （㎥N） | AR162: （㎥N） | AS162: （㎥N） | AT162: （㎥N） | AU162: （㎥N） | AV162: （㎥N） | AW162: （㎥N） | AX162: （㎥N） | AY162: （㎥N） | AZ162: （㎥N） | BA162: （㎥N） | BB162: （㎥N） | BC162: （㎥N） | BD162: （㎥N） | BE162: （㎥N） | BF162: （㎥N） | BG162: （㎥N） | BH162: （㎥N） | BI162: （㎥N） | BJ162: （㎥N） | BK162: （㎥N） | BL162: （㎥N） | BM162: （㎥N） | BN162: （㎥N） | BO162: （㎥N） | BP162: （㎥N） | BQ162: （㎥N） | BR162: （㎥N） | BS162: 30 | BT162: 21 | BU162: 91 | BV162: 21 | BW162: （㎥N）
A163: 関連施設 | B163: 158 | D163: 関連施設及び構内車両 | E163: 産業廃棄物業の占める割合 | F163: 産業廃棄物業の占める割合 | G163: 96 | H163: 7 | I163: 2 | J163: 100 | K163: 100 | L163: 100 | M163: 100 | N163: 100 | O163: 100 | P163: 100 | Q163: 100 | R163: 100 | S163: 100 | T163: 100 | U163: 100 | V163: 100 | W163: 100 | X163: 100 | Y163: 100 | Z163: 100 | AA163: 100 | AB163: 100 | AC163: 100 | AD163: 100 | AE163: 100 | AF163: 100 | AG163: 100 | AH163: 100 | AI163: 100 | AJ163: 100 | AK163: 100 | AL163: 100 | AM163: 100 | AN163: 100 | AO163: 100 | AP163: 100 | AQ163: 100 | AR163: 100 | AS163: 100 | AT163: 100 | AU163: 100 | AV163: 100 | AW163: 100 | AX163: 100 | AY163: 100 | AZ163: 100 | BA163: 100 | BB163: 100 | BC163: 100 | BD163: 100 | BE163: 100 | BF163: 100 | BG163: 100 | BH163: 100 | BI163: 100 | BJ163: 100 | BK163: 100 | BL163: 100 | BM163: 100 | BN163: 100 | BO163: 100 | BP163: 100 | BQ163: 100 | BR163: 100 | BS163: 8 | BT163: 22 | BU163: 96 | BV163: 22 | BW163: 100
B164: 159 | E164: エネルギー消費量 | F164: 電気 | G164: 99 | H164: 7 | I164: 1 | BS164: 12 | BT164: 20 | BU164: 100 | BV164: 20
B165: 160 | F165: 都市ガス1 | G165: 100 | H165: 7 | I165: 1 | BS165: 13 | BT165: 20 | BU165: 101 | BV165: 20
B166: 161 | F166: 都市ガス2 | G166: 101 | H166: 7 | I166: 1 | BS166: 14 | BT166: 20 | BU166: 102 | BV166: 20
B167: 162 | F167: 都市ガス3 | G167: 102 | H167: 7 | I167: 1 | BS167: 15 | BT167: 20 | BU167: 103 | BV167: 20
B168: 163 | F168: 天然ガス1 | G168: 103 | H168: 7 | I168: 1 | BS168: 16 | BT168: 20 | BU168: 104 | BV168: 20
B169: 164 | F169: 天然ガス2 | G169: 104 | H169: 7 | I169: 1 | BS169: 17 | BT169: 20 | BU169: 105 | BV169: 20
B170: 165 | F170: 天然ガス3 | G170: 105 | H170: 7 | I170: 1 | BS170: 18 | BT170: 20 | BU170: 106 | BV170: 20
B171: 166 | F171: 軽油1 | G171: 106 | H171: 7 | I171: 1 | BS171: 19 | BT171: 20 | BU171: 107 | BV171: 20
B172: 167 | F172: 軽油2 | G172: 107 | H172: 7 | I172: 1 | BS172: 20 | BT172: 20 | BU172: 108 | BV172: 20
B173: 168 | F173: 軽油3 | G173: 108 | H173: 7 | I173: 1 | BS173: 21 | BT173: 20 | BU173: 109 | BV173: 20
B174: 169 | F174: 灯油1 | G174: 109 | H174: 7 | I174: 1 | BS174: 22 | BT174: 20 | BU174: 110 | BV174: 20
B175: 170 | F175: 灯油2 | G175: 110 | H175: 7 | I175: 1 | BS175: 23 | BT175: 20 | BU175: 111 | BV175: 20
B176: 171 | F176: 灯油3 | G176: 111 | H176: 7 | I176: 1 | BS176: 24 | BT176: 20 | BU176: 112 | BV176: 20
B177: 172 | F177: A重油1 | G177: 112 | H177: 7 | I177: 1 | BS177: 25 | BT177: 20 | BU177: 113 | BV177: 20
B178: 173 | F178: A重油2 | G178: 113 | H178: 7 | I178: 1 | BS178: 26 | BT178: 20 | BU178: 114 | BV178: 20
B179: 174 | F179: A重油3 | G179: 114 | H179: 7 | I179: 1 | BS179: 27 | BT179: 20 | BU179: 115 | BV179: 20
B180: 175 | F180: C重油1 | G180: 115 | H180: 7 | I180: 1 | BS180: 28 | BT180: 20 | BU180: 116 | BV180: 20
B181: 176 | F181: C重油2 | G181: 116 | H181: 7 | I181: 1 | BS181: 29 | BT181: 20 | BU181: 117 | BV181: 20
B182: 177 | F182: C重油3 | G182: 117 | H182: 7 | I182: 1 | BS182: 30 | BT182: 20 | BU182: 118 | BV182: 20
B183: 178 | F183: LPG1 | G183: 118 | H183: 7 | I183: 1 | BS183: 31 | BT183: 20 | BU183: 119 | BV183: 20
B184: 179 | F184: LPG2 | G184: 119 | H184: 7 | I184: 1 | BS184: 32 | BT184: 20 | BU184: 120 | BV184: 20
B185: 180 | F185: LPG3 | G185: 120 | H185: 7 | I185: 1 | BS185: 33 | BT185: 20 | BU185: 121 | BV185: 20
B186: 181 | F186: 石炭1 | G186: 121 | H186: 7 | I186: 1 | BS186: 34 | BT186: 20 | BU186: 122 | BV186: 20
B187: 182 | F187: 石炭2 | G187: 122 | H187: 7 | I187: 1 | BS187: 35 | BT187: 20 | BU187: 123 | BV187: 20
B188: 183 | F188: 石炭3 | G188: 123 | H188: 7 | I188: 1 | BS188: 36 | BT188: 20 | BU188: 124 | BV188: 20
B189: 184 | F189: コークス1 | G189: 124 | H189: 7 | I189: 1 | BS189: 37 | BT189: 20 | BU189: 125 | BV189: 20
B190: 185 | F190: コークス2 | G190: 125 | H190: 7 | I190: 1 | BS190: 38 | BT190: 20 | BU190: 126 | BV190: 20
B191: 186 | F191: コークス3 | G191: 126 | H191: 7 | I191: 1 | BS191: 39 | BT191: 20 | BU191: 127 | BV191: 20
B192: 187 | F192: 燃料系廃油 | G192: 127 | H192: 7 | I192: 1 | BS192: 40 | BT192: 20 | BU192: 128 | BV192: 20
B193: 188 | F193: 動植物性廃油 | G193: 128 | H193: 7 | I193: 1 | BS193: 41 | BT193: 20 | BU193: 129 | BV193: 20
B194: 189 | F194: 木くず | G194: 129 | H194: 7 | I194: 1 | BS194: 42 | BT194: 20 | BU194: 130 | BV194: 20
B195: 190 | F195: バイオディーゼル | G195: 130 | H195: 7 | I195: 1 | BS195: 43 | BT195: 20 | BU195: 131 | BV195: 20
B196: 191 | F196: RPF1 | G196: 131 | H196: 7 | I196: 1 | BS196: 45 | BT196: 20 | BU196: 132 | BV196: 20
B197: 192 | F197: RPF2 | G197: 132 | H197: 7 | I197: 1 | BS197: 46 | BT197: 20 | BU197: 133 | BV197: 20
B198: 193 | F198: 構内車両：電気 | G198: 133 | H198: 7 | I198: 1 | BS198: 47 | BT198: 20 | BU198: 134 | BV198: 20
B199: 194 | F199: 構内車両：ガソリン | G199: 134 | H199: 7 | I199: 1 | BS199: 48 | BT199: 20 | BU199: 135 | BV199: 20
B200: 195 | F200: 構内車両：軽油 | G200: 135 | H200: 7 | I200: 1 | BS200: 49 | BT200: 20 | BU200: 136 | BV200: 20
... 55 more rows

Sheet DATA排出量 (hidden)
A2: データ格納シート
B3: DATA2：排出量データ | I3: チェック対象外：0,数値チェック：1,％範囲チェック：2 | BS3: 更新先
G4: 座標 | I4: chk | J4: 1 | K4: 2 | L4: 3 | M4: 4 | N4: 5 | O4: 6 | P4: 7 | Q4: 8 | R4: 9 | S4: 10 | T4: 11 | U4: 12 | V4: 13 | W4: 14 | X4: 15 | Y4: 16 | Z4: 17 | AA4: 18 | AB4: 19 | AC4: 20 | AD4: 21 | AE4: 22 | AF4: 23 | AG4: 24 | AH4: 25 | AI4: 26 | AJ4: 27 | AK4: 28 | AL4: 29 | AM4: 30 | AN4: 31 | AO4: 32 | AP4: 33 | AQ4: 34 | AR4: 35 | AS4: 36 | AT4: 37 | AU4: 38 | AV4: 39 | AW4: 40 | AX4: 41 | AY4: 42 | AZ4: 43 | BA4: 44 | BB4: 45 | BC4: 46 | BD4: 47 | BE4: 48 | BF4: 49 | BG4: 50 | BH4: 51 | BI4: 52 | BJ4: 53 | BK4: 54 | BL4: 55 | BM4: 56 | BN4: 57 | BO4: 58 | BP4: 59 | BQ4: 60 | BR4: 61 | BS4: 排出表
B5: No | C5: 項目 | G5: x | H5: y | J5: 1990 | K5: 1991 | L5: 1992 | M5: 1993 | N5: 1994 | O5: 1995 | P5: 1996 | Q5: 1997 | R5: 1998 | S5: 1999 | T5: 2000 | U5: 2001 | V5: 2002 | W5: 2003 | X5: 2004 | Y5: 2005 | Z5: 2006 | AA5: 2007 | AB5: 2008 | AC5: 2009 | AD5: 2010 | AE5: 2011 | AF5: 2012 | AG5: 2013 | AH5: 2014 | AI5: 2015 | AJ5: 2016 | AK5: 2017 | AL5: 2018 | AM5: 2019 | AN5: 2020 | AO5: 2021 | AP5: 2022 | AQ5: 2023 | AR5: 2024 | AS5: 2025 | AT5: 2026 | AU5: 2027 | AV5: 2028 | AW5: 2029 | AX5: 2030 | AY5: 2031 | AZ5: 2032 | BA5: 2033 | BB5: 2034 | BC5: 2035 | BD5: 2036 | BE5: 2037 | BF5: 2038 | BG5: 2039 | BH5: 2040 | BI5: 2041 | BJ5: 2042 | BK5: 2043 | BL5: 2044 | BM5: 2045 | BN5: 2046 | BO5: 2047 | BP5: 2048 | BQ5: 2049 | BR5: 2050 | BS5: x | BT5: y
A6: 収集運搬 | B6: 1 | C6: 収集運搬業 | D6: CO2排出係数 | E6: 燃料法 | F6: ガソリン | G6: 12 | H6: 10 | I6: 1 | AQ6: 0.0671 | AR6: 0.0671
B7: 2 | F7: 軽油 | G7: 13 | H7: 10 | I7: 1 | AQ7: 0.0686 | AR7: 0.0686
B8: 3 | F8: LPG | G8: 14 | H8: 10 | I8: 1 | AQ8: 0.0598 | AR8: 0.0598
B9: 4 | F9: 天然ガス | G9: 15 | H9: 10 | I9: 1 | AQ9: 0.0506 | AR9: 0.0506
B10: 5 | F10: バイオエタノール | G10: 16 | H10: 10 | I10: 1 | AQ10: 0.0671 | AR10: 0.0671
B11: 6 | F11: バイオディーゼル | G11: 17 | H11: 10 | I11: 1 | AQ11: 0.0686 | AR11: 0.0686
B12: 7 | E12: 燃費法 | F12: ガソリン | G12: 18 | H12: 10 | I12: 1 | AQ12: 0.0671 | AR12: 0.0671
B13: 8 | F13: 軽油う | G13: 19 | H13: 10 | I13: 1 | AQ13: 0.0686 | AR13: 0.0686
B14: 9 | F14: LPG | G14: 20 | H14: 10 | I14: 1 | AQ14: 0.0598 | AR14: 0.0598
B15: 10 | F15: 天然ガス | G15: 21 | H15: 10 | I15: 1 | AQ15: 0.0506 | AR15: 0.0506
B16: 11 | E16: 改良ﾄﾝｷﾛ法 | F16: ガソリン | G16: 22 | H16: 10 | I16: 1 | AQ16: 0.0671 | AR16: 0.0671
B17: 12 | F17: 軽油 | G17: 23 | H17: 10 | I17: 1 | AQ17: 0.0686 | AR17: 0.0686
B18: 13 | D18: 単位発熱量 | E18: 燃料法 | F18: ガソリン | G18: 12 | H18: 9 | I18: 1 | AQ18: 34.6 | AR18: 34.6
B19: 14 | F19: 軽油 | G19: 13 | H19: 9 | I19: 1 | AQ19: 37.7 | AR19: 37.7
B20: 15 | F20: LPG | G20: 14 | H20: 9 | I20: 1 | AQ20: 50.8 | AR20: 50.8
B21: 16 | F21: 天然ガス | G21: 15 | H21: 9 | I21: 1 | AQ21: 44.8 | AR21: 44.8
B22: 17 | F22: バイオエタノール | G22: 16 | H22: 9 | I22: 1 | AQ22: 34.6 | AR22: 34.6
B23: 18 | F23: バイオディーゼル | G23: 17 | H23: 9 | I23: 1 | AQ23: 37.7 | AR23: 37.7
B24: 19 | E24: 燃費法 | F24: ガソリン | G24: 18 | H24: 9 | I24: 1 | AQ24: 34.6 | AR24: 34.6
B25: 20 | F25: 軽油う | G25: 19 | H25: 9 | I25: 1 | AQ25: 37.7 | AR25: 37.7
B26: 21 | F26: LPG | G26: 20 | H26: 9 | I26: 1 | AQ26: 50.8 | AR26: 50.8
B27: 22 | F27: 天然ガス | G27: 21 | H27: 9 | I27: 1 | AQ27: 44.8 | AR27: 44.8
B28: 23 | E28: 改良ﾄﾝｷﾛ法 | F28: ガソリン | G28: 22 | H28: 9 | I28: 1 | AQ28: 34.6 | AR28: 34.6
B29: 24 | F29: 軽油 | G29: 23 | H29: 9 | I29: 1 | AQ29: 37.7 | AR29: 37.7
B30: 25 | D30: 温室効果ガス排出量 | F30: CO2 | G30: 24 | H30: 15 | I30: 0 | AQ30: 0 | AR30: 0
B31: 26 | F31: CH4 | G31: 24 | H31: 16 | I31: 0 | AQ31: 0 | AR31: 0
B32: 27 | F32: N2O | G32: 24 | H32: 17 | I32: 0 | AQ32: 0 | AR32: 0
B33: 28 | F33: 合計 | G33: 24 | H33: 18 | I33: 0 | AQ33: 0 | AR33: 0 | BS33: 39 | BT33: 4
A34: 中間処理 | B34: 29 | C34: 中間処理業 | D34: CO2排出係数 | F34: 燃料系廃油 | G34: 16 | H34: 10 | I34: 1 | AQ34: 2.919 | AR34: 2.919
B35: 30 | F35: 動植物性廃油 | G35: 17 | H35: 10 | I35: 1
B36: 31 | F36: 廃プラスチック | G36: 18 | H36: 10 | I36: 1 | AQ36: 2.554 | AR36: 2.554
B37: 32 | F37: 廃タイヤ | G37: 19 | H37: 10 | I37: 1 | AQ37: 1.64255 | AR37: 1.64255
B38: 33 | F38: 特別管理産業廃棄物 | G38: 27 | H38: 10 | I38: 1 | AQ38: 2.919 | AR38: 2.919
B39: 34 | E39: 感染性廃棄物 | F39: 廃プラスチック | G39: 28 | H39: 10 | I39: 1 | AQ39: 2.554 | AR39: 2.554
B40: 35 | E40: その他 | F40: 廃プラスチック | G40: 30 | H40: 10 | I40: 1 | AQ40: 2.554 | AR40: 2.554
B41: 36 | D41: CH4排出係数 | E41: 下水汚泥 | F41: 炉No1 | G41: 12 | H41: 11 | I41: 1 | AQ41: 1.5e-06 | AR41: 1.5e-06
B42: 37 | F42: 炉No2 | G42: 13 | H42: 11 | I42: 1 | AQ42: 1.5e-06 | AR42: 1.5e-06
B43: 38 | F43: 炉No3 | G43: 14 | H43: 11 | I43: 1 | AQ43: 1.5e-06 | AR43: 1.5e-06
B44: 39 | F44: 下水汚泥以外 | G44: 15 | H44: 11 | I44: 1 | AQ44: 1.5e-06 | AR44: 1.5e-06
B45: 40 | F45: 燃料系廃油 | G45: 16 | H45: 11 | I45: 1 | AQ45: 4e-06 | AR45: 4e-06
B46: 41 | F46: 動植物性廃油 | G46: 17 | H46: 11 | I46: 1 | AQ46: 4e-06 | AR46: 4e-06
B47: 42 | F47: 廃プラスチック類 | G47: 18 | H47: 11 | I47: 1 | AQ47: 8e-06 | AR47: 8e-06
B48: 43 | F48: 廃タイヤ | G48: 19 | H48: 11 | I48: 1 | AQ48: 8e-06 | AR48: 8e-06
B49: 44 | F49: 紙くず | G49: 20 | H49: 11 | I49: 1 | AQ49: 0.0002245 | AR49: 0.0002245
B50: 45 | F50: 木くず | G50: 21 | H50: 11 | I50: 1 | AQ50: 0.0002245 | AR50: 0.0002245
B51: 46 | F51: 繊維くず | G51: 22 | H51: 11 | I51: 1 | AQ51: 0.0002245 | AR51: 0.0002245
B52: 47 | F52: 動植物性残渣 | G52: 23 | H52: 11 | I52: 1 | AQ52: 0.0002245 | AR52: 0.0002245
B53: 48 | F53: 動物系固形不要物 | G53: 24 | H53: 11 | I53: 1 | AQ53: 0.0002245 | AR53: 0.0002245
B54: 49 | F54: 動物のふん尿 | G54: 25 | H54: 11 | I54: 1 | AQ54: 0.0002245 | AR54: 0.0002245
B55: 50 | F55: 動物の死体 | G55: 26 | H55: 11 | I55: 1 | AQ55: 0.0002245 | AR55: 0.0002245
B56: 51 | F56: 特別管理産業廃棄物の廃油 | G56: 27 | H56: 11 | I56: 1 | AQ56: 4e-06 | AR56: 4e-06
B57: 52 | E57: 感染性廃棄物 | F57: 廃プラスチック | G57: 28 | H57: 11 | I57: 1 | AQ57: 8e-06 | AR57: 8e-06
B58: 53 | F58: それ以外 | G58: 29 | H58: 11 | I58: 1 | AQ58: 0.0002245 | AR58: 0.0002245
B59: 54 | E59: その他 | F59: 廃プラスチック | G59: 30 | H59: 11 | I59: 1 | AQ59: 8e-06 | AR59: 8e-06
B60: 55 | F60: それ以外 | G60: 31 | H60: 11 | I60: 1 | AQ60: 0.0002245 | AR60: 0.0002245
B61: 56 | F61: 有機性汚泥 | G61: 32 | H61: 11 | I61: 1 | AQ61: 0.01 | AR61: 0.01
B62: 57 | F62: 動植物性残渣 | G62: 33 | H62: 11 | I62: 1 | AQ62: 0.01 | AR62: 0.01
B63: 58 | F63: 紙くず、木くず、繊維くず | G63: 34 | H63: 11 | I63: 1 | AQ63: 0.01 | AR63: 0.01
B64: 59 | F64: その他の有機性廃棄物 | G64: 35 | H64: 11 | I64: 1 | AQ64: 0.01 | AR64: 0.01
B65: 60 | D65: N2O排出係数 | E65: 下水汚泥 | F65: 炉No1 | G65: 12 | H65: 13 | I65: 1 | AQ65: 0.000882 | AR65: 0.000882
B66: 61 | F66: 炉No2 | G66: 13 | H66: 13 | I66: 1 | AQ66: 0.000882 | AR66: 0.000882
B67: 62 | F67: 炉No3 | G67: 14 | H67: 13 | I67: 1 | AQ67: 0.000882 | AR67: 0.000882
B68: 63 | F68: 下水汚泥以外 | G68: 15 | H68: 13 | I68: 1 | AQ68: 9.89e-05 | AR68: 9.89e-05
B69: 64 | F69: 燃料系廃油 | G69: 16 | H69: 13 | I69: 1 | AQ69: 6.22e-05 | AR69: 6.22e-05
B70: 65 | F70: 動植物性廃油 | G70: 17 | H70: 13 | I70: 1 | AQ70: 6.22e-05 | AR70: 6.22e-05
B71: 66 | F71: 廃プラスチック類 | G71: 18 | H71: 13 | I71: 1 | AQ71: 1.48e-05 | AR71: 1.48e-05
B72: 67 | F72: 廃タイヤ | G72: 19 | H72: 13 | I72: 1 | AQ72: 1.48e-05 | AR72: 1.48e-05
B73: 68 | F73: 紙くず | G73: 20 | H73: 13 | I73: 1 | AQ73: 7.69e-05 | AR73: 7.69e-05
B74: 69 | F74: 木くず | G74: 21 | H74: 13 | I74: 1 | AQ74: 7.69e-05 | AR74: 7.69e-05
B75: 70 | F75: 繊維くず | G75: 22 | H75: 13 | I75: 1 | AQ75: 7.69e-05 | AR75: 7.69e-05
B76: 71 | F76: 動植物性残渣 | G76: 23 | H76: 13 | I76: 1 | AQ76: 7.69e-05 | AR76: 7.69e-05
B77: 72 | F77: 動物系固形不要物 | G77: 24 | H77: 13 | I77: 1 | AQ77: 7.69e-05 | AR77: 7.69e-05
B78: 73 | F78: 動物のふん尿 | G78: 25 | H78: 13 | I78: 1 | AQ78: 7.69e-05 | AR78: 7.69e-05
B79: 74 | F79: 動物の死体 | G79: 26 | H79: 13 | I79: 1 | AQ79: 7.69e-05 | AR79: 7.69e-05
B80: 75 | F80: 特別管理産業廃棄物の廃油 | G80: 27 | H80: 13 | I80: 1 | AQ80: 6.22e-05 | AR80: 6.22e-05
B81: 76 | E81: 感染性廃棄物 | F81: 廃プラスチック | G81: 28 | H81: 13 | I81: 1 | AQ81: 1.48e-05 | AR81: 1.48e-05
B82: 77 | F82: それ以外 | G82: 29 | H82: 13 | I82: 1 | AQ82: 7.69e-05 | AR82: 7.69e-05
B83: 78 | E83: その他 | F83: 廃プラスチック | G83: 30 | H83: 13 | I83: 1 | AQ83: 1.48e-05 | AR83: 1.48e-05
B84: 79 | F84: それ以外 | G84: 31 | H84: 13 | I84: 1 | AQ84: 7.69e-05 | AR84: 7.69e-05
B85: 80 | F85: 有機性汚泥 | G85: 32 | H85: 13 | I85: 1 | AQ85: 0.0006 | AR85: 0.0006
B86: 81 | F86: 動植物性残渣 | G86: 33 | H86: 13 | I86: 1 | AQ86: 0.0006 | AR86: 0.0006
B87: 82 | F87: 紙くず、木くず、繊維くず | G87: 34 | H87: 13 | I87: 1 | AQ87: 0.0006 | AR87: 0.0006
B88: 83 | F88: その他の有機性廃棄物 | G88: 35 | H88: 13 | I88: 1 | AQ88: 0.0006 | AR88: 0.0006
B89: 84 | D89: 排出量 | F89: CO2 | G89: 36 | H89: 15 | I89: 0 | AQ89: 0 | AR89: 0
B90: 85 | F90: CH4 | G90: 36 | H90: 16 | I90: 0 | AQ90: 0 | AR90: 0
B91: 86 | F91: N2O | G91: 36 | H91: 17 | I91: 0 | AQ91: 0 | AR91: 0
B92: 87 | F92: 合計 | G92: 36 | H92: 18 | I92: 0 | AQ92: 0 | AR92: 0
B93: 88 | D93: CO2 排出係数 | F93: 廃棄物発電 | G93: 41 | H93: 10 | I93: 1 | AQ93: 0.555 | AR93: 0.555
B94: 89 | F94: 廃棄物熱利用 | G94: 42 | H94: 10 | I94: 1 | AQ94: 0.057 | AR94: 0.057
B95: 90 | D95: 削減量 | F95: CO2 | G95: 43 | H95: 15 | I95: 0 | AQ95: 0 | AR95: 0
B96: 91 | F96: CH4 | G96: 43 | H96: 16 | I96: 0 | AQ96: 0 | AR96: 0
B97: 92 | F97: N2O | G97: 43 | H97: 17 | I97: 0 | AQ97: 0 | AR97: 0
B98: 93 | F98: 合計 | G98: 43 | H98: 18 | I98: 0 | AQ98: 0 | AR98: 0
B99: 94 | D99: 温室効果ガス排出量 | F99: CO2 | G99: 44 | H99: 15 | I99: 0 | AQ99: 0 | AR99: 0
B100: 95 | F100: CH4 | G100: 44 | H100: 16 | I100: 0 | AQ100: 0 | AR100: 0
B101: 96 | F101: N2O | G101: 44 | H101: 17 | I101: 0 | AQ101: 0 | AR101: 0
B102: 97 | F102: 合計 | G102: 44 | H102: 18 | I102: 0 | AQ102: 0 | AR102: 0 | BS102: 39 | BT102: 5
A103: 最終処分 | B103: 98 | C103: 最終処分業 | D103: CH4排出係数 | F103: 有機性の下水汚泥 | G103: 12 | H103: 11 | I103: 1 | AQ103: 0.1333 | AR103: 0.1333
B104: 99 | F104: 製造業有機性汚泥 | G104: 13 | H104: 11 | I104: 1 | AQ104: 0.15 | AR104: 0.15
B105: 100 | F105: 浄水施設に係る汚泥 | G105: 14 | H105: 11 | I105: 1 | AQ105: 0.025 | AR105: 0.025
B106: 101 | F106: し尿処理施設に係る汚泥 | G106: 15 | H106: 11 | I106: 1 | AQ106: 0.1333 | AR106: 0.1333
B107: 102 | F107: その他（有機無機混合汚泥） | G107: 16 | H107: 11 | I107: 1 | AQ107: 0.15 | AR107: 0.15
B108: 103 | F108: 紙くず | G108: 17 | H108: 11 | I108: 1 | AQ108: 0.1363 | AR108: 0.1363
B109: 104 | F109: 木くず | G109: 18 | H109: 11 | I109: 1 | AQ109: 0.1505 | AR109: 0.1505
B110: 105 | F110: 繊維くず | G110: 19 | H110: 11 | I110: 1 | AQ110: 0.1499 | AR110: 0.1499
B111: 106 | F111: 動植物性残渣 | G111: 20 | H111: 11 | I111: 1 | AQ111: 0.1448 | AR111: 0.1448
B112: 107 | F112: 動物系固形不要物 | G112: 21 | H112: 11 | I112: 1 | AQ112: 0.1448 | AR112: 0.1448
B113: 108 | F113: 動物のふん尿 | G113: 22 | H113: 11 | I113: 1 | AQ113: 0.1333 | AR113: 0.1333
B114: 109 | F114: 動物の死体 | G114: 23 | H114: 11 | I114: 1 | AQ114: 0.1448 | AR114: 0.1448
B115: 110 | F115: その他（混合廃棄物） | G115: 24 | H115: 11 | I115: 1 | AQ115: 0.1505 | AR115: 0.1505
B116: 111 | D116: 排出量 | F116: CO2 | G116: 25 | H116: 15 | I116: 0 | AQ116: 0 | AR116: 0
B117: 112 | F117: CH4 | G117: 25 | H117: 16 | I117: 0 | AQ117: 0 | AR117: 0
B118: 113 | F118: N2O | G118: 25 | H118: 17 | I118: 0 | AQ118: 0 | AR118: 0
B119: 114 | F119: 合計 | G119: 25 | H119: 18 | I119: 0 | AQ119: 0 | AR119: 0
B120: 115 | D120: 重量換算 | F120: 発生ガスの回収・焼却 | G120: 30 | H120: 11 | I120: 1 | AQ120: 0.00071 | AR120: 0.00071
B121: 116 | D121: 削減量 | F121: CO2 | G121: 31 | H121: 15 | I121: 0 | AQ121: 0 | AR121: 0
B122: 117 | F122: CH4 | G122: 31 | H122: 16 | I122: 0 | AQ122: 0 | AR122: 0
B123: 118 | F123: N2O | G123: 31 | H123: 17 | I123: 0 | AQ123: 0 | AR123: 0
B124: 119 | F124: 合計 | G124: 31 | H124: 18 | I124: 0 | AQ124: 0 | AR124: 0
B125: 120 | D125: 温室効果ガス排出量 | F125: CO2 | G125: 32 | H125: 15 | I125: 0 | AQ125: 0 | AR125: 0
B126: 121 | F126: CH4 | G126: 32 | H126: 16 | I126: 0 | AQ126: 0 | AR126: 0
B127: 122 | F127: N2O | G127: 32 | H127: 17 | I127: 0 | AQ127: 0 | AR127: 0
B128: 123 | F128: 合計 | G128: 32 | H128: 18 | I128: 0 | AQ128: 0 | AR128: 0 | BS128: 39 | BT128: 6
A129: 関連施設 | B129: 124 | C129: 関連施設及び構内車両 | D129: CO2排出係数 | F129: 電気 | G129: 12 | H129: 10 | I129: 1 | AQ129: 0.457 | AR129: 0.457
B130: 125 | F130: 都市ガス1 | G130: 13 | H130: 10 | I130: 1 | AQ130: 0.0506 | AR130: 0.0506
B131: 126 | F131: 都市ガス2 | G131: 14 | H131: 10 | I131: 1 | AQ131: 0.0506 | AR131: 0.0506
B132: 127 | F132: 都市ガス3 | G132: 15 | H132: 10 | I132: 1 | AQ132: 0.0506 | AR132: 0.0506
B133: 128 | F133: 天然ガス1 | G133: 16 | H133: 10 | I133: 1 | AQ133: 0.0495 | AR133: 0.0495
B134: 129 | F134: 天然ガス2 | G134: 17 | H134: 10 | I134: 1 | AQ134: 0.0495 | AR134: 0.0495
B135: 130 | F135: 天然ガス3 | G135: 18 | H135: 10 | I135: 1 | AQ135: 0.0495 | AR135: 0.0495
B136: 131 | F136: 軽油1 | G136: 19 | H136: 10 | I136: 1 | AQ136: 0.0686 | AR136: 0.0686
B137: 132 | F137: 軽油2 | G137: 20 | H137: 10 | I137: 1 | AQ137: 0.0686 | AR137: 0.0686
B138: 133 | F138: 軽油3 | G138: 21 | H138: 10 | I138: 1 | AQ138: 0.0686 | AR138: 0.0686
B139: 134 | F139: 灯油1 | G139: 22 | H139: 10 | I139: 1 | AQ139: 0.0678 | AR139: 0.0678
B140: 135 | F140: 灯油2 | G140: 23 | H140: 10 | I140: 1 | AQ140: 0.0678 | AR140: 0.0678
B141: 136 | F141: 灯油3 | G141: 24 | H141: 10 | I141: 1 | AQ141: 0.0678 | AR141: 0.0678
B142: 137 | F142: A重油1 | G142: 25 | H142: 10 | I142: 1 | AQ142: 0.0693 | AR142: 0.0693
B143: 138 | F143: A重油2 | G143: 26 | H143: 10 | I143: 1 | AQ143: 0.0693 | AR143: 0.0693
B144: 139 | F144: A重油3 | G144: 27 | H144: 10 | I144: 1 | AQ144: 0.0693 | AR144: 0.0693
B145: 140 | F145: C重油1 | G145: 28 | H145: 10 | I145: 1 | AQ145: 0.0715 | AR145: 0.0715
B146: 141 | F146: C重油2 | G146: 29 | H146: 10 | I146: 1 | AQ146: 0.0715 | AR146: 0.0715
B147: 142 | F147: C重油3 | G147: 30 | H147: 10 | I147: 1 | AQ147: 0.0715 | AR147: 0.0715
B148: 143 | F148: LPG1 | G148: 31 | H148: 10 | I148: 1 | AQ148: 0.0598 | AR148: 0.0598
B149: 144 | F149: LPG2 | G149: 32 | H149: 10 | I149: 1 | AQ149: 0.0598 | AR149: 0.0598
B150: 145 | F150: LPG3 | G150: 33 | H150: 10 | I150: 1 | AQ150: 0.0598 | AR150: 0.0598
B151: 146 | F151: 石炭1 | G151: 34 | H151: 10 | I151: 1 | AQ151: 0.0906 | AR151: 0.0906
B152: 147 | F152: 石炭2 | G152: 35 | H152: 10 | I152: 1 | AQ152: 0.0906 | AR152: 0.0906
B153: 148 | F153: 石炭3 | G153: 36 | H153: 10 | I153: 1 | AQ153: 0.0906 | AR153: 0.0906
B154: 149 | F154: コークス1 | G154: 37 | H154: 10 | I154: 1 | AQ154: 0.1079 | AR154: 0.1079
B155: 150 | F155: コークス2 | G155: 38 | H155: 10 | I155: 1 | AQ155: 0.1079 | AR155: 0.1079
B156: 151 | F156: コークス3 | G156: 39 | H156: 10 | I156: 1 | AQ156: 0.1079 | AR156: 0.1079
B157: 152 | F157: 燃料系廃油 | G157: 40 | H157: 10 | I157: 1 | AQ157: 2.919 | AR157: 2.919
B158: 153 | F158: 動植物性廃油 | G158: 41 | H158: 10 | I158: 1
B159: 154 | F159: バイオディーゼル | G159: 43 | H159: 10 | I159: 1 | AQ159: 0.0686 | AR159: 0.0686
B160: 155 | F160: RPF1 | G160: 45 | H160: 10 | I160: 1 | AQ160: 1.584698 | AR160: 1.584698
B161: 156 | F161: RPF2 | G161: 46 | H161: 10 | I161: 1 | AQ161: 1.584698 | AR161: 1.584698
B162: 157 | F162: 構内車両：電気 | G162: 47 | H162: 10 | I162: 1 | AQ162: 0.457 | AR162: 0.457
B163: 158 | F163: 構内車両：ガソリン | G163: 48 | H163: 10 | I163: 1 | AQ163: 0.0671 | AR163: 0.0671
B164: 159 | F164: 構内車両：軽油 | G164: 49 | H164: 10 | I164: 1 | AQ164: 0.0686 | AR164: 0.0686
B165: 160 | F165: 構内車両：灯油 | G165: 50 | H165: 10 | I165: 1 | AQ165: 0.0678 | AR165: 0.0678
B166: 161 | F166: 構内車両：バイオディーゼル | G166: 51 | H166: 10 | I166: 1 | AQ166: 0.0686 | AR166: 0.0686
B167: 162 | D167: CH4排出係数 | F167: 都市ガス1 | G167: 13 | H167: 11 | I167: 1 | AQ167: 2.3e-07 | AR167: 2.3e-07
B168: 163 | F168: 都市ガス2 | G168: 14 | H168: 11 | I168: 1 | AQ168: 2.3e-06 | AR168: 2.3e-06
B169: 164 | F169: 都市ガス3 | G169: 15 | H169: 11 | I169: 1 | AQ169: 2.3e-06 | AR169: 2.3e-06
B170: 165 | F170: 天然ガス1 | G170: 16 | H170: 11 | I170: 1 | AQ170: 2.3e-07 | AR170: 2.3e-07
B171: 166 | F171: 天然ガス2 | G171: 17 | H171: 11 | I171: 1 | AQ171: 2.3e-06 | AR171: 2.3e-06
B172: 167 | F172: 天然ガス3 | G172: 18 | H172: 11 | I172: 1 | AQ172: 2.3e-06 | AR172: 2.3e-06
B173: 168 | F173: 軽油1 | G173: 19 | H173: 11 | I173: 1 | AQ173: 2.6e-07 | AR173: 2.6e-07
B174: 169 | F174: 軽油2 | G174: 20 | H174: 11 | I174: 1 | AQ174: 8.3e-07 | AR174: 8.3e-07
B175: 170 | F175: 軽油3 | G175: 21 | H175: 11 | I175: 1 | AQ175: 8.3e-07 | AR175: 8.3e-07
B176: 171 | F176: 灯油1 | G176: 22 | H176: 11 | I176: 1 | AQ176: 2.6e-07 | AR176: 2.6e-07
B177: 172 | F177: 灯油2 | G177: 23 | H177: 11 | I177: 1 | AQ177: 8.3e-07 | AR177: 8.3e-07
B178: 173 | F178: 灯油3 | G178: 24 | H178: 11 | I178: 1 | AQ178: 8.3e-07 | AR178: 8.3e-07
B179: 174 | F179: A重油1 | G179: 25 | H179: 11 | I179: 1 | AQ179: 2.6e-07 | AR179: 2.6e-07
B180: 175 | F180: A重油2 | G180: 26 | H180: 11 | I180: 1 | AQ180: 8.3e-07 | AR180: 8.3e-07
B181: 176 | F181: A重油3 | G181: 27 | H181: 11 | I181: 1 | AQ181: 8.3e-07 | AR181: 8.3e-07
B182: 177 | F182: C重油1 | G182: 28 | H182: 11 | I182: 1 | AQ182: 1e-07 | AR182: 1e-07
B183: 178 | F183: C重油2 | G183: 29 | H183: 11 | I183: 1 | AQ183: 8.3e-07 | AR183: 8.3e-07
B184: 179 | F184: C重油3 | G184: 30 | H184: 11 | I184: 1 | AQ184: 8.3e-07 | AR184: 8.3e-07
B185: 180 | F185: LPG1 | G185: 31 | H185: 11 | I185: 1 | AQ185: 2.3e-07 | AR185: 2.3e-07
B186: 181 | F186: LPG2 | G186: 32 | H186: 11 | I186: 1 | AQ186: 2.3e-06 | AR186: 2.3e-06
B187: 182 | F187: LPG3 | G187: 33 | H187: 11 | I187: 1 | AQ187: 2.3e-06 | AR187: 2.3e-06
B188: 183 | F188: 石炭1 | G188: 34 | H188: 11 | I188: 1 | AQ188: 1.3e-07 | AR188: 1.3e-07
B189: 184 | F189: 石炭2 | G189: 35 | H189: 11 | I189: 1 | AQ189: 1.3e-05 | AR189: 1.3e-05
B190: 185 | F190: 石炭3 | G190: 36 | H190: 11 | I190: 1 | AQ190: 1.3e-05 | AR190: 1.3e-05
B191: 186 | F191: コークス1 | G191: 37 | H191: 11 | I191: 1 | AQ191: 1.3e-07 | AR191: 1.3e-07
B192: 187 | F192: コークス2 | G192: 38 | H192: 11 | I192: 1 | AQ192: 1.3e-05 | AR192: 1.3e-05
B193: 188 | F193: コークス3 | G193: 39 | H193: 11 | I193: 1 | AQ193: 1.3e-05 | AR193: 1.3e-05
B194: 189 | F194: 燃料系廃油 | G194: 40 | H194: 11 | I194: 1 | AQ194: 1.2e-05 | AR194: 1.2e-05
B195: 190 | F195: 動植物性廃油 | G195: 41 | H195: 11 | I195: 1 | AQ195: 1.2e-05 | AR195: 1.2e-05
B196: 191 | F196: 木くず | G196: 42 | H196: 11 | I196: 1 | AQ196: 0.0011 | AR196: 0.0011
B197: 192 | F197: バイオディーゼル | G197: 43 | H197: 11 | I197: 1
B198: 193 | F198: RPF1 | G198: 45 | H198: 11 | I198: 1 | AQ198: 3.5e-06 | AR198: 3.5e-06
B199: 194 | F199: RPF2 | G199: 46 | H199: 11 | I199: 1 | AQ199: 3.5e-06 | AR199: 3.5e-06
B200: 195 | F200: ガソリン | G200: 48 | H200: 11 | I200: 1
B201: 196 | F201: 軽油 | G201: 49 | H201: 11 | I201: 1
... 84 more rows

Sheet DATA算定制度 (hidden)
A2: データ格納シート
B3: DATA3：算定制度での報告データ | I3: チェック対象外：0,数値チェック：1,％範囲チェック：2
G4: 座標 | I4: chk | J4: 1 | K4: 2 | L4: 3 | M4: 4 | N4: 5 | O4: 6 | P4: 7 | Q4: 8 | R4: 9 | S4: 10 | T4: 11 | U4: 12 | V4: 13 | W4: 14 | X4: 15 | Y4: 16 | Z4: 17 | AA4: 18 | AB4: 19 | AC4: 20 | AD4: 21 | AE4: 22 | AF4: 23 | AG4: 24 | AH4: 25 | AI4: 26 | AJ4: 27 | AK4: 28 | AL4: 29 | AM4: 30 | AN4: 31 | AO4: 32 | AP4: 33 | AQ4: 34 | AR4: 35 | AS4: 36 | AT4: 37 | AU4: 38 | AV4: 39 | AW4: 40 | AX4: 41 | AY4: 42 | AZ4: 43 | BA4: 44 | BB4: 45 | BC4: 46 | BD4: 47 | BE4: 48 | BF4: 49 | BG4: 50 | BH4: 51 | BI4: 52 | BJ4: 53 | BK4: 54 | BL4: 55 | BM4: 56 | BN4: 57 | BO4: 58 | BP4: 59 | BQ4: 60 | BR4: 61
B5: No | C5: 項目 | G5: x | H5: y | J5: 1990 | K5: 1991 | L5: 1992 | M5: 1993 | N5: 1994 | O5: 1995 | P5: 1996 | Q5: 1997 | R5: 1998 | S5: 1999 | T5: 2000 | U5: 2001 | V5: 2002 | W5: 2003 | X5: 2004 | Y5: 2005 | Z5: 2006 | AA5: 2007 | AB5: 2008 | AC5: 2009 | AD5: 2010 | AE5: 2011 | AF5: 2012 | AG5: 2013 | AH5: 2014 | AI5: 2015 | AJ5: 2016 | AK5: 2017 | AL5: 2018 | AM5: 2019 | AN5: 2020 | AO5: 2021 | AP5: 2022 | AQ5: 2023 | AR5: 2024 | AS5: 2025 | AT5: 2026 | AU5: 2027 | AV5: 2028 | AW5: 2029 | AX5: 2030 | AY5: 2031 | AZ5: 2032 | BA5: 2033 | BB5: 2034 | BC5: 2035 | BD5: 2036 | BE5: 2037 | BF5: 2038 | BG5: 2039 | BH5: 2040 | BI5: 2041 | BJ5: 2042 | BK5: 2043 | BL5: 2044 | BM5: 2045 | BN5: 2046 | BO5: 2047 | BP5: 2048 | BQ5: 2049 | BR5: 2050
A6: 収集運搬 | B6: 1 | C6: 収集運搬業 | D6: 燃料使用量 | E6: 燃料法 | F6: ガソリン | G6: 19 | H6: 7 | I6: 1
B7: 2 | F7: 軽油 | G7: 20 | H7: 7 | I7: 1
B8: 3 | F8: LPG | G8: 21 | H8: 7 | I8: 1
B9: 4 | F9: 天然ガス | G9: 22 | H9: 7 | I9: 1
B10: 5 | F10: バイオエタノール | G10: 23 | H10: 7 | I10: 1
B11: 6 | F11: バイオディーゼル | G11: 24 | H11: 7 | I11: 1
B12: 7 | E12: 燃費法 | F12: ガソリン | G12: 25 | H12: 7 | I12: 1
B13: 8 | F13: 軽油う | G13: 26 | H13: 7 | I13: 1
B14: 9 | F14: LPG | G14: 27 | H14: 7 | I14: 1
B15: 10 | F15: 天然ガス | G15: 28 | H15: 7 | I15: 1
B16: 11 | E16: 改良ﾄﾝｷﾛ法 | F16: ガソリン | G16: 29 | H16: 7 | I16: 1
B17: 12 | F17: 軽油 | G17: 30 | H17: 7 | I17: 1
B18: 13 | D18: 単位 | E18: 燃料法 | F18: ガソリン | G18: 19 | H18: 8 | I18: 0
B19: 14 | F19: 軽油 | G19: 20 | H19: 8 | I19: 0
B20: 15 | F20: LPG | G20: 21 | H20: 8 | I20: 0
B21: 16 | F21: 天然ガス | G21: 22 | H21: 8 | I21: 0
B22: 17 | F22: バイオエタノール | G22: 23 | H22: 8 | I22: 0
B23: 18 | F23: バイオディーゼル | G23: 24 | H23: 8 | I23: 0
B24: 19 | E24: 燃費法 | F24: ガソリン | G24: 25 | H24: 8 | I24: 0
B25: 20 | F25: 軽油う | G25: 26 | H25: 8 | I25: 0
B26: 21 | F26: LPG | G26: 27 | H26: 8 | I26: 0
B27: 22 | F27: 天然ガス | G27: 28 | H27: 8 | I27: 0
B28: 23 | E28: 改良ﾄﾝｷﾛ法 | F28: ガソリン | G28: 29 | H28: 8 | I28: 0
B29: 24 | F29: 軽油 | G29: 30 | H29: 8 | I29: 0
B30: 25 | D30: CO2排出係数 | E30: 燃料法 | F30: ガソリン | G30: 19 | H30: 10 | I30: 1 | AD30: 0.0671 | AE30: 0.0671 | AF30: 0.0671 | AG30: 0.0671 | AH30: 0.0671 | AI30: 0.0671 | AL30: 0.0671 | AM30: 0.0671 | AN30: 0.0671 | AO30: 0.0671 | AP30: 0.0671 | AQ30: 0.0671 | AR30: 0.0671
B31: 26 | F31: 軽油 | G31: 20 | H31: 10 | I31: 1 | AD31: 0.0686 | AE31: 0.0686 | AF31: 0.0686 | AG31: 0.0686 | AH31: 0.0686 | AI31: 0.0686 | AL31: 0.0686 | AM31: 0.0686 | AN31: 0.0686 | AO31: 0.0686 | AP31: 0.0686 | AQ31: 0.0686 | AR31: 0.0686
B32: 27 | F32: LPG | G32: 21 | H32: 10 | I32: 1 | AD32: 0.059 | AE32: 0.059 | AF32: 0.059 | AG32: 0.059 | AH32: 0.059 | AI32: 0.059 | AL32: 0.059 | AM32: 0.059 | AN32: 0.059 | AO32: 0.059 | AP32: 0.059 | AQ32: 0.059 | AR32: 0.059
B33: 28 | F33: 天然ガス | G33: 22 | H33: 10 | I33: 1 | AD33: 0.0506 | AE33: 0.0506 | AF33: 0.0506 | AG33: 0.0499 | AH33: 0.0499 | AI33: 0.0499 | AL33: 0.0499 | AM33: 0.0499 | AN33: 0.0499 | AO33: 0.0499 | AP33: 0.0499 | AQ33: 0.0499 | AR33: 0.0499
B34: 29 | F34: バイオエタノール | G34: 23 | H34: 10 | I34: 1 | AD34: 0.0671 | AE34: 0.0671 | AF34: 0.0671 | AG34: 0.0671 | AH34: 0.0671 | AI34: 0.0671 | AL34: 0.0671 | AM34: 0.0671 | AN34: 0.0671 | AO34: 0.0671 | AP34: 0.0671 | AQ34: 0.0671 | AR34: 0.0671
B35: 30 | F35: バイオディーゼル | G35: 24 | H35: 10 | I35: 1 | AD35: 0.0686 | AE35: 0.0686 | AF35: 0.0686 | AG35: 0.0686 | AH35: 0.0686 | AI35: 0.0686 | AL35: 0.0686 | AM35: 0.0686 | AN35: 0.0686 | AO35: 0.0686 | AP35: 0.0686 | AQ35: 0.0686 | AR35: 0.0686
B36: 31 | E36: 燃費法 | F36: ガソリン | G36: 25 | H36: 10 | I36: 1 | AD36: 0.0671 | AE36: 0.0671 | AF36: 0.0671 | AG36: 0.0671 | AH36: 0.0671 | AI36: 0.0671 | AL36: 0.0671 | AM36: 0.0671 | AN36: 0.0671 | AO36: 0.0671 | AP36: 0.0671 | AQ36: 0.0671 | AR36: 0.0671
B37: 32 | F37: 軽油う | G37: 26 | H37: 10 | I37: 1 | AD37: 0.0686 | AE37: 0.0686 | AF37: 0.0686 | AG37: 0.0686 | AH37: 0.0686 | AI37: 0.0686 | AL37: 0.0686 | AM37: 0.0686 | AN37: 0.0686 | AO37: 0.0686 | AP37: 0.0686 | AQ37: 0.0686 | AR37: 0.0686
B38: 33 | F38: LPG | G38: 27 | H38: 10 | I38: 1 | AD38: 0.059 | AE38: 0.059 | AF38: 0.059 | AG38: 0.059 | AH38: 0.059 | AI38: 0.059 | AL38: 0.059 | AM38: 0.059 | AN38: 0.059 | AO38: 0.059 | AP38: 0.059 | AQ38: 0.059 | AR38: 0.059
B39: 34 | F39: 天然ガス | G39: 28 | H39: 10 | I39: 1 | AD39: 0.0506 | AE39: 0.0506 | AF39: 0.0506 | AG39: 0.0499 | AH39: 0.0499 | AI39: 0.0499 | AL39: 0.0499 | AM39: 0.0499 | AN39: 0.0499 | AO39: 0.0499 | AP39: 0.0499 | AQ39: 0.0499 | AR39: 0.0499
B40: 35 | E40: 改良ﾄﾝｷﾛ法 | F40: ガソリン | G40: 29 | H40: 10 | I40: 1 | AD40: 0.0671 | AE40: 0.0671 | AF40: 0.0671 | AG40: 0.0671 | AH40: 0.0671 | AI40: 0.0671 | AL40: 0.0671 | AM40: 0.0671 | AN40: 0.0671 | AO40: 0.0671 | AP40: 0.0671 | AQ40: 0.0671 | AR40: 0.0671
B41: 36 | F41: 軽油 | G41: 30 | H41: 10 | I41: 1 | AD41: 0.0686 | AE41: 0.0686 | AF41: 0.0686 | AG41: 0.0686 | AH41: 0.0686 | AI41: 0.0686 | AL41: 0.0686 | AM41: 0.0686 | AN41: 0.0686 | AO41: 0.0686 | AP41: 0.0686 | AQ41: 0.0686 | AR41: 0.0686
B42: 37 | D42: 単位発熱量 | E42: 燃料法 | F42: ガソリン | G42: 19 | H42: 9 | I42: 1 | AD42: 34.6 | AE42: 34.6 | AF42: 34.6 | AG42: 34.6 | AH42: 34.6 | AI42: 34.6 | AL42: 34.6 | AM42: 34.6 | AN42: 34.6 | AO42: 34.6 | AP42: 34.6 | AQ42: 34.6 | AR42: 34.6
B43: 38 | F43: 軽油 | G43: 20 | H43: 9 | I43: 1 | AD43: 37.7 | AE43: 37.7 | AF43: 37.7 | AG43: 37.7 | AH43: 37.7 | AI43: 37.7 | AL43: 37.7 | AM43: 37.7 | AN43: 37.7 | AO43: 37.7 | AP43: 37.7 | AQ43: 37.7 | AR43: 37.7
B44: 39 | F44: LPG | G44: 21 | H44: 9 | I44: 1 | AD44: 50.8 | AE44: 50.8 | AF44: 50.8 | AG44: 50.8 | AH44: 50.8 | AI44: 50.8 | AL44: 50.8 | AM44: 50.8 | AN44: 50.8 | AO44: 50.8 | AP44: 50.8 | AQ44: 50.8 | AR44: 50.8
B45: 40 | F45: 天然ガス | G45: 22 | H45: 9 | I45: 1 | AD45: 44.8 | AE45: 44.8 | AF45: 44.8 | AG45: 44.8 | AH45: 44.8 | AI45: 44.8 | AL45: 44.8 | AM45: 44.8 | AN45: 44.8 | AO45: 44.8 | AP45: 44.8 | AQ45: 44.8 | AR45: 44.8
B46: 41 | F46: バイオエタノール | G46: 23 | H46: 9 | I46: 1 | AD46: 34.6 | AE46: 34.6 | AF46: 34.6 | AG46: 34.6 | AH46: 34.6 | AI46: 34.6 | AL46: 34.6 | AM46: 34.6 | AN46: 34.6 | AO46: 34.6 | AP46: 34.6 | AQ46: 34.6 | AR46: 34.6
B47: 42 | F47: バイオディーゼル | G47: 24 | H47: 9 | I47: 1 | AD47: 37.7 | AE47: 37.7 | AF47: 37.7 | AG47: 37.7 | AH47: 37.7 | AI47: 37.7 | AL47: 37.7 | AM47: 37.7 | AN47: 37.7 | AO47: 37.7 | AP47: 37.7 | AQ47: 37.7 | AR47: 37.7
B48: 43 | E48: 燃費法 | F48: ガソリン | G48: 25 | H48: 9 | I48: 1 | AD48: 34.6 | AE48: 34.6 | AF48: 34.6 | AG48: 34.6 | AH48: 34.6 | AI48: 34.6 | AL48: 34.6 | AM48: 34.6 | AN48: 34.6 | AO48: 34.6 | AP48: 34.6 | AQ48: 34.6 | AR48: 34.6
B49: 44 | F49: 軽油う | G49: 26 | H49: 9 | I49: 1 | AD49: 37.7 | AE49: 37.7 | AF49: 37.7 | AG49: 37.7 | AH49: 37.7 | AI49: 37.7 | AL49: 37.7 | AM49: 37.7 | AN49: 37.7 | AO49: 37.7 | AP49: 37.7 | AQ49: 37.7 | AR49: 37.7
B50: 45 | F50: LPG | G50: 27 | H50: 9 | I50: 1 | AD50: 50.8 | AE50: 50.8 | AF50: 50.8 | AG50: 50.8 | AH50: 50.8 | AI50: 50.8 | AL50: 50.8 | AM50: 50.8 | AN50: 50.8 | AO50: 50.8 | AP50: 50.8 | AQ50: 50.8 | AR50: 50.8
B51: 46 | F51: 天然ガス | G51: 28 | H51: 9 | I51: 1 | AD51: 44.8 | AE51: 44.8 | AF51: 44.8 | AG51: 44.8 | AH51: 44.8 | AI51: 44.8 | AL51: 44.8 | AM51: 44.8 | AN51: 44.8 | AO51: 44.8 | AP51: 44.8 | AQ51: 44.8 | AR51: 44.8
B52: 47 | E52: 改良ﾄﾝｷﾛ法 | F52: ガソリン | G52: 29 | H52: 9 | I52: 1 | AD52: 34.6 | AE52: 34.6 | AF52: 34.6 | AG52: 34.6 | AH52: 34.6 | AI52: 34.6 | AL52: 34.6 | AM52: 34.6 | AN52: 34.6 | AO52: 34.6 | AP52: 34.6 | AQ52: 34.6 | AR52: 34.6
B53: 48 | F53: 軽油 | G53: 30 | H53: 9 | I53: 1 | AD53: 37.7 | AE53: 37.7 | AF53: 37.7 | AG53: 37.7 | AH53: 37.7 | AI53: 37.7 | AL53: 37.7 | AM53: 37.7 | AN53: 37.7 | AO53: 37.7 | AP53: 37.7 | AQ53: 37.7 | AR53: 37.7
A54: 中間処理 | B54: 49 | C54: 中間処理業 | D54: 焼却量・溶融量 | E54: 下水汚泥 | F54: 炉No1 | G54: 38 | H54: 7 | I54: 1
B55: 50 | F55: 炉No2 | G55: 39 | H55: 7 | I55: 1
B56: 51 | F56: 炉No3 | G56: 40 | H56: 7 | I56: 1
B57: 52 | F57: 下水汚泥以外 | G57: 41 | H57: 7 | I57: 1
B58: 53 | F58: 燃料系廃油 | G58: 42 | H58: 7 | I58: 1
B59: 54 | F59: 動植物性廃油 | G59: 43 | H59: 7 | I59: 1
B60: 55 | F60: 廃プラスチック類 | G60: 44 | H60: 7 | I60: 1
B61: 56 | F61: 廃タイヤ | G61: 45 | H61: 7 | I61: 1
B62: 57 | F62: 紙くず | G62: 46 | H62: 7 | I62: 1
B63: 58 | F63: 木くず | G63: 47 | H63: 7 | I63: 1
B64: 59 | F64: 繊維くず | G64: 48 | H64: 7 | I64: 1
B65: 60 | F65: 動植物性残渣 | G65: 49 | H65: 7 | I65: 1
B66: 61 | F66: 動物系固形不要物 | G66: 50 | H66: 7 | I66: 1
B67: 62 | F67: 動物のふん尿 | G67: 51 | H67: 7 | I67: 1
B68: 63 | F68: 動物の死体 | G68: 52 | H68: 7 | I68: 1
B69: 64 | F69: 特別管理産業廃棄物の廃油 | G69: 53 | H69: 7 | I69: 1
B70: 65 | E70: 感染性廃棄物 | F70: 廃プラスチック | G70: 54 | H70: 7 | I70: 1
B71: 66 | F71: それ以外 | G71: 55 | H71: 7 | I71: 1
B72: 67 | E72: その他 | F72: 廃プラスチック | G72: 56 | H72: 7 | I72: 1
B73: 68 | F73: それ以外 | G73: 57 | H73: 7 | I73: 1
B74: 69 | D74: 単位 | E74: 下水汚泥 | F74: 炉No1 | G74: 38 | H74: 8 | I74: 0
B75: 70 | F75: 炉No2 | G75: 39 | H75: 8 | I75: 0
B76: 71 | F76: 炉No3 | G76: 40 | H76: 8 | I76: 0
B77: 72 | F77: 下水汚泥以外 | G77: 41 | H77: 8 | I77: 0
B78: 73 | F78: 燃料系廃油 | G78: 42 | H78: 8 | I78: 0
B79: 74 | F79: 動植物性廃油 | G79: 43 | H79: 8 | I79: 0
B80: 75 | F80: 廃プラスチック類 | G80: 44 | H80: 8 | I80: 0
B81: 76 | F81: 廃タイヤ | G81: 45 | H81: 8 | I81: 0
B82: 77 | F82: 紙くず | G82: 46 | H82: 8 | I82: 0
B83: 78 | F83: 木くず | G83: 47 | H83: 8 | I83: 0
B84: 79 | F84: 繊維くず | G84: 48 | H84: 8 | I84: 0
B85: 80 | F85: 動植物性残渣 | G85: 49 | H85: 8 | I85: 0
B86: 81 | F86: 動物系固形不要物 | G86: 50 | H86: 8 | I86: 0
B87: 82 | F87: 動物のふん尿 | G87: 51 | H87: 8 | I87: 0
B88: 83 | F88: 動物の死体 | G88: 52 | H88: 8 | I88: 0
B89: 84 | F89: 特別管理産業廃棄物の廃油 | G89: 53 | H89: 8 | I89: 0
B90: 85 | E90: 感染性廃棄物 | F90: 廃プラスチック | G90: 54 | H90: 8 | I90: 0
B91: 86 | F91: それ以外 | G91: 55 | H91: 8 | I91: 0
B92: 87 | E92: その他 | F92: 廃プラスチック | G92: 56 | H92: 8 | I92: 0
B93: 88 | F93: それ以外 | G93: 57 | H93: 8 | I93: 0
B94: 89 | D94: CO2排出係数 | F94: 燃料系廃油 | G94: 42 | H94: 10 | I94: 1 | AD94: 2.92 | AE94: 2.92 | AF94: 2.92 | AG94: 2.92 | AH94: 2.92 | AI94: 2.92 | AL94: 2.92 | AM94: 2.92 | AN94: 2.92 | AO94: 2.92 | AP94: 2.92 | AQ94: 2.92 | AR94: 2.92
B95: 90 | F95: 動植物性廃油 | G95: 43 | H95: 10 | I95: 1
B96: 91 | F96: 廃プラスチック | G96: 44 | H96: 10 | I96: 1 | AD96: 2.55 | AE96: 2.55 | AF96: 2.55 | AG96: 2.55 | AH96: 2.55 | AI96: 2.55 | AL96: 2.55 | AM96: 2.55 | AN96: 2.55 | AO96: 2.55 | AP96: 2.55 | AQ96: 2.55 | AR96: 2.55
B97: 92 | F97: 廃タイヤ | G97: 45 | H97: 10 | I97: 1 | AD97: 1.72 | AE97: 1.72 | AF97: 1.72 | AG97: 1.72 | AH97: 1.72 | AI97: 1.72 | AL97: 1.72 | AM97: 1.72 | AN97: 1.72 | AO97: 1.72 | AP97: 1.72 | AQ97: 1.72 | AR97: 1.72
B98: 93 | F98: 特別管理産業廃棄物 | G98: 53 | H98: 10 | I98: 1 | AD98: 2.92 | AE98: 2.92 | AF98: 2.92 | AG98: 2.92 | AH98: 2.92 | AI98: 2.92 | AL98: 2.92 | AM98: 2.92 | AN98: 2.92 | AO98: 2.92 | AP98: 2.92 | AQ98: 2.92 | AR98: 2.92
B99: 94 | E99: 感染性廃棄物 | F99: 廃プラスチック | G99: 54 | H99: 10 | I99: 1 | AD99: 2.55 | AE99: 2.55 | AF99: 2.55 | AG99: 2.55 | AH99: 2.55 | AI99: 2.55 | AL99: 2.55 | AM99: 2.55 | AN99: 2.55 | AO99: 2.55 | AP99: 2.55 | AQ99: 2.55 | AR99: 2.55
B100: 95 | E100: その他 | F100: 廃プラスチック | G100: 56 | H100: 10 | I100: 1 | AD100: 2.55 | AE100: 2.55 | AF100: 2.55 | AG100: 2.55 | AH100: 2.55 | AI100: 2.55 | AL100: 2.55 | AM100: 2.55 | AN100: 2.55 | AO100: 2.55 | AP100: 2.55 | AQ100: 2.55 | AR100: 2.55
B101: 96 | D101: CH4排出係数 | E101: 下水汚泥 | F101: 炉No1 | G101: 38 | H101: 11 | I101: 1 | AD101: 9.7e-06 | AE101: 9.7e-06 | AF101: 9.7e-06 | AG101: 9.7e-06 | AH101: 9.7e-06 | AI101: 9.7e-06 | AL101: 9.7e-06 | AM101: 9.7e-06 | AN101: 9.7e-06 | AO101: 9.7e-06 | AP101: 9.7e-06 | AQ101: 9.7e-06 | AR101: 9.7e-06
B102: 97 | F102: 炉No2 | G102: 39 | H102: 11 | I102: 1 | AD102: 9.7e-06 | AE102: 9.7e-06 | AF102: 9.7e-06 | AG102: 9.7e-06 | AH102: 9.7e-06 | AI102: 9.7e-06 | AL102: 9.7e-06 | AM102: 9.7e-06 | AN102: 9.7e-06 | AO102: 9.7e-06 | AP102: 9.7e-06 | AQ102: 9.7e-06 | AR102: 9.7e-06
B103: 98 | F103: 炉No3 | G103: 40 | H103: 11 | I103: 1 | AD103: 9.7e-06 | AE103: 9.7e-06 | AF103: 9.7e-06 | AG103: 9.7e-06 | AH103: 9.7e-06 | AI103: 9.7e-06 | AL103: 9.7e-06 | AM103: 9.7e-06 | AN103: 9.7e-06 | AO103: 9.7e-06 | AP103: 9.7e-06 | AQ103: 9.7e-06 | AR103: 9.7e-06
B104: 99 | F104: 下水汚泥以外 | G104: 41 | H104: 11 | I104: 1 | AD104: 9.7e-06 | AE104: 9.7e-06 | AF104: 9.7e-06 | AG104: 9.7e-06 | AH104: 9.7e-06 | AI104: 9.7e-06 | AL104: 9.7e-06 | AM104: 9.7e-06 | AN104: 9.7e-06 | AO104: 9.7e-06 | AP104: 9.7e-06 | AQ104: 9.7e-06 | AR104: 9.7e-06
B105: 100 | F105: 燃料系廃油 | G105: 42 | H105: 11 | I105: 1 | AD105: 5.6e-07 | AE105: 5.6e-07 | AF105: 5.6e-07 | AG105: 5.6e-07 | AH105: 5.6e-07 | AI105: 5.6e-07 | AL105: 5.6e-07 | AM105: 5.6e-07 | AN105: 5.6e-07 | AO105: 5.6e-07 | AP105: 5.6e-07 | AQ105: 5.6e-07 | AR105: 5.6e-07
B106: 101 | F106: 動植物性廃油 | G106: 43 | H106: 11 | I106: 1 | AD106: 5.6e-07 | AE106: 5.6e-07 | AF106: 5.6e-07 | AG106: 5.6e-07 | AH106: 5.6e-07 | AI106: 5.6e-07 | AL106: 5.6e-07 | AM106: 5.6e-07 | AN106: 5.6e-07 | AO106: 5.6e-07 | AP106: 5.6e-07 | AQ106: 5.6e-07 | AR106: 5.6e-07
B107: 102 | F107: 廃プラスチック類 | G107: 44 | H107: 11 | I107: 1 | AD107: 0.00036 | AE107: 0.00036 | AF107: 0.00036 | AG107: 0.00036 | AH107: 0.00036 | AI107: 0.00036 | AL107: 0.00036 | AM107: 0.00036 | AN107: 0.00036 | AO107: 0.00036 | AP107: 0.00036 | AQ107: 0.00036 | AR107: 0.00036
B108: 103 | F108: 廃タイヤ | G108: 45 | H108: 11 | I108: 1 | AD108: 0.00025 | AE108: 0.00025 | AF108: 0.00025 | AG108: 0.00025 | AH108: 0.00025 | AI108: 0.00025 | AL108: 0.00025 | AM108: 0.00025 | AN108: 0.00025 | AO108: 0.00025 | AP108: 0.00025 | AQ108: 0.00025 | AR108: 0.00025
B109: 104 | F109: 紙くず | G109: 46 | H109: 11 | I109: 1
B110: 105 | F110: 木くず | G110: 47 | H110: 11 | I110: 1
B111: 106 | F111: 繊維くず | G111: 48 | H111: 11 | I111: 1
B112: 107 | F112: 動植物性残渣 | G112: 49 | H112: 11 | I112: 1
B113: 108 | F113: 動物系固形不要物 | G113: 50 | H113: 11 | I113: 1
B114: 109 | F114: 動物のふん尿 | G114: 51 | H114: 11 | I114: 1
B115: 110 | F115: 動物の死体 | G115: 52 | H115: 11 | I115: 1
B116: 111 | F116: 特別管理産業廃棄物の廃油 | G116: 53 | H116: 11 | I116: 1 | AD116: 5.6e-07 | AE116: 5.6e-07 | AF116: 5.6e-07 | AG116: 5.6e-07 | AH116: 5.6e-07 | AI116: 5.6e-07 | AL116: 5.6e-07 | AM116: 5.6e-07 | AN116: 5.6e-07 | AO116: 5.6e-07 | AP116: 5.6e-07 | AQ116: 5.6e-07 | AR116: 5.6e-07
B117: 112 | E117: 感染性廃棄物 | F117: 廃プラスチック | G117: 54 | H117: 11 | I117: 1 | AD117: 0.00036 | AE117: 0.00036 | AF117: 0.00036 | AG117: 0.00036 | AH117: 0.00036 | AI117: 0.00036 | AL117: 0.00036 | AM117: 0.00036 | AN117: 0.00036 | AO117: 0.00036 | AP117: 0.00036 | AQ117: 0.00036 | AR117: 0.00036
B118: 113 | F118: それ以外 | G118: 55 | H118: 11 | I118: 1
B119: 114 | E119: その他 | F119: 廃プラスチック | G119: 56 | H119: 11 | I119: 1 | AD119: 0.00036 | AE119: 0.00036 | AF119: 0.00036 | AG119: 0.00036 | AH119: 0.00036 | AI119: 0.00036 | AL119: 0.00036 | AM119: 0.00036 | AN119: 0.00036 | AO119: 0.00036 | AP119: 0.00036 | AQ119: 0.00036 | AR119: 0.00036
B120: 115 | F120: それ以外 | G120: 57 | H120: 11 | I120: 1
B121: 116 | D121: N2O排出係数 | E121: 下水汚泥 | F121: 炉No1 | G121: 38 | H121: 13 | I121: 1 | AD121: 0.000882 | AE121: 0.000882 | AF121: 0.000882 | AG121: 0.000882 | AH121: 0.000882 | AI121: 0.000882 | AL121: 0.000882 | AM121: 0.000882 | AN121: 0.000882 | AO121: 0.000882 | AP121: 0.000882 | AQ121: 0.000882 | AR121: 0.000882
B122: 117 | F122: 炉No2 | G122: 39 | H122: 13 | I122: 1 | AD122: 0.000882 | AE122: 0.000882 | AF122: 0.000882 | AG122: 0.000882 | AH122: 0.000882 | AI122: 0.000882 | AL122: 0.000882 | AM122: 0.000882 | AN122: 0.000882 | AO122: 0.000882 | AP122: 0.000882 | AQ122: 0.000882 | AR122: 0.000882
B123: 118 | F123: 炉No3 | G123: 40 | H123: 13 | I123: 1 | AD123: 0.000882 | AE123: 0.000882 | AF123: 0.000882 | AG123: 0.000882 | AH123: 0.000882 | AI123: 0.000882 | AL123: 0.000882 | AM123: 0.000882 | AN123: 0.000882 | AO123: 0.000882 | AP123: 0.000882 | AQ123: 0.000882 | AR123: 0.000882
B124: 119 | F124: 下水汚泥以外 | G124: 41 | H124: 13 | I124: 1 | AD124: 0.00045 | AE124: 0.00045 | AF124: 0.00045 | AG124: 0.00045 | AH124: 0.00045 | AI124: 0.00045 | AL124: 0.00045 | AM124: 0.00045 | AN124: 0.00045 | AO124: 0.00045 | AP124: 0.00045 | AQ124: 0.00045 | AR124: 0.00045
B125: 120 | F125: 燃料系廃油 | G125: 42 | H125: 13 | I125: 1 | AD125: 9.8e-06 | AE125: 9.8e-06 | AF125: 9.8e-06 | AG125: 9.8e-06 | AH125: 9.8e-06 | AI125: 9.8e-06 | AL125: 9.8e-06 | AM125: 9.8e-06 | AN125: 9.8e-06 | AO125: 9.8e-06 | AP125: 9.8e-06 | AQ125: 9.8e-06 | AR125: 9.8e-06
B126: 121 | F126: 動植物性廃油 | G126: 43 | H126: 13 | I126: 1 | AD126: 9.8e-06 | AE126: 9.8e-06 | AF126: 9.8e-06 | AG126: 9.8e-06 | AH126: 9.8e-06 | AI126: 9.8e-06 | AL126: 9.8e-06 | AM126: 9.8e-06 | AN126: 9.8e-06 | AO126: 9.8e-06 | AP126: 9.8e-06 | AQ126: 9.8e-06 | AR126: 9.8e-06
B127: 122 | F127: 廃プラスチック類 | G127: 44 | H127: 13 | I127: 1 | AD127: 0.00017 | AE127: 0.00017 | AF127: 0.00017 | AG127: 0.00017 | AH127: 0.00017 | AI127: 0.00017 | AL127: 0.00017 | AM127: 0.00017 | AN127: 0.00017 | AO127: 0.00017 | AP127: 0.00017 | AQ127: 0.00017 | AR127: 0.00017
B128: 123 | F128: 廃タイヤ | G128: 45 | H128: 13 | I128: 1 | AD128: 0.00017 | AE128: 0.00017 | AF128: 0.00017 | AG128: 0.00017 | AH128: 0.00017 | AI128: 0.00017 | AL128: 0.00017 | AM128: 0.00017 | AN128: 0.00017 | AO128: 0.00017 | AP128: 0.00017 | AQ128: 0.00017 | AR128: 0.00017
B129: 124 | F129: 紙くず | G129: 46 | H129: 13 | I129: 1 | AD129: 1e-05 | AE129: 1e-05 | AF129: 1e-05 | AG129: 1e-05 | AH129: 1e-05 | AI129: 1e-05 | AL129: 1e-05 | AM129: 1e-05 | AN129: 1e-05 | AO129: 1e-05 | AP129: 1e-05 | AQ129: 1e-05 | AR129: 1e-05
B130: 125 | F130: 木くず | G130: 47 | H130: 13 | I130: 1 | AD130: 1e-05 | AE130: 1e-05 | AF130: 1e-05 | AG130: 1e-05 | AH130: 1e-05 | AI130: 1e-05 | AL130: 1e-05 | AM130: 1e-05 | AN130: 1e-05 | AO130: 1e-05 | AP130: 1e-05 | AQ130: 1e-05 | AR130: 1e-05
B131: 126 | F131: 繊維くず | G131: 48 | H131: 13 | I131: 1 | AD131: 1e-05 | AE131: 1e-05 | AF131: 1e-05 | AG131: 1e-05 | AH131: 1e-05 | AI131: 1e-05 | AL131: 1e-05 | AM131: 1e-05 | AN131: 1e-05 | AO131: 1e-05 | AP131: 1e-05 | AQ131: 1e-05 | AR131: 1e-05
B132: 127 | F132: 動植物性残渣 | G132: 49 | H132: 13 | I132: 1 | AD132: 1e-05 | AE132: 1e-05 | AF132: 1e-05 | AG132: 1e-05 | AH132: 1e-05 | AI132: 1e-05 | AL132: 1e-05 | AM132: 1e-05 | AN132: 1e-05 | AO132: 1e-05 | AP132: 1e-05 | AQ132: 1e-05 | AR132: 1e-05
B133: 128 | F133: 動物系固形不要物 | G133: 50 | H133: 13 | I133: 1 | AD133: 1e-05 | AE133: 1e-05 | AF133: 1e-05 | AG133: 1e-05 | AH133: 1e-05 | AI133: 1e-05 | AL133: 1e-05 | AM133: 1e-05 | AN133: 1e-05 | AO133: 1e-05 | AP133: 1e-05 | AQ133: 1e-05 | AR133: 1e-05
B134: 129 | F134: 動物のふん尿 | G134: 51 | H134: 13 | I134: 1 | AD134: 1e-05 | AE134: 1e-05 | AF134: 1e-05 | AG134: 1e-05 | AH134: 1e-05 | AI134: 1e-05 | AL134: 1e-05 | AM134: 1e-05 | AN134: 1e-05 | AO134: 1e-05 | AP134: 1e-05 | AQ134: 1e-05 | AR134: 1e-05
B135: 130 | F135: 動物の死体 | G135: 52 | H135: 13 | I135: 1 | AD135: 1e-05 | AE135: 1e-05 | AF135: 1e-05 | AG135: 1e-05 | AH135: 1e-05 | AI135: 1e-05 | AL135: 1e-05 | AM135: 1e-05 | AN135: 1e-05 | AO135: 1e-05 | AP135: 1e-05 | AQ135: 1e-05 | AR135: 1e-05
B136: 131 | F136: 特別管理産業廃棄物の廃油 | G136: 53 | H136: 13 | I136: 1 | AD136: 9.8e-06 | AE136: 9.8e-06 | AF136: 9.8e-06 | AG136: 9.8e-06 | AH136: 9.8e-06 | AI136: 9.8e-06 | AL136: 9.8e-06 | AM136: 9.8e-06 | AN136: 9.8e-06 | AO136: 9.8e-06 | AP136: 9.8e-06 | AQ136: 9.8e-06 | AR136: 9.8e-06
B137: 132 | E137: 感染性廃棄物 | F137: 廃プラスチック | G137: 54 | H137: 13 | I137: 1 | AD137: 0.00017 | AE137: 0.00017 | AF137: 0.00017 | AG137: 0.00017 | AH137: 0.00017 | AI137: 0.00017 | AL137: 0.00017 | AM137: 0.00017 | AN137: 0.00017 | AO137: 0.00017 | AP137: 0.00017 | AQ137: 0.00017 | AR137: 0.00017
B138: 133 | F138: それ以外 | G138: 55 | H138: 13 | I138: 1 | AD138: 1e-05 | AE138: 1e-05 | AF138: 1e-05 | AG138: 1e-05 | AH138: 1e-05 | AI138: 1e-05 | AL138: 1e-05 | AM138: 1e-05 | AN138: 1e-05 | AO138: 1e-05 | AP138: 1e-05 | AQ138: 1e-05 | AR138: 1e-05
B139: 134 | E139: その他 | F139: 廃プラスチック | G139: 56 | H139: 13 | I139: 1 | AD139: 0.00017 | AE139: 0.00017 | AF139: 0.00017 | AG139: 0.00017 | AH139: 0.00017 | AI139: 0.00017 | AL139: 0.00017 | AM139: 0.00017 | AN139: 0.00017 | AO139: 0.00017 | AP139: 0.00017 | AQ139: 0.00017 | AR139: 0.00017
B140: 135 | F140: それ以外 | G140: 57 | H140: 13 | I140: 1 | AD140: 1e-05 | AE140: 1e-05 | AF140: 1e-05 | AG140: 1e-05 | AH140: 1e-05 | AI140: 1e-05 | AL140: 1e-05 | AM140: 1e-05 | AN140: 1e-05 | AO140: 1e-05 | AP140: 1e-05 | AQ140: 1e-05 | AR140: 1e-05
B141: 136 | D141: 発電・熱利用量 | F141: 廃棄物発電 | G141: 63 | H141: 7 | I141: 1
B142: 137 | F142: 廃棄物熱利用 | G142: 64 | H142: 7 | I142: 1
B143: 138 | D143: 単位 | F143: 廃棄物発電 | G143: 63 | H143: 8 | I143: 0
B144: 139 | F144: 廃棄物熱利用 | G144: 64 | H144: 8 | I144: 0
B145: 140 | D145: CO2 排出係数 | F145: 廃棄物発電 | G145: 63 | H145: 10 | I145: 1
B146: 141 | F146: 廃棄物熱利用 | G146: 64 | H146: 10 | I146: 1
A147: 最終処分 | B147: 142 | C147: 最終処分業 | D147: 最終処分量 | F147: 有機性の下水汚泥 | G147: 73 | H147: 7 | I147: 1
B148: 143 | F148: 製造業有機性汚泥 | G148: 74 | H148: 7 | I148: 1
B149: 144 | F149: 浄水施設に係る汚泥 | G149: 75 | H149: 7 | I149: 1
B150: 145 | F150: し尿処理施設に係る汚泥 | G150: 76 | H150: 7 | I150: 1
B151: 146 | F151: その他（有機無機混合汚泥） | G151: 77 | H151: 7 | I151: 1
B152: 147 | F152: 紙くず | G152: 78 | H152: 7 | I152: 1
B153: 148 | F153: 木くず | G153: 79 | H153: 7 | I153: 1
B154: 149 | F154: 繊維くず | G154: 80 | H154: 7 | I154: 1
B155: 150 | F155: 動植物性残渣 | G155: 81 | H155: 7 | I155: 1
B156: 151 | F156: 動物系固形不要物 | G156: 82 | H156: 7 | I156: 1
B157: 152 | F157: 動物のふん尿 | G157: 83 | H157: 7 | I157: 1
B158: 153 | F158: 動物の死体 | G158: 84 | H158: 7 | I158: 1
B159: 154 | F159: その他（混合廃棄物） | G159: 85 | H159: 7 | I159: 1
B160: 155 | D160: 単位 | F160: 有機性の下水汚泥 | G160: 73 | H160: 8 | I160: 0
B161: 156 | F161: 製造業有機性汚泥 | G161: 74 | H161: 8 | I161: 0
B162: 157 | F162: 浄水施設に係る汚泥 | G162: 75 | H162: 8 | I162: 0
B163: 158 | F163: し尿処理施設に係る汚泥 | G163: 76 | H163: 8 | I163: 0
B164: 159 | F164: その他（有機無機混合汚泥） | G164: 77 | H164: 8 | I164: 0
B165: 160 | F165: 紙くず | G165: 78 | H165: 8 | I165: 0
B166: 161 | F166: 木くず | G166: 79 | H166: 8 | I166: 0
B167: 162 | F167: 繊維くず | G167: 80 | H167: 8 | I167: 0
B168: 163 | F168: 動植物性残渣 | G168: 81 | H168: 8 | I168: 0
B169: 164 | F169: 動物系固形不要物 | G169: 82 | H169: 8 | I169: 0
B170: 165 | F170: 動物のふん尿 | G170: 83 | H170: 8 | I170: 0
B171: 166 | F171: 動物の死体 | G171: 84 | H171: 8 | I171: 0
B172: 167 | F172: その他（混合廃棄物） | G172: 85 | H172: 8 | I172: 0
B173: 168 | D173: CH4排出係数 | F173: 有機性の下水汚泥 | G173: 73 | H173: 11 | I173: 1 | AD173: 0.133 | AE173: 0.133 | AF173: 0.133 | AG173: 0.133 | AH173: 0.133 | AI173: 0.133 | AL173: 0.133 | AM173: 0.133 | AN173: 0.133 | AO173: 0.133 | AP173: 0.133 | AQ173: 0.133 | AR173: 0.133
B174: 169 | F174: 製造業有機性汚泥 | G174: 74 | H174: 11 | I174: 1 | AD174: 0.15 | AE174: 0.15 | AF174: 0.15 | AG174: 0.15 | AH174: 0.15 | AI174: 0.15 | AL174: 0.15 | AM174: 0.15 | AN174: 0.15 | AO174: 0.15 | AP174: 0.15 | AQ174: 0.15 | AR174: 0.15
B175: 170 | F175: 浄水施設に係る汚泥 | G175: 75 | H175: 11 | I175: 1 | AD175: 0.025 | AE175: 0.025 | AF175: 0.025 | AG175: 0.025 | AH175: 0.025 | AI175: 0.025 | AL175: 0.025 | AM175: 0.025 | AN175: 0.025 | AO175: 0.025 | AP175: 0.025 | AQ175: 0.025 | AR175: 0.025
B176: 171 | F176: し尿処理施設に係る汚泥 | G176: 76 | H176: 11 | I176: 1 | AD176: 0.133 | AE176: 0.133 | AF176: 0.133 | AG176: 0.133 | AH176: 0.133 | AI176: 0.133 | AL176: 0.133 | AM176: 0.133 | AN176: 0.133 | AO176: 0.133 | AP176: 0.133 | AQ176: 0.133 | AR176: 0.133
B177: 172 | F177: その他（有機無機混合汚泥） | G177: 77 | H177: 11 | I177: 1 | AD177: 0.15 | AE177: 0.15 | AF177: 0.15 | AG177: 0.15 | AH177: 0.15 | AI177: 0.15 | AL177: 0.15 | AM177: 0.15 | AN177: 0.15 | AO177: 0.15 | AP177: 0.15 | AQ177: 0.15 | AR177: 0.15
B178: 173 | F178: 紙くず | G178: 78 | H178: 11 | I178: 1 | AD178: 0.136 | AE178: 0.136 | AF178: 0.136 | AG178: 0.136 | AH178: 0.136 | AI178: 0.136 | AL178: 0.136 | AM178: 0.136 | AN178: 0.136 | AO178: 0.136 | AP178: 0.136 | AQ178: 0.136 | AR178: 0.136
B179: 174 | F179: 木くず | G179: 79 | H179: 11 | I179: 1 | AD179: 0.151 | AE179: 0.151 | AF179: 0.151 | AG179: 0.151 | AH179: 0.151 | AI179: 0.151 | AL179: 0.151 | AM179: 0.151 | AN179: 0.151 | AO179: 0.151 | AP179: 0.151 | AQ179: 0.151 | AR179: 0.151
B180: 175 | F180: 繊維くず | G180: 80 | H180: 11 | I180: 1 | AD180: 0.15 | AE180: 0.15 | AF180: 0.15 | AG180: 0.15 | AH180: 0.15 | AI180: 0.15 | AL180: 0.15 | AM180: 0.15 | AN180: 0.15 | AO180: 0.15 | AP180: 0.15 | AQ180: 0.15 | AR180: 0.15
B181: 176 | F181: 動植物性残渣 | G181: 81 | H181: 11 | I181: 1 | AD181: 0.145 | AE181: 0.145 | AF181: 0.145 | AG181: 0.145 | AH181: 0.145 | AI181: 0.145 | AL181: 0.145 | AM181: 0.145 | AN181: 0.145 | AO181: 0.145 | AP181: 0.145 | AQ181: 0.145 | AR181: 0.145
B182: 177 | F182: 動物系固形不要物 | G182: 82 | H182: 11 | I182: 1 | AD182: 0.145 | AE182: 0.145 | AF182: 0.145 | AG182: 0.145 | AH182: 0.145 | AI182: 0.145 | AL182: 0.145 | AM182: 0.145 | AN182: 0.145 | AO182: 0.145 | AP182: 0.145 | AQ182: 0.145 | AR182: 0.145
B183: 178 | F183: 動物のふん尿 | G183: 83 | H183: 11 | I183: 1 | AD183: 0.145 | AE183: 0.145 | AF183: 0.145 | AG183: 0.145 | AH183: 0.145 | AI183: 0.145 | AL183: 0.145 | AM183: 0.145 | AN183: 0.145 | AO183: 0.145 | AP183: 0.145 | AQ183: 0.145 | AR183: 0.145
B184: 179 | F184: 動物の死体 | G184: 84 | H184: 11 | I184: 1 | AD184: 0.145 | AE184: 0.145 | AF184: 0.145 | AG184: 0.145 | AH184: 0.145 | AI184: 0.145 | AL184: 0.145 | AM184: 0.145 | AN184: 0.145 | AO184: 0.145 | AP184: 0.145 | AQ184: 0.145 | AR184: 0.145
B185: 180 | F185: その他（混合廃棄物） | G185: 85 | H185: 11 | I185: 1 | AD185: 0.138 | AE185: 0.138 | AF185: 0.138 | AG185: 0.138 | AH185: 0.138 | AI185: 0.138 | AL185: 0.138 | AM185: 0.138 | AN185: 0.138 | AO185: 0.138 | AP185: 0.138 | AQ185: 0.138 | AR185: 0.138
B186: 181 | D186: 発生ガス中の焼却量 | F186: 発生ガスの回収・焼却 | G186: 91 | H186: 7 | I186: 1
B187: 182 | D187: 単位 | F187: 発生ガスの回収・焼却 | G187: 91 | H187: 8 | I187: 0
B188: 183 | D188: 発生ガス中のメタン濃度 | F188: 発生ガスの回収・焼却 | G188: 91 | H188: 9 | I188: 2
B189: 184 | D189: 重量換算 | F189: 発生ガスの回収・焼却 | G189: 91 | H189: 11 | I189: 1
A190: 関連施設 | B190: 185 | C190: 関連施設及び構内車両 | D190: エネルギー消費量 | F190: 電気 | G190: 100 | H190: 7 | I190: 1
B191: 186 | F191: 都市ガス1 | G191: 101 | H191: 7 | I191: 1
B192: 187 | F192: 都市ガス2 | G192: 102 | H192: 7 | I192: 1
B193: 188 | F193: 都市ガス3 | G193: 103 | H193: 7 | I193: 1
B194: 189 | F194: 天然ガス1 | G194: 104 | H194: 7 | I194: 1
B195: 190 | F195: 天然ガス2 | G195: 105 | H195: 7 | I195: 1
B196: 191 | F196: 天然ガス3 | G196: 106 | H196: 7 | I196: 1
B197: 192 | F197: 軽油1 | G197: 107 | H197: 7 | I197: 1
B198: 193 | F198: 軽油2 | G198: 108 | H198: 7 | I198: 1
B199: 194 | F199: 軽油3 | G199: 109 | H199: 7 | I199: 1
B200: 195 | F200: 灯油1 | G200: 110 | H200: 7 | I200: 1
B201: 196 | F201: 灯油2 | G201: 111 | H201: 7 | I201: 1
... 210 more rows

Sheet DATA排出係数 (hidden)
A2: データ格納シート | M2: 適用した発熱量 | W2: ←1999年度以前→ | X2: ←2000年度改訂→ | AC2: ←2005年度改訂→
B3: DATA4：排出係数 | I3: 算定表 | K3: 報告制度 | M3: 報告対象（対象外：0,対象：1） | Z3: →2002年度以降一部排出係数更新 | AE3: ←以降は、2006年度のスライド→
I4: 座標 | K4: 座標 | M4: FLG | N4: 1 | O4: 2 | P4: 3 | Q4: 4 | R4: 5 | S4: 6 | T4: 7 | U4: 8 | V4: 9 | W4: 10 | X4: 11 | Y4: 12 | Z4: 13 | AA4: 14 | AB4: 15 | AC4: 16 | AD4: 17 | AE4: 18 | AF4: 19 | AG4: 20 | AH4: 21 | AI4: 22 | AJ4: 23 | AK4: 24 | AL4: 25 | AM4: 26 | AN4: 27 | AO4: 28 | AP4: 29 | AQ4: 30 | AR4: 31 | AS4: 32 | AT4: 33 | AU4: 34 | AV4: 35 | AW4: 36 | AX4: 37 | AY4: 38 | AZ4: 39 | BA4: 40 | BB4: 41 | BC4: 42 | BD4: 43 | BE4: 44 | BF4: 45 | BG4: 46 | BH4: 47 | BI4: 48 | BJ4: 49 | BK4: 50 | BL4: 51 | BM4: 52 | BN4: 53 | BO4: 54 | BP4: 55 | BQ4: 56 | BR4: 57 | BS4: 58 | BT4: 59 | BU4: 60 | BV4: 61 | BW4: 62 | BY4: 備考
B5: No | C5: 業種 | D5: ガス | E5: 項目1 | F5: 項目2 | G5: 項目3 | H5: 項目4 | I5: x | J5: y | K5: x | L5: y | N5: 1990 | O5: 1991 | P5: 1992 | Q5: 1993 | R5: 1994 | S5: 1995 | T5: 1996 | U5: 1997 | V5: 1998 | W5: 1999 | X5: 2000 | Y5: 2001 | Z5: 2002 | AA5: 2003 | AB5: 2004 | AC5: 2005 | AD5: 2006 | AE5: 2007 | AF5: 2008 | AG5: 2009 | AH5: 2010 | AI5: 2011 | AJ5: 2012 | AK5: 2013 | AL5: 2014 | AM5: 2015 | AN5: 2016 | AO5: 2017 | AP5: 2018 | AQ5: 2019 | AR5: 2020 | AS5: 2021 | AT5: 2022 | AU5: 2023 | AV5: 2024 | AW5: 2025 | AX5: 2026 | AY5: 2027 | AZ5: 2028 | BA5: 2029 | BB5: 2030 | BC5: 2031 | BD5: 2032 | BE5: 2033 | BF5: 2034 | BG5: 2035 | BH5: 2036 | BI5: 2037 | BJ5: 2038 | BK5: 2039 | BL5: 2040 | BM5: 2041 | BN5: 2042 | BO5: 2043 | BP5: 2044 | BQ5: 2045 | BR5: 2046 | BS5: 2047 | BT5: 2048 | BU5: 2049 | BV5: 2050 | BW5: 算定 | BX5: インベントリの出典 | BY5: 算定制度の出典 | BZ5: 算定式
A6: 収集運搬 | B6: 1 | C6: 収集運搬 | D6: CO2 | E6: ガソリン | I6: 12 | J6: 10 | K6: 19 | L6: 10 | M6: 1 | N6: 0.0671 | O6: 0.0671 | P6: 0.0671 | Q6: 0.0671 | R6: 0.0671 | S6: 0.0671 | T6: 0.0671 | U6: 0.0671 | V6: 0.0671 | W6: 0.0671 | X6: 0.0671 | Y6: 0.0671 | Z6: 0.0671 | AA6: 0.0671 | AB6: 0.0671 | AC6: 0.0671 | AD6: 0.0671 | AE6: 0.0671 | AF6: 0.0671 | AG6: 0.0671 | AH6: 0.0671 | AI6: 0.0671 | AJ6: 0.0671 | AK6: 0.0671 | AL6: 0.0671 | AM6: 0.0671 | AN6: 0.0671 | AO6: 0.0671 | AP6: 0.0671 | AQ6: 0.0671 | AR6: 0.0671 | AS6: 0.0671 | AT6: 0.0671 | AU6: 0.0671 | AV6: 0.0671 | AW6: 0.0671 | AX6: 0.0671 | AY6: 0.0671 | AZ6: 0.0671 | BA6: 0.0671 | BB6: 0.0671 | BC6: 0.0671 | BD6: 0.0671 | BE6: 0.0671 | BF6: 0.0671 | BG6: 0.0671 | BH6: 0.0671 | BI6: 0.0671 | BJ6: 0.0671 | BK6: 0.0671 | BL6: 0.0671 | BM6: 0.0671 | BN6: 0.0671 | BO6: 0.0671 | BP6: 0.0671 | BQ6: 0.0671 | BR6: 0.0671 | BS6: 0.0671 | BT6: 0.0671 | BU6: 0.0671 | BV6: 0.0671 | BW6: 0.0671 | BX6: 算定報告公表制度に同じ | BY6: 算定報告公表制度別表1：ガソリン | BZ6: 活動量×発熱量×排出係数
B7: 2 | C7: 収集運搬 | D7: CO2 | E7: 軽油 | I7: 13 | J7: 10 | K7: 20 | L7: 10 | M7: 1 | N7: 0.0686 | O7: 0.0686 | P7: 0.0686 | Q7: 0.0686 | R7: 0.0686 | S7: 0.0686 | T7: 0.0686 | U7: 0.0686 | V7: 0.0686 | W7: 0.0686 | X7: 0.0686 | Y7: 0.0686 | Z7: 0.0686 | AA7: 0.0686 | AB7: 0.0686 | AC7: 0.0686 | AD7: 0.0686 | AE7: 0.0686 | AF7: 0.0686 | AG7: 0.0686 | AH7: 0.0686 | AI7: 0.0686 | AJ7: 0.0686 | AK7: 0.0686 | AL7: 0.0686 | AM7: 0.0686 | AN7: 0.0686 | AO7: 0.0686 | AP7: 0.0686 | AQ7: 0.0686 | AR7: 0.0686 | AS7: 0.0686 | AT7: 0.0686 | AU7: 0.0686 | AV7: 0.0686 | AW7: 0.0686 | AX7: 0.0686 | AY7: 0.0686 | AZ7: 0.0686 | BA7: 0.0686 | BB7: 0.0686 | BC7: 0.0686 | BD7: 0.0686 | BE7: 0.0686 | BF7: 0.0686 | BG7: 0.0686 | BH7: 0.0686 | BI7: 0.0686 | BJ7: 0.0686 | BK7: 0.0686 | BL7: 0.0686 | BM7: 0.0686 | BN7: 0.0686 | BO7: 0.0686 | BP7: 0.0686 | BQ7: 0.0686 | BR7: 0.0686 | BS7: 0.0686 | BT7: 0.0686 | BU7: 0.0686 | BV7: 0.0686 | BW7: 0.0686 | BX7: 算定報告公表制度に同じ | BY7: 算定報告公表制度別表1：軽油 | BZ7: 活動量×発熱量×排出係数
B8: 3 | C8: 収集運搬 | D8: CO2 | E8: LPG | I8: 14 | J8: 10 | K8: 21 | L8: 10 | M8: 1 | N8: 0.0598 | O8: 0.0598 | P8: 0.0598 | Q8: 0.0598 | R8: 0.0598 | S8: 0.0598 | T8: 0.0598 | U8: 0.0598 | V8: 0.0598 | W8: 0.0598 | X8: 0.0598 | Y8: 0.0598 | Z8: 0.0598 | AA8: 0.0598 | AB8: 0.0598 | AC8: 0.0598 | AD8: 0.0598 | AE8: 0.0598 | AF8: 0.0598 | AG8: 0.0598 | AH8: 0.0598 | AI8: 0.0598 | AJ8: 0.0598 | AK8: 0.0598 | AL8: 0.0598 | AM8: 0.0598 | AN8: 0.0598 | AO8: 0.0598 | AP8: 0.0598 | AQ8: 0.0598 | AR8: 0.0598 | AS8: 0.0598 | AT8: 0.0598 | AU8: 0.0598 | AV8: 0.0598 | AW8: 0.0598 | AX8: 0.0598 | AY8: 0.0598 | AZ8: 0.0598 | BA8: 0.0598 | BB8: 0.0598 | BC8: 0.0598 | BD8: 0.0598 | BE8: 0.0598 | BF8: 0.0598 | BG8: 0.0598 | BH8: 0.0598 | BI8: 0.0598 | BJ8: 0.0598 | BK8: 0.0598 | BL8: 0.0598 | BM8: 0.0598 | BN8: 0.0598 | BO8: 0.0598 | BP8: 0.0598 | BQ8: 0.0598 | BR8: 0.0598 | BS8: 0.0598 | BT8: 0.0598 | BU8: 0.0598 | BV8: 0.0598 | BW8: 0.059 | BX8: 算定報告公表制度に同じ | BY8: 算定報告公表制度別表1：LPG（H22改訂） | BZ8: 活動量×発熱量×排出係数
B9: 4 | C9: 収集運搬 | D9: CO2 | E9: 天然ガス | I9: 15 | J9: 10 | K9: 22 | L9: 10 | M9: 1 | N9: 0.0506 | O9: 0.0506 | P9: 0.0506 | Q9: 0.0506 | R9: 0.0506 | S9: 0.0506 | T9: 0.0506 | U9: 0.0506 | V9: 0.0506 | W9: 0.0506 | X9: 0.0506 | Y9: 0.0506 | Z9: 0.0506 | AA9: 0.0506 | AB9: 0.0506 | AC9: 0.0506 | AD9: 0.0506 | AE9: 0.0506 | AF9: 0.0506 | AG9: 0.0506 | AH9: 0.0506 | AI9: 0.0506 | AJ9: 0.0506 | AK9: 0.0506 | AL9: 0.0506 | AM9: 0.0506 | AN9: 0.0506 | AO9: 0.0506 | AP9: 0.0506 | AQ9: 0.0506 | AR9: 0.0506 | AS9: 0.0506 | AT9: 0.0506 | AU9: 0.0506 | AV9: 0.0506 | AW9: 0.0506 | AX9: 0.0506 | AY9: 0.0506 | AZ9: 0.0506 | BA9: 0.0506 | BB9: 0.0506 | BC9: 0.0506 | BD9: 0.0506 | BE9: 0.0506 | BF9: 0.0506 | BG9: 0.0506 | BH9: 0.0506 | BI9: 0.0506 | BJ9: 0.0506 | BK9: 0.0506 | BL9: 0.0506 | BM9: 0.0506 | BN9: 0.0506 | BO9: 0.0506 | BP9: 0.0506 | BQ9: 0.0506 | BR9: 0.0506 | BS9: 0.0506 | BT9: 0.0506 | BU9: 0.0506 | BV9: 0.0506 | BW9: 0.0499 | BX9: 算定報告公表制度に同じ | BY9: 算定報告公表制度別表1：都市ガス（H22改訂） | BZ9: 活動量×発熱量×排出係数 | CA9: 算定報告公表制度では、CNG車は都市ガス参照とあり
B10: 5 | C10: 収集運搬 | D10: CO2 | E10: バイオエタノール | I10: 16 | J10: 10 | K10: 23 | L10: 10 | M10: 1 | N10: 0.0671 | O10: 0.0671 | P10: 0.0671 | Q10: 0.0671 | R10: 0.0671 | S10: 0.0671 | T10: 0.0671 | U10: 0.0671 | V10: 0.0671 | W10: 0.0671 | X10: 0.0671 | Y10: 0.0671 | Z10: 0.0671 | AA10: 0.0671 | AB10: 0.0671 | AC10: 0.0671 | AD10: 0.0671 | AE10: 0.0671 | AF10: 0.0671 | AG10: 0.0671 | AH10: 0.0671 | AI10: 0.0671 | AJ10: 0.0671 | AK10: 0.0671 | AL10: 0.0671 | AM10: 0.0671 | AN10: 0.0671 | AO10: 0.0671 | AP10: 0.0671 | AQ10: 0.0671 | AR10: 0.0671 | AS10: 0.0671 | AT10: 0.0671 | AU10: 0.0671 | AV10: 0.0671 | AW10: 0.0671 | AX10: 0.0671 | AY10: 0.0671 | AZ10: 0.0671 | BA10: 0.0671 | BB10: 0.0671 | BC10: 0.0671 | BD10: 0.0671 | BE10: 0.0671 | BF10: 0.0671 | BG10: 0.0671 | BH10: 0.0671 | BI10: 0.0671 | BJ10: 0.0671 | BK10: 0.0671 | BL10: 0.0671 | BM10: 0.0671 | BN10: 0.0671 | BO10: 0.0671 | BP10: 0.0671 | BQ10: 0.0671 | BR10: 0.0671 | BS10: 0.0671 | BT10: 0.0671 | BU10: 0.0671 | BV10: 0.0671 | BW10: 0.0671 | BX10: 算定報告公表制度に同じ | BY10: ※ガソリンの係数 | BZ10: 活動量×（1-バイオ燃料の割合）×発熱量×排出係数 | CA10: 混合分をガソリンとして、混合分の排出量を算定
B11: 6 | C11: 収集運搬 | D11: CO2 | E11: バイオディーゼル | I11: 17 | J11: 10 | K11: 24 | L11: 10 | M11: 1 | N11: 0.0686 | O11: 0.0686 | P11: 0.0686 | Q11: 0.0686 | R11: 0.0686 | S11: 0.0686 | T11: 0.0686 | U11: 0.0686 | V11: 0.0686 | W11: 0.0686 | X11: 0.0686 | Y11: 0.0686 | Z11: 0.0686 | AA11: 0.0686 | AB11: 0.0686 | AC11: 0.0686 | AD11: 0.0686 | AE11: 0.0686 | AF11: 0.0686 | AG11: 0.0686 | AH11: 0.0686 | AI11: 0.0686 | AJ11: 0.0686 | AK11: 0.0686 | AL11: 0.0686 | AM11: 0.0686 | AN11: 0.0686 | AO11: 0.0686 | AP11: 0.0686 | AQ11: 0.0686 | AR11: 0.0686 | AS11: 0.0686 | AT11: 0.0686 | AU11: 0.0686 | AV11: 0.0686 | AW11: 0.0686 | AX11: 0.0686 | AY11: 0.0686 | AZ11: 0.0686 | BA11: 0.0686 | BB11: 0.0686 | BC11: 0.0686 | BD11: 0.0686 | BE11: 0.0686 | BF11: 0.0686 | BG11: 0.0686 | BH11: 0.0686 | BI11: 0.0686 | BJ11: 0.0686 | BK11: 0.0686 | BL11: 0.0686 | BM11: 0.0686 | BN11: 0.0686 | BO11: 0.0686 | BP11: 0.0686 | BQ11: 0.0686 | BR11: 0.0686 | BS11: 0.0686 | BT11: 0.0686 | BU11: 0.0686 | BV11: 0.0686 | BW11: 0.0686 | BX11: 算定報告公表制度に同じ | BY11: ※軽油の係数 | BZ11: 活動量×（1-バイオ燃料の割合）×発熱量×排出係数 | CA11: 混合分を軽油として、混合分の排出量を算定
